Workbook

Sheet Draft decision changes
A1: Cell | B1: Change
A2: AER Inputs'!D6 | B2: Substituted our draft decision pre-tax nominal WACC.
A3: AER Inputs'!C8 | B3: Substituted actual CPI consistent with the public lighting control mechanism for the 2019-24 period.
A4: AER Inputs'!D8 | B4: Substituted our draft decision CPI forecast.

Sheet Cover page
B27: 2023-01-31
B30: Attachment 9.1.a: Public lighting - pre-2009 fixed charge model FY24-29
B34: Ausgrid’s 2024-29 Regulatory Proposal

Sheet Format key
A1: Example cell formats | B1: Type of information | C1: Comment
A2: Example | B2: Column Label | C2: Describes the data or text in the column
A3: Example | B3: Row label | C3: Describes the data of text in the row
A4: Example | B4: Text input | C4: Is hard coded text that other calculations depend on
A5: Example | B5: Text linked | C5: Is text linked from another cell
A6: Example | B6: Value input | C6: Is hard coded value that is an input to other calculations
A7: Example | B7: Value link | C7: Is a value that is linked from another cell
A8: Example | B8: Value calculation | C8: Is a value calculated within the cell, by reference to other cells
A9: Example | B9: Column total | C9: Is the sum of the column above

Sheet AER Inputs
C3: Ausgrid Preliminary Proposal
C4: 2023-24 | D4: 2024-25 | E4: 2025-26 | F4: 2026-27 | G4: 2027-28 | H4: 2028-29
B6: Pre-Tax Nominal WACC | D6: 0.06171237449
B8: Forecast CPI | C8: 0.07831821929 | D8: 0.041
C10: Confirm unlagged CPI %
C14: 2023-24 | D14: 2024-25 | E14: 2025-26 | F14: 2026-27 | G14: 2027-28 | H14: 2028-29
B15: CPI Index | C15: 1 | D15: =C15*(1+C8) -> 1.078318219 | E15: =D15*(1+$D8) -> 1.122529266 | F15: =E15*(1+$D8) -> 1.168552966 | G15: =F15*(1+$D8) -> 1.216463638 | H15: =G15*(1+$D8) -> 1.266338647
B17: Revenue
B18: Smoothed Revenue Nominal $ | D18: ='Calc - Customer Charges'!V108 -> 1548265.239 | E18: ='Calc - Customer Charges'!W108 -> 1611744.113 | F18: ='Calc - Customer Charges'!X108 -> 1677825.622 | G18: ='Calc - Customer Charges'!Y108 -> 1746616.473 | H18: ='Calc - Customer Charges'!Z108 -> 1818227.748
B19: Smoothed Revenue (Real $ 2023/24) | D19: =D18/D15 -> 1435814.782 | E19: =E18/E15 -> 1435814.782 | F19: 1435814.782 | G19: 1435814.782 | H19: 1435814.782

Sheet Inputs - General
B2: Item | D2: FY24 | E2: FY25 | F2: FY26 | G2: FY27 | H2: FY28 | I2: FY29
B4: Inflation | E4: ='AER Inputs'!$D$8 -> 0.041 | F4: ='AER Inputs'!$D$8 -> 0.041 | G4: ='AER Inputs'!$D$8 -> 0.041 | H4: ='AER Inputs'!$D$8 -> 0.041 | I4: ='AER Inputs'!$D$8 -> 0.041
B5: Inflation index (base end FY24 / start FY25) | D5: 1 | E5: =D5*(1+INDIRECT("CPI"&E2)) -> 1.041 | F5: =E5*(1+INDIRECT("CPI"&F2)) -> 1.083681 | G5: =F5*(1+INDIRECT("CPI"&G2)) -> 1.128111921 | H5: =G5*(1+INDIRECT("CPI"&H2)) -> 1.17436451 | I5: =H5*(1+INDIRECT("CPI"&I2)) -> 1.222513455
B6: Pre-Tax Nominal WACC | E6: ='AER Inputs'!D6 -> 0.06171237449 | F6: Ausgrid Prelim Proposal PTRM
B7: Opening RAB FY25 ($m) | E7: ='Calc - RAB 2025-29'!$H$6727/1000 -> 9.66974 | F7: Source: FY20-24 Model

Sheet Report - Building Blocks
B2: $ m nominal | D2: FY25 | E2: FY26 | F2: FY27 | G2: FY28 | H2: FY29
B4: Building block revenue requirement
B5: Return of capital | D5: ='Calc - RAB 2025-29'!BH6727/1000 -> 1.886119762 | E5: ='Calc - RAB 2025-29'!BI6727/1000 -> 1.192913334 | F5: ='Calc - RAB 2025-29'!BJ6727/1000 -> 1.04370912 | G5: ='Calc - RAB 2025-29'!BK6727/1000 -> 0.9870337534 | H5: ='Calc - RAB 2025-29'!BL6727/1000 -> 0.9749848459
B6: Return on capital | D6: ='Calc - RAB 2025-29'!BN6727/1000 -> 0.5967426161 | E6: ='Calc - RAB 2025-29'!BO6727/1000 -> 0.480345687 | F6: ='Calc - RAB 2025-29'!BP6727/1000 -> 0.4067281726 | G6: ='Calc - RAB 2025-29'!BQ6727/1000 -> 0.3423184045 | H6: ='Calc - RAB 2025-29'!BR6727/1000 -> 0.2814062079
B7: Total allowable revenue - unsmoothed | D7: =SUM(D5:D6) -> 2.482862378 | E7: =SUM(E5:E6) -> 1.673259021 | F7: 1.450437293 | G7: 1.329352158 | H7: 1.256391054
B8: Total allowable revenue - smoothed | D8: =+'Calc - Customer Charges'!V108/1000000 -> 1.548265239 | E8: =+'Calc - Customer Charges'!W108/1000000 -> 1.611744113 | F8: =+'Calc - Customer Charges'!X108/1000000 -> 1.677825622 | G8: =+'Calc - Customer Charges'!Y108/1000000 -> 1.746616473 | H8: =+'Calc - Customer Charges'!Z108/1000000 -> 1.818227748

Sheet Report - Customer Charges
B1: Pre 2009 Asset Capital Charges
B2: Confidential | C2: AER Annuity Method Smoothed Revenue
B3: Customer Capital Charges ($ nominal) | C3: FY25 | D3: FY26 | E3: FY27 | F3: FY28 | G3: FY29
B107: Total Pre-2009 public lighting capital charges | C107: 1548265.239 | D107: 1611744.113 | E107: 1677825.622 | F107: 1746616.473 | G107: 1818227.748

Sheet Calc - RAB 2025-29
J1: Max remaining life (Max no of years to depreciate RAB to zero) | K1: 5 | U1: 1 | V1: 2 | W1: 3 | X1: 4 | Y1: 5
A2: Customer charges pa $000 | N2: Real Residual RAB (end period) | U2: Real straight line depreciation | AA2: Real Residual RAB (start period) | AH2: Inflated nominal Residual RAB (start period) | AO2: Nominal Residual RAB (end period) | AV2: Nominal Depreciation | BB2: Indexation on Opening RAB | BH2: Nominal Regulatory Depreciation | BN2: Nominal Return on Assets | BT2: Population | BV2: Replacement assets - Assets depreciated to zero value | CF2: Nominal residual value recovery (end period) | CL2: Real residual value recovery (end period)
A3: Customer | B3: Customer reference 2 (Merged) | C3: Customer reference 3 (Combined) | D3: Lookup | E3: Component | F3: Description | G3: Rate | H3: Closing RAB @ 30 June 2024 ($'000 real FY24) | I3: Set remaining life to 5yrs max (Yes = Accelerate Pre-2009 Deprn to finish at end of 2029) | J3: Remaining Life original (Note: made zero where RAB is zero) | K3: Remaining Life Adjusted (depreciation based on this column) | L3: Dep'n | N3: FY24 | O3: FY25 | P3: FY26 | Q3: FY27 | R3: FY28 | S3: FY29 | U3: FY25 | V3: FY26 | W3: FY27 | X3: FY28 | Y3: FY29 | AA3: FY25 | AB3: FY26 | AC3: FY27 | AD3: FY28 | AE3: FY29 | AF3: FY30 | AH3: FY25 | AI3: FY26 | AJ3: FY27 | AK3: FY28 | AL3: FY29 | AM3: FY30 | AO3: FY24 | AP3: FY25 | AQ3: FY26 | AR3: FY27 | AS3: FY28 | AT3: FY29 | AV3: FY25 | AW3: FY26 | AX3: FY27 | AY3: FY28 | AZ3: FY29 | BB3: FY25 | BC3: FY26 | BD3: FY27 | BE3: FY28 | BF3: FY29 | BH3: FY25 | BI3: FY26 | BJ3: FY27 | BK3: FY28 | BL3: FY29 | BN3: FY25 | BO3: FY26 | BP3: FY27 | BQ3: FY28 | BR3: FY29 | BT3: FY15 | BV3: FY21 | BW3: FY22 | BX3: FY23 | BY3: FY24 | BZ3: FY25 | CA3: FY26 | CB3: FY27 | CC3: FY28 | CD3: FY29 | CF3: FY25 | CG3: FY26 | CH3: FY27 | CI3: FY28 | CJ3: FY29 | CL3: FY25 | CM3: FY26 | CN3: FY27 | CO3: FY28 | CP3: FY29
D4: Bracket - 0.5 | E4: Bracket | F4: 0.5 | G4: 1 | H4: 0 | I4: No | J4: 0 | K4: =IF(I4="Yes",MIN(J4,$K$1),J4) -> 0 | L4: =IF(ISERROR(H4/K4),0,H4/K4) -> 0 | N4: =H4 -> 0 | O4: =N4-U4-CL4 -> 0 | P4: =O4-V4-CM4 -> 0 | Q4: =P4-W4-CN4 -> 0 | R4: =Q4-X4-CO4 -> 0 | S4: =R4-Y4-CP4 -> 0 | U4: =IFERROR(IF(N4-(($H4-SUM($CK4:CK4))/$K4)<0,N4,(($H4-SUM($CK4:CK4))/$K4)),0) -> 0 | V4: =IFERROR(IF(O4-(($H4-SUM($CK4:CL4))/$K4)<0,O4,(($H4-SUM($CK4:CL4))/$K4)),0) -> 0 | W4: =IFERROR(IF(P4-(($H4-SUM($CK4:CM4))/$K4)<0,P4,(($H4-SUM($CK4:CM4))/$K4)),0) -> 0 | X4: =IFERROR(IF(Q4-(($H4-SUM($CK4:CN4))/$K4)<0,Q4,(($H4-SUM($CK4:CN4))/$K4)),0) -> 0 | Y4: =IFERROR(IF(R4-(($H4-SUM($CK4:CO4))/$K4)<0,R4,(($H4-SUM($CK4:CO4))/$K4)),0) -> 0 | AA4: =N4 -> 0 | AB4: =O4 -> 0 | AC4: =P4 -> 0 | AD4: =Q4 -> 0 | AE4: =R4 -> 0 | AF4: =S4 -> 0 | AH4: =AA4*'Inputs - General'!D$5 -> 0 | AI4: =AB4*'Inputs - General'!E$5 -> 0 | AJ4: =AC4*'Inputs - General'!F$5 -> 0 | AK4: =AD4*'Inputs - General'!G$5 -> 0 | AL4: =AE4*'Inputs - General'!H$5 -> 0 | AM4: =AF4*'Inputs - General'!I$5 -> 0 | AO4: =N4*'Inputs - General'!D$5 -> 0 | AP4: =O4*'Inputs - General'!E$5 -> 0 | AQ4: =P4*'Inputs - General'!F$5 -> 0 | AR4: =Q4*'Inputs - General'!G$5 -> 0 | AS4: =R4*'Inputs - General'!H$5 -> 0 | AT4: =S4*'Inputs - General'!I$5 -> 0 | AV4: =U4*'Inputs - General'!E$5 -> 0 | AW4: =V4*'Inputs - General'!F$5 -> 0 | AX4: =W4*'Inputs - General'!G$5 -> 0 | AY4: =X4*'Inputs - General'!H$5 -> 0 | AZ4: =Y4*'Inputs - General'!I$5 -> 0 | BB4: =AH4*'Inputs - General'!E$4 -> 0 | BC4: =AI4*'Inputs - General'!F$4 -> 0 | BD4: =AJ4*'Inputs - General'!G$4 -> 0 | BE4: =AK4*'Inputs - General'!H$4 -> 0 | BF4: =AL4*'Inputs - General'!I$4 -> 0 | BH4: =AV4-BB4 -> 0 | BI4: =AW4-BC4 -> 0 | BJ4: =AX4-BD4 -> 0 | BK4: =AY4-BE4 -> 0 | BL4: =AZ4-BF4 -> 0 | BN4: =AH4*WACC -> 0 | BO4: =AI4*WACC -> 0 | BP4: =AJ4*WACC -> 0 | BQ4: =AK4*WACC -> 0 | BR4: =AL4*WACC -> 0 | BT4: ='Input - Customer Inventory FY15'!F3 -> 494 | BZ4: =IF($E4="Lamp",0,IF(SUM(BU4:$BY4)>=$BT4,0,IF(BN4<=0,IF($H4=0,0,$BT4),0))) -> 0 | CA4: =IF($E4="Lamp",0,IF(SUM($BU4:BZ4)>=$BT4,0,IF(BO4<=0,IF($H4=0,0,$BT4),0))) -> 0 | CB4: =IF($E4="Lamp",0,IF(SUM($BU4:CA4)>=$BT4,0,IF(BP4<=0,IF($H4=0,0,$BT4),0))) -> 0 | CC4: =IF($E4="Lamp",0,IF(SUM($BU4:CB4)>=$BT4,0,IF(BQ4<=0,IF($H4=0,0,$BT4),0))) -> 0 | CD4: =IF($E4="Lamp",0,IF(SUM($BU4:CC4)>=$BT4,0,IF(BR4<=0,IF($H4=0,0,$BT4),0))) -> 0 | CL4: =CF4/'Inputs - General'!E$5 -> 0 | CM4: =CG4/'Inputs - General'!F$5 -> 0 | CN4: =CH4/'Inputs - General'!G$5 -> 0 | CO4: =CI4/'Inputs - General'!H$5 -> 0 | CP4: =CJ4/'Inputs - General'!I$5 -> 0
D5: Bracket - 0.5 | E5: Bracket | F5: 0.5 | G5: 2 | H5: 0 | I5: No | J5: 0 | K5: =IF(I5="Yes",MIN(J5,$K$1),J5) -> 0 | L5: 0 | N5: 0 | O5: 0 | P5: 0 | Q5: 0 | R5: 0 | S5: 0 | U5: =IFERROR(IF(N5-(($H5-SUM($CK5:CK5))/$K5)<0,N5,(($H5-SUM($CK5:CK5))/$K5)),0) -> 0 | V5: =IFERROR(IF(O5-(($H5-SUM($CK5:CL5))/$K5)<0,O5,(($H5-SUM($CK5:CL5))/$K5)),0) -> 0 | W5: =IFERROR(IF(P5-(($H5-SUM($CK5:CM5))/$K5)<0,P5,(($H5-SUM($CK5:CM5))/$K5)),0) -> 0 | X5: =IFERROR(IF(Q5-(($H5-SUM($CK5:CN5))/$K5)<0,Q5,(($H5-SUM($CK5:CN5))/$K5)),0) -> 0 | Y5: =IFERROR(IF(R5-(($H5-SUM($CK5:CO5))/$K5)<0,R5,(($H5-SUM($CK5:CO5))/$K5)),0) -> 0 | AA5: =N5 -> 0 | AB5: =O5 -> 0 | AC5: =P5 -> 0 | AD5: =Q5 -> 0 | AE5: =R5 -> 0 | AF5: =S5 -> 0 | AH5: =AA5*'Inputs - General'!D$5 -> 0 | AI5: =AB5*'Inputs - General'!E$5 -> 0 | AJ5: =AC5*'Inputs - General'!F$5 -> 0 | AK5: =AD5*'Inputs - General'!G$5 -> 0 | AL5: =AE5*'Inputs - General'!H$5 -> 0 | AM5: =AF5*'Inputs - General'!I$5 -> 0 | AO5: =N5*'Inputs - General'!D$5 -> 0 | AP5: =O5*'Inputs - General'!E$5 -> 0 | AQ5: =P5*'Inputs - General'!F$5 -> 0 | AR5: =Q5*'Inputs - General'!G$5 -> 0 | AS5: =R5*'Inputs - General'!H$5 -> 0 | AT5: =S5*'Inputs - General'!I$5 -> 0 | AV5: =U5*'Inputs - General'!E$5 -> 0 | AW5: =V5*'Inputs - General'!F$5 -> 0 | AX5: =W5*'Inputs - General'!G$5 -> 0 | AY5: =X5*'Inputs - General'!H$5 -> 0 | AZ5: =Y5*'Inputs - General'!I$5 -> 0 | BB5: =AH5*'Inputs - General'!E$4 -> 0 | BC5: =AI5*'Inputs - General'!F$4 -> 0 | BD5: =AJ5*'Inputs - General'!G$4 -> 0 | BE5: =AK5*'Inputs - General'!H$4 -> 0 | BF5: =AL5*'Inputs - General'!I$4 -> 0 | BH5: =AV5-BB5 -> 0 | BI5: =AW5-BC5 -> 0 | BJ5: =AX5-BD5 -> 0 | BK5: =AY5-BE5 -> 0 | BL5: =AZ5-BF5 -> 0 | BN5: =AH5*WACC -> 0 | BO5: =AI5*WACC -> 0 | BP5: =AJ5*WACC -> 0 | BQ5: =AK5*WACC -> 0 | BR5: =AL5*WACC -> 0 | BT5: ='Input - Customer Inventory FY15'!F4 -> 5 | BZ5: =IF($E5="Lamp",0,IF(SUM(BU5:$BY5)>=$BT5,0,IF(BN5<=0,IF($H5=0,0,$BT5),0))) -> 0 | CA5: =IF($E5="Lamp",0,IF(SUM($BU5:BZ5)>=$BT5,0,IF(BO5<=0,IF($H5=0,0,$BT5),0))) -> 0 | CB5: =IF($E5="Lamp",0,IF(SUM($BU5:CA5)>=$BT5,0,IF(BP5<=0,IF($H5=0,0,$BT5),0))) -> 0 | CC5: =IF($E5="Lamp",0,IF(SUM($BU5:CB5)>=$BT5,0,IF(BQ5<=0,IF($H5=0,0,$BT5),0))) -> 0 | CD5: =IF($E5="Lamp",0,IF(SUM($BU5:CC5)>=$BT5,0,IF(BR5<=0,IF($H5=0,0,$BT5),0))) -> 0 | CL5: =CF5/'Inputs - General'!E$5 -> 0 | CM5: =CG5/'Inputs - General'!F$5 -> 0 | CN5: =CH5/'Inputs - General'!G$5 -> 0 | CO5: =CI5/'Inputs - General'!H$5 -> 0 | CP5: =CJ5/'Inputs - General'!I$5 -> 0
D6: Bracket - 1.0 | E6: Bracket | F6: 1.0 | G6: 1 | H6: 0.2797010753 | I6: No | J6: 2.567123288 | K6: 2.567123288 | L6: 0.1089550614 | N6: 0.2797010753 | O6: 0.170746014 | P6: 0.06179095261 | Q6: 0 | R6: 0 | S6: 0 | U6: =IFERROR(IF(N6-(($H6-SUM($CK6:CK6))/$K6)<0,N6,(($H6-SUM($CK6:CK6))/$K6)),0) -> 0.1089550614 | V6: =IFERROR(IF(O6-(($H6-SUM($CK6:CL6))/$K6)<0,O6,(($H6-SUM($CK6:CL6))/$K6)),0) -> 0.1089550614 | W6: =IFERROR(IF(P6-(($H6-SUM($CK6:CM6))/$K6)<0,P6,(($H6-SUM($CK6:CM6))/$K6)),0) -> 0.06179095261 | X6: =IFERROR(IF(Q6-(($H6-SUM($CK6:CN6))/$K6)<0,Q6,(($H6-SUM($CK6:CN6))/$K6)),0) -> 0 | Y6: =IFERROR(IF(R6-(($H6-SUM($CK6:CO6))/$K6)<0,R6,(($H6-SUM($CK6:CO6))/$K6)),0) -> 0 | AA6: 0.2797010753 | AB6: 0.170746014 | AC6: 0.06179095261 | AD6: 0 | AE6: 0 | AF6: 0 | AH6: =AA6*'Inputs - General'!D$5 -> 0.2797010753 | AI6: =AB6*'Inputs - General'!E$5 -> 0.1777466005 | AJ6: =AC6*'Inputs - General'!F$5 -> 0.06696168131 | AK6: =AD6*'Inputs - General'!G$5 -> 0 | AL6: =AE6*'Inputs - General'!H$5 -> 0 | AM6: =AF6*'Inputs - General'!I$5 -> 0 | AO6: =N6*'Inputs - General'!D$5 -> 0.2797010753 | AP6: =O6*'Inputs - General'!E$5 -> 0.1777466005 | AQ6: =P6*'Inputs - General'!F$5 -> 0.06696168131 | AR6: =Q6*'Inputs - General'!G$5 -> 0 | AS6: =R6*'Inputs - General'!H$5 -> 0 | AT6: =S6*'Inputs - General'!I$5 -> 0 | AV6: =U6*'Inputs - General'!E$5 -> 0.1134222189 | AW6: =V6*'Inputs - General'!F$5 -> 0.1180725298 | AX6: =W6*'Inputs - General'!G$5 -> 0.06970711024 | AY6: =X6*'Inputs - General'!H$5 -> 0 | AZ6: =Y6*'Inputs - General'!I$5 -> 0 | BB6: =AH6*'Inputs - General'!E$4 -> 0.01146774409 | BC6: =AI6*'Inputs - General'!F$4 -> 0.007287610622 | BD6: =AJ6*'Inputs - General'!G$4 -> 0.002745428934 | BE6: =AK6*'Inputs - General'!H$4 -> 0 | BF6: =AL6*'Inputs - General'!I$4 -> 0 | BH6: 0.1019544748 | BI6: 0.1107849192 | BJ6: 0.06696168131 | BK6: 0 | BL6: 0 | BN6: 0.01726101751 | BO6: 0.01096916478 | BP6: 0.004132364354 | BQ6: 0 | BR6: 0 | BT6: ='Input - Customer Inventory FY15'!F5 -> 7 | BZ6: =IF($E6="Lamp",0,IF(SUM(BU6:$BY6)>=$BT6,0,IF(BN6<=0,IF($H6=0,0,$BT6),0))) -> 0 | CA6: =IF($E6="Lamp",0,IF(SUM($BU6:BZ6)>=$BT6,0,IF(BO6<=0,IF($H6=0,0,$BT6),0))) -> 0 | CB6: =IF($E6="Lamp",0,IF(SUM($BU6:CA6)>=$BT6,0,IF(BP6<=0,IF($H6=0,0,$BT6),0))) -> 0 | CC6: =IF($E6="Lamp",0,IF(SUM($BU6:CB6)>=$BT6,0,IF(BQ6<=0,IF($H6=0,0,$BT6),0))) -> 7 | CD6: =IF($E6="Lamp",0,IF(SUM($BU6:CC6)>=$BT6,0,IF(BR6<=0,IF($H6=0,0,$BT6),0))) -> 0 | CL6: =CF6/'Inputs - General'!E$5 -> 0 | CM6: =CG6/'Inputs - General'!F$5 -> 0 | CN6: =CH6/'Inputs - General'!G$5 -> 0 | CO6: =CI6/'Inputs - General'!H$5 -> 0 | CP6: =CJ6/'Inputs - General'!I$5 -> 0
D7: Bracket - 1.5 | E7: Bracket | F7: 1.5 | G7: 2 | H7: 0 | I7: No | J7: 0 | K7: 0 | L7: 0 | N7: 0 | O7: 0 | P7: 0 | Q7: 0 | R7: 0 | S7: 0 | U7: =IFERROR(IF(N7-(($H7-SUM($CK7:CK7))/$K7)<0,N7,(($H7-SUM($CK7:CK7))/$K7)),0) -> 0 | V7: =IFERROR(IF(O7-(($H7-SUM($CK7:CL7))/$K7)<0,O7,(($H7-SUM($CK7:CL7))/$K7)),0) -> 0 | W7: =IFERROR(IF(P7-(($H7-SUM($CK7:CM7))/$K7)<0,P7,(($H7-SUM($CK7:CM7))/$K7)),0) -> 0 | X7: =IFERROR(IF(Q7-(($H7-SUM($CK7:CN7))/$K7)<0,Q7,(($H7-SUM($CK7:CN7))/$K7)),0) -> 0 | Y7: =IFERROR(IF(R7-(($H7-SUM($CK7:CO7))/$K7)<0,R7,(($H7-SUM($CK7:CO7))/$K7)),0) -> 0 | AA7: 0 | AB7: 0 | AC7: 0 | AD7: 0 | AE7: 0 | AF7: 0 | AH7: =AA7*'Inputs - General'!D$5 -> 0 | AI7: =AB7*'Inputs - General'!E$5 -> 0 | AJ7: =AC7*'Inputs - General'!F$5 -> 0 | AK7: =AD7*'Inputs - General'!G$5 -> 0 | AL7: =AE7*'Inputs - General'!H$5 -> 0 | AM7: =AF7*'Inputs - General'!I$5 -> 0 | AO7: =N7*'Inputs - General'!D$5 -> 0 | AP7: =O7*'Inputs - General'!E$5 -> 0 | AQ7: =P7*'Inputs - General'!F$5 -> 0 | AR7: =Q7*'Inputs - General'!G$5 -> 0 | AS7: =R7*'Inputs - General'!H$5 -> 0 | AT7: =S7*'Inputs - General'!I$5 -> 0 | AV7: =U7*'Inputs - General'!E$5 -> 0 | AW7: =V7*'Inputs - General'!F$5 -> 0 | AX7: =W7*'Inputs - General'!G$5 -> 0 | AY7: =X7*'Inputs - General'!H$5 -> 0 | AZ7: =Y7*'Inputs - General'!I$5 -> 0 | BB7: =AH7*'Inputs - General'!E$4 -> 0 | BC7: =AI7*'Inputs - General'!F$4 -> 0 | BD7: =AJ7*'Inputs - General'!G$4 -> 0 | BE7: =AK7*'Inputs - General'!H$4 -> 0 | BF7: =AL7*'Inputs - General'!I$4 -> 0 | BH7: 0 | BI7: 0 | BJ7: 0 | BK7: 0 | BL7: 0 | BN7: 0 | BO7: 0 | BP7: 0 | BQ7: 0 | BR7: 0 | BT7: ='Input - Customer Inventory FY15'!F6 -> 2 | BZ7: =IF($E7="Lamp",0,IF(SUM(BU7:$BY7)>=$BT7,0,IF(BN7<=0,IF($H7=0,0,$BT7),0))) -> 0 | CA7: =IF($E7="Lamp",0,IF(SUM($BU7:BZ7)>=$BT7,0,IF(BO7<=0,IF($H7=0,0,$BT7),0))) -> 0 | CB7: =IF($E7="Lamp",0,IF(SUM($BU7:CA7)>=$BT7,0,IF(BP7<=0,IF($H7=0,0,$BT7),0))) -> 0 | CC7: =IF($E7="Lamp",0,IF(SUM($BU7:CB7)>=$BT7,0,IF(BQ7<=0,IF($H7=0,0,$BT7),0))) -> 0 | CD7: =IF($E7="Lamp",0,IF(SUM($BU7:CC7)>=$BT7,0,IF(BR7<=0,IF($H7=0,0,$BT7),0))) -> 0 | CL7: =CF7/'Inputs - General'!E$5 -> 0 | CM7: =CG7/'Inputs - General'!F$5 -> 0 | CN7: =CH7/'Inputs - General'!G$5 -> 0 | CO7: =CI7/'Inputs - General'!H$5 -> 0 | CP7: =CJ7/'Inputs - General'!I$5 -> 0
D8: Bracket - 2.0 | E8: Bracket | F8: 2.0 | G8: 1 | H8: 0 | I8: No | J8: 0 | K8: 0 | L8: =IF(ISERROR(H8/K8),0,H8/K8) -> 0 | N8: 0 | O8: 0 | P8: 0 | Q8: 0 | R8: 0 | S8: 0 | U8: =IFERROR(IF(N8-(($H8-SUM($CK8:CK8))/$K8)<0,N8,(($H8-SUM($CK8:CK8))/$K8)),0) -> 0 | V8: =IFERROR(IF(O8-(($H8-SUM($CK8:CL8))/$K8)<0,O8,(($H8-SUM($CK8:CL8))/$K8)),0) -> 0 | W8: =IFERROR(IF(P8-(($H8-SUM($CK8:CM8))/$K8)<0,P8,(($H8-SUM($CK8:CM8))/$K8)),0) -> 0 | X8: =IFERROR(IF(Q8-(($H8-SUM($CK8:CN8))/$K8)<0,Q8,(($H8-SUM($CK8:CN8))/$K8)),0) -> 0 | Y8: =IFERROR(IF(R8-(($H8-SUM($CK8:CO8))/$K8)<0,R8,(($H8-SUM($CK8:CO8))/$K8)),0) -> 0 | AA8: 0 | AB8: 0 | AC8: 0 | AD8: 0 | AE8: 0 | AF8: 0 | AH8: =AA8*'Inputs - General'!D$5 -> 0 | AI8: =AB8*'Inputs - General'!E$5 -> 0 | AJ8: =AC8*'Inputs - General'!F$5 -> 0 | AK8: =AD8*'Inputs - General'!G$5 -> 0 | AL8: =AE8*'Inputs - General'!H$5 -> 0 | AM8: =AF8*'Inputs - General'!I$5 -> 0 | AO8: =N8*'Inputs - General'!D$5 -> 0 | AP8: =O8*'Inputs - General'!E$5 -> 0 | AQ8: =P8*'Inputs - General'!F$5 -> 0 | AR8: =Q8*'Inputs - General'!G$5 -> 0 | AS8: =R8*'Inputs - General'!H$5 -> 0 | AT8: =S8*'Inputs - General'!I$5 -> 0 | AV8: =U8*'Inputs - General'!E$5 -> 0 | AW8: =V8*'Inputs - General'!F$5 -> 0 | AX8: =W8*'Inputs - General'!G$5 -> 0 | AY8: =X8*'Inputs - General'!H$5 -> 0 | AZ8: =Y8*'Inputs - General'!I$5 -> 0 | BB8: =AH8*'Inputs - General'!E$4 -> 0 | BC8: =AI8*'Inputs - General'!F$4 -> 0 | BD8: =AJ8*'Inputs - General'!G$4 -> 0 | BE8: =AK8*'Inputs - General'!H$4 -> 0 | BF8: =AL8*'Inputs - General'!I$4 -> 0 | BH8: 0 | BI8: 0 | BJ8: 0 | BK8: 0 | BL8: 0 | BN8: 0 | BO8: 0 | BP8: 0 | BQ8: 0 | BR8: 0 | BT8: ='Input - Customer Inventory FY15'!F7 -> 507.5 | BZ8: =IF($E8="Lamp",0,IF(SUM(BU8:$BY8)>=$BT8,0,IF(BN8<=0,IF($H8=0,0,$BT8),0))) -> 0 | CA8: =IF($E8="Lamp",0,IF(SUM($BU8:BZ8)>=$BT8,0,IF(BO8<=0,IF($H8=0,0,$BT8),0))) -> 0 | CB8: =IF($E8="Lamp",0,IF(SUM($BU8:CA8)>=$BT8,0,IF(BP8<=0,IF($H8=0,0,$BT8),0))) -> 0 | CC8: =IF($E8="Lamp",0,IF(SUM($BU8:CB8)>=$BT8,0,IF(BQ8<=0,IF($H8=0,0,$BT8),0))) -> 0 | CD8: =IF($E8="Lamp",0,IF(SUM($BU8:CC8)>=$BT8,0,IF(BR8<=0,IF($H8=0,0,$BT8),0))) -> 0 | CL8: =CF8/'Inputs - General'!E$5 -> 0 | CM8: =CG8/'Inputs - General'!F$5 -> 0 | CN8: =CH8/'Inputs - General'!G$5 -> 0 | CO8: =CI8/'Inputs - General'!H$5 -> 0 | CP8: =CJ8/'Inputs - General'!I$5 -> 0
D9: Bracket - 2.0 | E9: Bracket | F9: 2.0 | G9: 2 | H9: 0 | I9: No | J9: 0 | K9: 0 | L9: 0 | N9: 0 | O9: 0 | P9: 0 | Q9: 0 | R9: 0 | S9: 0 | U9: =IFERROR(IF(N9-(($H9-SUM($CK9:CK9))/$K9)<0,N9,(($H9-SUM($CK9:CK9))/$K9)),0) -> 0 | V9: =IFERROR(IF(O9-(($H9-SUM($CK9:CL9))/$K9)<0,O9,(($H9-SUM($CK9:CL9))/$K9)),0) -> 0 | W9: =IFERROR(IF(P9-(($H9-SUM($CK9:CM9))/$K9)<0,P9,(($H9-SUM($CK9:CM9))/$K9)),0) -> 0 | X9: =IFERROR(IF(Q9-(($H9-SUM($CK9:CN9))/$K9)<0,Q9,(($H9-SUM($CK9:CN9))/$K9)),0) -> 0 | Y9: =IFERROR(IF(R9-(($H9-SUM($CK9:CO9))/$K9)<0,R9,(($H9-SUM($CK9:CO9))/$K9)),0) -> 0 | AA9: 0 | AB9: 0 | AC9: 0 | AD9: 0 | AE9: 0 | AF9: 0 | AH9: =AA9*'Inputs - General'!D$5 -> 0 | AI9: =AB9*'Inputs - General'!E$5 -> 0 | AJ9: =AC9*'Inputs - General'!F$5 -> 0 | AK9: =AD9*'Inputs - General'!G$5 -> 0 | AL9: =AE9*'Inputs - General'!H$5 -> 0 | AM9: =AF9*'Inputs - General'!I$5 -> 0 | AO9: =N9*'Inputs - General'!D$5 -> 0 | AP9: =O9*'Inputs - General'!E$5 -> 0 | AQ9: =P9*'Inputs - General'!F$5 -> 0 | AR9: =Q9*'Inputs - General'!G$5 -> 0 | AS9: =R9*'Inputs - General'!H$5 -> 0 | AT9: =S9*'Inputs - General'!I$5 -> 0 | AV9: =U9*'Inputs - General'!E$5 -> 0 | AW9: =V9*'Inputs - General'!F$5 -> 0 | AX9: =W9*'Inputs - General'!G$5 -> 0 | AY9: =X9*'Inputs - General'!H$5 -> 0 | AZ9: =Y9*'Inputs - General'!I$5 -> 0 | BB9: =AH9*'Inputs - General'!E$4 -> 0 | BC9: =AI9*'Inputs - General'!F$4 -> 0 | BD9: =AJ9*'Inputs - General'!G$4 -> 0 | BE9: =AK9*'Inputs - General'!H$4 -> 0 | BF9: =AL9*'Inputs - General'!I$4 -> 0 | BH9: 0 | BI9: 0 | BJ9: 0 | BK9: 0 | BL9: 0 | BN9: 0 | BO9: 0 | BP9: 0 | BQ9: 0 | BR9: 0 | BT9: ='Input - Customer Inventory FY15'!F8 -> 1 | BZ9: =IF($E9="Lamp",0,IF(SUM(BU9:$BY9)>=$BT9,0,IF(BN9<=0,IF($H9=0,0,$BT9),0))) -> 0 | CA9: =IF($E9="Lamp",0,IF(SUM($BU9:BZ9)>=$BT9,0,IF(BO9<=0,IF($H9=0,0,$BT9),0))) -> 0 | CB9: =IF($E9="Lamp",0,IF(SUM($BU9:CA9)>=$BT9,0,IF(BP9<=0,IF($H9=0,0,$BT9),0))) -> 0 | CC9: =IF($E9="Lamp",0,IF(SUM($BU9:CB9)>=$BT9,0,IF(BQ9<=0,IF($H9=0,0,$BT9),0))) -> 0 | CD9: =IF($E9="Lamp",0,IF(SUM($BU9:CC9)>=$BT9,0,IF(BR9<=0,IF($H9=0,0,$BT9),0))) -> 0 | CL9: =CF9/'Inputs - General'!E$5 -> 0 | CM9: =CG9/'Inputs - General'!F$5 -> 0 | CN9: =CH9/'Inputs - General'!G$5 -> 0 | CO9: =CI9/'Inputs - General'!H$5 -> 0 | CP9: =CJ9/'Inputs - General'!I$5 -> 0
D10: Bracket - 2.5 | E10: Bracket | F10: 2.5 | G10: 1 | H10: 0 | I10: No | J10: 0 | K10: 0 | L10: 0 | N10: 0 | O10: 0 | P10: 0 | Q10: 0 | R10: 0 | S10: 0 | U10: =IFERROR(IF(N10-(($H10-SUM($CK10:CK10))/$K10)<0,N10,(($H10-SUM($CK10:CK10))/$K10)),0) -> 0 | V10: =IFERROR(IF(O10-(($H10-SUM($CK10:CL10))/$K10)<0,O10,(($H10-SUM($CK10:CL10))/$K10)),0) -> 0 | W10: =IFERROR(IF(P10-(($H10-SUM($CK10:CM10))/$K10)<0,P10,(($H10-SUM($CK10:CM10))/$K10)),0) -> 0 | X10: =IFERROR(IF(Q10-(($H10-SUM($CK10:CN10))/$K10)<0,Q10,(($H10-SUM($CK10:CN10))/$K10)),0) -> 0 | Y10: =IFERROR(IF(R10-(($H10-SUM($CK10:CO10))/$K10)<0,R10,(($H10-SUM($CK10:CO10))/$K10)),0) -> 0 | AA10: 0 | AB10: 0 | AC10: 0 | AD10: 0 | AE10: 0 | AF10: 0 | AH10: =AA10*'Inputs - General'!D$5 -> 0 | AI10: =AB10*'Inputs - General'!E$5 -> 0 | AJ10: =AC10*'Inputs - General'!F$5 -> 0 | AK10: =AD10*'Inputs - General'!G$5 -> 0 | AL10: =AE10*'Inputs - General'!H$5 -> 0 | AM10: =AF10*'Inputs - General'!I$5 -> 0 | AO10: =N10*'Inputs - General'!D$5 -> 0 | AP10: =O10*'Inputs - General'!E$5 -> 0 | AQ10: =P10*'Inputs - General'!F$5 -> 0 | AR10: =Q10*'Inputs - General'!G$5 -> 0 | AS10: =R10*'Inputs - General'!H$5 -> 0 | AT10: =S10*'Inputs - General'!I$5 -> 0 | AV10: =U10*'Inputs - General'!E$5 -> 0 | AW10: =V10*'Inputs - General'!F$5 -> 0 | AX10: =W10*'Inputs - General'!G$5 -> 0 | AY10: =X10*'Inputs - General'!H$5 -> 0 | AZ10: =Y10*'Inputs - General'!I$5 -> 0 | BB10: =AH10*'Inputs - General'!E$4 -> 0 | BC10: =AI10*'Inputs - General'!F$4 -> 0 | BD10: =AJ10*'Inputs - General'!G$4 -> 0 | BE10: =AK10*'Inputs - General'!H$4 -> 0 | BF10: =AL10*'Inputs - General'!I$4 -> 0 | BH10: 0 | BI10: 0 | BJ10: 0 | BK10: 0 | BL10: 0 | BN10: 0 | BO10: 0 | BP10: 0 | BQ10: 0 | BR10: 0 | BT10: ='Input - Customer Inventory FY15'!F9 -> 2.5 | BZ10: =IF($E10="Lamp",0,IF(SUM(BU10:$BY10)>=$BT10,0,IF(BN10<=0,IF($H10=0,0,$BT10),0))) -> 0 | CA10: =IF($E10="Lamp",0,IF(SUM($BU10:BZ10)>=$BT10,0,IF(BO10<=0,IF($H10=0,0,$BT10),0))) -> 0 | CB10: =IF($E10="Lamp",0,IF(SUM($BU10:CA10)>=$BT10,0,IF(BP10<=0,IF($H10=0,0,$BT10),0))) -> 0 | CC10: =IF($E10="Lamp",0,IF(SUM($BU10:CB10)>=$BT10,0,IF(BQ10<=0,IF($H10=0,0,$BT10),0))) -> 0 | CD10: =IF($E10="Lamp",0,IF(SUM($BU10:CC10)>=$BT10,0,IF(BR10<=0,IF($H10=0,0,$BT10),0))) -> 0 | CL10: =CF10/'Inputs - General'!E$5 -> 0 | CM10: =CG10/'Inputs - General'!F$5 -> 0 | CN10: =CH10/'Inputs - General'!G$5 -> 0 | CO10: =CI10/'Inputs - General'!H$5 -> 0 | CP10: =CJ10/'Inputs - General'!I$5 -> 0
D11: Bracket - 3.0 | E11: Bracket | F11: 3.0 | G11: 1 | H11: 0 | I11: No | J11: 0 | K11: 0 | L11: 0 | N11: 0 | O11: 0 | P11: 0 | Q11: 0 | R11: 0 | S11: 0 | U11: =IFERROR(IF(N11-(($H11-SUM($CK11:CK11))/$K11)<0,N11,(($H11-SUM($CK11:CK11))/$K11)),0) -> 0 | V11: =IFERROR(IF(O11-(($H11-SUM($CK11:CL11))/$K11)<0,O11,(($H11-SUM($CK11:CL11))/$K11)),0) -> 0 | W11: =IFERROR(IF(P11-(($H11-SUM($CK11:CM11))/$K11)<0,P11,(($H11-SUM($CK11:CM11))/$K11)),0) -> 0 | X11: =IFERROR(IF(Q11-(($H11-SUM($CK11:CN11))/$K11)<0,Q11,(($H11-SUM($CK11:CN11))/$K11)),0) -> 0 | Y11: =IFERROR(IF(R11-(($H11-SUM($CK11:CO11))/$K11)<0,R11,(($H11-SUM($CK11:CO11))/$K11)),0) -> 0 | AA11: 0 | AB11: 0 | AC11: 0 | AD11: 0 | AE11: 0 | AF11: 0 | AH11: =AA11*'Inputs - General'!D$5 -> 0 | AI11: =AB11*'Inputs - General'!E$5 -> 0 | AJ11: =AC11*'Inputs - General'!F$5 -> 0 | AK11: =AD11*'Inputs - General'!G$5 -> 0 | AL11: =AE11*'Inputs - General'!H$5 -> 0 | AM11: =AF11*'Inputs - General'!I$5 -> 0 | AO11: =N11*'Inputs - General'!D$5 -> 0 | AP11: =O11*'Inputs - General'!E$5 -> 0 | AQ11: =P11*'Inputs - General'!F$5 -> 0 | AR11: =Q11*'Inputs - General'!G$5 -> 0 | AS11: =R11*'Inputs - General'!H$5 -> 0 | AT11: =S11*'Inputs - General'!I$5 -> 0 | AV11: =U11*'Inputs - General'!E$5 -> 0 | AW11: =V11*'Inputs - General'!F$5 -> 0 | AX11: =W11*'Inputs - General'!G$5 -> 0 | AY11: =X11*'Inputs - General'!H$5 -> 0 | AZ11: =Y11*'Inputs - General'!I$5 -> 0 | BB11: =AH11*'Inputs - General'!E$4 -> 0 | BC11: =AI11*'Inputs - General'!F$4 -> 0 | BD11: =AJ11*'Inputs - General'!G$4 -> 0 | BE11: =AK11*'Inputs - General'!H$4 -> 0 | BF11: =AL11*'Inputs - General'!I$4 -> 0 | BH11: 0 | BI11: 0 | BJ11: 0 | BK11: 0 | BL11: 0 | BN11: 0 | BO11: 0 | BP11: 0 | BQ11: 0 | BR11: 0 | BT11: ='Input - Customer Inventory FY15'!F10 -> 16.5 | BZ11: =IF($E11="Lamp",0,IF(SUM(BU11:$BY11)>=$BT11,0,IF(BN11<=0,IF($H11=0,0,$BT11),0))) -> 0 | CA11: =IF($E11="Lamp",0,IF(SUM($BU11:BZ11)>=$BT11,0,IF(BO11<=0,IF($H11=0,0,$BT11),0))) -> 0 | CB11: =IF($E11="Lamp",0,IF(SUM($BU11:CA11)>=$BT11,0,IF(BP11<=0,IF($H11=0,0,$BT11),0))) -> 0 | CC11: =IF($E11="Lamp",0,IF(SUM($BU11:CB11)>=$BT11,0,IF(BQ11<=0,IF($H11=0,0,$BT11),0))) -> 0 | CD11: =IF($E11="Lamp",0,IF(SUM($BU11:CC11)>=$BT11,0,IF(BR11<=0,IF($H11=0,0,$BT11),0))) -> 0 | CL11: =CF11/'Inputs - General'!E$5 -> 0 | CM11: =CG11/'Inputs - General'!F$5 -> 0 | CN11: =CH11/'Inputs - General'!G$5 -> 0 | CO11: =CI11/'Inputs - General'!H$5 -> 0 | CP11: =CJ11/'Inputs - General'!I$5 -> 0
D12: Bracket - 3.0 | E12: Bracket | F12: 3.0 | G12: 2 | H12: 0 | I12: No | J12: 0 | K12: 0 | L12: 0 | N12: 0 | O12: 0 | P12: 0 | Q12: 0 | R12: 0 | S12: 0 | U12: =IFERROR(IF(N12-(($H12-SUM($CK12:CK12))/$K12)<0,N12,(($H12-SUM($CK12:CK12))/$K12)),0) -> 0 | V12: =IFERROR(IF(O12-(($H12-SUM($CK12:CL12))/$K12)<0,O12,(($H12-SUM($CK12:CL12))/$K12)),0) -> 0 | W12: =IFERROR(IF(P12-(($H12-SUM($CK12:CM12))/$K12)<0,P12,(($H12-SUM($CK12:CM12))/$K12)),0) -> 0 | X12: =IFERROR(IF(Q12-(($H12-SUM($CK12:CN12))/$K12)<0,Q12,(($H12-SUM($CK12:CN12))/$K12)),0) -> 0 | Y12: =IFERROR(IF(R12-(($H12-SUM($CK12:CO12))/$K12)<0,R12,(($H12-SUM($CK12:CO12))/$K12)),0) -> 0 | AA12: 0 | AB12: 0 | AC12: 0 | AD12: 0 | AE12: 0 | AF12: 0 | AH12: =AA12*'Inputs - General'!D$5 -> 0 | AI12: =AB12*'Inputs - General'!E$5 -> 0 | AJ12: =AC12*'Inputs - General'!F$5 -> 0 | AK12: =AD12*'Inputs - General'!G$5 -> 0 | AL12: =AE12*'Inputs - General'!H$5 -> 0 | AM12: =AF12*'Inputs - General'!I$5 -> 0 | AO12: =N12*'Inputs - General'!D$5 -> 0 | AP12: =O12*'Inputs - General'!E$5 -> 0 | AQ12: =P12*'Inputs - General'!F$5 -> 0 | AR12: =Q12*'Inputs - General'!G$5 -> 0 | AS12: =R12*'Inputs - General'!H$5 -> 0 | AT12: =S12*'Inputs - General'!I$5 -> 0 | AV12: =U12*'Inputs - General'!E$5 -> 0 | AW12: =V12*'Inputs - General'!F$5 -> 0 | AX12: =W12*'Inputs - General'!G$5 -> 0 | AY12: =X12*'Inputs - General'!H$5 -> 0 | AZ12: =Y12*'Inputs - General'!I$5 -> 0 | BB12: =AH12*'Inputs - General'!E$4 -> 0 | BC12: =AI12*'Inputs - General'!F$4 -> 0 | BD12: =AJ12*'Inputs - General'!G$4 -> 0 | BE12: =AK12*'Inputs - General'!H$4 -> 0 | BF12: =AL12*'Inputs - General'!I$4 -> 0 | BH12: 0 | BI12: 0 | BJ12: 0 | BK12: 0 | BL12: 0 | BN12: 0 | BO12: 0 | BP12: 0 | BQ12: 0 | BR12: 0 | BT12: ='Input - Customer Inventory FY15'!F11 -> 8 | BZ12: =IF($E12="Lamp",0,IF(SUM(BU12:$BY12)>=$BT12,0,IF(BN12<=0,IF($H12=0,0,$BT12),0))) -> 0 | CA12: =IF($E12="Lamp",0,IF(SUM($BU12:BZ12)>=$BT12,0,IF(BO12<=0,IF($H12=0,0,$BT12),0))) -> 0 | CB12: =IF($E12="Lamp",0,IF(SUM($BU12:CA12)>=$BT12,0,IF(BP12<=0,IF($H12=0,0,$BT12),0))) -> 0 | CC12: =IF($E12="Lamp",0,IF(SUM($BU12:CB12)>=$BT12,0,IF(BQ12<=0,IF($H12=0,0,$BT12),0))) -> 0 | CD12: =IF($E12="Lamp",0,IF(SUM($BU12:CC12)>=$BT12,0,IF(BR12<=0,IF($H12=0,0,$BT12),0))) -> 0 | CL12: =CF12/'Inputs - General'!E$5 -> 0 | CM12: =CG12/'Inputs - General'!F$5 -> 0 | CN12: =CH12/'Inputs - General'!G$5 -> 0 | CO12: =CI12/'Inputs - General'!H$5 -> 0 | CP12: =CJ12/'Inputs - General'!I$5 -> 0
D13: Bracket - 3.5 | E13: Bracket | F13: 3.5 | G13: 1 | H13: 0 | I13: No | J13: 0 | K13: 0 | L13: 0 | N13: 0 | O13: 0 | P13: 0 | Q13: 0 | R13: 0 | S13: 0 | U13: =IFERROR(IF(N13-(($H13-SUM($CK13:CK13))/$K13)<0,N13,(($H13-SUM($CK13:CK13))/$K13)),0) -> 0 | V13: =IFERROR(IF(O13-(($H13-SUM($CK13:CL13))/$K13)<0,O13,(($H13-SUM($CK13:CL13))/$K13)),0) -> 0 | W13: =IFERROR(IF(P13-(($H13-SUM($CK13:CM13))/$K13)<0,P13,(($H13-SUM($CK13:CM13))/$K13)),0) -> 0 | X13: =IFERROR(IF(Q13-(($H13-SUM($CK13:CN13))/$K13)<0,Q13,(($H13-SUM($CK13:CN13))/$K13)),0) -> 0 | Y13: =IFERROR(IF(R13-(($H13-SUM($CK13:CO13))/$K13)<0,R13,(($H13-SUM($CK13:CO13))/$K13)),0) -> 0 | AA13: 0 | AB13: 0 | AC13: 0 | AD13: 0 | AE13: 0 | AF13: 0 | AH13: =AA13*'Inputs - General'!D$5 -> 0 | AI13: =AB13*'Inputs - General'!E$5 -> 0 | AJ13: =AC13*'Inputs - General'!F$5 -> 0 | AK13: =AD13*'Inputs - General'!G$5 -> 0 | AL13: =AE13*'Inputs - General'!H$5 -> 0 | AM13: =AF13*'Inputs - General'!I$5 -> 0 | AO13: =N13*'Inputs - General'!D$5 -> 0 | AP13: =O13*'Inputs - General'!E$5 -> 0 | AQ13: =P13*'Inputs - General'!F$5 -> 0 | AR13: =Q13*'Inputs - General'!G$5 -> 0 | AS13: =R13*'Inputs - General'!H$5 -> 0 | AT13: =S13*'Inputs - General'!I$5 -> 0 | AV13: =U13*'Inputs - General'!E$5 -> 0 | AW13: =V13*'Inputs - General'!F$5 -> 0 | AX13: =W13*'Inputs - General'!G$5 -> 0 | AY13: =X13*'Inputs - General'!H$5 -> 0 | AZ13: =Y13*'Inputs - General'!I$5 -> 0 | BB13: =AH13*'Inputs - General'!E$4 -> 0 | BC13: =AI13*'Inputs - General'!F$4 -> 0 | BD13: =AJ13*'Inputs - General'!G$4 -> 0 | BE13: =AK13*'Inputs - General'!H$4 -> 0 | BF13: =AL13*'Inputs - General'!I$4 -> 0 | BH13: 0 | BI13: 0 | BJ13: 0 | BK13: 0 | BL13: 0 | BN13: 0 | BO13: 0 | BP13: 0 | BQ13: 0 | BR13: 0 | BT13: ='Input - Customer Inventory FY15'!F12 -> 154 | BZ13: =IF($E13="Lamp",0,IF(SUM(BU13:$BY13)>=$BT13,0,IF(BN13<=0,IF($H13=0,0,$BT13),0))) -> 0 | CA13: =IF($E13="Lamp",0,IF(SUM($BU13:BZ13)>=$BT13,0,IF(BO13<=0,IF($H13=0,0,$BT13),0))) -> 0 | CB13: =IF($E13="Lamp",0,IF(SUM($BU13:CA13)>=$BT13,0,IF(BP13<=0,IF($H13=0,0,$BT13),0))) -> 0 | CC13: =IF($E13="Lamp",0,IF(SUM($BU13:CB13)>=$BT13,0,IF(BQ13<=0,IF($H13=0,0,$BT13),0))) -> 0 | CD13: =IF($E13="Lamp",0,IF(SUM($BU13:CC13)>=$BT13,0,IF(BR13<=0,IF($H13=0,0,$BT13),0))) -> 0 | CL13: =CF13/'Inputs - General'!E$5 -> 0 | CM13: =CG13/'Inputs - General'!F$5 -> 0 | CN13: =CH13/'Inputs - General'!G$5 -> 0 | CO13: =CI13/'Inputs - General'!H$5 -> 0 | CP13: =CJ13/'Inputs - General'!I$5 -> 0
D14: Bracket - 4.0 | E14: Bracket | F14: 4.0 | G14: 1 | H14: 0 | I14: No | J14: 0 | K14: 0 | L14: 0 | N14: 0 | O14: 0 | P14: 0 | Q14: 0 | R14: 0 | S14: 0 | U14: =IFERROR(IF(N14-(($H14-SUM($CK14:CK14))/$K14)<0,N14,(($H14-SUM($CK14:CK14))/$K14)),0) -> 0 | V14: =IFERROR(IF(O14-(($H14-SUM($CK14:CL14))/$K14)<0,O14,(($H14-SUM($CK14:CL14))/$K14)),0) -> 0 | W14: =IFERROR(IF(P14-(($H14-SUM($CK14:CM14))/$K14)<0,P14,(($H14-SUM($CK14:CM14))/$K14)),0) -> 0 | X14: =IFERROR(IF(Q14-(($H14-SUM($CK14:CN14))/$K14)<0,Q14,(($H14-SUM($CK14:CN14))/$K14)),0) -> 0 | Y14: =IFERROR(IF(R14-(($H14-SUM($CK14:CO14))/$K14)<0,R14,(($H14-SUM($CK14:CO14))/$K14)),0) -> 0 | AA14: 0 | AB14: 0 | AC14: 0 | AD14: 0 | AE14: 0 | AF14: 0 | AH14: =AA14*'Inputs - General'!D$5 -> 0 | AI14: =AB14*'Inputs - General'!E$5 -> 0 | AJ14: =AC14*'Inputs - General'!F$5 -> 0 | AK14: =AD14*'Inputs - General'!G$5 -> 0 | AL14: =AE14*'Inputs - General'!H$5 -> 0 | AM14: =AF14*'Inputs - General'!I$5 -> 0 | AO14: =N14*'Inputs - General'!D$5 -> 0 | AP14: =O14*'Inputs - General'!E$5 -> 0 | AQ14: =P14*'Inputs - General'!F$5 -> 0 | AR14: =Q14*'Inputs - General'!G$5 -> 0 | AS14: =R14*'Inputs - General'!H$5 -> 0 | AT14: =S14*'Inputs - General'!I$5 -> 0 | AV14: =U14*'Inputs - General'!E$5 -> 0 | AW14: =V14*'Inputs - General'!F$5 -> 0 | AX14: =W14*'Inputs - General'!G$5 -> 0 | AY14: =X14*'Inputs - General'!H$5 -> 0 | AZ14: =Y14*'Inputs - General'!I$5 -> 0 | BB14: =AH14*'Inputs - General'!E$4 -> 0 | BC14: =AI14*'Inputs - General'!F$4 -> 0 | BD14: =AJ14*'Inputs - General'!G$4 -> 0 | BE14: =AK14*'Inputs - General'!H$4 -> 0 | BF14: =AL14*'Inputs - General'!I$4 -> 0 | BH14: 0 | BI14: 0 | BJ14: 0 | BK14: 0 | BL14: 0 | BN14: 0 | BO14: 0 | BP14: 0 | BQ14: 0 | BR14: 0 | BT14: ='Input - Customer Inventory FY15'!F13 -> 12 | BZ14: =IF($E14="Lamp",0,IF(SUM(BU14:$BY14)>=$BT14,0,IF(BN14<=0,IF($H14=0,0,$BT14),0))) -> 0 | CA14: =IF($E14="Lamp",0,IF(SUM($BU14:BZ14)>=$BT14,0,IF(BO14<=0,IF($H14=0,0,$BT14),0))) -> 0 | CB14: =IF($E14="Lamp",0,IF(SUM($BU14:CA14)>=$BT14,0,IF(BP14<=0,IF($H14=0,0,$BT14),0))) -> 0 | CC14: =IF($E14="Lamp",0,IF(SUM($BU14:CB14)>=$BT14,0,IF(BQ14<=0,IF($H14=0,0,$BT14),0))) -> 0 | CD14: =IF($E14="Lamp",0,IF(SUM($BU14:CC14)>=$BT14,0,IF(BR14<=0,IF($H14=0,0,$BT14),0))) -> 0 | CL14: =CF14/'Inputs - General'!E$5 -> 0 | CM14: =CG14/'Inputs - General'!F$5 -> 0 | CN14: =CH14/'Inputs - General'!G$5 -> 0 | CO14: =CI14/'Inputs - General'!H$5 -> 0 | CP14: =CJ14/'Inputs - General'!I$5 -> 0
D15: Bracket - 4.5 | E15: Bracket | F15: 4.5 | G15: 1 | H15: 0 | I15: No | J15: 0 | K15: 0 | L15: 0 | N15: 0 | O15: 0 | P15: 0 | Q15: 0 | R15: 0 | S15: 0 | U15: =IFERROR(IF(N15-(($H15-SUM($CK15:CK15))/$K15)<0,N15,(($H15-SUM($CK15:CK15))/$K15)),0) -> 0 | V15: =IFERROR(IF(O15-(($H15-SUM($CK15:CL15))/$K15)<0,O15,(($H15-SUM($CK15:CL15))/$K15)),0) -> 0 | W15: =IFERROR(IF(P15-(($H15-SUM($CK15:CM15))/$K15)<0,P15,(($H15-SUM($CK15:CM15))/$K15)),0) -> 0 | X15: =IFERROR(IF(Q15-(($H15-SUM($CK15:CN15))/$K15)<0,Q15,(($H15-SUM($CK15:CN15))/$K15)),0) -> 0 | Y15: =IFERROR(IF(R15-(($H15-SUM($CK15:CO15))/$K15)<0,R15,(($H15-SUM($CK15:CO15))/$K15)),0) -> 0 | AA15: 0 | AB15: 0 | AC15: 0 | AD15: 0 | AE15: 0 | AF15: 0 | AH15: =AA15*'Inputs - General'!D$5 -> 0 | AI15: =AB15*'Inputs - General'!E$5 -> 0 | AJ15: =AC15*'Inputs - General'!F$5 -> 0 | AK15: =AD15*'Inputs - General'!G$5 -> 0 | AL15: =AE15*'Inputs - General'!H$5 -> 0 | AM15: =AF15*'Inputs - General'!I$5 -> 0 | AO15: =N15*'Inputs - General'!D$5 -> 0 | AP15: =O15*'Inputs - General'!E$5 -> 0 | AQ15: =P15*'Inputs - General'!F$5 -> 0 | AR15: =Q15*'Inputs - General'!G$5 -> 0 | AS15: =R15*'Inputs - General'!H$5 -> 0 | AT15: =S15*'Inputs - General'!I$5 -> 0 | AV15: =U15*'Inputs - General'!E$5 -> 0 | AW15: =V15*'Inputs - General'!F$5 -> 0 | AX15: =W15*'Inputs - General'!G$5 -> 0 | AY15: =X15*'Inputs - General'!H$5 -> 0 | AZ15: =Y15*'Inputs - General'!I$5 -> 0 | BB15: =AH15*'Inputs - General'!E$4 -> 0 | BC15: =AI15*'Inputs - General'!F$4 -> 0 | BD15: =AJ15*'Inputs - General'!G$4 -> 0 | BE15: =AK15*'Inputs - General'!H$4 -> 0 | BF15: =AL15*'Inputs - General'!I$4 -> 0 | BH15: 0 | BI15: 0 | BJ15: 0 | BK15: 0 | BL15: 0 | BN15: 0 | BO15: 0 | BP15: 0 | BQ15: 0 | BR15: 0 | BT15: ='Input - Customer Inventory FY15'!F14 -> 324.5 | BZ15: =IF($E15="Lamp",0,IF(SUM(BU15:$BY15)>=$BT15,0,IF(BN15<=0,IF($H15=0,0,$BT15),0))) -> 0 | CA15: =IF($E15="Lamp",0,IF(SUM($BU15:BZ15)>=$BT15,0,IF(BO15<=0,IF($H15=0,0,$BT15),0))) -> 0 | CB15: =IF($E15="Lamp",0,IF(SUM($BU15:CA15)>=$BT15,0,IF(BP15<=0,IF($H15=0,0,$BT15),0))) -> 0 | CC15: =IF($E15="Lamp",0,IF(SUM($BU15:CB15)>=$BT15,0,IF(BQ15<=0,IF($H15=0,0,$BT15),0))) -> 0 | CD15: =IF($E15="Lamp",0,IF(SUM($BU15:CC15)>=$BT15,0,IF(BR15<=0,IF($H15=0,0,$BT15),0))) -> 0 | CL15: =CF15/'Inputs - General'!E$5 -> 0 | CM15: =CG15/'Inputs - General'!F$5 -> 0 | CN15: =CH15/'Inputs - General'!G$5 -> 0 | CO15: =CI15/'Inputs - General'!H$5 -> 0 | CP15: =CJ15/'Inputs - General'!I$5 -> 0
D16: Bracket - 4.5 | E16: Bracket | F16: 4.5 | G16: 2 | H16: 0 | I16: No | J16: 0 | K16: 0 | L16: 0 | N16: 0 | O16: 0 | P16: 0 | Q16: 0 | R16: 0 | S16: 0 | U16: =IFERROR(IF(N16-(($H16-SUM($CK16:CK16))/$K16)<0,N16,(($H16-SUM($CK16:CK16))/$K16)),0) -> 0 | V16: =IFERROR(IF(O16-(($H16-SUM($CK16:CL16))/$K16)<0,O16,(($H16-SUM($CK16:CL16))/$K16)),0) -> 0 | W16: =IFERROR(IF(P16-(($H16-SUM($CK16:CM16))/$K16)<0,P16,(($H16-SUM($CK16:CM16))/$K16)),0) -> 0 | X16: =IFERROR(IF(Q16-(($H16-SUM($CK16:CN16))/$K16)<0,Q16,(($H16-SUM($CK16:CN16))/$K16)),0) -> 0 | Y16: =IFERROR(IF(R16-(($H16-SUM($CK16:CO16))/$K16)<0,R16,(($H16-SUM($CK16:CO16))/$K16)),0) -> 0 | AA16: 0 | AB16: 0 | AC16: 0 | AD16: 0 | AE16: 0 | AF16: 0 | AH16: =AA16*'Inputs - General'!D$5 -> 0 | AI16: =AB16*'Inputs - General'!E$5 -> 0 | AJ16: =AC16*'Inputs - General'!F$5 -> 0 | AK16: =AD16*'Inputs - General'!G$5 -> 0 | AL16: =AE16*'Inputs - General'!H$5 -> 0 | AM16: =AF16*'Inputs - General'!I$5 -> 0 | AO16: =N16*'Inputs - General'!D$5 -> 0 | AP16: =O16*'Inputs - General'!E$5 -> 0 | AQ16: =P16*'Inputs - General'!F$5 -> 0 | AR16: =Q16*'Inputs - General'!G$5 -> 0 | AS16: =R16*'Inputs - General'!H$5 -> 0 | AT16: =S16*'Inputs - General'!I$5 -> 0 | AV16: =U16*'Inputs - General'!E$5 -> 0 | AW16: =V16*'Inputs - General'!F$5 -> 0 | AX16: =W16*'Inputs - General'!G$5 -> 0 | AY16: =X16*'Inputs - General'!H$5 -> 0 | AZ16: =Y16*'Inputs - General'!I$5 -> 0 | BB16: =AH16*'Inputs - General'!E$4 -> 0 | BC16: =AI16*'Inputs - General'!F$4 -> 0 | BD16: =AJ16*'Inputs - General'!G$4 -> 0 | BE16: =AK16*'Inputs - General'!H$4 -> 0 | BF16: =AL16*'Inputs - General'!I$4 -> 0 | BH16: 0 | BI16: 0 | BJ16: 0 | BK16: 0 | BL16: 0 | BN16: 0 | BO16: 0 | BP16: 0 | BQ16: 0 | BR16: 0 | BT16: ='Input - Customer Inventory FY15'!F15 -> 1 | BZ16: =IF($E16="Lamp",0,IF(SUM(BU16:$BY16)>=$BT16,0,IF(BN16<=0,IF($H16=0,0,$BT16),0))) -> 0 | CA16: =IF($E16="Lamp",0,IF(SUM($BU16:BZ16)>=$BT16,0,IF(BO16<=0,IF($H16=0,0,$BT16),0))) -> 0 | CB16: =IF($E16="Lamp",0,IF(SUM($BU16:CA16)>=$BT16,0,IF(BP16<=0,IF($H16=0,0,$BT16),0))) -> 0 | CC16: =IF($E16="Lamp",0,IF(SUM($BU16:CB16)>=$BT16,0,IF(BQ16<=0,IF($H16=0,0,$BT16),0))) -> 0 | CD16: =IF($E16="Lamp",0,IF(SUM($BU16:CC16)>=$BT16,0,IF(BR16<=0,IF($H16=0,0,$BT16),0))) -> 0 | CL16: =CF16/'Inputs - General'!E$5 -> 0 | CM16: =CG16/'Inputs - General'!F$5 -> 0 | CN16: =CH16/'Inputs - General'!G$5 -> 0 | CO16: =CI16/'Inputs - General'!H$5 -> 0 | CP16: =CJ16/'Inputs - General'!I$5 -> 0
D17: Bracket - 5.0 | E17: Bracket | F17: 5.0 | G17: 1 | H17: 0 | I17: No | J17: 0 | K17: 0 | L17: 0 | N17: 0 | O17: 0 | P17: 0 | Q17: 0 | R17: 0 | S17: 0 | U17: =IFERROR(IF(N17-(($H17-SUM($CK17:CK17))/$K17)<0,N17,(($H17-SUM($CK17:CK17))/$K17)),0) -> 0 | V17: =IFERROR(IF(O17-(($H17-SUM($CK17:CL17))/$K17)<0,O17,(($H17-SUM($CK17:CL17))/$K17)),0) -> 0 | W17: =IFERROR(IF(P17-(($H17-SUM($CK17:CM17))/$K17)<0,P17,(($H17-SUM($CK17:CM17))/$K17)),0) -> 0 | X17: =IFERROR(IF(Q17-(($H17-SUM($CK17:CN17))/$K17)<0,Q17,(($H17-SUM($CK17:CN17))/$K17)),0) -> 0 | Y17: =IFERROR(IF(R17-(($H17-SUM($CK17:CO17))/$K17)<0,R17,(($H17-SUM($CK17:CO17))/$K17)),0) -> 0 | AA17: 0 | AB17: 0 | AC17: 0 | AD17: 0 | AE17: 0 | AF17: 0 | AH17: =AA17*'Inputs - General'!D$5 -> 0 | AI17: =AB17*'Inputs - General'!E$5 -> 0 | AJ17: =AC17*'Inputs - General'!F$5 -> 0 | AK17: =AD17*'Inputs - General'!G$5 -> 0 | AL17: =AE17*'Inputs - General'!H$5 -> 0 | AM17: =AF17*'Inputs - General'!I$5 -> 0 | AO17: =N17*'Inputs - General'!D$5 -> 0 | AP17: =O17*'Inputs - General'!E$5 -> 0 | AQ17: =P17*'Inputs - General'!F$5 -> 0 | AR17: =Q17*'Inputs - General'!G$5 -> 0 | AS17: =R17*'Inputs - General'!H$5 -> 0 | AT17: =S17*'Inputs - General'!I$5 -> 0 | AV17: =U17*'Inputs - General'!E$5 -> 0 | AW17: =V17*'Inputs - General'!F$5 -> 0 | AX17: =W17*'Inputs - General'!G$5 -> 0 | AY17: =X17*'Inputs - General'!H$5 -> 0 | AZ17: =Y17*'Inputs - General'!I$5 -> 0 | BB17: =AH17*'Inputs - General'!E$4 -> 0 | BC17: =AI17*'Inputs - General'!F$4 -> 0 | BD17: =AJ17*'Inputs - General'!G$4 -> 0 | BE17: =AK17*'Inputs - General'!H$4 -> 0 | BF17: =AL17*'Inputs - General'!I$4 -> 0 | BH17: 0 | BI17: 0 | BJ17: 0 | BK17: 0 | BL17: 0 | BN17: 0 | BO17: 0 | BP17: 0 | BQ17: 0 | BR17: 0 | BT17: ='Input - Customer Inventory FY15'!F16 -> 14.5 | BZ17: =IF($E17="Lamp",0,IF(SUM(BU17:$BY17)>=$BT17,0,IF(BN17<=0,IF($H17=0,0,$BT17),0))) -> 0 | CA17: =IF($E17="Lamp",0,IF(SUM($BU17:BZ17)>=$BT17,0,IF(BO17<=0,IF($H17=0,0,$BT17),0))) -> 0 | CB17: =IF($E17="Lamp",0,IF(SUM($BU17:CA17)>=$BT17,0,IF(BP17<=0,IF($H17=0,0,$BT17),0))) -> 0 | CC17: =IF($E17="Lamp",0,IF(SUM($BU17:CB17)>=$BT17,0,IF(BQ17<=0,IF($H17=0,0,$BT17),0))) -> 0 | CD17: =IF($E17="Lamp",0,IF(SUM($BU17:CC17)>=$BT17,0,IF(BR17<=0,IF($H17=0,0,$BT17),0))) -> 0 | CL17: =CF17/'Inputs - General'!E$5 -> 0 | CM17: =CG17/'Inputs - General'!F$5 -> 0 | CN17: =CH17/'Inputs - General'!G$5 -> 0 | CO17: =CI17/'Inputs - General'!H$5 -> 0 | CP17: =CJ17/'Inputs - General'!I$5 -> 0
D18: Bracket - 6.0 | E18: Bracket | F18: 6.0 | G18: 1 | H18: 0 | I18: No | J18: 0 | K18: 0 | L18: 0 | N18: 0 | O18: 0 | P18: 0 | Q18: 0 | R18: 0 | S18: 0 | U18: =IFERROR(IF(N18-(($H18-SUM($CK18:CK18))/$K18)<0,N18,(($H18-SUM($CK18:CK18))/$K18)),0) -> 0 | V18: =IFERROR(IF(O18-(($H18-SUM($CK18:CL18))/$K18)<0,O18,(($H18-SUM($CK18:CL18))/$K18)),0) -> 0 | W18: =IFERROR(IF(P18-(($H18-SUM($CK18:CM18))/$K18)<0,P18,(($H18-SUM($CK18:CM18))/$K18)),0) -> 0 | X18: =IFERROR(IF(Q18-(($H18-SUM($CK18:CN18))/$K18)<0,Q18,(($H18-SUM($CK18:CN18))/$K18)),0) -> 0 | Y18: =IFERROR(IF(R18-(($H18-SUM($CK18:CO18))/$K18)<0,R18,(($H18-SUM($CK18:CO18))/$K18)),0) -> 0 | AA18: 0 | AB18: 0 | AC18: 0 | AD18: 0 | AE18: 0 | AF18: 0 | AH18: =AA18*'Inputs - General'!D$5 -> 0 | AI18: =AB18*'Inputs - General'!E$5 -> 0 | AJ18: =AC18*'Inputs - General'!F$5 -> 0 | AK18: =AD18*'Inputs - General'!G$5 -> 0 | AL18: =AE18*'Inputs - General'!H$5 -> 0 | AM18: =AF18*'Inputs - General'!I$5 -> 0 | AO18: =N18*'Inputs - General'!D$5 -> 0 | AP18: =O18*'Inputs - General'!E$5 -> 0 | AQ18: =P18*'Inputs - General'!F$5 -> 0 | AR18: =Q18*'Inputs - General'!G$5 -> 0 | AS18: =R18*'Inputs - General'!H$5 -> 0 | AT18: =S18*'Inputs - General'!I$5 -> 0 | AV18: =U18*'Inputs - General'!E$5 -> 0 | AW18: =V18*'Inputs - General'!F$5 -> 0 | AX18: =W18*'Inputs - General'!G$5 -> 0 | AY18: =X18*'Inputs - General'!H$5 -> 0 | AZ18: =Y18*'Inputs - General'!I$5 -> 0 | BB18: =AH18*'Inputs - General'!E$4 -> 0 | BC18: =AI18*'Inputs - General'!F$4 -> 0 | BD18: =AJ18*'Inputs - General'!G$4 -> 0 | BE18: =AK18*'Inputs - General'!H$4 -> 0 | BF18: =AL18*'Inputs - General'!I$4 -> 0 | BH18: 0 | BI18: 0 | BJ18: 0 | BK18: 0 | BL18: 0 | BN18: 0 | BO18: 0 | BP18: 0 | BQ18: 0 | BR18: 0 | BT18: ='Input - Customer Inventory FY15'!F17 -> 2 | BZ18: =IF($E18="Lamp",0,IF(SUM(BU18:$BY18)>=$BT18,0,IF(BN18<=0,IF($H18=0,0,$BT18),0))) -> 0 | CA18: =IF($E18="Lamp",0,IF(SUM($BU18:BZ18)>=$BT18,0,IF(BO18<=0,IF($H18=0,0,$BT18),0))) -> 0 | CB18: =IF($E18="Lamp",0,IF(SUM($BU18:CA18)>=$BT18,0,IF(BP18<=0,IF($H18=0,0,$BT18),0))) -> 0 | CC18: =IF($E18="Lamp",0,IF(SUM($BU18:CB18)>=$BT18,0,IF(BQ18<=0,IF($H18=0,0,$BT18),0))) -> 0 | CD18: =IF($E18="Lamp",0,IF(SUM($BU18:CC18)>=$BT18,0,IF(BR18<=0,IF($H18=0,0,$BT18),0))) -> 0 | CL18: =CF18/'Inputs - General'!E$5 -> 0 | CM18: =CG18/'Inputs - General'!F$5 -> 0 | CN18: =CH18/'Inputs - General'!G$5 -> 0 | CO18: =CI18/'Inputs - General'!H$5 -> 0 | CP18: =CJ18/'Inputs - General'!I$5 -> 0
D19: Bracket - NIL | E19: Bracket | F19: NIL | G19: 1 | H19: 0 | I19: No | J19: 0 | K19: 0 | L19: 0 | N19: 0 | O19: 0 | P19: 0 | Q19: 0 | R19: 0 | S19: 0 | U19: =IFERROR(IF(N19-(($H19-SUM($CK19:CK19))/$K19)<0,N19,(($H19-SUM($CK19:CK19))/$K19)),0) -> 0 | V19: =IFERROR(IF(O19-(($H19-SUM($CK19:CL19))/$K19)<0,O19,(($H19-SUM($CK19:CL19))/$K19)),0) -> 0 | W19: =IFERROR(IF(P19-(($H19-SUM($CK19:CM19))/$K19)<0,P19,(($H19-SUM($CK19:CM19))/$K19)),0) -> 0 | X19: =IFERROR(IF(Q19-(($H19-SUM($CK19:CN19))/$K19)<0,Q19,(($H19-SUM($CK19:CN19))/$K19)),0) -> 0 | Y19: =IFERROR(IF(R19-(($H19-SUM($CK19:CO19))/$K19)<0,R19,(($H19-SUM($CK19:CO19))/$K19)),0) -> 0 | AA19: 0 | AB19: 0 | AC19: 0 | AD19: 0 | AE19: 0 | AF19: 0 | AH19: =AA19*'Inputs - General'!D$5 -> 0 | AI19: =AB19*'Inputs - General'!E$5 -> 0 | AJ19: =AC19*'Inputs - General'!F$5 -> 0 | AK19: =AD19*'Inputs - General'!G$5 -> 0 | AL19: =AE19*'Inputs - General'!H$5 -> 0 | AM19: =AF19*'Inputs - General'!I$5 -> 0 | AO19: =N19*'Inputs - General'!D$5 -> 0 | AP19: =O19*'Inputs - General'!E$5 -> 0 | AQ19: =P19*'Inputs - General'!F$5 -> 0 | AR19: =Q19*'Inputs - General'!G$5 -> 0 | AS19: =R19*'Inputs - General'!H$5 -> 0 | AT19: =S19*'Inputs - General'!I$5 -> 0 | AV19: =U19*'Inputs - General'!E$5 -> 0 | AW19: =V19*'Inputs - General'!F$5 -> 0 | AX19: =W19*'Inputs - General'!G$5 -> 0 | AY19: =X19*'Inputs - General'!H$5 -> 0 | AZ19: =Y19*'Inputs - General'!I$5 -> 0 | BB19: =AH19*'Inputs - General'!E$4 -> 0 | BC19: =AI19*'Inputs - General'!F$4 -> 0 | BD19: =AJ19*'Inputs - General'!G$4 -> 0 | BE19: =AK19*'Inputs - General'!H$4 -> 0 | BF19: =AL19*'Inputs - General'!I$4 -> 0 | BH19: 0 | BI19: 0 | BJ19: 0 | BK19: 0 | BL19: 0 | BN19: 0 | BO19: 0 | BP19: 0 | BQ19: 0 | BR19: 0 | BT19: ='Input - Customer Inventory FY15'!F18 -> 262.5 | BZ19: =IF($E19="Lamp",0,IF(SUM(BU19:$BY19)>=$BT19,0,IF(BN19<=0,IF($H19=0,0,$BT19),0))) -> 0 | CA19: =IF($E19="Lamp",0,IF(SUM($BU19:BZ19)>=$BT19,0,IF(BO19<=0,IF($H19=0,0,$BT19),0))) -> 0 | CB19: =IF($E19="Lamp",0,IF(SUM($BU19:CA19)>=$BT19,0,IF(BP19<=0,IF($H19=0,0,$BT19),0))) -> 0 | CC19: =IF($E19="Lamp",0,IF(SUM($BU19:CB19)>=$BT19,0,IF(BQ19<=0,IF($H19=0,0,$BT19),0))) -> 0 | CD19: =IF($E19="Lamp",0,IF(SUM($BU19:CC19)>=$BT19,0,IF(BR19<=0,IF($H19=0,0,$BT19),0))) -> 0 | CL19: =CF19/'Inputs - General'!E$5 -> 0 | CM19: =CG19/'Inputs - General'!F$5 -> 0 | CN19: =CH19/'Inputs - General'!G$5 -> 0 | CO19: =CI19/'Inputs - General'!H$5 -> 0 | CP19: =CJ19/'Inputs - General'!I$5 -> 0
D20: Bracket - NIL | E20: Bracket | F20: NIL | G20: 2 | H20: 0 | I20: No | J20: 0 | K20: 0 | L20: 0 | N20: 0 | O20: 0 | P20: 0 | Q20: 0 | R20: 0 | S20: 0 | U20: =IFERROR(IF(N20-(($H20-SUM($CK20:CK20))/$K20)<0,N20,(($H20-SUM($CK20:CK20))/$K20)),0) -> 0 | V20: =IFERROR(IF(O20-(($H20-SUM($CK20:CL20))/$K20)<0,O20,(($H20-SUM($CK20:CL20))/$K20)),0) -> 0 | W20: =IFERROR(IF(P20-(($H20-SUM($CK20:CM20))/$K20)<0,P20,(($H20-SUM($CK20:CM20))/$K20)),0) -> 0 | X20: =IFERROR(IF(Q20-(($H20-SUM($CK20:CN20))/$K20)<0,Q20,(($H20-SUM($CK20:CN20))/$K20)),0) -> 0 | Y20: =IFERROR(IF(R20-(($H20-SUM($CK20:CO20))/$K20)<0,R20,(($H20-SUM($CK20:CO20))/$K20)),0) -> 0 | AA20: 0 | AB20: 0 | AC20: 0 | AD20: 0 | AE20: 0 | AF20: 0 | AH20: =AA20*'Inputs - General'!D$5 -> 0 | AI20: =AB20*'Inputs - General'!E$5 -> 0 | AJ20: =AC20*'Inputs - General'!F$5 -> 0 | AK20: =AD20*'Inputs - General'!G$5 -> 0 | AL20: =AE20*'Inputs - General'!H$5 -> 0 | AM20: =AF20*'Inputs - General'!I$5 -> 0 | AO20: =N20*'Inputs - General'!D$5 -> 0 | AP20: =O20*'Inputs - General'!E$5 -> 0 | AQ20: =P20*'Inputs - General'!F$5 -> 0 | AR20: =Q20*'Inputs - General'!G$5 -> 0 | AS20: =R20*'Inputs - General'!H$5 -> 0 | AT20: =S20*'Inputs - General'!I$5 -> 0 | AV20: =U20*'Inputs - General'!E$5 -> 0 | AW20: =V20*'Inputs - General'!F$5 -> 0 | AX20: =W20*'Inputs - General'!G$5 -> 0 | AY20: =X20*'Inputs - General'!H$5 -> 0 | AZ20: =Y20*'Inputs - General'!I$5 -> 0 | BB20: =AH20*'Inputs - General'!E$4 -> 0 | BC20: =AI20*'Inputs - General'!F$4 -> 0 | BD20: =AJ20*'Inputs - General'!G$4 -> 0 | BE20: =AK20*'Inputs - General'!H$4 -> 0 | BF20: =AL20*'Inputs - General'!I$4 -> 0 | BH20: 0 | BI20: 0 | BJ20: 0 | BK20: 0 | BL20: 0 | BN20: 0 | BO20: 0 | BP20: 0 | BQ20: 0 | BR20: 0 | BT20: ='Input - Customer Inventory FY15'!F19 -> 7 | BZ20: =IF($E20="Lamp",0,IF(SUM(BU20:$BY20)>=$BT20,0,IF(BN20<=0,IF($H20=0,0,$BT20),0))) -> 0 | CA20: =IF($E20="Lamp",0,IF(SUM($BU20:BZ20)>=$BT20,0,IF(BO20<=0,IF($H20=0,0,$BT20),0))) -> 0 | CB20: =IF($E20="Lamp",0,IF(SUM($BU20:CA20)>=$BT20,0,IF(BP20<=0,IF($H20=0,0,$BT20),0))) -> 0 | CC20: =IF($E20="Lamp",0,IF(SUM($BU20:CB20)>=$BT20,0,IF(BQ20<=0,IF($H20=0,0,$BT20),0))) -> 0 | CD20: =IF($E20="Lamp",0,IF(SUM($BU20:CC20)>=$BT20,0,IF(BR20<=0,IF($H20=0,0,$BT20),0))) -> 0 | CL20: =CF20/'Inputs - General'!E$5 -> 0 | CM20: =CG20/'Inputs - General'!F$5 -> 0 | CN20: =CH20/'Inputs - General'!G$5 -> 0 | CO20: =CI20/'Inputs - General'!H$5 -> 0 | CP20: =CJ20/'Inputs - General'!I$5 -> 0
D21: Bracket - PRIVATE | E21: Bracket | F21: PRIVATE | G21: 1 | H21: 0 | I21: No | J21: 0 | K21: 0 | L21: 0 | N21: 0 | O21: 0 | P21: 0 | Q21: 0 | R21: 0 | S21: 0 | U21: =IFERROR(IF(N21-(($H21-SUM($CK21:CK21))/$K21)<0,N21,(($H21-SUM($CK21:CK21))/$K21)),0) -> 0 | V21: =IFERROR(IF(O21-(($H21-SUM($CK21:CL21))/$K21)<0,O21,(($H21-SUM($CK21:CL21))/$K21)),0) -> 0 | W21: =IFERROR(IF(P21-(($H21-SUM($CK21:CM21))/$K21)<0,P21,(($H21-SUM($CK21:CM21))/$K21)),0) -> 0 | X21: =IFERROR(IF(Q21-(($H21-SUM($CK21:CN21))/$K21)<0,Q21,(($H21-SUM($CK21:CN21))/$K21)),0) -> 0 | Y21: =IFERROR(IF(R21-(($H21-SUM($CK21:CO21))/$K21)<0,R21,(($H21-SUM($CK21:CO21))/$K21)),0) -> 0 | AA21: 0 | AB21: 0 | AC21: 0 | AD21: 0 | AE21: 0 | AF21: 0 | AH21: =AA21*'Inputs - General'!D$5 -> 0 | AI21: =AB21*'Inputs - General'!E$5 -> 0 | AJ21: =AC21*'Inputs - General'!F$5 -> 0 | AK21: =AD21*'Inputs - General'!G$5 -> 0 | AL21: =AE21*'Inputs - General'!H$5 -> 0 | AM21: =AF21*'Inputs - General'!I$5 -> 0 | AO21: =N21*'Inputs - General'!D$5 -> 0 | AP21: =O21*'Inputs - General'!E$5 -> 0 | AQ21: =P21*'Inputs - General'!F$5 -> 0 | AR21: =Q21*'Inputs - General'!G$5 -> 0 | AS21: =R21*'Inputs - General'!H$5 -> 0 | AT21: =S21*'Inputs - General'!I$5 -> 0 | AV21: =U21*'Inputs - General'!E$5 -> 0 | AW21: =V21*'Inputs - General'!F$5 -> 0 | AX21: =W21*'Inputs - General'!G$5 -> 0 | AY21: =X21*'Inputs - General'!H$5 -> 0 | AZ21: =Y21*'Inputs - General'!I$5 -> 0 | BB21: =AH21*'Inputs - General'!E$4 -> 0 | BC21: =AI21*'Inputs - General'!F$4 -> 0 | BD21: =AJ21*'Inputs - General'!G$4 -> 0 | BE21: =AK21*'Inputs - General'!H$4 -> 0 | BF21: =AL21*'Inputs - General'!I$4 -> 0 | BH21: 0 | BI21: 0 | BJ21: 0 | BK21: 0 | BL21: 0 | BN21: 0 | BO21: 0 | BP21: 0 | BQ21: 0 | BR21: 0 | BT21: ='Input - Customer Inventory FY15'!F20 -> 0 | BZ21: =IF($E21="Lamp",0,IF(SUM(BU21:$BY21)>=$BT21,0,IF(BN21<=0,IF($H21=0,0,$BT21),0))) -> 0 | CA21: =IF($E21="Lamp",0,IF(SUM($BU21:BZ21)>=$BT21,0,IF(BO21<=0,IF($H21=0,0,$BT21),0))) -> 0 | CB21: =IF($E21="Lamp",0,IF(SUM($BU21:CA21)>=$BT21,0,IF(BP21<=0,IF($H21=0,0,$BT21),0))) -> 0 | CC21: =IF($E21="Lamp",0,IF(SUM($BU21:CB21)>=$BT21,0,IF(BQ21<=0,IF($H21=0,0,$BT21),0))) -> 0 | CD21: =IF($E21="Lamp",0,IF(SUM($BU21:CC21)>=$BT21,0,IF(BR21<=0,IF($H21=0,0,$BT21),0))) -> 0 | CL21: =CF21/'Inputs - General'!E$5 -> 0 | CM21: =CG21/'Inputs - General'!F$5 -> 0 | CN21: =CH21/'Inputs - General'!G$5 -> 0 | CO21: =CI21/'Inputs - General'!H$5 -> 0 | CP21: =CJ21/'Inputs - General'!I$5 -> 0
D22: Bracket - PRIVATE | E22: Bracket | F22: PRIVATE | G22: 3 | H22: 0 | I22: No | J22: 0 | K22: 0 | L22: 0 | N22: 0 | O22: 0 | P22: 0 | Q22: 0 | R22: 0 | S22: 0 | U22: =IFERROR(IF(N22-(($H22-SUM($CK22:CK22))/$K22)<0,N22,(($H22-SUM($CK22:CK22))/$K22)),0) -> 0 | V22: =IFERROR(IF(O22-(($H22-SUM($CK22:CL22))/$K22)<0,O22,(($H22-SUM($CK22:CL22))/$K22)),0) -> 0 | W22: =IFERROR(IF(P22-(($H22-SUM($CK22:CM22))/$K22)<0,P22,(($H22-SUM($CK22:CM22))/$K22)),0) -> 0 | X22: =IFERROR(IF(Q22-(($H22-SUM($CK22:CN22))/$K22)<0,Q22,(($H22-SUM($CK22:CN22))/$K22)),0) -> 0 | Y22: =IFERROR(IF(R22-(($H22-SUM($CK22:CO22))/$K22)<0,R22,(($H22-SUM($CK22:CO22))/$K22)),0) -> 0 | AA22: 0 | AB22: 0 | AC22: 0 | AD22: 0 | AE22: 0 | AF22: 0 | AH22: =AA22*'Inputs - General'!D$5 -> 0 | AI22: =AB22*'Inputs - General'!E$5 -> 0 | AJ22: =AC22*'Inputs - General'!F$5 -> 0 | AK22: =AD22*'Inputs - General'!G$5 -> 0 | AL22: =AE22*'Inputs - General'!H$5 -> 0 | AM22: =AF22*'Inputs - General'!I$5 -> 0 | AO22: =N22*'Inputs - General'!D$5 -> 0 | AP22: =O22*'Inputs - General'!E$5 -> 0 | AQ22: =P22*'Inputs - General'!F$5 -> 0 | AR22: =Q22*'Inputs - General'!G$5 -> 0 | AS22: =R22*'Inputs - General'!H$5 -> 0 | AT22: =S22*'Inputs - General'!I$5 -> 0 | AV22: =U22*'Inputs - General'!E$5 -> 0 | AW22: =V22*'Inputs - General'!F$5 -> 0 | AX22: =W22*'Inputs - General'!G$5 -> 0 | AY22: =X22*'Inputs - General'!H$5 -> 0 | AZ22: =Y22*'Inputs - General'!I$5 -> 0 | BB22: =AH22*'Inputs - General'!E$4 -> 0 | BC22: =AI22*'Inputs - General'!F$4 -> 0 | BD22: =AJ22*'Inputs - General'!G$4 -> 0 | BE22: =AK22*'Inputs - General'!H$4 -> 0 | BF22: =AL22*'Inputs - General'!I$4 -> 0 | BH22: 0 | BI22: 0 | BJ22: 0 | BK22: 0 | BL22: 0 | BN22: 0 | BO22: 0 | BP22: 0 | BQ22: 0 | BR22: 0 | BT22: ='Input - Customer Inventory FY15'!F21 -> 12 | BZ22: =IF($E22="Lamp",0,IF(SUM(BU22:$BY22)>=$BT22,0,IF(BN22<=0,IF($H22=0,0,$BT22),0))) -> 0 | CA22: =IF($E22="Lamp",0,IF(SUM($BU22:BZ22)>=$BT22,0,IF(BO22<=0,IF($H22=0,0,$BT22),0))) -> 0 | CB22: =IF($E22="Lamp",0,IF(SUM($BU22:CA22)>=$BT22,0,IF(BP22<=0,IF($H22=0,0,$BT22),0))) -> 0 | CC22: =IF($E22="Lamp",0,IF(SUM($BU22:CB22)>=$BT22,0,IF(BQ22<=0,IF($H22=0,0,$BT22),0))) -> 0 | CD22: =IF($E22="Lamp",0,IF(SUM($BU22:CC22)>=$BT22,0,IF(BR22<=0,IF($H22=0,0,$BT22),0))) -> 0 | CL22: =CF22/'Inputs - General'!E$5 -> 0 | CM22: =CG22/'Inputs - General'!F$5 -> 0 | CN22: =CH22/'Inputs - General'!G$5 -> 0 | CO22: =CI22/'Inputs - General'!H$5 -> 0 | CP22: =CJ22/'Inputs - General'!I$5 -> 0
D23: Bracket - SUSPENDED | E23: Bracket | F23: SUSPENDED | G23: 1 | H23: 0 | I23: No | J23: 0 | K23: 0 | L23: 0 | N23: 0 | O23: 0 | P23: 0 | Q23: 0 | R23: 0 | S23: 0 | U23: =IFERROR(IF(N23-(($H23-SUM($CK23:CK23))/$K23)<0,N23,(($H23-SUM($CK23:CK23))/$K23)),0) -> 0 | V23: =IFERROR(IF(O23-(($H23-SUM($CK23:CL23))/$K23)<0,O23,(($H23-SUM($CK23:CL23))/$K23)),0) -> 0 | W23: =IFERROR(IF(P23-(($H23-SUM($CK23:CM23))/$K23)<0,P23,(($H23-SUM($CK23:CM23))/$K23)),0) -> 0 | X23: =IFERROR(IF(Q23-(($H23-SUM($CK23:CN23))/$K23)<0,Q23,(($H23-SUM($CK23:CN23))/$K23)),0) -> 0 | Y23: =IFERROR(IF(R23-(($H23-SUM($CK23:CO23))/$K23)<0,R23,(($H23-SUM($CK23:CO23))/$K23)),0) -> 0 | AA23: 0 | AB23: 0 | AC23: 0 | AD23: 0 | AE23: 0 | AF23: 0 | AH23: =AA23*'Inputs - General'!D$5 -> 0 | AI23: =AB23*'Inputs - General'!E$5 -> 0 | AJ23: =AC23*'Inputs - General'!F$5 -> 0 | AK23: =AD23*'Inputs - General'!G$5 -> 0 | AL23: =AE23*'Inputs - General'!H$5 -> 0 | AM23: =AF23*'Inputs - General'!I$5 -> 0 | AO23: =N23*'Inputs - General'!D$5 -> 0 | AP23: =O23*'Inputs - General'!E$5 -> 0 | AQ23: =P23*'Inputs - General'!F$5 -> 0 | AR23: =Q23*'Inputs - General'!G$5 -> 0 | AS23: =R23*'Inputs - General'!H$5 -> 0 | AT23: =S23*'Inputs - General'!I$5 -> 0 | AV23: =U23*'Inputs - General'!E$5 -> 0 | AW23: =V23*'Inputs - General'!F$5 -> 0 | AX23: =W23*'Inputs - General'!G$5 -> 0 | AY23: =X23*'Inputs - General'!H$5 -> 0 | AZ23: =Y23*'Inputs - General'!I$5 -> 0 | BB23: =AH23*'Inputs - General'!E$4 -> 0 | BC23: =AI23*'Inputs - General'!F$4 -> 0 | BD23: =AJ23*'Inputs - General'!G$4 -> 0 | BE23: =AK23*'Inputs - General'!H$4 -> 0 | BF23: =AL23*'Inputs - General'!I$4 -> 0 | BH23: 0 | BI23: 0 | BJ23: 0 | BK23: 0 | BL23: 0 | BN23: 0 | BO23: 0 | BP23: 0 | BQ23: 0 | BR23: 0 | BT23: ='Input - Customer Inventory FY15'!F22 -> 3 | BZ23: =IF($E23="Lamp",0,IF(SUM(BU23:$BY23)>=$BT23,0,IF(BN23<=0,IF($H23=0,0,$BT23),0))) -> 0 | CA23: =IF($E23="Lamp",0,IF(SUM($BU23:BZ23)>=$BT23,0,IF(BO23<=0,IF($H23=0,0,$BT23),0))) -> 0 | CB23: =IF($E23="Lamp",0,IF(SUM($BU23:CA23)>=$BT23,0,IF(BP23<=0,IF($H23=0,0,$BT23),0))) -> 0 | CC23: =IF($E23="Lamp",0,IF(SUM($BU23:CB23)>=$BT23,0,IF(BQ23<=0,IF($H23=0,0,$BT23),0))) -> 0 | CD23: =IF($E23="Lamp",0,IF(SUM($BU23:CC23)>=$BT23,0,IF(BR23<=0,IF($H23=0,0,$BT23),0))) -> 0 | CL23: =CF23/'Inputs - General'!E$5 -> 0 | CM23: =CG23/'Inputs - General'!F$5 -> 0 | CN23: =CH23/'Inputs - General'!G$5 -> 0 | CO23: =CI23/'Inputs - General'!H$5 -> 0 | CP23: =CJ23/'Inputs - General'!I$5 -> 0
D24: Bracket - T1 | E24: Bracket | F24: T1 | G24: 1 | H24: 0 | I24: No | J24: 0 | K24: 0 | L24: 0 | N24: 0 | O24: 0 | P24: 0 | Q24: 0 | R24: 0 | S24: 0 | U24: =IFERROR(IF(N24-(($H24-SUM($CK24:CK24))/$K24)<0,N24,(($H24-SUM($CK24:CK24))/$K24)),0) -> 0 | V24: =IFERROR(IF(O24-(($H24-SUM($CK24:CL24))/$K24)<0,O24,(($H24-SUM($CK24:CL24))/$K24)),0) -> 0 | W24: =IFERROR(IF(P24-(($H24-SUM($CK24:CM24))/$K24)<0,P24,(($H24-SUM($CK24:CM24))/$K24)),0) -> 0 | X24: =IFERROR(IF(Q24-(($H24-SUM($CK24:CN24))/$K24)<0,Q24,(($H24-SUM($CK24:CN24))/$K24)),0) -> 0 | Y24: =IFERROR(IF(R24-(($H24-SUM($CK24:CO24))/$K24)<0,R24,(($H24-SUM($CK24:CO24))/$K24)),0) -> 0 | AA24: 0 | AB24: 0 | AC24: 0 | AD24: 0 | AE24: 0 | AF24: 0 | AH24: =AA24*'Inputs - General'!D$5 -> 0 | AI24: =AB24*'Inputs - General'!E$5 -> 0 | AJ24: =AC24*'Inputs - General'!F$5 -> 0 | AK24: =AD24*'Inputs - General'!G$5 -> 0 | AL24: =AE24*'Inputs - General'!H$5 -> 0 | AM24: =AF24*'Inputs - General'!I$5 -> 0 | AO24: =N24*'Inputs - General'!D$5 -> 0 | AP24: =O24*'Inputs - General'!E$5 -> 0 | AQ24: =P24*'Inputs - General'!F$5 -> 0 | AR24: =Q24*'Inputs - General'!G$5 -> 0 | AS24: =R24*'Inputs - General'!H$5 -> 0 | AT24: =S24*'Inputs - General'!I$5 -> 0 | AV24: =U24*'Inputs - General'!E$5 -> 0 | AW24: =V24*'Inputs - General'!F$5 -> 0 | AX24: =W24*'Inputs - General'!G$5 -> 0 | AY24: =X24*'Inputs - General'!H$5 -> 0 | AZ24: =Y24*'Inputs - General'!I$5 -> 0 | BB24: =AH24*'Inputs - General'!E$4 -> 0 | BC24: =AI24*'Inputs - General'!F$4 -> 0 | BD24: =AJ24*'Inputs - General'!G$4 -> 0 | BE24: =AK24*'Inputs - General'!H$4 -> 0 | BF24: =AL24*'Inputs - General'!I$4 -> 0 | BH24: 0 | BI24: 0 | BJ24: 0 | BK24: 0 | BL24: 0 | BN24: 0 | BO24: 0 | BP24: 0 | BQ24: 0 | BR24: 0 | BT24: ='Input - Customer Inventory FY15'!F23 -> 496.5 | BZ24: =IF($E24="Lamp",0,IF(SUM(BU24:$BY24)>=$BT24,0,IF(BN24<=0,IF($H24=0,0,$BT24),0))) -> 0 | CA24: =IF($E24="Lamp",0,IF(SUM($BU24:BZ24)>=$BT24,0,IF(BO24<=0,IF($H24=0,0,$BT24),0))) -> 0 | CB24: =IF($E24="Lamp",0,IF(SUM($BU24:CA24)>=$BT24,0,IF(BP24<=0,IF($H24=0,0,$BT24),0))) -> 0 | CC24: =IF($E24="Lamp",0,IF(SUM($BU24:CB24)>=$BT24,0,IF(BQ24<=0,IF($H24=0,0,$BT24),0))) -> 0 | CD24: =IF($E24="Lamp",0,IF(SUM($BU24:CC24)>=$BT24,0,IF(BR24<=0,IF($H24=0,0,$BT24),0))) -> 0 | CL24: =CF24/'Inputs - General'!E$5 -> 0 | CM24: =CG24/'Inputs - General'!F$5 -> 0 | CN24: =CH24/'Inputs - General'!G$5 -> 0 | CO24: =CI24/'Inputs - General'!H$5 -> 0 | CP24: =CJ24/'Inputs - General'!I$5 -> 0
D25: Bracket - T2 | E25: Bracket | F25: T2 | G25: 1 | H25: 0 | I25: No | J25: 0 | K25: 0 | L25: 0 | N25: 0 | O25: 0 | P25: 0 | Q25: 0 | R25: 0 | S25: 0 | U25: =IFERROR(IF(N25-(($H25-SUM($CK25:CK25))/$K25)<0,N25,(($H25-SUM($CK25:CK25))/$K25)),0) -> 0 | V25: =IFERROR(IF(O25-(($H25-SUM($CK25:CL25))/$K25)<0,O25,(($H25-SUM($CK25:CL25))/$K25)),0) -> 0 | W25: =IFERROR(IF(P25-(($H25-SUM($CK25:CM25))/$K25)<0,P25,(($H25-SUM($CK25:CM25))/$K25)),0) -> 0 | X25: =IFERROR(IF(Q25-(($H25-SUM($CK25:CN25))/$K25)<0,Q25,(($H25-SUM($CK25:CN25))/$K25)),0) -> 0 | Y25: =IFERROR(IF(R25-(($H25-SUM($CK25:CO25))/$K25)<0,R25,(($H25-SUM($CK25:CO25))/$K25)),0) -> 0 | AA25: 0 | AB25: 0 | AC25: 0 | AD25: 0 | AE25: 0 | AF25: 0 | AH25: =AA25*'Inputs - General'!D$5 -> 0 | AI25: =AB25*'Inputs - General'!E$5 -> 0 | AJ25: =AC25*'Inputs - General'!F$5 -> 0 | AK25: =AD25*'Inputs - General'!G$5 -> 0 | AL25: =AE25*'Inputs - General'!H$5 -> 0 | AM25: =AF25*'Inputs - General'!I$5 -> 0 | AO25: =N25*'Inputs - General'!D$5 -> 0 | AP25: =O25*'Inputs - General'!E$5 -> 0 | AQ25: =P25*'Inputs - General'!F$5 -> 0 | AR25: =Q25*'Inputs - General'!G$5 -> 0 | AS25: =R25*'Inputs - General'!H$5 -> 0 | AT25: =S25*'Inputs - General'!I$5 -> 0 | AV25: =U25*'Inputs - General'!E$5 -> 0 | AW25: =V25*'Inputs - General'!F$5 -> 0 | AX25: =W25*'Inputs - General'!G$5 -> 0 | AY25: =X25*'Inputs - General'!H$5 -> 0 | AZ25: =Y25*'Inputs - General'!I$5 -> 0 | BB25: =AH25*'Inputs - General'!E$4 -> 0 | BC25: =AI25*'Inputs - General'!F$4 -> 0 | BD25: =AJ25*'Inputs - General'!G$4 -> 0 | BE25: =AK25*'Inputs - General'!H$4 -> 0 | BF25: =AL25*'Inputs - General'!I$4 -> 0 | BH25: 0 | BI25: 0 | BJ25: 0 | BK25: 0 | BL25: 0 | BN25: 0 | BO25: 0 | BP25: 0 | BQ25: 0 | BR25: 0 | BT25: ='Input - Customer Inventory FY15'!F24 -> 40 | BZ25: =IF($E25="Lamp",0,IF(SUM(BU25:$BY25)>=$BT25,0,IF(BN25<=0,IF($H25=0,0,$BT25),0))) -> 0 | CA25: =IF($E25="Lamp",0,IF(SUM($BU25:BZ25)>=$BT25,0,IF(BO25<=0,IF($H25=0,0,$BT25),0))) -> 0 | CB25: =IF($E25="Lamp",0,IF(SUM($BU25:CA25)>=$BT25,0,IF(BP25<=0,IF($H25=0,0,$BT25),0))) -> 0 | CC25: =IF($E25="Lamp",0,IF(SUM($BU25:CB25)>=$BT25,0,IF(BQ25<=0,IF($H25=0,0,$BT25),0))) -> 0 | CD25: =IF($E25="Lamp",0,IF(SUM($BU25:CC25)>=$BT25,0,IF(BR25<=0,IF($H25=0,0,$BT25),0))) -> 0 | CL25: =CF25/'Inputs - General'!E$5 -> 0 | CM25: =CG25/'Inputs - General'!F$5 -> 0 | CN25: =CH25/'Inputs - General'!G$5 -> 0 | CO25: =CI25/'Inputs - General'!H$5 -> 0 | CP25: =CJ25/'Inputs - General'!I$5 -> 0
D26: Bracket - T2 | E26: Bracket | F26: T2 | G26: 2 | H26: 0 | I26: No | J26: 0 | K26: 0 | L26: 0 | N26: 0 | O26: 0 | P26: 0 | Q26: 0 | R26: 0 | S26: 0 | U26: =IFERROR(IF(N26-(($H26-SUM($CK26:CK26))/$K26)<0,N26,(($H26-SUM($CK26:CK26))/$K26)),0) -> 0 | V26: =IFERROR(IF(O26-(($H26-SUM($CK26:CL26))/$K26)<0,O26,(($H26-SUM($CK26:CL26))/$K26)),0) -> 0 | W26: =IFERROR(IF(P26-(($H26-SUM($CK26:CM26))/$K26)<0,P26,(($H26-SUM($CK26:CM26))/$K26)),0) -> 0 | X26: =IFERROR(IF(Q26-(($H26-SUM($CK26:CN26))/$K26)<0,Q26,(($H26-SUM($CK26:CN26))/$K26)),0) -> 0 | Y26: =IFERROR(IF(R26-(($H26-SUM($CK26:CO26))/$K26)<0,R26,(($H26-SUM($CK26:CO26))/$K26)),0) -> 0 | AA26: 0 | AB26: 0 | AC26: 0 | AD26: 0 | AE26: 0 | AF26: 0 | AH26: =AA26*'Inputs - General'!D$5 -> 0 | AI26: =AB26*'Inputs - General'!E$5 -> 0 | AJ26: =AC26*'Inputs - General'!F$5 -> 0 | AK26: =AD26*'Inputs - General'!G$5 -> 0 | AL26: =AE26*'Inputs - General'!H$5 -> 0 | AM26: =AF26*'Inputs - General'!I$5 -> 0 | AO26: =N26*'Inputs - General'!D$5 -> 0 | AP26: =O26*'Inputs - General'!E$5 -> 0 | AQ26: =P26*'Inputs - General'!F$5 -> 0 | AR26: =Q26*'Inputs - General'!G$5 -> 0 | AS26: =R26*'Inputs - General'!H$5 -> 0 | AT26: =S26*'Inputs - General'!I$5 -> 0 | AV26: =U26*'Inputs - General'!E$5 -> 0 | AW26: =V26*'Inputs - General'!F$5 -> 0 | AX26: =W26*'Inputs - General'!G$5 -> 0 | AY26: =X26*'Inputs - General'!H$5 -> 0 | AZ26: =Y26*'Inputs - General'!I$5 -> 0 | BB26: =AH26*'Inputs - General'!E$4 -> 0 | BC26: =AI26*'Inputs - General'!F$4 -> 0 | BD26: =AJ26*'Inputs - General'!G$4 -> 0 | BE26: =AK26*'Inputs - General'!H$4 -> 0 | BF26: =AL26*'Inputs - General'!I$4 -> 0 | BH26: 0 | BI26: 0 | BJ26: 0 | BK26: 0 | BL26: 0 | BN26: 0 | BO26: 0 | BP26: 0 | BQ26: 0 | BR26: 0 | BT26: ='Input - Customer Inventory FY15'!F25 -> 0 | BZ26: =IF($E26="Lamp",0,IF(SUM(BU26:$BY26)>=$BT26,0,IF(BN26<=0,IF($H26=0,0,$BT26),0))) -> 0 | CA26: =IF($E26="Lamp",0,IF(SUM($BU26:BZ26)>=$BT26,0,IF(BO26<=0,IF($H26=0,0,$BT26),0))) -> 0 | CB26: =IF($E26="Lamp",0,IF(SUM($BU26:CA26)>=$BT26,0,IF(BP26<=0,IF($H26=0,0,$BT26),0))) -> 0 | CC26: =IF($E26="Lamp",0,IF(SUM($BU26:CB26)>=$BT26,0,IF(BQ26<=0,IF($H26=0,0,$BT26),0))) -> 0 | CD26: =IF($E26="Lamp",0,IF(SUM($BU26:CC26)>=$BT26,0,IF(BR26<=0,IF($H26=0,0,$BT26),0))) -> 0 | CL26: =CF26/'Inputs - General'!E$5 -> 0 | CM26: =CG26/'Inputs - General'!F$5 -> 0 | CN26: =CH26/'Inputs - General'!G$5 -> 0 | CO26: =CI26/'Inputs - General'!H$5 -> 0 | CP26: =CJ26/'Inputs - General'!I$5 -> 0
D27: Bracket - T2A | E27: Bracket | F27: T2A | G27: 1 | H27: 1.09698942 | I27: No | J27: 1.865068493 | K27: 1.865068493 | L27: 0.5881764793 | N27: 1.09698942 | O27: 0.5088129406 | P27: 0 | Q27: 0 | R27: 0 | S27: 0 | U27: =IFERROR(IF(N27-(($H27-SUM($CK27:CK27))/$K27)<0,N27,(($H27-SUM($CK27:CK27))/$K27)),0) -> 0.5881764793 | V27: =IFERROR(IF(O27-(($H27-SUM($CK27:CL27))/$K27)<0,O27,(($H27-SUM($CK27:CL27))/$K27)),0) -> 0.5088129406 | W27: =IFERROR(IF(P27-(($H27-SUM($CK27:CM27))/$K27)<0,P27,(($H27-SUM($CK27:CM27))/$K27)),0) -> 0 | X27: =IFERROR(IF(Q27-(($H27-SUM($CK27:CN27))/$K27)<0,Q27,(($H27-SUM($CK27:CN27))/$K27)),0) -> 0 | Y27: =IFERROR(IF(R27-(($H27-SUM($CK27:CO27))/$K27)<0,R27,(($H27-SUM($CK27:CO27))/$K27)),0) -> 0 | AA27: 1.09698942 | AB27: 0.5088129406 | AC27: 0 | AD27: 0 | AE27: 0 | AF27: 0 | AH27: =AA27*'Inputs - General'!D$5 -> 1.09698942 | AI27: =AB27*'Inputs - General'!E$5 -> 0.5296742712 | AJ27: =AC27*'Inputs - General'!F$5 -> 0 | AK27: =AD27*'Inputs - General'!G$5 -> 0 | AL27: =AE27*'Inputs - General'!H$5 -> 0 | AM27: =AF27*'Inputs - General'!I$5 -> 0 | AO27: =N27*'Inputs - General'!D$5 -> 1.09698942 | AP27: =O27*'Inputs - General'!E$5 -> 0.5296742712 | AQ27: =P27*'Inputs - General'!F$5 -> 0 | AR27: =Q27*'Inputs - General'!G$5 -> 0 | AS27: =R27*'Inputs - General'!H$5 -> 0 | AT27: =S27*'Inputs - General'!I$5 -> 0 | AV27: =U27*'Inputs - General'!E$5 -> 0.6122917149 | AW27: =V27*'Inputs - General'!F$5 -> 0.5513909163 | AX27: =W27*'Inputs - General'!G$5 -> 0 | AY27: =X27*'Inputs - General'!H$5 -> 0 | AZ27: =Y27*'Inputs - General'!I$5 -> 0 | BB27: =AH27*'Inputs - General'!E$4 -> 0.04497656622 | BC27: =AI27*'Inputs - General'!F$4 -> 0.02171664512 | BD27: =AJ27*'Inputs - General'!G$4 -> 0 | BE27: =AK27*'Inputs - General'!H$4 -> 0 | BF27: =AL27*'Inputs - General'!I$4 -> 0 | BH27: 0.5673151487 | BI27: 0.5296742712 | BJ27: 0 | BK27: 0 | BL27: 0 | BN27: 0.0676978219 | BO27: 0.03268745698 | BP27: 0 | BQ27: 0 | BR27: 0 | BT27: ='Input - Customer Inventory FY15'!F26 -> 9 | BZ27: =IF($E27="Lamp",0,IF(SUM(BU27:$BY27)>=$BT27,0,IF(BN27<=0,IF($H27=0,0,$BT27),0))) -> 0 | CA27: =IF($E27="Lamp",0,IF(SUM($BU27:BZ27)>=$BT27,0,IF(BO27<=0,IF($H27=0,0,$BT27),0))) -> 0 | CB27: =IF($E27="Lamp",0,IF(SUM($BU27:CA27)>=$BT27,0,IF(BP27<=0,IF($H27=0,0,$BT27),0))) -> 9 | CC27: =IF($E27="Lamp",0,IF(SUM($BU27:CB27)>=$BT27,0,IF(BQ27<=0,IF($H27=0,0,$BT27),0))) -> 0 | CD27: =IF($E27="Lamp",0,IF(SUM($BU27:CC27)>=$BT27,0,IF(BR27<=0,IF($H27=0,0,$BT27),0))) -> 0 | CL27: =CF27/'Inputs - General'!E$5 -> 0 | CM27: =CG27/'Inputs - General'!F$5 -> 0 | CN27: =CH27/'Inputs - General'!G$5 -> 0 | CO27: =CI27/'Inputs - General'!H$5 -> 0 | CP27: =CJ27/'Inputs - General'!I$5 -> 0
D28: Bracket - T3 | E28: Bracket | F28: T3 | G28: 1 | H28: 0 | I28: No | J28: 0 | K28: 0 | L28: 0 | N28: 0 | O28: 0 | P28: 0 | Q28: 0 | R28: 0 | S28: 0 | U28: =IFERROR(IF(N28-(($H28-SUM($CK28:CK28))/$K28)<0,N28,(($H28-SUM($CK28:CK28))/$K28)),0) -> 0 | V28: =IFERROR(IF(O28-(($H28-SUM($CK28:CL28))/$K28)<0,O28,(($H28-SUM($CK28:CL28))/$K28)),0) -> 0 | W28: =IFERROR(IF(P28-(($H28-SUM($CK28:CM28))/$K28)<0,P28,(($H28-SUM($CK28:CM28))/$K28)),0) -> 0 | X28: =IFERROR(IF(Q28-(($H28-SUM($CK28:CN28))/$K28)<0,Q28,(($H28-SUM($CK28:CN28))/$K28)),0) -> 0 | Y28: =IFERROR(IF(R28-(($H28-SUM($CK28:CO28))/$K28)<0,R28,(($H28-SUM($CK28:CO28))/$K28)),0) -> 0 | AA28: 0 | AB28: 0 | AC28: 0 | AD28: 0 | AE28: 0 | AF28: 0 | AH28: =AA28*'Inputs - General'!D$5 -> 0 | AI28: =AB28*'Inputs - General'!E$5 -> 0 | AJ28: =AC28*'Inputs - General'!F$5 -> 0 | AK28: =AD28*'Inputs - General'!G$5 -> 0 | AL28: =AE28*'Inputs - General'!H$5 -> 0 | AM28: =AF28*'Inputs - General'!I$5 -> 0 | AO28: =N28*'Inputs - General'!D$5 -> 0 | AP28: =O28*'Inputs - General'!E$5 -> 0 | AQ28: =P28*'Inputs - General'!F$5 -> 0 | AR28: =Q28*'Inputs - General'!G$5 -> 0 | AS28: =R28*'Inputs - General'!H$5 -> 0 | AT28: =S28*'Inputs - General'!I$5 -> 0 | AV28: =U28*'Inputs - General'!E$5 -> 0 | AW28: =V28*'Inputs - General'!F$5 -> 0 | AX28: =W28*'Inputs - General'!G$5 -> 0 | AY28: =X28*'Inputs - General'!H$5 -> 0 | AZ28: =Y28*'Inputs - General'!I$5 -> 0 | BB28: =AH28*'Inputs - General'!E$4 -> 0 | BC28: =AI28*'Inputs - General'!F$4 -> 0 | BD28: =AJ28*'Inputs - General'!G$4 -> 0 | BE28: =AK28*'Inputs - General'!H$4 -> 0 | BF28: =AL28*'Inputs - General'!I$4 -> 0 | BH28: 0 | BI28: 0 | BJ28: 0 | BK28: 0 | BL28: 0 | BN28: 0 | BO28: 0 | BP28: 0 | BQ28: 0 | BR28: 0 | BT28: ='Input - Customer Inventory FY15'!F27 -> 69.5 | BZ28: =IF($E28="Lamp",0,IF(SUM(BU28:$BY28)>=$BT28,0,IF(BN28<=0,IF($H28=0,0,$BT28),0))) -> 0 | CA28: =IF($E28="Lamp",0,IF(SUM($BU28:BZ28)>=$BT28,0,IF(BO28<=0,IF($H28=0,0,$BT28),0))) -> 0 | CB28: =IF($E28="Lamp",0,IF(SUM($BU28:CA28)>=$BT28,0,IF(BP28<=0,IF($H28=0,0,$BT28),0))) -> 0 | CC28: =IF($E28="Lamp",0,IF(SUM($BU28:CB28)>=$BT28,0,IF(BQ28<=0,IF($H28=0,0,$BT28),0))) -> 0 | CD28: =IF($E28="Lamp",0,IF(SUM($BU28:CC28)>=$BT28,0,IF(BR28<=0,IF($H28=0,0,$BT28),0))) -> 0 | CL28: =CF28/'Inputs - General'!E$5 -> 0 | CM28: =CG28/'Inputs - General'!F$5 -> 0 | CN28: =CH28/'Inputs - General'!G$5 -> 0 | CO28: =CI28/'Inputs - General'!H$5 -> 0 | CP28: =CJ28/'Inputs - General'!I$5 -> 0
D29: Bracket - T3A | E29: Bracket | F29: T3A | G29: 1 | H29: 0 | I29: No | J29: 0 | K29: 0 | L29: 0 | N29: 0 | O29: 0 | P29: 0 | Q29: 0 | R29: 0 | S29: 0 | U29: =IFERROR(IF(N29-(($H29-SUM($CK29:CK29))/$K29)<0,N29,(($H29-SUM($CK29:CK29))/$K29)),0) -> 0 | V29: =IFERROR(IF(O29-(($H29-SUM($CK29:CL29))/$K29)<0,O29,(($H29-SUM($CK29:CL29))/$K29)),0) -> 0 | W29: =IFERROR(IF(P29-(($H29-SUM($CK29:CM29))/$K29)<0,P29,(($H29-SUM($CK29:CM29))/$K29)),0) -> 0 | X29: =IFERROR(IF(Q29-(($H29-SUM($CK29:CN29))/$K29)<0,Q29,(($H29-SUM($CK29:CN29))/$K29)),0) -> 0 | Y29: =IFERROR(IF(R29-(($H29-SUM($CK29:CO29))/$K29)<0,R29,(($H29-SUM($CK29:CO29))/$K29)),0) -> 0 | AA29: 0 | AB29: 0 | AC29: 0 | AD29: 0 | AE29: 0 | AF29: 0 | AH29: =AA29*'Inputs - General'!D$5 -> 0 | AI29: =AB29*'Inputs - General'!E$5 -> 0 | AJ29: =AC29*'Inputs - General'!F$5 -> 0 | AK29: =AD29*'Inputs - General'!G$5 -> 0 | AL29: =AE29*'Inputs - General'!H$5 -> 0 | AM29: =AF29*'Inputs - General'!I$5 -> 0 | AO29: =N29*'Inputs - General'!D$5 -> 0 | AP29: =O29*'Inputs - General'!E$5 -> 0 | AQ29: =P29*'Inputs - General'!F$5 -> 0 | AR29: =Q29*'Inputs - General'!G$5 -> 0 | AS29: =R29*'Inputs - General'!H$5 -> 0 | AT29: =S29*'Inputs - General'!I$5 -> 0 | AV29: =U29*'Inputs - General'!E$5 -> 0 | AW29: =V29*'Inputs - General'!F$5 -> 0 | AX29: =W29*'Inputs - General'!G$5 -> 0 | AY29: =X29*'Inputs - General'!H$5 -> 0 | AZ29: =Y29*'Inputs - General'!I$5 -> 0 | BB29: =AH29*'Inputs - General'!E$4 -> 0 | BC29: =AI29*'Inputs - General'!F$4 -> 0 | BD29: =AJ29*'Inputs - General'!G$4 -> 0 | BE29: =AK29*'Inputs - General'!H$4 -> 0 | BF29: =AL29*'Inputs - General'!I$4 -> 0 | BH29: 0 | BI29: 0 | BJ29: 0 | BK29: 0 | BL29: 0 | BN29: 0 | BO29: 0 | BP29: 0 | BQ29: 0 | BR29: 0 | BT29: ='Input - Customer Inventory FY15'!F28 -> 6.5 | BZ29: =IF($E29="Lamp",0,IF(SUM(BU29:$BY29)>=$BT29,0,IF(BN29<=0,IF($H29=0,0,$BT29),0))) -> 0 | CA29: =IF($E29="Lamp",0,IF(SUM($BU29:BZ29)>=$BT29,0,IF(BO29<=0,IF($H29=0,0,$BT29),0))) -> 0 | CB29: =IF($E29="Lamp",0,IF(SUM($BU29:CA29)>=$BT29,0,IF(BP29<=0,IF($H29=0,0,$BT29),0))) -> 0 | CC29: =IF($E29="Lamp",0,IF(SUM($BU29:CB29)>=$BT29,0,IF(BQ29<=0,IF($H29=0,0,$BT29),0))) -> 0 | CD29: =IF($E29="Lamp",0,IF(SUM($BU29:CC29)>=$BT29,0,IF(BR29<=0,IF($H29=0,0,$BT29),0))) -> 0 | CL29: =CF29/'Inputs - General'!E$5 -> 0 | CM29: =CG29/'Inputs - General'!F$5 -> 0 | CN29: =CH29/'Inputs - General'!G$5 -> 0 | CO29: =CI29/'Inputs - General'!H$5 -> 0 | CP29: =CJ29/'Inputs - General'!I$5 -> 0
D30: Bracket - T4 | E30: Bracket | F30: T4 | G30: 1 | H30: 0 | I30: No | J30: 0 | K30: 0 | L30: 0 | N30: 0 | O30: 0 | P30: 0 | Q30: 0 | R30: 0 | S30: 0 | U30: =IFERROR(IF(N30-(($H30-SUM($CK30:CK30))/$K30)<0,N30,(($H30-SUM($CK30:CK30))/$K30)),0) -> 0 | V30: =IFERROR(IF(O30-(($H30-SUM($CK30:CL30))/$K30)<0,O30,(($H30-SUM($CK30:CL30))/$K30)),0) -> 0 | W30: =IFERROR(IF(P30-(($H30-SUM($CK30:CM30))/$K30)<0,P30,(($H30-SUM($CK30:CM30))/$K30)),0) -> 0 | X30: =IFERROR(IF(Q30-(($H30-SUM($CK30:CN30))/$K30)<0,Q30,(($H30-SUM($CK30:CN30))/$K30)),0) -> 0 | Y30: =IFERROR(IF(R30-(($H30-SUM($CK30:CO30))/$K30)<0,R30,(($H30-SUM($CK30:CO30))/$K30)),0) -> 0 | AA30: 0 | AB30: 0 | AC30: 0 | AD30: 0 | AE30: 0 | AF30: 0 | AH30: =AA30*'Inputs - General'!D$5 -> 0 | AI30: =AB30*'Inputs - General'!E$5 -> 0 | AJ30: =AC30*'Inputs - General'!F$5 -> 0 | AK30: =AD30*'Inputs - General'!G$5 -> 0 | AL30: =AE30*'Inputs - General'!H$5 -> 0 | AM30: =AF30*'Inputs - General'!I$5 -> 0 | AO30: =N30*'Inputs - General'!D$5 -> 0 | AP30: =O30*'Inputs - General'!E$5 -> 0 | AQ30: =P30*'Inputs - General'!F$5 -> 0 | AR30: =Q30*'Inputs - General'!G$5 -> 0 | AS30: =R30*'Inputs - General'!H$5 -> 0 | AT30: =S30*'Inputs - General'!I$5 -> 0 | AV30: =U30*'Inputs - General'!E$5 -> 0 | AW30: =V30*'Inputs - General'!F$5 -> 0 | AX30: =W30*'Inputs - General'!G$5 -> 0 | AY30: =X30*'Inputs - General'!H$5 -> 0 | AZ30: =Y30*'Inputs - General'!I$5 -> 0 | BB30: =AH30*'Inputs - General'!E$4 -> 0 | BC30: =AI30*'Inputs - General'!F$4 -> 0 | BD30: =AJ30*'Inputs - General'!G$4 -> 0 | BE30: =AK30*'Inputs - General'!H$4 -> 0 | BF30: =AL30*'Inputs - General'!I$4 -> 0 | BH30: 0 | BI30: 0 | BJ30: 0 | BK30: 0 | BL30: 0 | BN30: 0 | BO30: 0 | BP30: 0 | BQ30: 0 | BR30: 0 | BT30: ='Input - Customer Inventory FY15'!F29 -> 390.5 | BZ30: =IF($E30="Lamp",0,IF(SUM(BU30:$BY30)>=$BT30,0,IF(BN30<=0,IF($H30=0,0,$BT30),0))) -> 0 | CA30: =IF($E30="Lamp",0,IF(SUM($BU30:BZ30)>=$BT30,0,IF(BO30<=0,IF($H30=0,0,$BT30),0))) -> 0 | CB30: =IF($E30="Lamp",0,IF(SUM($BU30:CA30)>=$BT30,0,IF(BP30<=0,IF($H30=0,0,$BT30),0))) -> 0 | CC30: =IF($E30="Lamp",0,IF(SUM($BU30:CB30)>=$BT30,0,IF(BQ30<=0,IF($H30=0,0,$BT30),0))) -> 0 | CD30: =IF($E30="Lamp",0,IF(SUM($BU30:CC30)>=$BT30,0,IF(BR30<=0,IF($H30=0,0,$BT30),0))) -> 0 | CL30: =CF30/'Inputs - General'!E$5 -> 0 | CM30: =CG30/'Inputs - General'!F$5 -> 0 | CN30: =CH30/'Inputs - General'!G$5 -> 0 | CO30: =CI30/'Inputs - General'!H$5 -> 0 | CP30: =CJ30/'Inputs - General'!I$5 -> 0
D31: Bracket - T5 | E31: Bracket | F31: T5 | G31: 1 | H31: 0 | I31: No | J31: 0 | K31: 0 | L31: 0 | N31: 0 | O31: 0 | P31: 0 | Q31: 0 | R31: 0 | S31: 0 | U31: =IFERROR(IF(N31-(($H31-SUM($CK31:CK31))/$K31)<0,N31,(($H31-SUM($CK31:CK31))/$K31)),0) -> 0 | V31: =IFERROR(IF(O31-(($H31-SUM($CK31:CL31))/$K31)<0,O31,(($H31-SUM($CK31:CL31))/$K31)),0) -> 0 | W31: =IFERROR(IF(P31-(($H31-SUM($CK31:CM31))/$K31)<0,P31,(($H31-SUM($CK31:CM31))/$K31)),0) -> 0 | X31: =IFERROR(IF(Q31-(($H31-SUM($CK31:CN31))/$K31)<0,Q31,(($H31-SUM($CK31:CN31))/$K31)),0) -> 0 | Y31: =IFERROR(IF(R31-(($H31-SUM($CK31:CO31))/$K31)<0,R31,(($H31-SUM($CK31:CO31))/$K31)),0) -> 0 | AA31: 0 | AB31: 0 | AC31: 0 | AD31: 0 | AE31: 0 | AF31: 0 | AH31: =AA31*'Inputs - General'!D$5 -> 0 | AI31: =AB31*'Inputs - General'!E$5 -> 0 | AJ31: =AC31*'Inputs - General'!F$5 -> 0 | AK31: =AD31*'Inputs - General'!G$5 -> 0 | AL31: =AE31*'Inputs - General'!H$5 -> 0 | AM31: =AF31*'Inputs - General'!I$5 -> 0 | AO31: =N31*'Inputs - General'!D$5 -> 0 | AP31: =O31*'Inputs - General'!E$5 -> 0 | AQ31: =P31*'Inputs - General'!F$5 -> 0 | AR31: =Q31*'Inputs - General'!G$5 -> 0 | AS31: =R31*'Inputs - General'!H$5 -> 0 | AT31: =S31*'Inputs - General'!I$5 -> 0 | AV31: =U31*'Inputs - General'!E$5 -> 0 | AW31: =V31*'Inputs - General'!F$5 -> 0 | AX31: =W31*'Inputs - General'!G$5 -> 0 | AY31: =X31*'Inputs - General'!H$5 -> 0 | AZ31: =Y31*'Inputs - General'!I$5 -> 0 | BB31: =AH31*'Inputs - General'!E$4 -> 0 | BC31: =AI31*'Inputs - General'!F$4 -> 0 | BD31: =AJ31*'Inputs - General'!G$4 -> 0 | BE31: =AK31*'Inputs - General'!H$4 -> 0 | BF31: =AL31*'Inputs - General'!I$4 -> 0 | BH31: 0 | BI31: 0 | BJ31: 0 | BK31: 0 | BL31: 0 | BN31: 0 | BO31: 0 | BP31: 0 | BQ31: 0 | BR31: 0 | BT31: ='Input - Customer Inventory FY15'!F30 -> 10.5 | BZ31: =IF($E31="Lamp",0,IF(SUM(BU31:$BY31)>=$BT31,0,IF(BN31<=0,IF($H31=0,0,$BT31),0))) -> 0 | CA31: =IF($E31="Lamp",0,IF(SUM($BU31:BZ31)>=$BT31,0,IF(BO31<=0,IF($H31=0,0,$BT31),0))) -> 0 | CB31: =IF($E31="Lamp",0,IF(SUM($BU31:CA31)>=$BT31,0,IF(BP31<=0,IF($H31=0,0,$BT31),0))) -> 0 | CC31: =IF($E31="Lamp",0,IF(SUM($BU31:CB31)>=$BT31,0,IF(BQ31<=0,IF($H31=0,0,$BT31),0))) -> 0 | CD31: =IF($E31="Lamp",0,IF(SUM($BU31:CC31)>=$BT31,0,IF(BR31<=0,IF($H31=0,0,$BT31),0))) -> 0 | CL31: =CF31/'Inputs - General'!E$5 -> 0 | CM31: =CG31/'Inputs - General'!F$5 -> 0 | CN31: =CH31/'Inputs - General'!G$5 -> 0 | CO31: =CI31/'Inputs - General'!H$5 -> 0 | CP31: =CJ31/'Inputs - General'!I$5 -> 0
D32: Bracket - T5 | E32: Bracket | F32: T5 | G32: 2 | H32: 0 | I32: No | J32: 0 | K32: 0 | L32: 0 | N32: 0 | O32: 0 | P32: 0 | Q32: 0 | R32: 0 | S32: 0 | U32: =IFERROR(IF(N32-(($H32-SUM($CK32:CK32))/$K32)<0,N32,(($H32-SUM($CK32:CK32))/$K32)),0) -> 0 | V32: =IFERROR(IF(O32-(($H32-SUM($CK32:CL32))/$K32)<0,O32,(($H32-SUM($CK32:CL32))/$K32)),0) -> 0 | W32: =IFERROR(IF(P32-(($H32-SUM($CK32:CM32))/$K32)<0,P32,(($H32-SUM($CK32:CM32))/$K32)),0) -> 0 | X32: =IFERROR(IF(Q32-(($H32-SUM($CK32:CN32))/$K32)<0,Q32,(($H32-SUM($CK32:CN32))/$K32)),0) -> 0 | Y32: =IFERROR(IF(R32-(($H32-SUM($CK32:CO32))/$K32)<0,R32,(($H32-SUM($CK32:CO32))/$K32)),0) -> 0 | AA32: 0 | AB32: 0 | AC32: 0 | AD32: 0 | AE32: 0 | AF32: 0 | AH32: =AA32*'Inputs - General'!D$5 -> 0 | AI32: =AB32*'Inputs - General'!E$5 -> 0 | AJ32: =AC32*'Inputs - General'!F$5 -> 0 | AK32: =AD32*'Inputs - General'!G$5 -> 0 | AL32: =AE32*'Inputs - General'!H$5 -> 0 | AM32: =AF32*'Inputs - General'!I$5 -> 0 | AO32: =N32*'Inputs - General'!D$5 -> 0 | AP32: =O32*'Inputs - General'!E$5 -> 0 | AQ32: =P32*'Inputs - General'!F$5 -> 0 | AR32: =Q32*'Inputs - General'!G$5 -> 0 | AS32: =R32*'Inputs - General'!H$5 -> 0 | AT32: =S32*'Inputs - General'!I$5 -> 0 | AV32: =U32*'Inputs - General'!E$5 -> 0 | AW32: =V32*'Inputs - General'!F$5 -> 0 | AX32: =W32*'Inputs - General'!G$5 -> 0 | AY32: =X32*'Inputs - General'!H$5 -> 0 | AZ32: =Y32*'Inputs - General'!I$5 -> 0 | BB32: =AH32*'Inputs - General'!E$4 -> 0 | BC32: =AI32*'Inputs - General'!F$4 -> 0 | BD32: =AJ32*'Inputs - General'!G$4 -> 0 | BE32: =AK32*'Inputs - General'!H$4 -> 0 | BF32: =AL32*'Inputs - General'!I$4 -> 0 | BH32: 0 | BI32: 0 | BJ32: 0 | BK32: 0 | BL32: 0 | BN32: 0 | BO32: 0 | BP32: 0 | BQ32: 0 | BR32: 0 | BT32: ='Input - Customer Inventory FY15'!F31 -> 0 | BZ32: =IF($E32="Lamp",0,IF(SUM(BU32:$BY32)>=$BT32,0,IF(BN32<=0,IF($H32=0,0,$BT32),0))) -> 0 | CA32: =IF($E32="Lamp",0,IF(SUM($BU32:BZ32)>=$BT32,0,IF(BO32<=0,IF($H32=0,0,$BT32),0))) -> 0 | CB32: =IF($E32="Lamp",0,IF(SUM($BU32:CA32)>=$BT32,0,IF(BP32<=0,IF($H32=0,0,$BT32),0))) -> 0 | CC32: =IF($E32="Lamp",0,IF(SUM($BU32:CB32)>=$BT32,0,IF(BQ32<=0,IF($H32=0,0,$BT32),0))) -> 0 | CD32: =IF($E32="Lamp",0,IF(SUM($BU32:CC32)>=$BT32,0,IF(BR32<=0,IF($H32=0,0,$BT32),0))) -> 0 | CL32: =CF32/'Inputs - General'!E$5 -> 0 | CM32: =CG32/'Inputs - General'!F$5 -> 0 | CN32: =CH32/'Inputs - General'!G$5 -> 0 | CO32: =CI32/'Inputs - General'!H$5 -> 0 | CP32: =CJ32/'Inputs - General'!I$5 -> 0
D33: Bracket - T6 | E33: Bracket | F33: T6 | G33: 1 | H33: 0 | I33: No | J33: 0 | K33: 0 | L33: 0 | N33: 0 | O33: 0 | P33: 0 | Q33: 0 | R33: 0 | S33: 0 | U33: =IFERROR(IF(N33-(($H33-SUM($CK33:CK33))/$K33)<0,N33,(($H33-SUM($CK33:CK33))/$K33)),0) -> 0 | V33: =IFERROR(IF(O33-(($H33-SUM($CK33:CL33))/$K33)<0,O33,(($H33-SUM($CK33:CL33))/$K33)),0) -> 0 | W33: =IFERROR(IF(P33-(($H33-SUM($CK33:CM33))/$K33)<0,P33,(($H33-SUM($CK33:CM33))/$K33)),0) -> 0 | X33: =IFERROR(IF(Q33-(($H33-SUM($CK33:CN33))/$K33)<0,Q33,(($H33-SUM($CK33:CN33))/$K33)),0) -> 0 | Y33: =IFERROR(IF(R33-(($H33-SUM($CK33:CO33))/$K33)<0,R33,(($H33-SUM($CK33:CO33))/$K33)),0) -> 0 | AA33: 0 | AB33: 0 | AC33: 0 | AD33: 0 | AE33: 0 | AF33: 0 | AH33: =AA33*'Inputs - General'!D$5 -> 0 | AI33: =AB33*'Inputs - General'!E$5 -> 0 | AJ33: =AC33*'Inputs - General'!F$5 -> 0 | AK33: =AD33*'Inputs - General'!G$5 -> 0 | AL33: =AE33*'Inputs - General'!H$5 -> 0 | AM33: =AF33*'Inputs - General'!I$5 -> 0 | AO33: =N33*'Inputs - General'!D$5 -> 0 | AP33: =O33*'Inputs - General'!E$5 -> 0 | AQ33: =P33*'Inputs - General'!F$5 -> 0 | AR33: =Q33*'Inputs - General'!G$5 -> 0 | AS33: =R33*'Inputs - General'!H$5 -> 0 | AT33: =S33*'Inputs - General'!I$5 -> 0 | AV33: =U33*'Inputs - General'!E$5 -> 0 | AW33: =V33*'Inputs - General'!F$5 -> 0 | AX33: =W33*'Inputs - General'!G$5 -> 0 | AY33: =X33*'Inputs - General'!H$5 -> 0 | AZ33: =Y33*'Inputs - General'!I$5 -> 0 | BB33: =AH33*'Inputs - General'!E$4 -> 0 | BC33: =AI33*'Inputs - General'!F$4 -> 0 | BD33: =AJ33*'Inputs - General'!G$4 -> 0 | BE33: =AK33*'Inputs - General'!H$4 -> 0 | BF33: =AL33*'Inputs - General'!I$4 -> 0 | BH33: 0 | BI33: 0 | BJ33: 0 | BK33: 0 | BL33: 0 | BN33: 0 | BO33: 0 | BP33: 0 | BQ33: 0 | BR33: 0 | BT33: ='Input - Customer Inventory FY15'!F32 -> 15.5 | BZ33: =IF($E33="Lamp",0,IF(SUM(BU33:$BY33)>=$BT33,0,IF(BN33<=0,IF($H33=0,0,$BT33),0))) -> 0 | CA33: =IF($E33="Lamp",0,IF(SUM($BU33:BZ33)>=$BT33,0,IF(BO33<=0,IF($H33=0,0,$BT33),0))) -> 0 | CB33: =IF($E33="Lamp",0,IF(SUM($BU33:CA33)>=$BT33,0,IF(BP33<=0,IF($H33=0,0,$BT33),0))) -> 0 | CC33: =IF($E33="Lamp",0,IF(SUM($BU33:CB33)>=$BT33,0,IF(BQ33<=0,IF($H33=0,0,$BT33),0))) -> 0 | CD33: =IF($E33="Lamp",0,IF(SUM($BU33:CC33)>=$BT33,0,IF(BR33<=0,IF($H33=0,0,$BT33),0))) -> 0 | CL33: =CF33/'Inputs - General'!E$5 -> 0 | CM33: =CG33/'Inputs - General'!F$5 -> 0 | CN33: =CH33/'Inputs - General'!G$5 -> 0 | CO33: =CI33/'Inputs - General'!H$5 -> 0 | CP33: =CJ33/'Inputs - General'!I$5 -> 0
D34: Bracket - T6 | E34: Bracket | F34: T6 | G34: 2 | H34: 0 | I34: No | J34: 0 | K34: 0 | L34: 0 | N34: 0 | O34: 0 | P34: 0 | Q34: 0 | R34: 0 | S34: 0 | U34: =IFERROR(IF(N34-(($H34-SUM($CK34:CK34))/$K34)<0,N34,(($H34-SUM($CK34:CK34))/$K34)),0) -> 0 | V34: =IFERROR(IF(O34-(($H34-SUM($CK34:CL34))/$K34)<0,O34,(($H34-SUM($CK34:CL34))/$K34)),0) -> 0 | W34: =IFERROR(IF(P34-(($H34-SUM($CK34:CM34))/$K34)<0,P34,(($H34-SUM($CK34:CM34))/$K34)),0) -> 0 | X34: =IFERROR(IF(Q34-(($H34-SUM($CK34:CN34))/$K34)<0,Q34,(($H34-SUM($CK34:CN34))/$K34)),0) -> 0 | Y34: =IFERROR(IF(R34-(($H34-SUM($CK34:CO34))/$K34)<0,R34,(($H34-SUM($CK34:CO34))/$K34)),0) -> 0 | AA34: 0 | AB34: 0 | AC34: 0 | AD34: 0 | AE34: 0 | AF34: 0 | AH34: =AA34*'Inputs - General'!D$5 -> 0 | AI34: =AB34*'Inputs - General'!E$5 -> 0 | AJ34: =AC34*'Inputs - General'!F$5 -> 0 | AK34: =AD34*'Inputs - General'!G$5 -> 0 | AL34: =AE34*'Inputs - General'!H$5 -> 0 | AM34: =AF34*'Inputs - General'!I$5 -> 0 | AO34: =N34*'Inputs - General'!D$5 -> 0 | AP34: =O34*'Inputs - General'!E$5 -> 0 | AQ34: =P34*'Inputs - General'!F$5 -> 0 | AR34: =Q34*'Inputs - General'!G$5 -> 0 | AS34: =R34*'Inputs - General'!H$5 -> 0 | AT34: =S34*'Inputs - General'!I$5 -> 0 | AV34: =U34*'Inputs - General'!E$5 -> 0 | AW34: =V34*'Inputs - General'!F$5 -> 0 | AX34: =W34*'Inputs - General'!G$5 -> 0 | AY34: =X34*'Inputs - General'!H$5 -> 0 | AZ34: =Y34*'Inputs - General'!I$5 -> 0 | BB34: =AH34*'Inputs - General'!E$4 -> 0 | BC34: =AI34*'Inputs - General'!F$4 -> 0 | BD34: =AJ34*'Inputs - General'!G$4 -> 0 | BE34: =AK34*'Inputs - General'!H$4 -> 0 | BF34: =AL34*'Inputs - General'!I$4 -> 0 | BH34: 0 | BI34: 0 | BJ34: 0 | BK34: 0 | BL34: 0 | BN34: 0 | BO34: 0 | BP34: 0 | BQ34: 0 | BR34: 0 | BT34: ='Input - Customer Inventory FY15'!F33 -> 0 | BZ34: =IF($E34="Lamp",0,IF(SUM(BU34:$BY34)>=$BT34,0,IF(BN34<=0,IF($H34=0,0,$BT34),0))) -> 0 | CA34: =IF($E34="Lamp",0,IF(SUM($BU34:BZ34)>=$BT34,0,IF(BO34<=0,IF($H34=0,0,$BT34),0))) -> 0 | CB34: =IF($E34="Lamp",0,IF(SUM($BU34:CA34)>=$BT34,0,IF(BP34<=0,IF($H34=0,0,$BT34),0))) -> 0 | CC34: =IF($E34="Lamp",0,IF(SUM($BU34:CB34)>=$BT34,0,IF(BQ34<=0,IF($H34=0,0,$BT34),0))) -> 0 | CD34: =IF($E34="Lamp",0,IF(SUM($BU34:CC34)>=$BT34,0,IF(BR34<=0,IF($H34=0,0,$BT34),0))) -> 0 | CL34: =CF34/'Inputs - General'!E$5 -> 0 | CM34: =CG34/'Inputs - General'!F$5 -> 0 | CN34: =CH34/'Inputs - General'!G$5 -> 0 | CO34: =CI34/'Inputs - General'!H$5 -> 0 | CP34: =CJ34/'Inputs - General'!I$5 -> 0
D35: Bracket - T7 | E35: Bracket | F35: T7 | G35: 1 | H35: 0.1679431015 | I35: No | J35: 1.00456621 | K35: 1.00456621 | L35: 0.1671797238 | N35: 0.1679431015 | O35: 0.0007633777341 | P35: 0 | Q35: 0 | R35: 0 | S35: 0 | U35: =IFERROR(IF(N35-(($H35-SUM($CK35:CK35))/$K35)<0,N35,(($H35-SUM($CK35:CK35))/$K35)),0) -> 0.1671797238 | V35: =IFERROR(IF(O35-(($H35-SUM($CK35:CL35))/$K35)<0,O35,(($H35-SUM($CK35:CL35))/$K35)),0) -> 0.0007633777341 | W35: =IFERROR(IF(P35-(($H35-SUM($CK35:CM35))/$K35)<0,P35,(($H35-SUM($CK35:CM35))/$K35)),0) -> 0 | X35: =IFERROR(IF(Q35-(($H35-SUM($CK35:CN35))/$K35)<0,Q35,(($H35-SUM($CK35:CN35))/$K35)),0) -> 0 | Y35: =IFERROR(IF(R35-(($H35-SUM($CK35:CO35))/$K35)<0,R35,(($H35-SUM($CK35:CO35))/$K35)),0) -> 0 | AA35: 0.1679431015 | AB35: 0.0007633777341 | AC35: 0 | AD35: 0 | AE35: 0 | AF35: 0 | AH35: =AA35*'Inputs - General'!D$5 -> 0.1679431015 | AI35: =AB35*'Inputs - General'!E$5 -> 0.0007946762212 | AJ35: =AC35*'Inputs - General'!F$5 -> 0 | AK35: =AD35*'Inputs - General'!G$5 -> 0 | AL35: =AE35*'Inputs - General'!H$5 -> 0 | AM35: =AF35*'Inputs - General'!I$5 -> 0 | AO35: =N35*'Inputs - General'!D$5 -> 0.1679431015 | AP35: =O35*'Inputs - General'!E$5 -> 0.0007946762212 | AQ35: =P35*'Inputs - General'!F$5 -> 0 | AR35: =Q35*'Inputs - General'!G$5 -> 0 | AS35: =R35*'Inputs - General'!H$5 -> 0 | AT35: =S35*'Inputs - General'!I$5 -> 0 | AV35: =U35*'Inputs - General'!E$5 -> 0.1740340925 | AW35: =V35*'Inputs - General'!F$5 -> 0.0008272579463 | AX35: =W35*'Inputs - General'!G$5 -> 0 | AY35: =X35*'Inputs - General'!H$5 -> 0 | AZ35: =Y35*'Inputs - General'!I$5 -> 0 | BB35: =AH35*'Inputs - General'!E$4 -> 0.006885667162 | BC35: =AI35*'Inputs - General'!F$4 -> 3.258172507e-05 | BD35: =AJ35*'Inputs - General'!G$4 -> 0 | BE35: =AK35*'Inputs - General'!H$4 -> 0 | BF35: =AL35*'Inputs - General'!I$4 -> 0 | BH35: 0.1671484253 | BI35: 0.0007946762212 | BJ35: 0 | BK35: 0 | BL35: 0 | BN35: 0.01036416757 | BO35: 4.904135657e-05 | BP35: 0 | BQ35: 0 | BR35: 0 | BT35: ='Input - Customer Inventory FY15'!F34 -> 2 | BZ35: =IF($E35="Lamp",0,IF(SUM(BU35:$BY35)>=$BT35,0,IF(BN35<=0,IF($H35=0,0,$BT35),0))) -> 0 | CA35: =IF($E35="Lamp",0,IF(SUM($BU35:BZ35)>=$BT35,0,IF(BO35<=0,IF($H35=0,0,$BT35),0))) -> 0 | CB35: =IF($E35="Lamp",0,IF(SUM($BU35:CA35)>=$BT35,0,IF(BP35<=0,IF($H35=0,0,$BT35),0))) -> 2 | CC35: =IF($E35="Lamp",0,IF(SUM($BU35:CB35)>=$BT35,0,IF(BQ35<=0,IF($H35=0,0,$BT35),0))) -> 0 | CD35: =IF($E35="Lamp",0,IF(SUM($BU35:CC35)>=$BT35,0,IF(BR35<=0,IF($H35=0,0,$BT35),0))) -> 0 | CL35: =CF35/'Inputs - General'!E$5 -> 0 | CM35: =CG35/'Inputs - General'!F$5 -> 0 | CN35: =CH35/'Inputs - General'!G$5 -> 0 | CO35: =CI35/'Inputs - General'!H$5 -> 0 | CP35: =CJ35/'Inputs - General'!I$5 -> 0
D36: Connection - EMPTY | E36: Connection | F36: EMPTY | G36: 1 | H36: 0 | I36: No | J36: 0 | K36: 0 | L36: 0 | N36: 0 | O36: 0 | P36: 0 | Q36: 0 | R36: 0 | S36: 0 | U36: =IFERROR(IF(N36-(($H36-SUM($CK36:CK36))/$K36)<0,N36,(($H36-SUM($CK36:CK36))/$K36)),0) -> 0 | V36: =IFERROR(IF(O36-(($H36-SUM($CK36:CL36))/$K36)<0,O36,(($H36-SUM($CK36:CL36))/$K36)),0) -> 0 | W36: =IFERROR(IF(P36-(($H36-SUM($CK36:CM36))/$K36)<0,P36,(($H36-SUM($CK36:CM36))/$K36)),0) -> 0 | X36: =IFERROR(IF(Q36-(($H36-SUM($CK36:CN36))/$K36)<0,Q36,(($H36-SUM($CK36:CN36))/$K36)),0) -> 0 | Y36: =IFERROR(IF(R36-(($H36-SUM($CK36:CO36))/$K36)<0,R36,(($H36-SUM($CK36:CO36))/$K36)),0) -> 0 | AA36: 0 | AB36: 0 | AC36: 0 | AD36: 0 | AE36: 0 | AF36: 0 | AH36: =AA36*'Inputs - General'!D$5 -> 0 | AI36: =AB36*'Inputs - General'!E$5 -> 0 | AJ36: =AC36*'Inputs - General'!F$5 -> 0 | AK36: =AD36*'Inputs - General'!G$5 -> 0 | AL36: =AE36*'Inputs - General'!H$5 -> 0 | AM36: =AF36*'Inputs - General'!I$5 -> 0 | AO36: =N36*'Inputs - General'!D$5 -> 0 | AP36: =O36*'Inputs - General'!E$5 -> 0 | AQ36: =P36*'Inputs - General'!F$5 -> 0 | AR36: =Q36*'Inputs - General'!G$5 -> 0 | AS36: =R36*'Inputs - General'!H$5 -> 0 | AT36: =S36*'Inputs - General'!I$5 -> 0 | AV36: =U36*'Inputs - General'!E$5 -> 0 | AW36: =V36*'Inputs - General'!F$5 -> 0 | AX36: =W36*'Inputs - General'!G$5 -> 0 | AY36: =X36*'Inputs - General'!H$5 -> 0 | AZ36: =Y36*'Inputs - General'!I$5 -> 0 | BB36: =AH36*'Inputs - General'!E$4 -> 0 | BC36: =AI36*'Inputs - General'!F$4 -> 0 | BD36: =AJ36*'Inputs - General'!G$4 -> 0 | BE36: =AK36*'Inputs - General'!H$4 -> 0 | BF36: =AL36*'Inputs - General'!I$4 -> 0 | BH36: 0 | BI36: 0 | BJ36: 0 | BK36: 0 | BL36: 0 | BN36: 0 | BO36: 0 | BP36: 0 | BQ36: 0 | BR36: 0 | BT36: ='Input - Customer Inventory FY15'!F35 -> 0 | BZ36: =IF($E36="Lamp",0,IF(SUM(BU36:$BY36)>=$BT36,0,IF(BN36<=0,IF($H36=0,0,$BT36),0))) -> 0 | CA36: =IF($E36="Lamp",0,IF(SUM($BU36:BZ36)>=$BT36,0,IF(BO36<=0,IF($H36=0,0,$BT36),0))) -> 0 | CB36: =IF($E36="Lamp",0,IF(SUM($BU36:CA36)>=$BT36,0,IF(BP36<=0,IF($H36=0,0,$BT36),0))) -> 0 | CC36: =IF($E36="Lamp",0,IF(SUM($BU36:CB36)>=$BT36,0,IF(BQ36<=0,IF($H36=0,0,$BT36),0))) -> 0 | CD36: =IF($E36="Lamp",0,IF(SUM($BU36:CC36)>=$BT36,0,IF(BR36<=0,IF($H36=0,0,$BT36),0))) -> 0 | CL36: =CF36/'Inputs - General'!E$5 -> 0 | CM36: =CG36/'Inputs - General'!F$5 -> 0 | CN36: =CH36/'Inputs - General'!G$5 -> 0 | CO36: =CI36/'Inputs - General'!H$5 -> 0 | CP36: =CJ36/'Inputs - General'!I$5 -> 0
D37: Connection - O/U | E37: Connection | F37: O/U | G37: 1 | H37: 0 | I37: No | J37: 0 | K37: 0 | L37: 0 | N37: 0 | O37: 0 | P37: 0 | Q37: 0 | R37: 0 | S37: 0 | U37: =IFERROR(IF(N37-(($H37-SUM($CK37:CK37))/$K37)<0,N37,(($H37-SUM($CK37:CK37))/$K37)),0) -> 0 | V37: =IFERROR(IF(O37-(($H37-SUM($CK37:CL37))/$K37)<0,O37,(($H37-SUM($CK37:CL37))/$K37)),0) -> 0 | W37: =IFERROR(IF(P37-(($H37-SUM($CK37:CM37))/$K37)<0,P37,(($H37-SUM($CK37:CM37))/$K37)),0) -> 0 | X37: =IFERROR(IF(Q37-(($H37-SUM($CK37:CN37))/$K37)<0,Q37,(($H37-SUM($CK37:CN37))/$K37)),0) -> 0 | Y37: =IFERROR(IF(R37-(($H37-SUM($CK37:CO37))/$K37)<0,R37,(($H37-SUM($CK37:CO37))/$K37)),0) -> 0 | AA37: 0 | AB37: 0 | AC37: 0 | AD37: 0 | AE37: 0 | AF37: 0 | AH37: =AA37*'Inputs - General'!D$5 -> 0 | AI37: =AB37*'Inputs - General'!E$5 -> 0 | AJ37: =AC37*'Inputs - General'!F$5 -> 0 | AK37: =AD37*'Inputs - General'!G$5 -> 0 | AL37: =AE37*'Inputs - General'!H$5 -> 0 | AM37: =AF37*'Inputs - General'!I$5 -> 0 | AO37: =N37*'Inputs - General'!D$5 -> 0 | AP37: =O37*'Inputs - General'!E$5 -> 0 | AQ37: =P37*'Inputs - General'!F$5 -> 0 | AR37: =Q37*'Inputs - General'!G$5 -> 0 | AS37: =R37*'Inputs - General'!H$5 -> 0 | AT37: =S37*'Inputs - General'!I$5 -> 0 | AV37: =U37*'Inputs - General'!E$5 -> 0 | AW37: =V37*'Inputs - General'!F$5 -> 0 | AX37: =W37*'Inputs - General'!G$5 -> 0 | AY37: =X37*'Inputs - General'!H$5 -> 0 | AZ37: =Y37*'Inputs - General'!I$5 -> 0 | BB37: =AH37*'Inputs - General'!E$4 -> 0 | BC37: =AI37*'Inputs - General'!F$4 -> 0 | BD37: =AJ37*'Inputs - General'!G$4 -> 0 | BE37: =AK37*'Inputs - General'!H$4 -> 0 | BF37: =AL37*'Inputs - General'!I$4 -> 0 | BH37: 0 | BI37: 0 | BJ37: 0 | BK37: 0 | BL37: 0 | BN37: 0 | BO37: 0 | BP37: 0 | BQ37: 0 | BR37: 0 | BT37: ='Input - Customer Inventory FY15'!F36 -> 4 | BZ37: =IF($E37="Lamp",0,IF(SUM(BU37:$BY37)>=$BT37,0,IF(BN37<=0,IF($H37=0,0,$BT37),0))) -> 0 | CA37: =IF($E37="Lamp",0,IF(SUM($BU37:BZ37)>=$BT37,0,IF(BO37<=0,IF($H37=0,0,$BT37),0))) -> 0 | CB37: =IF($E37="Lamp",0,IF(SUM($BU37:CA37)>=$BT37,0,IF(BP37<=0,IF($H37=0,0,$BT37),0))) -> 0 | CC37: =IF($E37="Lamp",0,IF(SUM($BU37:CB37)>=$BT37,0,IF(BQ37<=0,IF($H37=0,0,$BT37),0))) -> 0 | CD37: =IF($E37="Lamp",0,IF(SUM($BU37:CC37)>=$BT37,0,IF(BR37<=0,IF($H37=0,0,$BT37),0))) -> 0 | CL37: =CF37/'Inputs - General'!E$5 -> 0 | CM37: =CG37/'Inputs - General'!F$5 -> 0 | CN37: =CH37/'Inputs - General'!G$5 -> 0 | CO37: =CI37/'Inputs - General'!H$5 -> 0 | CP37: =CJ37/'Inputs - General'!I$5 -> 0
D38: Connection - O/U | E38: Connection | F38: O/U | G38: 2 | H38: 0 | I38: No | J38: 0 | K38: 0 | L38: 0 | N38: 0 | O38: 0 | P38: 0 | Q38: 0 | R38: 0 | S38: 0 | U38: =IFERROR(IF(N38-(($H38-SUM($CK38:CK38))/$K38)<0,N38,(($H38-SUM($CK38:CK38))/$K38)),0) -> 0 | V38: =IFERROR(IF(O38-(($H38-SUM($CK38:CL38))/$K38)<0,O38,(($H38-SUM($CK38:CL38))/$K38)),0) -> 0 | W38: =IFERROR(IF(P38-(($H38-SUM($CK38:CM38))/$K38)<0,P38,(($H38-SUM($CK38:CM38))/$K38)),0) -> 0 | X38: =IFERROR(IF(Q38-(($H38-SUM($CK38:CN38))/$K38)<0,Q38,(($H38-SUM($CK38:CN38))/$K38)),0) -> 0 | Y38: =IFERROR(IF(R38-(($H38-SUM($CK38:CO38))/$K38)<0,R38,(($H38-SUM($CK38:CO38))/$K38)),0) -> 0 | AA38: 0 | AB38: 0 | AC38: 0 | AD38: 0 | AE38: 0 | AF38: 0 | AH38: =AA38*'Inputs - General'!D$5 -> 0 | AI38: =AB38*'Inputs - General'!E$5 -> 0 | AJ38: =AC38*'Inputs - General'!F$5 -> 0 | AK38: =AD38*'Inputs - General'!G$5 -> 0 | AL38: =AE38*'Inputs - General'!H$5 -> 0 | AM38: =AF38*'Inputs - General'!I$5 -> 0 | AO38: =N38*'Inputs - General'!D$5 -> 0 | AP38: =O38*'Inputs - General'!E$5 -> 0 | AQ38: =P38*'Inputs - General'!F$5 -> 0 | AR38: =Q38*'Inputs - General'!G$5 -> 0 | AS38: =R38*'Inputs - General'!H$5 -> 0 | AT38: =S38*'Inputs - General'!I$5 -> 0 | AV38: =U38*'Inputs - General'!E$5 -> 0 | AW38: =V38*'Inputs - General'!F$5 -> 0 | AX38: =W38*'Inputs - General'!G$5 -> 0 | AY38: =X38*'Inputs - General'!H$5 -> 0 | AZ38: =Y38*'Inputs - General'!I$5 -> 0 | BB38: =AH38*'Inputs - General'!E$4 -> 0 | BC38: =AI38*'Inputs - General'!F$4 -> 0 | BD38: =AJ38*'Inputs - General'!G$4 -> 0 | BE38: =AK38*'Inputs - General'!H$4 -> 0 | BF38: =AL38*'Inputs - General'!I$4 -> 0 | BH38: 0 | BI38: 0 | BJ38: 0 | BK38: 0 | BL38: 0 | BN38: 0 | BO38: 0 | BP38: 0 | BQ38: 0 | BR38: 0 | BT38: ='Input - Customer Inventory FY15'!F37 -> 3 | BZ38: =IF($E38="Lamp",0,IF(SUM(BU38:$BY38)>=$BT38,0,IF(BN38<=0,IF($H38=0,0,$BT38),0))) -> 0 | CA38: =IF($E38="Lamp",0,IF(SUM($BU38:BZ38)>=$BT38,0,IF(BO38<=0,IF($H38=0,0,$BT38),0))) -> 0 | CB38: =IF($E38="Lamp",0,IF(SUM($BU38:CA38)>=$BT38,0,IF(BP38<=0,IF($H38=0,0,$BT38),0))) -> 0 | CC38: =IF($E38="Lamp",0,IF(SUM($BU38:CB38)>=$BT38,0,IF(BQ38<=0,IF($H38=0,0,$BT38),0))) -> 0 | CD38: =IF($E38="Lamp",0,IF(SUM($BU38:CC38)>=$BT38,0,IF(BR38<=0,IF($H38=0,0,$BT38),0))) -> 0 | CL38: =CF38/'Inputs - General'!E$5 -> 0 | CM38: =CG38/'Inputs - General'!F$5 -> 0 | CN38: =CH38/'Inputs - General'!G$5 -> 0 | CO38: =CI38/'Inputs - General'!H$5 -> 0 | CP38: =CJ38/'Inputs - General'!I$5 -> 0
D39: Connection - OH | E39: Connection | F39: OH | G39: 1 | H39: 0 | I39: No | J39: 0 | K39: 0 | L39: 0 | N39: 0 | O39: 0 | P39: 0 | Q39: 0 | R39: 0 | S39: 0 | U39: =IFERROR(IF(N39-(($H39-SUM($CK39:CK39))/$K39)<0,N39,(($H39-SUM($CK39:CK39))/$K39)),0) -> 0 | V39: =IFERROR(IF(O39-(($H39-SUM($CK39:CL39))/$K39)<0,O39,(($H39-SUM($CK39:CL39))/$K39)),0) -> 0 | W39: =IFERROR(IF(P39-(($H39-SUM($CK39:CM39))/$K39)<0,P39,(($H39-SUM($CK39:CM39))/$K39)),0) -> 0 | X39: =IFERROR(IF(Q39-(($H39-SUM($CK39:CN39))/$K39)<0,Q39,(($H39-SUM($CK39:CN39))/$K39)),0) -> 0 | Y39: =IFERROR(IF(R39-(($H39-SUM($CK39:CO39))/$K39)<0,R39,(($H39-SUM($CK39:CO39))/$K39)),0) -> 0 | AA39: 0 | AB39: 0 | AC39: 0 | AD39: 0 | AE39: 0 | AF39: 0 | AH39: =AA39*'Inputs - General'!D$5 -> 0 | AI39: =AB39*'Inputs - General'!E$5 -> 0 | AJ39: =AC39*'Inputs - General'!F$5 -> 0 | AK39: =AD39*'Inputs - General'!G$5 -> 0 | AL39: =AE39*'Inputs - General'!H$5 -> 0 | AM39: =AF39*'Inputs - General'!I$5 -> 0 | AO39: =N39*'Inputs - General'!D$5 -> 0 | AP39: =O39*'Inputs - General'!E$5 -> 0 | AQ39: =P39*'Inputs - General'!F$5 -> 0 | AR39: =Q39*'Inputs - General'!G$5 -> 0 | AS39: =R39*'Inputs - General'!H$5 -> 0 | AT39: =S39*'Inputs - General'!I$5 -> 0 | AV39: =U39*'Inputs - General'!E$5 -> 0 | AW39: =V39*'Inputs - General'!F$5 -> 0 | AX39: =W39*'Inputs - General'!G$5 -> 0 | AY39: =X39*'Inputs - General'!H$5 -> 0 | AZ39: =Y39*'Inputs - General'!I$5 -> 0 | BB39: =AH39*'Inputs - General'!E$4 -> 0 | BC39: =AI39*'Inputs - General'!F$4 -> 0 | BD39: =AJ39*'Inputs - General'!G$4 -> 0 | BE39: =AK39*'Inputs - General'!H$4 -> 0 | BF39: =AL39*'Inputs - General'!I$4 -> 0 | BH39: 0 | BI39: 0 | BJ39: 0 | BK39: 0 | BL39: 0 | BN39: 0 | BO39: 0 | BP39: 0 | BQ39: 0 | BR39: 0 | BT39: ='Input - Customer Inventory FY15'!F38 -> 2779.5 | BZ39: =IF($E39="Lamp",0,IF(SUM(BU39:$BY39)>=$BT39,0,IF(BN39<=0,IF($H39=0,0,$BT39),0))) -> 0 | CA39: =IF($E39="Lamp",0,IF(SUM($BU39:BZ39)>=$BT39,0,IF(BO39<=0,IF($H39=0,0,$BT39),0))) -> 0 | CB39: =IF($E39="Lamp",0,IF(SUM($BU39:CA39)>=$BT39,0,IF(BP39<=0,IF($H39=0,0,$BT39),0))) -> 0 | CC39: =IF($E39="Lamp",0,IF(SUM($BU39:CB39)>=$BT39,0,IF(BQ39<=0,IF($H39=0,0,$BT39),0))) -> 0 | CD39: =IF($E39="Lamp",0,IF(SUM($BU39:CC39)>=$BT39,0,IF(BR39<=0,IF($H39=0,0,$BT39),0))) -> 0 | CL39: =CF39/'Inputs - General'!E$5 -> 0 | CM39: =CG39/'Inputs - General'!F$5 -> 0 | CN39: =CH39/'Inputs - General'!G$5 -> 0 | CO39: =CI39/'Inputs - General'!H$5 -> 0 | CP39: =CJ39/'Inputs - General'!I$5 -> 0
D40: Connection - OH | E40: Connection | F40: OH | G40: 2 | H40: 0 | I40: No | J40: 0 | K40: 0 | L40: 0 | N40: 0 | O40: 0 | P40: 0 | Q40: 0 | R40: 0 | S40: 0 | U40: =IFERROR(IF(N40-(($H40-SUM($CK40:CK40))/$K40)<0,N40,(($H40-SUM($CK40:CK40))/$K40)),0) -> 0 | V40: =IFERROR(IF(O40-(($H40-SUM($CK40:CL40))/$K40)<0,O40,(($H40-SUM($CK40:CL40))/$K40)),0) -> 0 | W40: =IFERROR(IF(P40-(($H40-SUM($CK40:CM40))/$K40)<0,P40,(($H40-SUM($CK40:CM40))/$K40)),0) -> 0 | X40: =IFERROR(IF(Q40-(($H40-SUM($CK40:CN40))/$K40)<0,Q40,(($H40-SUM($CK40:CN40))/$K40)),0) -> 0 | Y40: =IFERROR(IF(R40-(($H40-SUM($CK40:CO40))/$K40)<0,R40,(($H40-SUM($CK40:CO40))/$K40)),0) -> 0 | AA40: 0 | AB40: 0 | AC40: 0 | AD40: 0 | AE40: 0 | AF40: 0 | AH40: =AA40*'Inputs - General'!D$5 -> 0 | AI40: =AB40*'Inputs - General'!E$5 -> 0 | AJ40: =AC40*'Inputs - General'!F$5 -> 0 | AK40: =AD40*'Inputs - General'!G$5 -> 0 | AL40: =AE40*'Inputs - General'!H$5 -> 0 | AM40: =AF40*'Inputs - General'!I$5 -> 0 | AO40: =N40*'Inputs - General'!D$5 -> 0 | AP40: =O40*'Inputs - General'!E$5 -> 0 | AQ40: =P40*'Inputs - General'!F$5 -> 0 | AR40: =Q40*'Inputs - General'!G$5 -> 0 | AS40: =R40*'Inputs - General'!H$5 -> 0 | AT40: =S40*'Inputs - General'!I$5 -> 0 | AV40: =U40*'Inputs - General'!E$5 -> 0 | AW40: =V40*'Inputs - General'!F$5 -> 0 | AX40: =W40*'Inputs - General'!G$5 -> 0 | AY40: =X40*'Inputs - General'!H$5 -> 0 | AZ40: =Y40*'Inputs - General'!I$5 -> 0 | BB40: =AH40*'Inputs - General'!E$4 -> 0 | BC40: =AI40*'Inputs - General'!F$4 -> 0 | BD40: =AJ40*'Inputs - General'!G$4 -> 0 | BE40: =AK40*'Inputs - General'!H$4 -> 0 | BF40: =AL40*'Inputs - General'!I$4 -> 0 | BH40: 0 | BI40: 0 | BJ40: 0 | BK40: 0 | BL40: 0 | BN40: 0 | BO40: 0 | BP40: 0 | BQ40: 0 | BR40: 0 | BT40: ='Input - Customer Inventory FY15'!F39 -> 0 | BZ40: =IF($E40="Lamp",0,IF(SUM(BU40:$BY40)>=$BT40,0,IF(BN40<=0,IF($H40=0,0,$BT40),0))) -> 0 | CA40: =IF($E40="Lamp",0,IF(SUM($BU40:BZ40)>=$BT40,0,IF(BO40<=0,IF($H40=0,0,$BT40),0))) -> 0 | CB40: =IF($E40="Lamp",0,IF(SUM($BU40:CA40)>=$BT40,0,IF(BP40<=0,IF($H40=0,0,$BT40),0))) -> 0 | CC40: =IF($E40="Lamp",0,IF(SUM($BU40:CB40)>=$BT40,0,IF(BQ40<=0,IF($H40=0,0,$BT40),0))) -> 0 | CD40: =IF($E40="Lamp",0,IF(SUM($BU40:CC40)>=$BT40,0,IF(BR40<=0,IF($H40=0,0,$BT40),0))) -> 0 | CL40: =CF40/'Inputs - General'!E$5 -> 0 | CM40: =CG40/'Inputs - General'!F$5 -> 0 | CN40: =CH40/'Inputs - General'!G$5 -> 0 | CO40: =CI40/'Inputs - General'!H$5 -> 0 | CP40: =CJ40/'Inputs - General'!I$5 -> 0
D41: Connection - OH | E41: Connection | F41: OH | G41: 3 | H41: 0 | I41: No | J41: 0 | K41: 0 | L41: 0 | N41: 0 | O41: 0 | P41: 0 | Q41: 0 | R41: 0 | S41: 0 | U41: =IFERROR(IF(N41-(($H41-SUM($CK41:CK41))/$K41)<0,N41,(($H41-SUM($CK41:CK41))/$K41)),0) -> 0 | V41: =IFERROR(IF(O41-(($H41-SUM($CK41:CL41))/$K41)<0,O41,(($H41-SUM($CK41:CL41))/$K41)),0) -> 0 | W41: =IFERROR(IF(P41-(($H41-SUM($CK41:CM41))/$K41)<0,P41,(($H41-SUM($CK41:CM41))/$K41)),0) -> 0 | X41: =IFERROR(IF(Q41-(($H41-SUM($CK41:CN41))/$K41)<0,Q41,(($H41-SUM($CK41:CN41))/$K41)),0) -> 0 | Y41: =IFERROR(IF(R41-(($H41-SUM($CK41:CO41))/$K41)<0,R41,(($H41-SUM($CK41:CO41))/$K41)),0) -> 0 | AA41: 0 | AB41: 0 | AC41: 0 | AD41: 0 | AE41: 0 | AF41: 0 | AH41: =AA41*'Inputs - General'!D$5 -> 0 | AI41: =AB41*'Inputs - General'!E$5 -> 0 | AJ41: =AC41*'Inputs - General'!F$5 -> 0 | AK41: =AD41*'Inputs - General'!G$5 -> 0 | AL41: =AE41*'Inputs - General'!H$5 -> 0 | AM41: =AF41*'Inputs - General'!I$5 -> 0 | AO41: =N41*'Inputs - General'!D$5 -> 0 | AP41: =O41*'Inputs - General'!E$5 -> 0 | AQ41: =P41*'Inputs - General'!F$5 -> 0 | AR41: =Q41*'Inputs - General'!G$5 -> 0 | AS41: =R41*'Inputs - General'!H$5 -> 0 | AT41: =S41*'Inputs - General'!I$5 -> 0 | AV41: =U41*'Inputs - General'!E$5 -> 0 | AW41: =V41*'Inputs - General'!F$5 -> 0 | AX41: =W41*'Inputs - General'!G$5 -> 0 | AY41: =X41*'Inputs - General'!H$5 -> 0 | AZ41: =Y41*'Inputs - General'!I$5 -> 0 | BB41: =AH41*'Inputs - General'!E$4 -> 0 | BC41: =AI41*'Inputs - General'!F$4 -> 0 | BD41: =AJ41*'Inputs - General'!G$4 -> 0 | BE41: =AK41*'Inputs - General'!H$4 -> 0 | BF41: =AL41*'Inputs - General'!I$4 -> 0 | BH41: 0 | BI41: 0 | BJ41: 0 | BK41: 0 | BL41: 0 | BN41: 0 | BO41: 0 | BP41: 0 | BQ41: 0 | BR41: 0 | BT41: ='Input - Customer Inventory FY15'!F40 -> 7 | BZ41: =IF($E41="Lamp",0,IF(SUM(BU41:$BY41)>=$BT41,0,IF(BN41<=0,IF($H41=0,0,$BT41),0))) -> 0 | CA41: =IF($E41="Lamp",0,IF(SUM($BU41:BZ41)>=$BT41,0,IF(BO41<=0,IF($H41=0,0,$BT41),0))) -> 0 | CB41: =IF($E41="Lamp",0,IF(SUM($BU41:CA41)>=$BT41,0,IF(BP41<=0,IF($H41=0,0,$BT41),0))) -> 0 | CC41: =IF($E41="Lamp",0,IF(SUM($BU41:CB41)>=$BT41,0,IF(BQ41<=0,IF($H41=0,0,$BT41),0))) -> 0 | CD41: =IF($E41="Lamp",0,IF(SUM($BU41:CC41)>=$BT41,0,IF(BR41<=0,IF($H41=0,0,$BT41),0))) -> 0 | CL41: =CF41/'Inputs - General'!E$5 -> 0 | CM41: =CG41/'Inputs - General'!F$5 -> 0 | CN41: =CH41/'Inputs - General'!G$5 -> 0 | CO41: =CI41/'Inputs - General'!H$5 -> 0 | CP41: =CJ41/'Inputs - General'!I$5 -> 0
D42: Connection - OH2 | E42: Connection | F42: OH2 | G42: 1 | H42: 0 | I42: No | J42: 0 | K42: 0 | L42: 0 | N42: 0 | O42: 0 | P42: 0 | Q42: 0 | R42: 0 | S42: 0 | U42: =IFERROR(IF(N42-(($H42-SUM($CK42:CK42))/$K42)<0,N42,(($H42-SUM($CK42:CK42))/$K42)),0) -> 0 | V42: =IFERROR(IF(O42-(($H42-SUM($CK42:CL42))/$K42)<0,O42,(($H42-SUM($CK42:CL42))/$K42)),0) -> 0 | W42: =IFERROR(IF(P42-(($H42-SUM($CK42:CM42))/$K42)<0,P42,(($H42-SUM($CK42:CM42))/$K42)),0) -> 0 | X42: =IFERROR(IF(Q42-(($H42-SUM($CK42:CN42))/$K42)<0,Q42,(($H42-SUM($CK42:CN42))/$K42)),0) -> 0 | Y42: =IFERROR(IF(R42-(($H42-SUM($CK42:CO42))/$K42)<0,R42,(($H42-SUM($CK42:CO42))/$K42)),0) -> 0 | AA42: 0 | AB42: 0 | AC42: 0 | AD42: 0 | AE42: 0 | AF42: 0 | AH42: =AA42*'Inputs - General'!D$5 -> 0 | AI42: =AB42*'Inputs - General'!E$5 -> 0 | AJ42: =AC42*'Inputs - General'!F$5 -> 0 | AK42: =AD42*'Inputs - General'!G$5 -> 0 | AL42: =AE42*'Inputs - General'!H$5 -> 0 | AM42: =AF42*'Inputs - General'!I$5 -> 0 | AO42: =N42*'Inputs - General'!D$5 -> 0 | AP42: =O42*'Inputs - General'!E$5 -> 0 | AQ42: =P42*'Inputs - General'!F$5 -> 0 | AR42: =Q42*'Inputs - General'!G$5 -> 0 | AS42: =R42*'Inputs - General'!H$5 -> 0 | AT42: =S42*'Inputs - General'!I$5 -> 0 | AV42: =U42*'Inputs - General'!E$5 -> 0 | AW42: =V42*'Inputs - General'!F$5 -> 0 | AX42: =W42*'Inputs - General'!G$5 -> 0 | AY42: =X42*'Inputs - General'!H$5 -> 0 | AZ42: =Y42*'Inputs - General'!I$5 -> 0 | BB42: =AH42*'Inputs - General'!E$4 -> 0 | BC42: =AI42*'Inputs - General'!F$4 -> 0 | BD42: =AJ42*'Inputs - General'!G$4 -> 0 | BE42: =AK42*'Inputs - General'!H$4 -> 0 | BF42: =AL42*'Inputs - General'!I$4 -> 0 | BH42: 0 | BI42: 0 | BJ42: 0 | BK42: 0 | BL42: 0 | BN42: 0 | BO42: 0 | BP42: 0 | BQ42: 0 | BR42: 0 | BT42: ='Input - Customer Inventory FY15'!F41 -> 1 | BZ42: =IF($E42="Lamp",0,IF(SUM(BU42:$BY42)>=$BT42,0,IF(BN42<=0,IF($H42=0,0,$BT42),0))) -> 0 | CA42: =IF($E42="Lamp",0,IF(SUM($BU42:BZ42)>=$BT42,0,IF(BO42<=0,IF($H42=0,0,$BT42),0))) -> 0 | CB42: =IF($E42="Lamp",0,IF(SUM($BU42:CA42)>=$BT42,0,IF(BP42<=0,IF($H42=0,0,$BT42),0))) -> 0 | CC42: =IF($E42="Lamp",0,IF(SUM($BU42:CB42)>=$BT42,0,IF(BQ42<=0,IF($H42=0,0,$BT42),0))) -> 0 | CD42: =IF($E42="Lamp",0,IF(SUM($BU42:CC42)>=$BT42,0,IF(BR42<=0,IF($H42=0,0,$BT42),0))) -> 0 | CL42: =CF42/'Inputs - General'!E$5 -> 0 | CM42: =CG42/'Inputs - General'!F$5 -> 0 | CN42: =CH42/'Inputs - General'!G$5 -> 0 | CO42: =CI42/'Inputs - General'!H$5 -> 0 | CP42: =CJ42/'Inputs - General'!I$5 -> 0
D43: Connection - UGR1 | E43: Connection | F43: UGR1 | G43: 1 | H43: 0 | I43: No | J43: 0 | K43: 0 | L43: 0 | N43: 0 | O43: 0 | P43: 0 | Q43: 0 | R43: 0 | S43: 0 | U43: =IFERROR(IF(N43-(($H43-SUM($CK43:CK43))/$K43)<0,N43,(($H43-SUM($CK43:CK43))/$K43)),0) -> 0 | V43: =IFERROR(IF(O43-(($H43-SUM($CK43:CL43))/$K43)<0,O43,(($H43-SUM($CK43:CL43))/$K43)),0) -> 0 | W43: =IFERROR(IF(P43-(($H43-SUM($CK43:CM43))/$K43)<0,P43,(($H43-SUM($CK43:CM43))/$K43)),0) -> 0 | X43: =IFERROR(IF(Q43-(($H43-SUM($CK43:CN43))/$K43)<0,Q43,(($H43-SUM($CK43:CN43))/$K43)),0) -> 0 | Y43: =IFERROR(IF(R43-(($H43-SUM($CK43:CO43))/$K43)<0,R43,(($H43-SUM($CK43:CO43))/$K43)),0) -> 0 | AA43: 0 | AB43: 0 | AC43: 0 | AD43: 0 | AE43: 0 | AF43: 0 | AH43: =AA43*'Inputs - General'!D$5 -> 0 | AI43: =AB43*'Inputs - General'!E$5 -> 0 | AJ43: =AC43*'Inputs - General'!F$5 -> 0 | AK43: =AD43*'Inputs - General'!G$5 -> 0 | AL43: =AE43*'Inputs - General'!H$5 -> 0 | AM43: =AF43*'Inputs - General'!I$5 -> 0 | AO43: =N43*'Inputs - General'!D$5 -> 0 | AP43: =O43*'Inputs - General'!E$5 -> 0 | AQ43: =P43*'Inputs - General'!F$5 -> 0 | AR43: =Q43*'Inputs - General'!G$5 -> 0 | AS43: =R43*'Inputs - General'!H$5 -> 0 | AT43: =S43*'Inputs - General'!I$5 -> 0 | AV43: =U43*'Inputs - General'!E$5 -> 0 | AW43: =V43*'Inputs - General'!F$5 -> 0 | AX43: =W43*'Inputs - General'!G$5 -> 0 | AY43: =X43*'Inputs - General'!H$5 -> 0 | AZ43: =Y43*'Inputs - General'!I$5 -> 0 | BB43: =AH43*'Inputs - General'!E$4 -> 0 | BC43: =AI43*'Inputs - General'!F$4 -> 0 | BD43: =AJ43*'Inputs - General'!G$4 -> 0 | BE43: =AK43*'Inputs - General'!H$4 -> 0 | BF43: =AL43*'Inputs - General'!I$4 -> 0 | BH43: 0 | BI43: 0 | BJ43: 0 | BK43: 0 | BL43: 0 | BN43: 0 | BO43: 0 | BP43: 0 | BQ43: 0 | BR43: 0 | BT43: ='Input - Customer Inventory FY15'!F42 -> 335 | BZ43: =IF($E43="Lamp",0,IF(SUM(BU43:$BY43)>=$BT43,0,IF(BN43<=0,IF($H43=0,0,$BT43),0))) -> 0 | CA43: =IF($E43="Lamp",0,IF(SUM($BU43:BZ43)>=$BT43,0,IF(BO43<=0,IF($H43=0,0,$BT43),0))) -> 0 | CB43: =IF($E43="Lamp",0,IF(SUM($BU43:CA43)>=$BT43,0,IF(BP43<=0,IF($H43=0,0,$BT43),0))) -> 0 | CC43: =IF($E43="Lamp",0,IF(SUM($BU43:CB43)>=$BT43,0,IF(BQ43<=0,IF($H43=0,0,$BT43),0))) -> 0 | CD43: =IF($E43="Lamp",0,IF(SUM($BU43:CC43)>=$BT43,0,IF(BR43<=0,IF($H43=0,0,$BT43),0))) -> 0 | CL43: =CF43/'Inputs - General'!E$5 -> 0 | CM43: =CG43/'Inputs - General'!F$5 -> 0 | CN43: =CH43/'Inputs - General'!G$5 -> 0 | CO43: =CI43/'Inputs - General'!H$5 -> 0 | CP43: =CJ43/'Inputs - General'!I$5 -> 0
D44: Connection - UGR1 | E44: Connection | F44: UGR1 | G44: 3 | H44: 0 | I44: No | J44: 0 | K44: 0 | L44: 0 | N44: 0 | O44: 0 | P44: 0 | Q44: 0 | R44: 0 | S44: 0 | U44: =IFERROR(IF(N44-(($H44-SUM($CK44:CK44))/$K44)<0,N44,(($H44-SUM($CK44:CK44))/$K44)),0) -> 0 | V44: =IFERROR(IF(O44-(($H44-SUM($CK44:CL44))/$K44)<0,O44,(($H44-SUM($CK44:CL44))/$K44)),0) -> 0 | W44: =IFERROR(IF(P44-(($H44-SUM($CK44:CM44))/$K44)<0,P44,(($H44-SUM($CK44:CM44))/$K44)),0) -> 0 | X44: =IFERROR(IF(Q44-(($H44-SUM($CK44:CN44))/$K44)<0,Q44,(($H44-SUM($CK44:CN44))/$K44)),0) -> 0 | Y44: =IFERROR(IF(R44-(($H44-SUM($CK44:CO44))/$K44)<0,R44,(($H44-SUM($CK44:CO44))/$K44)),0) -> 0 | AA44: 0 | AB44: 0 | AC44: 0 | AD44: 0 | AE44: 0 | AF44: 0 | AH44: =AA44*'Inputs - General'!D$5 -> 0 | AI44: =AB44*'Inputs - General'!E$5 -> 0 | AJ44: =AC44*'Inputs - General'!F$5 -> 0 | AK44: =AD44*'Inputs - General'!G$5 -> 0 | AL44: =AE44*'Inputs - General'!H$5 -> 0 | AM44: =AF44*'Inputs - General'!I$5 -> 0 | AO44: =N44*'Inputs - General'!D$5 -> 0 | AP44: =O44*'Inputs - General'!E$5 -> 0 | AQ44: =P44*'Inputs - General'!F$5 -> 0 | AR44: =Q44*'Inputs - General'!G$5 -> 0 | AS44: =R44*'Inputs - General'!H$5 -> 0 | AT44: =S44*'Inputs - General'!I$5 -> 0 | AV44: =U44*'Inputs - General'!E$5 -> 0 | AW44: =V44*'Inputs - General'!F$5 -> 0 | AX44: =W44*'Inputs - General'!G$5 -> 0 | AY44: =X44*'Inputs - General'!H$5 -> 0 | AZ44: =Y44*'Inputs - General'!I$5 -> 0 | BB44: =AH44*'Inputs - General'!E$4 -> 0 | BC44: =AI44*'Inputs - General'!F$4 -> 0 | BD44: =AJ44*'Inputs - General'!G$4 -> 0 | BE44: =AK44*'Inputs - General'!H$4 -> 0 | BF44: =AL44*'Inputs - General'!I$4 -> 0 | BH44: 0 | BI44: 0 | BJ44: 0 | BK44: 0 | BL44: 0 | BN44: 0 | BO44: 0 | BP44: 0 | BQ44: 0 | BR44: 0 | BT44: ='Input - Customer Inventory FY15'!F43 -> 5 | BZ44: =IF($E44="Lamp",0,IF(SUM(BU44:$BY44)>=$BT44,0,IF(BN44<=0,IF($H44=0,0,$BT44),0))) -> 0 | CA44: =IF($E44="Lamp",0,IF(SUM($BU44:BZ44)>=$BT44,0,IF(BO44<=0,IF($H44=0,0,$BT44),0))) -> 0 | CB44: =IF($E44="Lamp",0,IF(SUM($BU44:CA44)>=$BT44,0,IF(BP44<=0,IF($H44=0,0,$BT44),0))) -> 0 | CC44: =IF($E44="Lamp",0,IF(SUM($BU44:CB44)>=$BT44,0,IF(BQ44<=0,IF($H44=0,0,$BT44),0))) -> 0 | CD44: =IF($E44="Lamp",0,IF(SUM($BU44:CC44)>=$BT44,0,IF(BR44<=0,IF($H44=0,0,$BT44),0))) -> 0 | CL44: =CF44/'Inputs - General'!E$5 -> 0 | CM44: =CG44/'Inputs - General'!F$5 -> 0 | CN44: =CH44/'Inputs - General'!G$5 -> 0 | CO44: =CI44/'Inputs - General'!H$5 -> 0 | CP44: =CJ44/'Inputs - General'!I$5 -> 0
D45: Connection - UGR2 | E45: Connection | F45: UGR2 | G45: 1 | H45: 0.06178016043 | I45: No | J45: 0.7501580611 | K45: 0.7501580611 | L45: 0.08235619082 | N45: 0.06178016043 | O45: 0 | P45: 0 | Q45: 0 | R45: 0 | S45: 0 | U45: =IFERROR(IF(N45-(($H45-SUM($CK45:CK45))/$K45)<0,N45,(($H45-SUM($CK45:CK45))/$K45)),0) -> 0.06178016043 | V45: =IFERROR(IF(O45-(($H45-SUM($CK45:CL45))/$K45)<0,O45,(($H45-SUM($CK45:CL45))/$K45)),0) -> 0 | W45: =IFERROR(IF(P45-(($H45-SUM($CK45:CM45))/$K45)<0,P45,(($H45-SUM($CK45:CM45))/$K45)),0) -> 0 | X45: =IFERROR(IF(Q45-(($H45-SUM($CK45:CN45))/$K45)<0,Q45,(($H45-SUM($CK45:CN45))/$K45)),0) -> 0 | Y45: =IFERROR(IF(R45-(($H45-SUM($CK45:CO45))/$K45)<0,R45,(($H45-SUM($CK45:CO45))/$K45)),0) -> 0 | AA45: 0.06178016043 | AB45: 0 | AC45: 0 | AD45: 0 | AE45: 0 | AF45: 0 | AH45: =AA45*'Inputs - General'!D$5 -> 0.06178016043 | AI45: =AB45*'Inputs - General'!E$5 -> 0 | AJ45: =AC45*'Inputs - General'!F$5 -> 0 | AK45: =AD45*'Inputs - General'!G$5 -> 0 | AL45: =AE45*'Inputs - General'!H$5 -> 0 | AM45: =AF45*'Inputs - General'!I$5 -> 0 | AO45: =N45*'Inputs - General'!D$5 -> 0.06178016043 | AP45: =O45*'Inputs - General'!E$5 -> 0 | AQ45: =P45*'Inputs - General'!F$5 -> 0 | AR45: =Q45*'Inputs - General'!G$5 -> 0 | AS45: =R45*'Inputs - General'!H$5 -> 0 | AT45: =S45*'Inputs - General'!I$5 -> 0 | AV45: =U45*'Inputs - General'!E$5 -> 0.06431314701 | AW45: =V45*'Inputs - General'!F$5 -> 0 | AX45: =W45*'Inputs - General'!G$5 -> 0 | AY45: =X45*'Inputs - General'!H$5 -> 0 | AZ45: =Y45*'Inputs - General'!I$5 -> 0 | BB45: =AH45*'Inputs - General'!E$4 -> 0.002532986578 | BC45: =AI45*'Inputs - General'!F$4 -> 0 | BD45: =AJ45*'Inputs - General'!G$4 -> 0 | BE45: =AK45*'Inputs - General'!H$4 -> 0 | BF45: =AL45*'Inputs - General'!I$4 -> 0 | BH45: 0.06178016043 | BI45: 0 | BJ45: 0 | BK45: 0 | BL45: 0 | BN45: 0.003812600397 | BO45: 0 | BP45: 0 | BQ45: 0 | BR45: 0 | BT45: ='Input - Customer Inventory FY15'!F44 -> 3 | BZ45: =IF($E45="Lamp",0,IF(SUM(BU45:$BY45)>=$BT45,0,IF(BN45<=0,IF($H45=0,0,$BT45),0))) -> 0 | CA45: =IF($E45="Lamp",0,IF(SUM($BU45:BZ45)>=$BT45,0,IF(BO45<=0,IF($H45=0,0,$BT45),0))) -> 3 | CB45: =IF($E45="Lamp",0,IF(SUM($BU45:CA45)>=$BT45,0,IF(BP45<=0,IF($H45=0,0,$BT45),0))) -> 0 | CC45: =IF($E45="Lamp",0,IF(SUM($BU45:CB45)>=$BT45,0,IF(BQ45<=0,IF($H45=0,0,$BT45),0))) -> 0 | CD45: =IF($E45="Lamp",0,IF(SUM($BU45:CC45)>=$BT45,0,IF(BR45<=0,IF($H45=0,0,$BT45),0))) -> 0 | CL45: =CF45/'Inputs - General'!E$5 -> 0 | CM45: =CG45/'Inputs - General'!F$5 -> 0 | CN45: =CH45/'Inputs - General'!G$5 -> 0 | CO45: =CI45/'Inputs - General'!H$5 -> 0 | CP45: =CJ45/'Inputs - General'!I$5 -> 0
D46: Connection - UGR2 | E46: Connection | F46: UGR2 | G46: 2 | H46: 0 | I46: No | J46: 0 | K46: 0 | L46: 0 | N46: 0 | O46: 0 | P46: 0 | Q46: 0 | R46: 0 | S46: 0 | U46: =IFERROR(IF(N46-(($H46-SUM($CK46:CK46))/$K46)<0,N46,(($H46-SUM($CK46:CK46))/$K46)),0) -> 0 | V46: =IFERROR(IF(O46-(($H46-SUM($CK46:CL46))/$K46)<0,O46,(($H46-SUM($CK46:CL46))/$K46)),0) -> 0 | W46: =IFERROR(IF(P46-(($H46-SUM($CK46:CM46))/$K46)<0,P46,(($H46-SUM($CK46:CM46))/$K46)),0) -> 0 | X46: =IFERROR(IF(Q46-(($H46-SUM($CK46:CN46))/$K46)<0,Q46,(($H46-SUM($CK46:CN46))/$K46)),0) -> 0 | Y46: =IFERROR(IF(R46-(($H46-SUM($CK46:CO46))/$K46)<0,R46,(($H46-SUM($CK46:CO46))/$K46)),0) -> 0 | AA46: 0 | AB46: 0 | AC46: 0 | AD46: 0 | AE46: 0 | AF46: 0 | AH46: =AA46*'Inputs - General'!D$5 -> 0 | AI46: =AB46*'Inputs - General'!E$5 -> 0 | AJ46: =AC46*'Inputs - General'!F$5 -> 0 | AK46: =AD46*'Inputs - General'!G$5 -> 0 | AL46: =AE46*'Inputs - General'!H$5 -> 0 | AM46: =AF46*'Inputs - General'!I$5 -> 0 | AO46: =N46*'Inputs - General'!D$5 -> 0 | AP46: =O46*'Inputs - General'!E$5 -> 0 | AQ46: =P46*'Inputs - General'!F$5 -> 0 | AR46: =Q46*'Inputs - General'!G$5 -> 0 | AS46: =R46*'Inputs - General'!H$5 -> 0 | AT46: =S46*'Inputs - General'!I$5 -> 0 | AV46: =U46*'Inputs - General'!E$5 -> 0 | AW46: =V46*'Inputs - General'!F$5 -> 0 | AX46: =W46*'Inputs - General'!G$5 -> 0 | AY46: =X46*'Inputs - General'!H$5 -> 0 | AZ46: =Y46*'Inputs - General'!I$5 -> 0 | BB46: =AH46*'Inputs - General'!E$4 -> 0 | BC46: =AI46*'Inputs - General'!F$4 -> 0 | BD46: =AJ46*'Inputs - General'!G$4 -> 0 | BE46: =AK46*'Inputs - General'!H$4 -> 0 | BF46: =AL46*'Inputs - General'!I$4 -> 0 | BH46: 0 | BI46: 0 | BJ46: 0 | BK46: 0 | BL46: 0 | BN46: 0 | BO46: 0 | BP46: 0 | BQ46: 0 | BR46: 0 | BT46: ='Input - Customer Inventory FY15'!F45 -> 17 | BZ46: =IF($E46="Lamp",0,IF(SUM(BU46:$BY46)>=$BT46,0,IF(BN46<=0,IF($H46=0,0,$BT46),0))) -> 0 | CA46: =IF($E46="Lamp",0,IF(SUM($BU46:BZ46)>=$BT46,0,IF(BO46<=0,IF($H46=0,0,$BT46),0))) -> 0 | CB46: =IF($E46="Lamp",0,IF(SUM($BU46:CA46)>=$BT46,0,IF(BP46<=0,IF($H46=0,0,$BT46),0))) -> 0 | CC46: =IF($E46="Lamp",0,IF(SUM($BU46:CB46)>=$BT46,0,IF(BQ46<=0,IF($H46=0,0,$BT46),0))) -> 0 | CD46: =IF($E46="Lamp",0,IF(SUM($BU46:CC46)>=$BT46,0,IF(BR46<=0,IF($H46=0,0,$BT46),0))) -> 0 | CL46: =CF46/'Inputs - General'!E$5 -> 0 | CM46: =CG46/'Inputs - General'!F$5 -> 0 | CN46: =CH46/'Inputs - General'!G$5 -> 0 | CO46: =CI46/'Inputs - General'!H$5 -> 0 | CP46: =CJ46/'Inputs - General'!I$5 -> 0
D47: Lamp - INC1x100 | E47: Lamp | F47: INC1x100 | G47: 3 | H47: 0 | I47: No | J47: 0 | K47: 0 | L47: 0 | N47: 0 | O47: 0 | P47: 0 | Q47: 0 | R47: 0 | S47: 0 | U47: =IFERROR(IF(N47-(($H47-SUM($CK47:CK47))/$K47)<0,N47,(($H47-SUM($CK47:CK47))/$K47)),0) -> 0 | V47: =IFERROR(IF(O47-(($H47-SUM($CK47:CL47))/$K47)<0,O47,(($H47-SUM($CK47:CL47))/$K47)),0) -> 0 | W47: =IFERROR(IF(P47-(($H47-SUM($CK47:CM47))/$K47)<0,P47,(($H47-SUM($CK47:CM47))/$K47)),0) -> 0 | X47: =IFERROR(IF(Q47-(($H47-SUM($CK47:CN47))/$K47)<0,Q47,(($H47-SUM($CK47:CN47))/$K47)),0) -> 0 | Y47: =IFERROR(IF(R47-(($H47-SUM($CK47:CO47))/$K47)<0,R47,(($H47-SUM($CK47:CO47))/$K47)),0) -> 0 | AA47: 0 | AB47: 0 | AC47: 0 | AD47: 0 | AE47: 0 | AF47: 0 | AH47: =AA47*'Inputs - General'!D$5 -> 0 | AI47: =AB47*'Inputs - General'!E$5 -> 0 | AJ47: =AC47*'Inputs - General'!F$5 -> 0 | AK47: =AD47*'Inputs - General'!G$5 -> 0 | AL47: =AE47*'Inputs - General'!H$5 -> 0 | AM47: =AF47*'Inputs - General'!I$5 -> 0 | AO47: =N47*'Inputs - General'!D$5 -> 0 | AP47: =O47*'Inputs - General'!E$5 -> 0 | AQ47: =P47*'Inputs - General'!F$5 -> 0 | AR47: =Q47*'Inputs - General'!G$5 -> 0 | AS47: =R47*'Inputs - General'!H$5 -> 0 | AT47: =S47*'Inputs - General'!I$5 -> 0 | AV47: =U47*'Inputs - General'!E$5 -> 0 | AW47: =V47*'Inputs - General'!F$5 -> 0 | AX47: =W47*'Inputs - General'!G$5 -> 0 | AY47: =X47*'Inputs - General'!H$5 -> 0 | AZ47: =Y47*'Inputs - General'!I$5 -> 0 | BB47: =AH47*'Inputs - General'!E$4 -> 0 | BC47: =AI47*'Inputs - General'!F$4 -> 0 | BD47: =AJ47*'Inputs - General'!G$4 -> 0 | BE47: =AK47*'Inputs - General'!H$4 -> 0 | BF47: =AL47*'Inputs - General'!I$4 -> 0 | BH47: 0 | BI47: 0 | BJ47: 0 | BK47: 0 | BL47: 0 | BN47: 0 | BO47: 0 | BP47: 0 | BQ47: 0 | BR47: 0 | BT47: ='Input - Customer Inventory FY15'!F46 -> 3 | BZ47: =IF($E47="Lamp",0,IF(SUM(BU47:$BY47)>=$BT47,0,IF(BN47<=0,IF($H47=0,0,$BT47),0))) -> 0 | CA47: =IF($E47="Lamp",0,IF(SUM($BU47:BZ47)>=$BT47,0,IF(BO47<=0,IF($H47=0,0,$BT47),0))) -> 0 | CB47: =IF($E47="Lamp",0,IF(SUM($BU47:CA47)>=$BT47,0,IF(BP47<=0,IF($H47=0,0,$BT47),0))) -> 0 | CC47: =IF($E47="Lamp",0,IF(SUM($BU47:CB47)>=$BT47,0,IF(BQ47<=0,IF($H47=0,0,$BT47),0))) -> 0 | CD47: =IF($E47="Lamp",0,IF(SUM($BU47:CC47)>=$BT47,0,IF(BR47<=0,IF($H47=0,0,$BT47),0))) -> 0 | CL47: =CF47/'Inputs - General'!E$5 -> 0 | CM47: =CG47/'Inputs - General'!F$5 -> 0 | CN47: =CH47/'Inputs - General'!G$5 -> 0 | CO47: =CI47/'Inputs - General'!H$5 -> 0 | CP47: =CJ47/'Inputs - General'!I$5 -> 0
D48: Lamp - INC1x40 | E48: Lamp | F48: INC1x40 | G48: 1 | H48: 0 | I48: No | J48: 0 | K48: 0 | L48: 0 | N48: 0 | O48: 0 | P48: 0 | Q48: 0 | R48: 0 | S48: 0 | U48: =IFERROR(IF(N48-(($H48-SUM($CK48:CK48))/$K48)<0,N48,(($H48-SUM($CK48:CK48))/$K48)),0) -> 0 | V48: =IFERROR(IF(O48-(($H48-SUM($CK48:CL48))/$K48)<0,O48,(($H48-SUM($CK48:CL48))/$K48)),0) -> 0 | W48: =IFERROR(IF(P48-(($H48-SUM($CK48:CM48))/$K48)<0,P48,(($H48-SUM($CK48:CM48))/$K48)),0) -> 0 | X48: =IFERROR(IF(Q48-(($H48-SUM($CK48:CN48))/$K48)<0,Q48,(($H48-SUM($CK48:CN48))/$K48)),0) -> 0 | Y48: =IFERROR(IF(R48-(($H48-SUM($CK48:CO48))/$K48)<0,R48,(($H48-SUM($CK48:CO48))/$K48)),0) -> 0 | AA48: 0 | AB48: 0 | AC48: 0 | AD48: 0 | AE48: 0 | AF48: 0 | AH48: =AA48*'Inputs - General'!D$5 -> 0 | AI48: =AB48*'Inputs - General'!E$5 -> 0 | AJ48: =AC48*'Inputs - General'!F$5 -> 0 | AK48: =AD48*'Inputs - General'!G$5 -> 0 | AL48: =AE48*'Inputs - General'!H$5 -> 0 | AM48: =AF48*'Inputs - General'!I$5 -> 0 | AO48: =N48*'Inputs - General'!D$5 -> 0 | AP48: =O48*'Inputs - General'!E$5 -> 0 | AQ48: =P48*'Inputs - General'!F$5 -> 0 | AR48: =Q48*'Inputs - General'!G$5 -> 0 | AS48: =R48*'Inputs - General'!H$5 -> 0 | AT48: =S48*'Inputs - General'!I$5 -> 0 | AV48: =U48*'Inputs - General'!E$5 -> 0 | AW48: =V48*'Inputs - General'!F$5 -> 0 | AX48: =W48*'Inputs - General'!G$5 -> 0 | AY48: =X48*'Inputs - General'!H$5 -> 0 | AZ48: =Y48*'Inputs - General'!I$5 -> 0 | BB48: =AH48*'Inputs - General'!E$4 -> 0 | BC48: =AI48*'Inputs - General'!F$4 -> 0 | BD48: =AJ48*'Inputs - General'!G$4 -> 0 | BE48: =AK48*'Inputs - General'!H$4 -> 0 | BF48: =AL48*'Inputs - General'!I$4 -> 0 | BH48: 0 | BI48: 0 | BJ48: 0 | BK48: 0 | BL48: 0 | BN48: 0 | BO48: 0 | BP48: 0 | BQ48: 0 | BR48: 0 | BT48: ='Input - Customer Inventory FY15'!F47 -> 0 | BZ48: =IF($E48="Lamp",0,IF(SUM(BU48:$BY48)>=$BT48,0,IF(BN48<=0,IF($H48=0,0,$BT48),0))) -> 0 | CA48: =IF($E48="Lamp",0,IF(SUM($BU48:BZ48)>=$BT48,0,IF(BO48<=0,IF($H48=0,0,$BT48),0))) -> 0 | CB48: =IF($E48="Lamp",0,IF(SUM($BU48:CA48)>=$BT48,0,IF(BP48<=0,IF($H48=0,0,$BT48),0))) -> 0 | CC48: =IF($E48="Lamp",0,IF(SUM($BU48:CB48)>=$BT48,0,IF(BQ48<=0,IF($H48=0,0,$BT48),0))) -> 0 | CD48: =IF($E48="Lamp",0,IF(SUM($BU48:CC48)>=$BT48,0,IF(BR48<=0,IF($H48=0,0,$BT48),0))) -> 0 | CL48: =CF48/'Inputs - General'!E$5 -> 0 | CM48: =CG48/'Inputs - General'!F$5 -> 0 | CN48: =CH48/'Inputs - General'!G$5 -> 0 | CO48: =CI48/'Inputs - General'!H$5 -> 0 | CP48: =CJ48/'Inputs - General'!I$5 -> 0
D49: Lamp - INC1x60 | E49: Lamp | F49: INC1x60 | G49: 3 | H49: 0 | I49: No | J49: 0 | K49: 0 | L49: 0 | N49: 0 | O49: 0 | P49: 0 | Q49: 0 | R49: 0 | S49: 0 | U49: =IFERROR(IF(N49-(($H49-SUM($CK49:CK49))/$K49)<0,N49,(($H49-SUM($CK49:CK49))/$K49)),0) -> 0 | V49: =IFERROR(IF(O49-(($H49-SUM($CK49:CL49))/$K49)<0,O49,(($H49-SUM($CK49:CL49))/$K49)),0) -> 0 | W49: =IFERROR(IF(P49-(($H49-SUM($CK49:CM49))/$K49)<0,P49,(($H49-SUM($CK49:CM49))/$K49)),0) -> 0 | X49: =IFERROR(IF(Q49-(($H49-SUM($CK49:CN49))/$K49)<0,Q49,(($H49-SUM($CK49:CN49))/$K49)),0) -> 0 | Y49: =IFERROR(IF(R49-(($H49-SUM($CK49:CO49))/$K49)<0,R49,(($H49-SUM($CK49:CO49))/$K49)),0) -> 0 | AA49: 0 | AB49: 0 | AC49: 0 | AD49: 0 | AE49: 0 | AF49: 0 | AH49: =AA49*'Inputs - General'!D$5 -> 0 | AI49: =AB49*'Inputs - General'!E$5 -> 0 | AJ49: =AC49*'Inputs - General'!F$5 -> 0 | AK49: =AD49*'Inputs - General'!G$5 -> 0 | AL49: =AE49*'Inputs - General'!H$5 -> 0 | AM49: =AF49*'Inputs - General'!I$5 -> 0 | AO49: =N49*'Inputs - General'!D$5 -> 0 | AP49: =O49*'Inputs - General'!E$5 -> 0 | AQ49: =P49*'Inputs - General'!F$5 -> 0 | AR49: =Q49*'Inputs - General'!G$5 -> 0 | AS49: =R49*'Inputs - General'!H$5 -> 0 | AT49: =S49*'Inputs - General'!I$5 -> 0 | AV49: =U49*'Inputs - General'!E$5 -> 0 | AW49: =V49*'Inputs - General'!F$5 -> 0 | AX49: =W49*'Inputs - General'!G$5 -> 0 | AY49: =X49*'Inputs - General'!H$5 -> 0 | AZ49: =Y49*'Inputs - General'!I$5 -> 0 | BB49: =AH49*'Inputs - General'!E$4 -> 0 | BC49: =AI49*'Inputs - General'!F$4 -> 0 | BD49: =AJ49*'Inputs - General'!G$4 -> 0 | BE49: =AK49*'Inputs - General'!H$4 -> 0 | BF49: =AL49*'Inputs - General'!I$4 -> 0 | BH49: 0 | BI49: 0 | BJ49: 0 | BK49: 0 | BL49: 0 | BN49: 0 | BO49: 0 | BP49: 0 | BQ49: 0 | BR49: 0 | BT49: ='Input - Customer Inventory FY15'!F48 -> 2 | BZ49: =IF($E49="Lamp",0,IF(SUM(BU49:$BY49)>=$BT49,0,IF(BN49<=0,IF($H49=0,0,$BT49),0))) -> 0 | CA49: =IF($E49="Lamp",0,IF(SUM($BU49:BZ49)>=$BT49,0,IF(BO49<=0,IF($H49=0,0,$BT49),0))) -> 0 | CB49: =IF($E49="Lamp",0,IF(SUM($BU49:CA49)>=$BT49,0,IF(BP49<=0,IF($H49=0,0,$BT49),0))) -> 0 | CC49: =IF($E49="Lamp",0,IF(SUM($BU49:CB49)>=$BT49,0,IF(BQ49<=0,IF($H49=0,0,$BT49),0))) -> 0 | CD49: =IF($E49="Lamp",0,IF(SUM($BU49:CC49)>=$BT49,0,IF(BR49<=0,IF($H49=0,0,$BT49),0))) -> 0 | CL49: =CF49/'Inputs - General'!E$5 -> 0 | CM49: =CG49/'Inputs - General'!F$5 -> 0 | CN49: =CH49/'Inputs - General'!G$5 -> 0 | CO49: =CI49/'Inputs - General'!H$5 -> 0 | CP49: =CJ49/'Inputs - General'!I$5 -> 0
D50: Lamp - MBF1x1000 | E50: Lamp | F50: MBF1x1000 | G50: 1 | H50: 0 | I50: No | J50: 0 | K50: 0 | L50: 0 | N50: 0 | O50: 0 | P50: 0 | Q50: 0 | R50: 0 | S50: 0 | U50: =IFERROR(IF(N50-(($H50-SUM($CK50:CK50))/$K50)<0,N50,(($H50-SUM($CK50:CK50))/$K50)),0) -> 0 | V50: =IFERROR(IF(O50-(($H50-SUM($CK50:CL50))/$K50)<0,O50,(($H50-SUM($CK50:CL50))/$K50)),0) -> 0 | W50: =IFERROR(IF(P50-(($H50-SUM($CK50:CM50))/$K50)<0,P50,(($H50-SUM($CK50:CM50))/$K50)),0) -> 0 | X50: =IFERROR(IF(Q50-(($H50-SUM($CK50:CN50))/$K50)<0,Q50,(($H50-SUM($CK50:CN50))/$K50)),0) -> 0 | Y50: =IFERROR(IF(R50-(($H50-SUM($CK50:CO50))/$K50)<0,R50,(($H50-SUM($CK50:CO50))/$K50)),0) -> 0 | AA50: 0 | AB50: 0 | AC50: 0 | AD50: 0 | AE50: 0 | AF50: 0 | AH50: =AA50*'Inputs - General'!D$5 -> 0 | AI50: =AB50*'Inputs - General'!E$5 -> 0 | AJ50: =AC50*'Inputs - General'!F$5 -> 0 | AK50: =AD50*'Inputs - General'!G$5 -> 0 | AL50: =AE50*'Inputs - General'!H$5 -> 0 | AM50: =AF50*'Inputs - General'!I$5 -> 0 | AO50: =N50*'Inputs - General'!D$5 -> 0 | AP50: =O50*'Inputs - General'!E$5 -> 0 | AQ50: =P50*'Inputs - General'!F$5 -> 0 | AR50: =Q50*'Inputs - General'!G$5 -> 0 | AS50: =R50*'Inputs - General'!H$5 -> 0 | AT50: =S50*'Inputs - General'!I$5 -> 0 | AV50: =U50*'Inputs - General'!E$5 -> 0 | AW50: =V50*'Inputs - General'!F$5 -> 0 | AX50: =W50*'Inputs - General'!G$5 -> 0 | AY50: =X50*'Inputs - General'!H$5 -> 0 | AZ50: =Y50*'Inputs - General'!I$5 -> 0 | BB50: =AH50*'Inputs - General'!E$4 -> 0 | BC50: =AI50*'Inputs - General'!F$4 -> 0 | BD50: =AJ50*'Inputs - General'!G$4 -> 0 | BE50: =AK50*'Inputs - General'!H$4 -> 0 | BF50: =AL50*'Inputs - General'!I$4 -> 0 | BH50: 0 | BI50: 0 | BJ50: 0 | BK50: 0 | BL50: 0 | BN50: 0 | BO50: 0 | BP50: 0 | BQ50: 0 | BR50: 0 | BT50: ='Input - Customer Inventory FY15'!F49 -> 0 | BZ50: =IF($E50="Lamp",0,IF(SUM(BU50:$BY50)>=$BT50,0,IF(BN50<=0,IF($H50=0,0,$BT50),0))) -> 0 | CA50: =IF($E50="Lamp",0,IF(SUM($BU50:BZ50)>=$BT50,0,IF(BO50<=0,IF($H50=0,0,$BT50),0))) -> 0 | CB50: =IF($E50="Lamp",0,IF(SUM($BU50:CA50)>=$BT50,0,IF(BP50<=0,IF($H50=0,0,$BT50),0))) -> 0 | CC50: =IF($E50="Lamp",0,IF(SUM($BU50:CB50)>=$BT50,0,IF(BQ50<=0,IF($H50=0,0,$BT50),0))) -> 0 | CD50: =IF($E50="Lamp",0,IF(SUM($BU50:CC50)>=$BT50,0,IF(BR50<=0,IF($H50=0,0,$BT50),0))) -> 0 | CL50: =CF50/'Inputs - General'!E$5 -> 0 | CM50: =CG50/'Inputs - General'!F$5 -> 0 | CN50: =CH50/'Inputs - General'!G$5 -> 0 | CO50: =CI50/'Inputs - General'!H$5 -> 0 | CP50: =CJ50/'Inputs - General'!I$5 -> 0
D51: Lamp - MBF1x125 | E51: Lamp | F51: MBF1x125 | G51: 1 | H51: 0 | I51: No | J51: 0 | K51: 0 | L51: 0 | N51: 0 | O51: 0 | P51: 0 | Q51: 0 | R51: 0 | S51: 0 | U51: =IFERROR(IF(N51-(($H51-SUM($CK51:CK51))/$K51)<0,N51,(($H51-SUM($CK51:CK51))/$K51)),0) -> 0 | V51: =IFERROR(IF(O51-(($H51-SUM($CK51:CL51))/$K51)<0,O51,(($H51-SUM($CK51:CL51))/$K51)),0) -> 0 | W51: =IFERROR(IF(P51-(($H51-SUM($CK51:CM51))/$K51)<0,P51,(($H51-SUM($CK51:CM51))/$K51)),0) -> 0 | X51: =IFERROR(IF(Q51-(($H51-SUM($CK51:CN51))/$K51)<0,Q51,(($H51-SUM($CK51:CN51))/$K51)),0) -> 0 | Y51: =IFERROR(IF(R51-(($H51-SUM($CK51:CO51))/$K51)<0,R51,(($H51-SUM($CK51:CO51))/$K51)),0) -> 0 | AA51: 0 | AB51: 0 | AC51: 0 | AD51: 0 | AE51: 0 | AF51: 0 | AH51: =AA51*'Inputs - General'!D$5 -> 0 | AI51: =AB51*'Inputs - General'!E$5 -> 0 | AJ51: =AC51*'Inputs - General'!F$5 -> 0 | AK51: =AD51*'Inputs - General'!G$5 -> 0 | AL51: =AE51*'Inputs - General'!H$5 -> 0 | AM51: =AF51*'Inputs - General'!I$5 -> 0 | AO51: =N51*'Inputs - General'!D$5 -> 0 | AP51: =O51*'Inputs - General'!E$5 -> 0 | AQ51: =P51*'Inputs - General'!F$5 -> 0 | AR51: =Q51*'Inputs - General'!G$5 -> 0 | AS51: =R51*'Inputs - General'!H$5 -> 0 | AT51: =S51*'Inputs - General'!I$5 -> 0 | AV51: =U51*'Inputs - General'!E$5 -> 0 | AW51: =V51*'Inputs - General'!F$5 -> 0 | AX51: =W51*'Inputs - General'!G$5 -> 0 | AY51: =X51*'Inputs - General'!H$5 -> 0 | AZ51: =Y51*'Inputs - General'!I$5 -> 0 | BB51: =AH51*'Inputs - General'!E$4 -> 0 | BC51: =AI51*'Inputs - General'!F$4 -> 0 | BD51: =AJ51*'Inputs - General'!G$4 -> 0 | BE51: =AK51*'Inputs - General'!H$4 -> 0 | BF51: =AL51*'Inputs - General'!I$4 -> 0 | BH51: 0 | BI51: 0 | BJ51: 0 | BK51: 0 | BL51: 0 | BN51: 0 | BO51: 0 | BP51: 0 | BQ51: 0 | BR51: 0 | BT51: ='Input - Customer Inventory FY15'!F50 -> 2 | BZ51: =IF($E51="Lamp",0,IF(SUM(BU51:$BY51)>=$BT51,0,IF(BN51<=0,IF($H51=0,0,$BT51),0))) -> 0 | CA51: =IF($E51="Lamp",0,IF(SUM($BU51:BZ51)>=$BT51,0,IF(BO51<=0,IF($H51=0,0,$BT51),0))) -> 0 | CB51: =IF($E51="Lamp",0,IF(SUM($BU51:CA51)>=$BT51,0,IF(BP51<=0,IF($H51=0,0,$BT51),0))) -> 0 | CC51: =IF($E51="Lamp",0,IF(SUM($BU51:CB51)>=$BT51,0,IF(BQ51<=0,IF($H51=0,0,$BT51),0))) -> 0 | CD51: =IF($E51="Lamp",0,IF(SUM($BU51:CC51)>=$BT51,0,IF(BR51<=0,IF($H51=0,0,$BT51),0))) -> 0 | CL51: =CF51/'Inputs - General'!E$5 -> 0 | CM51: =CG51/'Inputs - General'!F$5 -> 0 | CN51: =CH51/'Inputs - General'!G$5 -> 0 | CO51: =CI51/'Inputs - General'!H$5 -> 0 | CP51: =CJ51/'Inputs - General'!I$5 -> 0
D52: Lamp - MBF1x125 | E52: Lamp | F52: MBF1x125 | G52: 2 | H52: 0 | I52: No | J52: 0 | K52: 0 | L52: 0 | N52: 0 | O52: 0 | P52: 0 | Q52: 0 | R52: 0 | S52: 0 | U52: =IFERROR(IF(N52-(($H52-SUM($CK52:CK52))/$K52)<0,N52,(($H52-SUM($CK52:CK52))/$K52)),0) -> 0 | V52: =IFERROR(IF(O52-(($H52-SUM($CK52:CL52))/$K52)<0,O52,(($H52-SUM($CK52:CL52))/$K52)),0) -> 0 | W52: =IFERROR(IF(P52-(($H52-SUM($CK52:CM52))/$K52)<0,P52,(($H52-SUM($CK52:CM52))/$K52)),0) -> 0 | X52: =IFERROR(IF(Q52-(($H52-SUM($CK52:CN52))/$K52)<0,Q52,(($H52-SUM($CK52:CN52))/$K52)),0) -> 0 | Y52: =IFERROR(IF(R52-(($H52-SUM($CK52:CO52))/$K52)<0,R52,(($H52-SUM($CK52:CO52))/$K52)),0) -> 0 | AA52: 0 | AB52: 0 | AC52: 0 | AD52: 0 | AE52: 0 | AF52: 0 | AH52: =AA52*'Inputs - General'!D$5 -> 0 | AI52: =AB52*'Inputs - General'!E$5 -> 0 | AJ52: =AC52*'Inputs - General'!F$5 -> 0 | AK52: =AD52*'Inputs - General'!G$5 -> 0 | AL52: =AE52*'Inputs - General'!H$5 -> 0 | AM52: =AF52*'Inputs - General'!I$5 -> 0 | AO52: =N52*'Inputs - General'!D$5 -> 0 | AP52: =O52*'Inputs - General'!E$5 -> 0 | AQ52: =P52*'Inputs - General'!F$5 -> 0 | AR52: =Q52*'Inputs - General'!G$5 -> 0 | AS52: =R52*'Inputs - General'!H$5 -> 0 | AT52: =S52*'Inputs - General'!I$5 -> 0 | AV52: =U52*'Inputs - General'!E$5 -> 0 | AW52: =V52*'Inputs - General'!F$5 -> 0 | AX52: =W52*'Inputs - General'!G$5 -> 0 | AY52: =X52*'Inputs - General'!H$5 -> 0 | AZ52: =Y52*'Inputs - General'!I$5 -> 0 | BB52: =AH52*'Inputs - General'!E$4 -> 0 | BC52: =AI52*'Inputs - General'!F$4 -> 0 | BD52: =AJ52*'Inputs - General'!G$4 -> 0 | BE52: =AK52*'Inputs - General'!H$4 -> 0 | BF52: =AL52*'Inputs - General'!I$4 -> 0 | BH52: 0 | BI52: 0 | BJ52: 0 | BK52: 0 | BL52: 0 | BN52: 0 | BO52: 0 | BP52: 0 | BQ52: 0 | BR52: 0 | BT52: ='Input - Customer Inventory FY15'!F51 -> 0 | BZ52: =IF($E52="Lamp",0,IF(SUM(BU52:$BY52)>=$BT52,0,IF(BN52<=0,IF($H52=0,0,$BT52),0))) -> 0 | CA52: =IF($E52="Lamp",0,IF(SUM($BU52:BZ52)>=$BT52,0,IF(BO52<=0,IF($H52=0,0,$BT52),0))) -> 0 | CB52: =IF($E52="Lamp",0,IF(SUM($BU52:CA52)>=$BT52,0,IF(BP52<=0,IF($H52=0,0,$BT52),0))) -> 0 | CC52: =IF($E52="Lamp",0,IF(SUM($BU52:CB52)>=$BT52,0,IF(BQ52<=0,IF($H52=0,0,$BT52),0))) -> 0 | CD52: =IF($E52="Lamp",0,IF(SUM($BU52:CC52)>=$BT52,0,IF(BR52<=0,IF($H52=0,0,$BT52),0))) -> 0 | CL52: =CF52/'Inputs - General'!E$5 -> 0 | CM52: =CG52/'Inputs - General'!F$5 -> 0 | CN52: =CH52/'Inputs - General'!G$5 -> 0 | CO52: =CI52/'Inputs - General'!H$5 -> 0 | CP52: =CJ52/'Inputs - General'!I$5 -> 0
D53: Lamp - MBF1x250 | E53: Lamp | F53: MBF1x250 | G53: 1 | H53: 0 | I53: No | J53: 0 | K53: 0 | L53: 0 | N53: 0 | O53: 0 | P53: 0 | Q53: 0 | R53: 0 | S53: 0 | U53: =IFERROR(IF(N53-(($H53-SUM($CK53:CK53))/$K53)<0,N53,(($H53-SUM($CK53:CK53))/$K53)),0) -> 0 | V53: =IFERROR(IF(O53-(($H53-SUM($CK53:CL53))/$K53)<0,O53,(($H53-SUM($CK53:CL53))/$K53)),0) -> 0 | W53: =IFERROR(IF(P53-(($H53-SUM($CK53:CM53))/$K53)<0,P53,(($H53-SUM($CK53:CM53))/$K53)),0) -> 0 | X53: =IFERROR(IF(Q53-(($H53-SUM($CK53:CN53))/$K53)<0,Q53,(($H53-SUM($CK53:CN53))/$K53)),0) -> 0 | Y53: =IFERROR(IF(R53-(($H53-SUM($CK53:CO53))/$K53)<0,R53,(($H53-SUM($CK53:CO53))/$K53)),0) -> 0 | AA53: 0 | AB53: 0 | AC53: 0 | AD53: 0 | AE53: 0 | AF53: 0 | AH53: =AA53*'Inputs - General'!D$5 -> 0 | AI53: =AB53*'Inputs - General'!E$5 -> 0 | AJ53: =AC53*'Inputs - General'!F$5 -> 0 | AK53: =AD53*'Inputs - General'!G$5 -> 0 | AL53: =AE53*'Inputs - General'!H$5 -> 0 | AM53: =AF53*'Inputs - General'!I$5 -> 0 | AO53: =N53*'Inputs - General'!D$5 -> 0 | AP53: =O53*'Inputs - General'!E$5 -> 0 | AQ53: =P53*'Inputs - General'!F$5 -> 0 | AR53: =Q53*'Inputs - General'!G$5 -> 0 | AS53: =R53*'Inputs - General'!H$5 -> 0 | AT53: =S53*'Inputs - General'!I$5 -> 0 | AV53: =U53*'Inputs - General'!E$5 -> 0 | AW53: =V53*'Inputs - General'!F$5 -> 0 | AX53: =W53*'Inputs - General'!G$5 -> 0 | AY53: =X53*'Inputs - General'!H$5 -> 0 | AZ53: =Y53*'Inputs - General'!I$5 -> 0 | BB53: =AH53*'Inputs - General'!E$4 -> 0 | BC53: =AI53*'Inputs - General'!F$4 -> 0 | BD53: =AJ53*'Inputs - General'!G$4 -> 0 | BE53: =AK53*'Inputs - General'!H$4 -> 0 | BF53: =AL53*'Inputs - General'!I$4 -> 0 | BH53: 0 | BI53: 0 | BJ53: 0 | BK53: 0 | BL53: 0 | BN53: 0 | BO53: 0 | BP53: 0 | BQ53: 0 | BR53: 0 | BT53: ='Input - Customer Inventory FY15'!F52 -> 63.5 | BZ53: =IF($E53="Lamp",0,IF(SUM(BU53:$BY53)>=$BT53,0,IF(BN53<=0,IF($H53=0,0,$BT53),0))) -> 0 | CA53: =IF($E53="Lamp",0,IF(SUM($BU53:BZ53)>=$BT53,0,IF(BO53<=0,IF($H53=0,0,$BT53),0))) -> 0 | CB53: =IF($E53="Lamp",0,IF(SUM($BU53:CA53)>=$BT53,0,IF(BP53<=0,IF($H53=0,0,$BT53),0))) -> 0 | CC53: =IF($E53="Lamp",0,IF(SUM($BU53:CB53)>=$BT53,0,IF(BQ53<=0,IF($H53=0,0,$BT53),0))) -> 0 | CD53: =IF($E53="Lamp",0,IF(SUM($BU53:CC53)>=$BT53,0,IF(BR53<=0,IF($H53=0,0,$BT53),0))) -> 0 | CL53: =CF53/'Inputs - General'!E$5 -> 0 | CM53: =CG53/'Inputs - General'!F$5 -> 0 | CN53: =CH53/'Inputs - General'!G$5 -> 0 | CO53: =CI53/'Inputs - General'!H$5 -> 0 | CP53: =CJ53/'Inputs - General'!I$5 -> 0
D54: Lamp - MBF1x400 | E54: Lamp | F54: MBF1x400 | G54: 1 | H54: 0 | I54: No | J54: 0 | K54: 0 | L54: 0 | N54: 0 | O54: 0 | P54: 0 | Q54: 0 | R54: 0 | S54: 0 | U54: =IFERROR(IF(N54-(($H54-SUM($CK54:CK54))/$K54)<0,N54,(($H54-SUM($CK54:CK54))/$K54)),0) -> 0 | V54: =IFERROR(IF(O54-(($H54-SUM($CK54:CL54))/$K54)<0,O54,(($H54-SUM($CK54:CL54))/$K54)),0) -> 0 | W54: =IFERROR(IF(P54-(($H54-SUM($CK54:CM54))/$K54)<0,P54,(($H54-SUM($CK54:CM54))/$K54)),0) -> 0 | X54: =IFERROR(IF(Q54-(($H54-SUM($CK54:CN54))/$K54)<0,Q54,(($H54-SUM($CK54:CN54))/$K54)),0) -> 0 | Y54: =IFERROR(IF(R54-(($H54-SUM($CK54:CO54))/$K54)<0,R54,(($H54-SUM($CK54:CO54))/$K54)),0) -> 0 | AA54: 0 | AB54: 0 | AC54: 0 | AD54: 0 | AE54: 0 | AF54: 0 | AH54: =AA54*'Inputs - General'!D$5 -> 0 | AI54: =AB54*'Inputs - General'!E$5 -> 0 | AJ54: =AC54*'Inputs - General'!F$5 -> 0 | AK54: =AD54*'Inputs - General'!G$5 -> 0 | AL54: =AE54*'Inputs - General'!H$5 -> 0 | AM54: =AF54*'Inputs - General'!I$5 -> 0 | AO54: =N54*'Inputs - General'!D$5 -> 0 | AP54: =O54*'Inputs - General'!E$5 -> 0 | AQ54: =P54*'Inputs - General'!F$5 -> 0 | AR54: =Q54*'Inputs - General'!G$5 -> 0 | AS54: =R54*'Inputs - General'!H$5 -> 0 | AT54: =S54*'Inputs - General'!I$5 -> 0 | AV54: =U54*'Inputs - General'!E$5 -> 0 | AW54: =V54*'Inputs - General'!F$5 -> 0 | AX54: =W54*'Inputs - General'!G$5 -> 0 | AY54: =X54*'Inputs - General'!H$5 -> 0 | AZ54: =Y54*'Inputs - General'!I$5 -> 0 | BB54: =AH54*'Inputs - General'!E$4 -> 0 | BC54: =AI54*'Inputs - General'!F$4 -> 0 | BD54: =AJ54*'Inputs - General'!G$4 -> 0 | BE54: =AK54*'Inputs - General'!H$4 -> 0 | BF54: =AL54*'Inputs - General'!I$4 -> 0 | BH54: 0 | BI54: 0 | BJ54: 0 | BK54: 0 | BL54: 0 | BN54: 0 | BO54: 0 | BP54: 0 | BQ54: 0 | BR54: 0 | BT54: ='Input - Customer Inventory FY15'!F53 -> 12 | BZ54: =IF($E54="Lamp",0,IF(SUM(BU54:$BY54)>=$BT54,0,IF(BN54<=0,IF($H54=0,0,$BT54),0))) -> 0 | CA54: =IF($E54="Lamp",0,IF(SUM($BU54:BZ54)>=$BT54,0,IF(BO54<=0,IF($H54=0,0,$BT54),0))) -> 0 | CB54: =IF($E54="Lamp",0,IF(SUM($BU54:CA54)>=$BT54,0,IF(BP54<=0,IF($H54=0,0,$BT54),0))) -> 0 | CC54: =IF($E54="Lamp",0,IF(SUM($BU54:CB54)>=$BT54,0,IF(BQ54<=0,IF($H54=0,0,$BT54),0))) -> 0 | CD54: =IF($E54="Lamp",0,IF(SUM($BU54:CC54)>=$BT54,0,IF(BR54<=0,IF($H54=0,0,$BT54),0))) -> 0 | CL54: =CF54/'Inputs - General'!E$5 -> 0 | CM54: =CG54/'Inputs - General'!F$5 -> 0 | CN54: =CH54/'Inputs - General'!G$5 -> 0 | CO54: =CI54/'Inputs - General'!H$5 -> 0 | CP54: =CJ54/'Inputs - General'!I$5 -> 0
D55: Lamp - MBF1x400 | E55: Lamp | F55: MBF1x400 | G55: 2 | H55: 0 | I55: No | J55: 0 | K55: 0 | L55: 0 | N55: 0 | O55: 0 | P55: 0 | Q55: 0 | R55: 0 | S55: 0 | U55: =IFERROR(IF(N55-(($H55-SUM($CK55:CK55))/$K55)<0,N55,(($H55-SUM($CK55:CK55))/$K55)),0) -> 0 | V55: =IFERROR(IF(O55-(($H55-SUM($CK55:CL55))/$K55)<0,O55,(($H55-SUM($CK55:CL55))/$K55)),0) -> 0 | W55: =IFERROR(IF(P55-(($H55-SUM($CK55:CM55))/$K55)<0,P55,(($H55-SUM($CK55:CM55))/$K55)),0) -> 0 | X55: =IFERROR(IF(Q55-(($H55-SUM($CK55:CN55))/$K55)<0,Q55,(($H55-SUM($CK55:CN55))/$K55)),0) -> 0 | Y55: =IFERROR(IF(R55-(($H55-SUM($CK55:CO55))/$K55)<0,R55,(($H55-SUM($CK55:CO55))/$K55)),0) -> 0 | AA55: 0 | AB55: 0 | AC55: 0 | AD55: 0 | AE55: 0 | AF55: 0 | AH55: =AA55*'Inputs - General'!D$5 -> 0 | AI55: =AB55*'Inputs - General'!E$5 -> 0 | AJ55: =AC55*'Inputs - General'!F$5 -> 0 | AK55: =AD55*'Inputs - General'!G$5 -> 0 | AL55: =AE55*'Inputs - General'!H$5 -> 0 | AM55: =AF55*'Inputs - General'!I$5 -> 0 | AO55: =N55*'Inputs - General'!D$5 -> 0 | AP55: =O55*'Inputs - General'!E$5 -> 0 | AQ55: =P55*'Inputs - General'!F$5 -> 0 | AR55: =Q55*'Inputs - General'!G$5 -> 0 | AS55: =R55*'Inputs - General'!H$5 -> 0 | AT55: =S55*'Inputs - General'!I$5 -> 0 | AV55: =U55*'Inputs - General'!E$5 -> 0 | AW55: =V55*'Inputs - General'!F$5 -> 0 | AX55: =W55*'Inputs - General'!G$5 -> 0 | AY55: =X55*'Inputs - General'!H$5 -> 0 | AZ55: =Y55*'Inputs - General'!I$5 -> 0 | BB55: =AH55*'Inputs - General'!E$4 -> 0 | BC55: =AI55*'Inputs - General'!F$4 -> 0 | BD55: =AJ55*'Inputs - General'!G$4 -> 0 | BE55: =AK55*'Inputs - General'!H$4 -> 0 | BF55: =AL55*'Inputs - General'!I$4 -> 0 | BH55: 0 | BI55: 0 | BJ55: 0 | BK55: 0 | BL55: 0 | BN55: 0 | BO55: 0 | BP55: 0 | BQ55: 0 | BR55: 0 | BT55: ='Input - Customer Inventory FY15'!F54 -> 0 | BZ55: =IF($E55="Lamp",0,IF(SUM(BU55:$BY55)>=$BT55,0,IF(BN55<=0,IF($H55=0,0,$BT55),0))) -> 0 | CA55: =IF($E55="Lamp",0,IF(SUM($BU55:BZ55)>=$BT55,0,IF(BO55<=0,IF($H55=0,0,$BT55),0))) -> 0 | CB55: =IF($E55="Lamp",0,IF(SUM($BU55:CA55)>=$BT55,0,IF(BP55<=0,IF($H55=0,0,$BT55),0))) -> 0 | CC55: =IF($E55="Lamp",0,IF(SUM($BU55:CB55)>=$BT55,0,IF(BQ55<=0,IF($H55=0,0,$BT55),0))) -> 0 | CD55: =IF($E55="Lamp",0,IF(SUM($BU55:CC55)>=$BT55,0,IF(BR55<=0,IF($H55=0,0,$BT55),0))) -> 0 | CL55: =CF55/'Inputs - General'!E$5 -> 0 | CM55: =CG55/'Inputs - General'!F$5 -> 0 | CN55: =CH55/'Inputs - General'!G$5 -> 0 | CO55: =CI55/'Inputs - General'!H$5 -> 0 | CP55: =CJ55/'Inputs - General'!I$5 -> 0
D56: Lamp - MBF1x42 | E56: Lamp | F56: MBF1x42 | G56: 1 | H56: 0 | I56: No | J56: 0 | K56: 0 | L56: 0 | N56: 0 | O56: 0 | P56: 0 | Q56: 0 | R56: 0 | S56: 0 | U56: =IFERROR(IF(N56-(($H56-SUM($CK56:CK56))/$K56)<0,N56,(($H56-SUM($CK56:CK56))/$K56)),0) -> 0 | V56: =IFERROR(IF(O56-(($H56-SUM($CK56:CL56))/$K56)<0,O56,(($H56-SUM($CK56:CL56))/$K56)),0) -> 0 | W56: =IFERROR(IF(P56-(($H56-SUM($CK56:CM56))/$K56)<0,P56,(($H56-SUM($CK56:CM56))/$K56)),0) -> 0 | X56: =IFERROR(IF(Q56-(($H56-SUM($CK56:CN56))/$K56)<0,Q56,(($H56-SUM($CK56:CN56))/$K56)),0) -> 0 | Y56: =IFERROR(IF(R56-(($H56-SUM($CK56:CO56))/$K56)<0,R56,(($H56-SUM($CK56:CO56))/$K56)),0) -> 0 | AA56: 0 | AB56: 0 | AC56: 0 | AD56: 0 | AE56: 0 | AF56: 0 | AH56: =AA56*'Inputs - General'!D$5 -> 0 | AI56: =AB56*'Inputs - General'!E$5 -> 0 | AJ56: =AC56*'Inputs - General'!F$5 -> 0 | AK56: =AD56*'Inputs - General'!G$5 -> 0 | AL56: =AE56*'Inputs - General'!H$5 -> 0 | AM56: =AF56*'Inputs - General'!I$5 -> 0 | AO56: =N56*'Inputs - General'!D$5 -> 0 | AP56: =O56*'Inputs - General'!E$5 -> 0 | AQ56: =P56*'Inputs - General'!F$5 -> 0 | AR56: =Q56*'Inputs - General'!G$5 -> 0 | AS56: =R56*'Inputs - General'!H$5 -> 0 | AT56: =S56*'Inputs - General'!I$5 -> 0 | AV56: =U56*'Inputs - General'!E$5 -> 0 | AW56: =V56*'Inputs - General'!F$5 -> 0 | AX56: =W56*'Inputs - General'!G$5 -> 0 | AY56: =X56*'Inputs - General'!H$5 -> 0 | AZ56: =Y56*'Inputs - General'!I$5 -> 0 | BB56: =AH56*'Inputs - General'!E$4 -> 0 | BC56: =AI56*'Inputs - General'!F$4 -> 0 | BD56: =AJ56*'Inputs - General'!G$4 -> 0 | BE56: =AK56*'Inputs - General'!H$4 -> 0 | BF56: =AL56*'Inputs - General'!I$4 -> 0 | BH56: 0 | BI56: 0 | BJ56: 0 | BK56: 0 | BL56: 0 | BN56: 0 | BO56: 0 | BP56: 0 | BQ56: 0 | BR56: 0 | BT56: ='Input - Customer Inventory FY15'!F55 -> 1 | BZ56: =IF($E56="Lamp",0,IF(SUM(BU56:$BY56)>=$BT56,0,IF(BN56<=0,IF($H56=0,0,$BT56),0))) -> 0 | CA56: =IF($E56="Lamp",0,IF(SUM($BU56:BZ56)>=$BT56,0,IF(BO56<=0,IF($H56=0,0,$BT56),0))) -> 0 | CB56: =IF($E56="Lamp",0,IF(SUM($BU56:CA56)>=$BT56,0,IF(BP56<=0,IF($H56=0,0,$BT56),0))) -> 0 | CC56: =IF($E56="Lamp",0,IF(SUM($BU56:CB56)>=$BT56,0,IF(BQ56<=0,IF($H56=0,0,$BT56),0))) -> 0 | CD56: =IF($E56="Lamp",0,IF(SUM($BU56:CC56)>=$BT56,0,IF(BR56<=0,IF($H56=0,0,$BT56),0))) -> 0 | CL56: =CF56/'Inputs - General'!E$5 -> 0 | CM56: =CG56/'Inputs - General'!F$5 -> 0 | CN56: =CH56/'Inputs - General'!G$5 -> 0 | CO56: =CI56/'Inputs - General'!H$5 -> 0 | CP56: =CJ56/'Inputs - General'!I$5 -> 0
D57: Lamp - MBF1x42 | E57: Lamp | F57: MBF1x42 | G57: 2 | H57: 0 | I57: No | J57: 0 | K57: 0 | L57: 0 | N57: 0 | O57: 0 | P57: 0 | Q57: 0 | R57: 0 | S57: 0 | U57: =IFERROR(IF(N57-(($H57-SUM($CK57:CK57))/$K57)<0,N57,(($H57-SUM($CK57:CK57))/$K57)),0) -> 0 | V57: =IFERROR(IF(O57-(($H57-SUM($CK57:CL57))/$K57)<0,O57,(($H57-SUM($CK57:CL57))/$K57)),0) -> 0 | W57: =IFERROR(IF(P57-(($H57-SUM($CK57:CM57))/$K57)<0,P57,(($H57-SUM($CK57:CM57))/$K57)),0) -> 0 | X57: =IFERROR(IF(Q57-(($H57-SUM($CK57:CN57))/$K57)<0,Q57,(($H57-SUM($CK57:CN57))/$K57)),0) -> 0 | Y57: =IFERROR(IF(R57-(($H57-SUM($CK57:CO57))/$K57)<0,R57,(($H57-SUM($CK57:CO57))/$K57)),0) -> 0 | AA57: 0 | AB57: 0 | AC57: 0 | AD57: 0 | AE57: 0 | AF57: 0 | AH57: =AA57*'Inputs - General'!D$5 -> 0 | AI57: =AB57*'Inputs - General'!E$5 -> 0 | AJ57: =AC57*'Inputs - General'!F$5 -> 0 | AK57: =AD57*'Inputs - General'!G$5 -> 0 | AL57: =AE57*'Inputs - General'!H$5 -> 0 | AM57: =AF57*'Inputs - General'!I$5 -> 0 | AO57: =N57*'Inputs - General'!D$5 -> 0 | AP57: =O57*'Inputs - General'!E$5 -> 0 | AQ57: =P57*'Inputs - General'!F$5 -> 0 | AR57: =Q57*'Inputs - General'!G$5 -> 0 | AS57: =R57*'Inputs - General'!H$5 -> 0 | AT57: =S57*'Inputs - General'!I$5 -> 0 | AV57: =U57*'Inputs - General'!E$5 -> 0 | AW57: =V57*'Inputs - General'!F$5 -> 0 | AX57: =W57*'Inputs - General'!G$5 -> 0 | AY57: =X57*'Inputs - General'!H$5 -> 0 | AZ57: =Y57*'Inputs - General'!I$5 -> 0 | BB57: =AH57*'Inputs - General'!E$4 -> 0 | BC57: =AI57*'Inputs - General'!F$4 -> 0 | BD57: =AJ57*'Inputs - General'!G$4 -> 0 | BE57: =AK57*'Inputs - General'!H$4 -> 0 | BF57: =AL57*'Inputs - General'!I$4 -> 0 | BH57: 0 | BI57: 0 | BJ57: 0 | BK57: 0 | BL57: 0 | BN57: 0 | BO57: 0 | BP57: 0 | BQ57: 0 | BR57: 0 | BT57: ='Input - Customer Inventory FY15'!F56 -> 0 | BZ57: =IF($E57="Lamp",0,IF(SUM(BU57:$BY57)>=$BT57,0,IF(BN57<=0,IF($H57=0,0,$BT57),0))) -> 0 | CA57: =IF($E57="Lamp",0,IF(SUM($BU57:BZ57)>=$BT57,0,IF(BO57<=0,IF($H57=0,0,$BT57),0))) -> 0 | CB57: =IF($E57="Lamp",0,IF(SUM($BU57:CA57)>=$BT57,0,IF(BP57<=0,IF($H57=0,0,$BT57),0))) -> 0 | CC57: =IF($E57="Lamp",0,IF(SUM($BU57:CB57)>=$BT57,0,IF(BQ57<=0,IF($H57=0,0,$BT57),0))) -> 0 | CD57: =IF($E57="Lamp",0,IF(SUM($BU57:CC57)>=$BT57,0,IF(BR57<=0,IF($H57=0,0,$BT57),0))) -> 0 | CL57: =CF57/'Inputs - General'!E$5 -> 0 | CM57: =CG57/'Inputs - General'!F$5 -> 0 | CN57: =CH57/'Inputs - General'!G$5 -> 0 | CO57: =CI57/'Inputs - General'!H$5 -> 0 | CP57: =CJ57/'Inputs - General'!I$5 -> 0
D58: Lamp - MBF1x50 | E58: Lamp | F58: MBF1x50 | G58: 1 | H58: 0 | I58: No | J58: 0 | K58: 0 | L58: 0 | N58: 0 | O58: 0 | P58: 0 | Q58: 0 | R58: 0 | S58: 0 | U58: =IFERROR(IF(N58-(($H58-SUM($CK58:CK58))/$K58)<0,N58,(($H58-SUM($CK58:CK58))/$K58)),0) -> 0 | V58: =IFERROR(IF(O58-(($H58-SUM($CK58:CL58))/$K58)<0,O58,(($H58-SUM($CK58:CL58))/$K58)),0) -> 0 | W58: =IFERROR(IF(P58-(($H58-SUM($CK58:CM58))/$K58)<0,P58,(($H58-SUM($CK58:CM58))/$K58)),0) -> 0 | X58: =IFERROR(IF(Q58-(($H58-SUM($CK58:CN58))/$K58)<0,Q58,(($H58-SUM($CK58:CN58))/$K58)),0) -> 0 | Y58: =IFERROR(IF(R58-(($H58-SUM($CK58:CO58))/$K58)<0,R58,(($H58-SUM($CK58:CO58))/$K58)),0) -> 0 | AA58: 0 | AB58: 0 | AC58: 0 | AD58: 0 | AE58: 0 | AF58: 0 | AH58: =AA58*'Inputs - General'!D$5 -> 0 | AI58: =AB58*'Inputs - General'!E$5 -> 0 | AJ58: =AC58*'Inputs - General'!F$5 -> 0 | AK58: =AD58*'Inputs - General'!G$5 -> 0 | AL58: =AE58*'Inputs - General'!H$5 -> 0 | AM58: =AF58*'Inputs - General'!I$5 -> 0 | AO58: =N58*'Inputs - General'!D$5 -> 0 | AP58: =O58*'Inputs - General'!E$5 -> 0 | AQ58: =P58*'Inputs - General'!F$5 -> 0 | AR58: =Q58*'Inputs - General'!G$5 -> 0 | AS58: =R58*'Inputs - General'!H$5 -> 0 | AT58: =S58*'Inputs - General'!I$5 -> 0 | AV58: =U58*'Inputs - General'!E$5 -> 0 | AW58: =V58*'Inputs - General'!F$5 -> 0 | AX58: =W58*'Inputs - General'!G$5 -> 0 | AY58: =X58*'Inputs - General'!H$5 -> 0 | AZ58: =Y58*'Inputs - General'!I$5 -> 0 | BB58: =AH58*'Inputs - General'!E$4 -> 0 | BC58: =AI58*'Inputs - General'!F$4 -> 0 | BD58: =AJ58*'Inputs - General'!G$4 -> 0 | BE58: =AK58*'Inputs - General'!H$4 -> 0 | BF58: =AL58*'Inputs - General'!I$4 -> 0 | BH58: 0 | BI58: 0 | BJ58: 0 | BK58: 0 | BL58: 0 | BN58: 0 | BO58: 0 | BP58: 0 | BQ58: 0 | BR58: 0 | BT58: ='Input - Customer Inventory FY15'!F57 -> 0 | BZ58: =IF($E58="Lamp",0,IF(SUM(BU58:$BY58)>=$BT58,0,IF(BN58<=0,IF($H58=0,0,$BT58),0))) -> 0 | CA58: =IF($E58="Lamp",0,IF(SUM($BU58:BZ58)>=$BT58,0,IF(BO58<=0,IF($H58=0,0,$BT58),0))) -> 0 | CB58: =IF($E58="Lamp",0,IF(SUM($BU58:CA58)>=$BT58,0,IF(BP58<=0,IF($H58=0,0,$BT58),0))) -> 0 | CC58: =IF($E58="Lamp",0,IF(SUM($BU58:CB58)>=$BT58,0,IF(BQ58<=0,IF($H58=0,0,$BT58),0))) -> 0 | CD58: =IF($E58="Lamp",0,IF(SUM($BU58:CC58)>=$BT58,0,IF(BR58<=0,IF($H58=0,0,$BT58),0))) -> 0 | CL58: =CF58/'Inputs - General'!E$5 -> 0 | CM58: =CG58/'Inputs - General'!F$5 -> 0 | CN58: =CH58/'Inputs - General'!G$5 -> 0 | CO58: =CI58/'Inputs - General'!H$5 -> 0 | CP58: =CJ58/'Inputs - General'!I$5 -> 0
D59: Lamp - MBF1x700 | E59: Lamp | F59: MBF1x700 | G59: 1 | H59: 0 | I59: No | J59: 0 | K59: 0 | L59: 0 | N59: 0 | O59: 0 | P59: 0 | Q59: 0 | R59: 0 | S59: 0 | U59: =IFERROR(IF(N59-(($H59-SUM($CK59:CK59))/$K59)<0,N59,(($H59-SUM($CK59:CK59))/$K59)),0) -> 0 | V59: =IFERROR(IF(O59-(($H59-SUM($CK59:CL59))/$K59)<0,O59,(($H59-SUM($CK59:CL59))/$K59)),0) -> 0 | W59: =IFERROR(IF(P59-(($H59-SUM($CK59:CM59))/$K59)<0,P59,(($H59-SUM($CK59:CM59))/$K59)),0) -> 0 | X59: =IFERROR(IF(Q59-(($H59-SUM($CK59:CN59))/$K59)<0,Q59,(($H59-SUM($CK59:CN59))/$K59)),0) -> 0 | Y59: =IFERROR(IF(R59-(($H59-SUM($CK59:CO59))/$K59)<0,R59,(($H59-SUM($CK59:CO59))/$K59)),0) -> 0 | AA59: 0 | AB59: 0 | AC59: 0 | AD59: 0 | AE59: 0 | AF59: 0 | AH59: =AA59*'Inputs - General'!D$5 -> 0 | AI59: =AB59*'Inputs - General'!E$5 -> 0 | AJ59: =AC59*'Inputs - General'!F$5 -> 0 | AK59: =AD59*'Inputs - General'!G$5 -> 0 | AL59: =AE59*'Inputs - General'!H$5 -> 0 | AM59: =AF59*'Inputs - General'!I$5 -> 0 | AO59: =N59*'Inputs - General'!D$5 -> 0 | AP59: =O59*'Inputs - General'!E$5 -> 0 | AQ59: =P59*'Inputs - General'!F$5 -> 0 | AR59: =Q59*'Inputs - General'!G$5 -> 0 | AS59: =R59*'Inputs - General'!H$5 -> 0 | AT59: =S59*'Inputs - General'!I$5 -> 0 | AV59: =U59*'Inputs - General'!E$5 -> 0 | AW59: =V59*'Inputs - General'!F$5 -> 0 | AX59: =W59*'Inputs - General'!G$5 -> 0 | AY59: =X59*'Inputs - General'!H$5 -> 0 | AZ59: =Y59*'Inputs - General'!I$5 -> 0 | BB59: =AH59*'Inputs - General'!E$4 -> 0 | BC59: =AI59*'Inputs - General'!F$4 -> 0 | BD59: =AJ59*'Inputs - General'!G$4 -> 0 | BE59: =AK59*'Inputs - General'!H$4 -> 0 | BF59: =AL59*'Inputs - General'!I$4 -> 0 | BH59: 0 | BI59: 0 | BJ59: 0 | BK59: 0 | BL59: 0 | BN59: 0 | BO59: 0 | BP59: 0 | BQ59: 0 | BR59: 0 | BT59: ='Input - Customer Inventory FY15'!F58 -> 0 | BZ59: =IF($E59="Lamp",0,IF(SUM(BU59:$BY59)>=$BT59,0,IF(BN59<=0,IF($H59=0,0,$BT59),0))) -> 0 | CA59: =IF($E59="Lamp",0,IF(SUM($BU59:BZ59)>=$BT59,0,IF(BO59<=0,IF($H59=0,0,$BT59),0))) -> 0 | CB59: =IF($E59="Lamp",0,IF(SUM($BU59:CA59)>=$BT59,0,IF(BP59<=0,IF($H59=0,0,$BT59),0))) -> 0 | CC59: =IF($E59="Lamp",0,IF(SUM($BU59:CB59)>=$BT59,0,IF(BQ59<=0,IF($H59=0,0,$BT59),0))) -> 0 | CD59: =IF($E59="Lamp",0,IF(SUM($BU59:CC59)>=$BT59,0,IF(BR59<=0,IF($H59=0,0,$BT59),0))) -> 0 | CL59: =CF59/'Inputs - General'!E$5 -> 0 | CM59: =CG59/'Inputs - General'!F$5 -> 0 | CN59: =CH59/'Inputs - General'!G$5 -> 0 | CO59: =CI59/'Inputs - General'!H$5 -> 0 | CP59: =CJ59/'Inputs - General'!I$5 -> 0
D60: Lamp - MBF1x80 | E60: Lamp | F60: MBF1x80 | G60: 1 | H60: 0 | I60: No | J60: 0 | K60: 0 | L60: 0 | N60: 0 | O60: 0 | P60: 0 | Q60: 0 | R60: 0 | S60: 0 | U60: =IFERROR(IF(N60-(($H60-SUM($CK60:CK60))/$K60)<0,N60,(($H60-SUM($CK60:CK60))/$K60)),0) -> 0 | V60: =IFERROR(IF(O60-(($H60-SUM($CK60:CL60))/$K60)<0,O60,(($H60-SUM($CK60:CL60))/$K60)),0) -> 0 | W60: =IFERROR(IF(P60-(($H60-SUM($CK60:CM60))/$K60)<0,P60,(($H60-SUM($CK60:CM60))/$K60)),0) -> 0 | X60: =IFERROR(IF(Q60-(($H60-SUM($CK60:CN60))/$K60)<0,Q60,(($H60-SUM($CK60:CN60))/$K60)),0) -> 0 | Y60: =IFERROR(IF(R60-(($H60-SUM($CK60:CO60))/$K60)<0,R60,(($H60-SUM($CK60:CO60))/$K60)),0) -> 0 | AA60: 0 | AB60: 0 | AC60: 0 | AD60: 0 | AE60: 0 | AF60: 0 | AH60: =AA60*'Inputs - General'!D$5 -> 0 | AI60: =AB60*'Inputs - General'!E$5 -> 0 | AJ60: =AC60*'Inputs - General'!F$5 -> 0 | AK60: =AD60*'Inputs - General'!G$5 -> 0 | AL60: =AE60*'Inputs - General'!H$5 -> 0 | AM60: =AF60*'Inputs - General'!I$5 -> 0 | AO60: =N60*'Inputs - General'!D$5 -> 0 | AP60: =O60*'Inputs - General'!E$5 -> 0 | AQ60: =P60*'Inputs - General'!F$5 -> 0 | AR60: =Q60*'Inputs - General'!G$5 -> 0 | AS60: =R60*'Inputs - General'!H$5 -> 0 | AT60: =S60*'Inputs - General'!I$5 -> 0 | AV60: =U60*'Inputs - General'!E$5 -> 0 | AW60: =V60*'Inputs - General'!F$5 -> 0 | AX60: =W60*'Inputs - General'!G$5 -> 0 | AY60: =X60*'Inputs - General'!H$5 -> 0 | AZ60: =Y60*'Inputs - General'!I$5 -> 0 | BB60: =AH60*'Inputs - General'!E$4 -> 0 | BC60: =AI60*'Inputs - General'!F$4 -> 0 | BD60: =AJ60*'Inputs - General'!G$4 -> 0 | BE60: =AK60*'Inputs - General'!H$4 -> 0 | BF60: =AL60*'Inputs - General'!I$4 -> 0 | BH60: 0 | BI60: 0 | BJ60: 0 | BK60: 0 | BL60: 0 | BN60: 0 | BO60: 0 | BP60: 0 | BQ60: 0 | BR60: 0 | BT60: ='Input - Customer Inventory FY15'!F59 -> 4 | BZ60: =IF($E60="Lamp",0,IF(SUM(BU60:$BY60)>=$BT60,0,IF(BN60<=0,IF($H60=0,0,$BT60),0))) -> 0 | CA60: =IF($E60="Lamp",0,IF(SUM($BU60:BZ60)>=$BT60,0,IF(BO60<=0,IF($H60=0,0,$BT60),0))) -> 0 | CB60: =IF($E60="Lamp",0,IF(SUM($BU60:CA60)>=$BT60,0,IF(BP60<=0,IF($H60=0,0,$BT60),0))) -> 0 | CC60: =IF($E60="Lamp",0,IF(SUM($BU60:CB60)>=$BT60,0,IF(BQ60<=0,IF($H60=0,0,$BT60),0))) -> 0 | CD60: =IF($E60="Lamp",0,IF(SUM($BU60:CC60)>=$BT60,0,IF(BR60<=0,IF($H60=0,0,$BT60),0))) -> 0 | CL60: =CF60/'Inputs - General'!E$5 -> 0 | CM60: =CG60/'Inputs - General'!F$5 -> 0 | CN60: =CH60/'Inputs - General'!G$5 -> 0 | CO60: =CI60/'Inputs - General'!H$5 -> 0 | CP60: =CJ60/'Inputs - General'!I$5 -> 0
D61: Lamp - MBF1x80 | E61: Lamp | F61: MBF1x80 | G61: 2 | H61: 0 | I61: No | J61: 0 | K61: 0 | L61: 0 | N61: 0 | O61: 0 | P61: 0 | Q61: 0 | R61: 0 | S61: 0 | U61: =IFERROR(IF(N61-(($H61-SUM($CK61:CK61))/$K61)<0,N61,(($H61-SUM($CK61:CK61))/$K61)),0) -> 0 | V61: =IFERROR(IF(O61-(($H61-SUM($CK61:CL61))/$K61)<0,O61,(($H61-SUM($CK61:CL61))/$K61)),0) -> 0 | W61: =IFERROR(IF(P61-(($H61-SUM($CK61:CM61))/$K61)<0,P61,(($H61-SUM($CK61:CM61))/$K61)),0) -> 0 | X61: =IFERROR(IF(Q61-(($H61-SUM($CK61:CN61))/$K61)<0,Q61,(($H61-SUM($CK61:CN61))/$K61)),0) -> 0 | Y61: =IFERROR(IF(R61-(($H61-SUM($CK61:CO61))/$K61)<0,R61,(($H61-SUM($CK61:CO61))/$K61)),0) -> 0 | AA61: 0 | AB61: 0 | AC61: 0 | AD61: 0 | AE61: 0 | AF61: 0 | AH61: =AA61*'Inputs - General'!D$5 -> 0 | AI61: =AB61*'Inputs - General'!E$5 -> 0 | AJ61: =AC61*'Inputs - General'!F$5 -> 0 | AK61: =AD61*'Inputs - General'!G$5 -> 0 | AL61: =AE61*'Inputs - General'!H$5 -> 0 | AM61: =AF61*'Inputs - General'!I$5 -> 0 | AO61: =N61*'Inputs - General'!D$5 -> 0 | AP61: =O61*'Inputs - General'!E$5 -> 0 | AQ61: =P61*'Inputs - General'!F$5 -> 0 | AR61: =Q61*'Inputs - General'!G$5 -> 0 | AS61: =R61*'Inputs - General'!H$5 -> 0 | AT61: =S61*'Inputs - General'!I$5 -> 0 | AV61: =U61*'Inputs - General'!E$5 -> 0 | AW61: =V61*'Inputs - General'!F$5 -> 0 | AX61: =W61*'Inputs - General'!G$5 -> 0 | AY61: =X61*'Inputs - General'!H$5 -> 0 | AZ61: =Y61*'Inputs - General'!I$5 -> 0 | BB61: =AH61*'Inputs - General'!E$4 -> 0 | BC61: =AI61*'Inputs - General'!F$4 -> 0 | BD61: =AJ61*'Inputs - General'!G$4 -> 0 | BE61: =AK61*'Inputs - General'!H$4 -> 0 | BF61: =AL61*'Inputs - General'!I$4 -> 0 | BH61: 0 | BI61: 0 | BJ61: 0 | BK61: 0 | BL61: 0 | BN61: 0 | BO61: 0 | BP61: 0 | BQ61: 0 | BR61: 0 | BT61: ='Input - Customer Inventory FY15'!F60 -> 6 | BZ61: =IF($E61="Lamp",0,IF(SUM(BU61:$BY61)>=$BT61,0,IF(BN61<=0,IF($H61=0,0,$BT61),0))) -> 0 | CA61: =IF($E61="Lamp",0,IF(SUM($BU61:BZ61)>=$BT61,0,IF(BO61<=0,IF($H61=0,0,$BT61),0))) -> 0 | CB61: =IF($E61="Lamp",0,IF(SUM($BU61:CA61)>=$BT61,0,IF(BP61<=0,IF($H61=0,0,$BT61),0))) -> 0 | CC61: =IF($E61="Lamp",0,IF(SUM($BU61:CB61)>=$BT61,0,IF(BQ61<=0,IF($H61=0,0,$BT61),0))) -> 0 | CD61: =IF($E61="Lamp",0,IF(SUM($BU61:CC61)>=$BT61,0,IF(BR61<=0,IF($H61=0,0,$BT61),0))) -> 0 | CL61: =CF61/'Inputs - General'!E$5 -> 0 | CM61: =CG61/'Inputs - General'!F$5 -> 0 | CN61: =CH61/'Inputs - General'!G$5 -> 0 | CO61: =CI61/'Inputs - General'!H$5 -> 0 | CP61: =CJ61/'Inputs - General'!I$5 -> 0
D62: Lamp - MBI1x400 | E62: Lamp | F62: MBI1x400 | G62: 1 | H62: 0 | I62: No | J62: 0 | K62: 0 | L62: 0 | N62: 0 | O62: 0 | P62: 0 | Q62: 0 | R62: 0 | S62: 0 | U62: =IFERROR(IF(N62-(($H62-SUM($CK62:CK62))/$K62)<0,N62,(($H62-SUM($CK62:CK62))/$K62)),0) -> 0 | V62: =IFERROR(IF(O62-(($H62-SUM($CK62:CL62))/$K62)<0,O62,(($H62-SUM($CK62:CL62))/$K62)),0) -> 0 | W62: =IFERROR(IF(P62-(($H62-SUM($CK62:CM62))/$K62)<0,P62,(($H62-SUM($CK62:CM62))/$K62)),0) -> 0 | X62: =IFERROR(IF(Q62-(($H62-SUM($CK62:CN62))/$K62)<0,Q62,(($H62-SUM($CK62:CN62))/$K62)),0) -> 0 | Y62: =IFERROR(IF(R62-(($H62-SUM($CK62:CO62))/$K62)<0,R62,(($H62-SUM($CK62:CO62))/$K62)),0) -> 0 | AA62: 0 | AB62: 0 | AC62: 0 | AD62: 0 | AE62: 0 | AF62: 0 | AH62: =AA62*'Inputs - General'!D$5 -> 0 | AI62: =AB62*'Inputs - General'!E$5 -> 0 | AJ62: =AC62*'Inputs - General'!F$5 -> 0 | AK62: =AD62*'Inputs - General'!G$5 -> 0 | AL62: =AE62*'Inputs - General'!H$5 -> 0 | AM62: =AF62*'Inputs - General'!I$5 -> 0 | AO62: =N62*'Inputs - General'!D$5 -> 0 | AP62: =O62*'Inputs - General'!E$5 -> 0 | AQ62: =P62*'Inputs - General'!F$5 -> 0 | AR62: =Q62*'Inputs - General'!G$5 -> 0 | AS62: =R62*'Inputs - General'!H$5 -> 0 | AT62: =S62*'Inputs - General'!I$5 -> 0 | AV62: =U62*'Inputs - General'!E$5 -> 0 | AW62: =V62*'Inputs - General'!F$5 -> 0 | AX62: =W62*'Inputs - General'!G$5 -> 0 | AY62: =X62*'Inputs - General'!H$5 -> 0 | AZ62: =Y62*'Inputs - General'!I$5 -> 0 | BB62: =AH62*'Inputs - General'!E$4 -> 0 | BC62: =AI62*'Inputs - General'!F$4 -> 0 | BD62: =AJ62*'Inputs - General'!G$4 -> 0 | BE62: =AK62*'Inputs - General'!H$4 -> 0 | BF62: =AL62*'Inputs - General'!I$4 -> 0 | BH62: 0 | BI62: 0 | BJ62: 0 | BK62: 0 | BL62: 0 | BN62: 0 | BO62: 0 | BP62: 0 | BQ62: 0 | BR62: 0 | BT62: ='Input - Customer Inventory FY15'!F61 -> 0 | BZ62: =IF($E62="Lamp",0,IF(SUM(BU62:$BY62)>=$BT62,0,IF(BN62<=0,IF($H62=0,0,$BT62),0))) -> 0 | CA62: =IF($E62="Lamp",0,IF(SUM($BU62:BZ62)>=$BT62,0,IF(BO62<=0,IF($H62=0,0,$BT62),0))) -> 0 | CB62: =IF($E62="Lamp",0,IF(SUM($BU62:CA62)>=$BT62,0,IF(BP62<=0,IF($H62=0,0,$BT62),0))) -> 0 | CC62: =IF($E62="Lamp",0,IF(SUM($BU62:CB62)>=$BT62,0,IF(BQ62<=0,IF($H62=0,0,$BT62),0))) -> 0 | CD62: =IF($E62="Lamp",0,IF(SUM($BU62:CC62)>=$BT62,0,IF(BR62<=0,IF($H62=0,0,$BT62),0))) -> 0 | CL62: =CF62/'Inputs - General'!E$5 -> 0 | CM62: =CG62/'Inputs - General'!F$5 -> 0 | CN62: =CH62/'Inputs - General'!G$5 -> 0 | CO62: =CI62/'Inputs - General'!H$5 -> 0 | CP62: =CJ62/'Inputs - General'!I$5 -> 0
D63: Lamp - SON1x100 | E63: Lamp | F63: SON1x100 | G63: 1 | H63: 0 | I63: No | J63: 0 | K63: 0 | L63: 0 | N63: 0 | O63: 0 | P63: 0 | Q63: 0 | R63: 0 | S63: 0 | U63: =IFERROR(IF(N63-(($H63-SUM($CK63:CK63))/$K63)<0,N63,(($H63-SUM($CK63:CK63))/$K63)),0) -> 0 | V63: =IFERROR(IF(O63-(($H63-SUM($CK63:CL63))/$K63)<0,O63,(($H63-SUM($CK63:CL63))/$K63)),0) -> 0 | W63: =IFERROR(IF(P63-(($H63-SUM($CK63:CM63))/$K63)<0,P63,(($H63-SUM($CK63:CM63))/$K63)),0) -> 0 | X63: =IFERROR(IF(Q63-(($H63-SUM($CK63:CN63))/$K63)<0,Q63,(($H63-SUM($CK63:CN63))/$K63)),0) -> 0 | Y63: =IFERROR(IF(R63-(($H63-SUM($CK63:CO63))/$K63)<0,R63,(($H63-SUM($CK63:CO63))/$K63)),0) -> 0 | AA63: 0 | AB63: 0 | AC63: 0 | AD63: 0 | AE63: 0 | AF63: 0 | AH63: =AA63*'Inputs - General'!D$5 -> 0 | AI63: =AB63*'Inputs - General'!E$5 -> 0 | AJ63: =AC63*'Inputs - General'!F$5 -> 0 | AK63: =AD63*'Inputs - General'!G$5 -> 0 | AL63: =AE63*'Inputs - General'!H$5 -> 0 | AM63: =AF63*'Inputs - General'!I$5 -> 0 | AO63: =N63*'Inputs - General'!D$5 -> 0 | AP63: =O63*'Inputs - General'!E$5 -> 0 | AQ63: =P63*'Inputs - General'!F$5 -> 0 | AR63: =Q63*'Inputs - General'!G$5 -> 0 | AS63: =R63*'Inputs - General'!H$5 -> 0 | AT63: =S63*'Inputs - General'!I$5 -> 0 | AV63: =U63*'Inputs - General'!E$5 -> 0 | AW63: =V63*'Inputs - General'!F$5 -> 0 | AX63: =W63*'Inputs - General'!G$5 -> 0 | AY63: =X63*'Inputs - General'!H$5 -> 0 | AZ63: =Y63*'Inputs - General'!I$5 -> 0 | BB63: =AH63*'Inputs - General'!E$4 -> 0 | BC63: =AI63*'Inputs - General'!F$4 -> 0 | BD63: =AJ63*'Inputs - General'!G$4 -> 0 | BE63: =AK63*'Inputs - General'!H$4 -> 0 | BF63: =AL63*'Inputs - General'!I$4 -> 0 | BH63: 0 | BI63: 0 | BJ63: 0 | BK63: 0 | BL63: 0 | BN63: 0 | BO63: 0 | BP63: 0 | BQ63: 0 | BR63: 0 | BT63: ='Input - Customer Inventory FY15'!F62 -> 0 | BZ63: =IF($E63="Lamp",0,IF(SUM(BU63:$BY63)>=$BT63,0,IF(BN63<=0,IF($H63=0,0,$BT63),0))) -> 0 | CA63: =IF($E63="Lamp",0,IF(SUM($BU63:BZ63)>=$BT63,0,IF(BO63<=0,IF($H63=0,0,$BT63),0))) -> 0 | CB63: =IF($E63="Lamp",0,IF(SUM($BU63:CA63)>=$BT63,0,IF(BP63<=0,IF($H63=0,0,$BT63),0))) -> 0 | CC63: =IF($E63="Lamp",0,IF(SUM($BU63:CB63)>=$BT63,0,IF(BQ63<=0,IF($H63=0,0,$BT63),0))) -> 0 | CD63: =IF($E63="Lamp",0,IF(SUM($BU63:CC63)>=$BT63,0,IF(BR63<=0,IF($H63=0,0,$BT63),0))) -> 0 | CL63: =CF63/'Inputs - General'!E$5 -> 0 | CM63: =CG63/'Inputs - General'!F$5 -> 0 | CN63: =CH63/'Inputs - General'!G$5 -> 0 | CO63: =CI63/'Inputs - General'!H$5 -> 0 | CP63: =CJ63/'Inputs - General'!I$5 -> 0
D64: Lamp - SON1x150 | E64: Lamp | F64: SON1x150 | G64: 1 | H64: 0 | I64: No | J64: 0 | K64: 0 | L64: 0 | N64: 0 | O64: 0 | P64: 0 | Q64: 0 | R64: 0 | S64: 0 | U64: =IFERROR(IF(N64-(($H64-SUM($CK64:CK64))/$K64)<0,N64,(($H64-SUM($CK64:CK64))/$K64)),0) -> 0 | V64: =IFERROR(IF(O64-(($H64-SUM($CK64:CL64))/$K64)<0,O64,(($H64-SUM($CK64:CL64))/$K64)),0) -> 0 | W64: =IFERROR(IF(P64-(($H64-SUM($CK64:CM64))/$K64)<0,P64,(($H64-SUM($CK64:CM64))/$K64)),0) -> 0 | X64: =IFERROR(IF(Q64-(($H64-SUM($CK64:CN64))/$K64)<0,Q64,(($H64-SUM($CK64:CN64))/$K64)),0) -> 0 | Y64: =IFERROR(IF(R64-(($H64-SUM($CK64:CO64))/$K64)<0,R64,(($H64-SUM($CK64:CO64))/$K64)),0) -> 0 | AA64: 0 | AB64: 0 | AC64: 0 | AD64: 0 | AE64: 0 | AF64: 0 | AH64: =AA64*'Inputs - General'!D$5 -> 0 | AI64: =AB64*'Inputs - General'!E$5 -> 0 | AJ64: =AC64*'Inputs - General'!F$5 -> 0 | AK64: =AD64*'Inputs - General'!G$5 -> 0 | AL64: =AE64*'Inputs - General'!H$5 -> 0 | AM64: =AF64*'Inputs - General'!I$5 -> 0 | AO64: =N64*'Inputs - General'!D$5 -> 0 | AP64: =O64*'Inputs - General'!E$5 -> 0 | AQ64: =P64*'Inputs - General'!F$5 -> 0 | AR64: =Q64*'Inputs - General'!G$5 -> 0 | AS64: =R64*'Inputs - General'!H$5 -> 0 | AT64: =S64*'Inputs - General'!I$5 -> 0 | AV64: =U64*'Inputs - General'!E$5 -> 0 | AW64: =V64*'Inputs - General'!F$5 -> 0 | AX64: =W64*'Inputs - General'!G$5 -> 0 | AY64: =X64*'Inputs - General'!H$5 -> 0 | AZ64: =Y64*'Inputs - General'!I$5 -> 0 | BB64: =AH64*'Inputs - General'!E$4 -> 0 | BC64: =AI64*'Inputs - General'!F$4 -> 0 | BD64: =AJ64*'Inputs - General'!G$4 -> 0 | BE64: =AK64*'Inputs - General'!H$4 -> 0 | BF64: =AL64*'Inputs - General'!I$4 -> 0 | BH64: 0 | BI64: 0 | BJ64: 0 | BK64: 0 | BL64: 0 | BN64: 0 | BO64: 0 | BP64: 0 | BQ64: 0 | BR64: 0 | BT64: ='Input - Customer Inventory FY15'!F63 -> 7 | BZ64: =IF($E64="Lamp",0,IF(SUM(BU64:$BY64)>=$BT64,0,IF(BN64<=0,IF($H64=0,0,$BT64),0))) -> 0 | CA64: =IF($E64="Lamp",0,IF(SUM($BU64:BZ64)>=$BT64,0,IF(BO64<=0,IF($H64=0,0,$BT64),0))) -> 0 | CB64: =IF($E64="Lamp",0,IF(SUM($BU64:CA64)>=$BT64,0,IF(BP64<=0,IF($H64=0,0,$BT64),0))) -> 0 | CC64: =IF($E64="Lamp",0,IF(SUM($BU64:CB64)>=$BT64,0,IF(BQ64<=0,IF($H64=0,0,$BT64),0))) -> 0 | CD64: =IF($E64="Lamp",0,IF(SUM($BU64:CC64)>=$BT64,0,IF(BR64<=0,IF($H64=0,0,$BT64),0))) -> 0 | CL64: =CF64/'Inputs - General'!E$5 -> 0 | CM64: =CG64/'Inputs - General'!F$5 -> 0 | CN64: =CH64/'Inputs - General'!G$5 -> 0 | CO64: =CI64/'Inputs - General'!H$5 -> 0 | CP64: =CJ64/'Inputs - General'!I$5 -> 0
D65: Lamp - SON1x250 | E65: Lamp | F65: SON1x250 | G65: 1 | H65: 0 | I65: No | J65: 0 | K65: 0 | L65: 0 | N65: 0 | O65: 0 | P65: 0 | Q65: 0 | R65: 0 | S65: 0 | U65: =IFERROR(IF(N65-(($H65-SUM($CK65:CK65))/$K65)<0,N65,(($H65-SUM($CK65:CK65))/$K65)),0) -> 0 | V65: =IFERROR(IF(O65-(($H65-SUM($CK65:CL65))/$K65)<0,O65,(($H65-SUM($CK65:CL65))/$K65)),0) -> 0 | W65: =IFERROR(IF(P65-(($H65-SUM($CK65:CM65))/$K65)<0,P65,(($H65-SUM($CK65:CM65))/$K65)),0) -> 0 | X65: =IFERROR(IF(Q65-(($H65-SUM($CK65:CN65))/$K65)<0,Q65,(($H65-SUM($CK65:CN65))/$K65)),0) -> 0 | Y65: =IFERROR(IF(R65-(($H65-SUM($CK65:CO65))/$K65)<0,R65,(($H65-SUM($CK65:CO65))/$K65)),0) -> 0 | AA65: 0 | AB65: 0 | AC65: 0 | AD65: 0 | AE65: 0 | AF65: 0 | AH65: =AA65*'Inputs - General'!D$5 -> 0 | AI65: =AB65*'Inputs - General'!E$5 -> 0 | AJ65: =AC65*'Inputs - General'!F$5 -> 0 | AK65: =AD65*'Inputs - General'!G$5 -> 0 | AL65: =AE65*'Inputs - General'!H$5 -> 0 | AM65: =AF65*'Inputs - General'!I$5 -> 0 | AO65: =N65*'Inputs - General'!D$5 -> 0 | AP65: =O65*'Inputs - General'!E$5 -> 0 | AQ65: =P65*'Inputs - General'!F$5 -> 0 | AR65: =Q65*'Inputs - General'!G$5 -> 0 | AS65: =R65*'Inputs - General'!H$5 -> 0 | AT65: =S65*'Inputs - General'!I$5 -> 0 | AV65: =U65*'Inputs - General'!E$5 -> 0 | AW65: =V65*'Inputs - General'!F$5 -> 0 | AX65: =W65*'Inputs - General'!G$5 -> 0 | AY65: =X65*'Inputs - General'!H$5 -> 0 | AZ65: =Y65*'Inputs - General'!I$5 -> 0 | BB65: =AH65*'Inputs - General'!E$4 -> 0 | BC65: =AI65*'Inputs - General'!F$4 -> 0 | BD65: =AJ65*'Inputs - General'!G$4 -> 0 | BE65: =AK65*'Inputs - General'!H$4 -> 0 | BF65: =AL65*'Inputs - General'!I$4 -> 0 | BH65: 0 | BI65: 0 | BJ65: 0 | BK65: 0 | BL65: 0 | BN65: 0 | BO65: 0 | BP65: 0 | BQ65: 0 | BR65: 0 | BT65: ='Input - Customer Inventory FY15'!F64 -> 2 | BZ65: =IF($E65="Lamp",0,IF(SUM(BU65:$BY65)>=$BT65,0,IF(BN65<=0,IF($H65=0,0,$BT65),0))) -> 0 | CA65: =IF($E65="Lamp",0,IF(SUM($BU65:BZ65)>=$BT65,0,IF(BO65<=0,IF($H65=0,0,$BT65),0))) -> 0 | CB65: =IF($E65="Lamp",0,IF(SUM($BU65:CA65)>=$BT65,0,IF(BP65<=0,IF($H65=0,0,$BT65),0))) -> 0 | CC65: =IF($E65="Lamp",0,IF(SUM($BU65:CB65)>=$BT65,0,IF(BQ65<=0,IF($H65=0,0,$BT65),0))) -> 0 | CD65: =IF($E65="Lamp",0,IF(SUM($BU65:CC65)>=$BT65,0,IF(BR65<=0,IF($H65=0,0,$BT65),0))) -> 0 | CL65: =CF65/'Inputs - General'!E$5 -> 0 | CM65: =CG65/'Inputs - General'!F$5 -> 0 | CN65: =CH65/'Inputs - General'!G$5 -> 0 | CO65: =CI65/'Inputs - General'!H$5 -> 0 | CP65: =CJ65/'Inputs - General'!I$5 -> 0
D66: Lamp - SON1x250 | E66: Lamp | F66: SON1x250 | G66: 2 | H66: 0 | I66: No | J66: 0 | K66: 0 | L66: 0 | N66: 0 | O66: 0 | P66: 0 | Q66: 0 | R66: 0 | S66: 0 | U66: =IFERROR(IF(N66-(($H66-SUM($CK66:CK66))/$K66)<0,N66,(($H66-SUM($CK66:CK66))/$K66)),0) -> 0 | V66: =IFERROR(IF(O66-(($H66-SUM($CK66:CL66))/$K66)<0,O66,(($H66-SUM($CK66:CL66))/$K66)),0) -> 0 | W66: =IFERROR(IF(P66-(($H66-SUM($CK66:CM66))/$K66)<0,P66,(($H66-SUM($CK66:CM66))/$K66)),0) -> 0 | X66: =IFERROR(IF(Q66-(($H66-SUM($CK66:CN66))/$K66)<0,Q66,(($H66-SUM($CK66:CN66))/$K66)),0) -> 0 | Y66: =IFERROR(IF(R66-(($H66-SUM($CK66:CO66))/$K66)<0,R66,(($H66-SUM($CK66:CO66))/$K66)),0) -> 0 | AA66: 0 | AB66: 0 | AC66: 0 | AD66: 0 | AE66: 0 | AF66: 0 | AH66: =AA66*'Inputs - General'!D$5 -> 0 | AI66: =AB66*'Inputs - General'!E$5 -> 0 | AJ66: =AC66*'Inputs - General'!F$5 -> 0 | AK66: =AD66*'Inputs - General'!G$5 -> 0 | AL66: =AE66*'Inputs - General'!H$5 -> 0 | AM66: =AF66*'Inputs - General'!I$5 -> 0 | AO66: =N66*'Inputs - General'!D$5 -> 0 | AP66: =O66*'Inputs - General'!E$5 -> 0 | AQ66: =P66*'Inputs - General'!F$5 -> 0 | AR66: =Q66*'Inputs - General'!G$5 -> 0 | AS66: =R66*'Inputs - General'!H$5 -> 0 | AT66: =S66*'Inputs - General'!I$5 -> 0 | AV66: =U66*'Inputs - General'!E$5 -> 0 | AW66: =V66*'Inputs - General'!F$5 -> 0 | AX66: =W66*'Inputs - General'!G$5 -> 0 | AY66: =X66*'Inputs - General'!H$5 -> 0 | AZ66: =Y66*'Inputs - General'!I$5 -> 0 | BB66: =AH66*'Inputs - General'!E$4 -> 0 | BC66: =AI66*'Inputs - General'!F$4 -> 0 | BD66: =AJ66*'Inputs - General'!G$4 -> 0 | BE66: =AK66*'Inputs - General'!H$4 -> 0 | BF66: =AL66*'Inputs - General'!I$4 -> 0 | BH66: 0 | BI66: 0 | BJ66: 0 | BK66: 0 | BL66: 0 | BN66: 0 | BO66: 0 | BP66: 0 | BQ66: 0 | BR66: 0 | BT66: ='Input - Customer Inventory FY15'!F65 -> 0 | BZ66: =IF($E66="Lamp",0,IF(SUM(BU66:$BY66)>=$BT66,0,IF(BN66<=0,IF($H66=0,0,$BT66),0))) -> 0 | CA66: =IF($E66="Lamp",0,IF(SUM($BU66:BZ66)>=$BT66,0,IF(BO66<=0,IF($H66=0,0,$BT66),0))) -> 0 | CB66: =IF($E66="Lamp",0,IF(SUM($BU66:CA66)>=$BT66,0,IF(BP66<=0,IF($H66=0,0,$BT66),0))) -> 0 | CC66: =IF($E66="Lamp",0,IF(SUM($BU66:CB66)>=$BT66,0,IF(BQ66<=0,IF($H66=0,0,$BT66),0))) -> 0 | CD66: =IF($E66="Lamp",0,IF(SUM($BU66:CC66)>=$BT66,0,IF(BR66<=0,IF($H66=0,0,$BT66),0))) -> 0 | CL66: =CF66/'Inputs - General'!E$5 -> 0 | CM66: =CG66/'Inputs - General'!F$5 -> 0 | CN66: =CH66/'Inputs - General'!G$5 -> 0 | CO66: =CI66/'Inputs - General'!H$5 -> 0 | CP66: =CJ66/'Inputs - General'!I$5 -> 0
D67: Lamp - SON1x400 | E67: Lamp | F67: SON1x400 | G67: 1 | H67: 0 | I67: No | J67: 0 | K67: 0 | L67: 0 | N67: 0 | O67: 0 | P67: 0 | Q67: 0 | R67: 0 | S67: 0 | U67: =IFERROR(IF(N67-(($H67-SUM($CK67:CK67))/$K67)<0,N67,(($H67-SUM($CK67:CK67))/$K67)),0) -> 0 | V67: =IFERROR(IF(O67-(($H67-SUM($CK67:CL67))/$K67)<0,O67,(($H67-SUM($CK67:CL67))/$K67)),0) -> 0 | W67: =IFERROR(IF(P67-(($H67-SUM($CK67:CM67))/$K67)<0,P67,(($H67-SUM($CK67:CM67))/$K67)),0) -> 0 | X67: =IFERROR(IF(Q67-(($H67-SUM($CK67:CN67))/$K67)<0,Q67,(($H67-SUM($CK67:CN67))/$K67)),0) -> 0 | Y67: =IFERROR(IF(R67-(($H67-SUM($CK67:CO67))/$K67)<0,R67,(($H67-SUM($CK67:CO67))/$K67)),0) -> 0 | AA67: 0 | AB67: 0 | AC67: 0 | AD67: 0 | AE67: 0 | AF67: 0 | AH67: =AA67*'Inputs - General'!D$5 -> 0 | AI67: =AB67*'Inputs - General'!E$5 -> 0 | AJ67: =AC67*'Inputs - General'!F$5 -> 0 | AK67: =AD67*'Inputs - General'!G$5 -> 0 | AL67: =AE67*'Inputs - General'!H$5 -> 0 | AM67: =AF67*'Inputs - General'!I$5 -> 0 | AO67: =N67*'Inputs - General'!D$5 -> 0 | AP67: =O67*'Inputs - General'!E$5 -> 0 | AQ67: =P67*'Inputs - General'!F$5 -> 0 | AR67: =Q67*'Inputs - General'!G$5 -> 0 | AS67: =R67*'Inputs - General'!H$5 -> 0 | AT67: =S67*'Inputs - General'!I$5 -> 0 | AV67: =U67*'Inputs - General'!E$5 -> 0 | AW67: =V67*'Inputs - General'!F$5 -> 0 | AX67: =W67*'Inputs - General'!G$5 -> 0 | AY67: =X67*'Inputs - General'!H$5 -> 0 | AZ67: =Y67*'Inputs - General'!I$5 -> 0 | BB67: =AH67*'Inputs - General'!E$4 -> 0 | BC67: =AI67*'Inputs - General'!F$4 -> 0 | BD67: =AJ67*'Inputs - General'!G$4 -> 0 | BE67: =AK67*'Inputs - General'!H$4 -> 0 | BF67: =AL67*'Inputs - General'!I$4 -> 0 | BH67: 0 | BI67: 0 | BJ67: 0 | BK67: 0 | BL67: 0 | BN67: 0 | BO67: 0 | BP67: 0 | BQ67: 0 | BR67: 0 | BT67: ='Input - Customer Inventory FY15'!F66 -> 1 | BZ67: =IF($E67="Lamp",0,IF(SUM(BU67:$BY67)>=$BT67,0,IF(BN67<=0,IF($H67=0,0,$BT67),0))) -> 0 | CA67: =IF($E67="Lamp",0,IF(SUM($BU67:BZ67)>=$BT67,0,IF(BO67<=0,IF($H67=0,0,$BT67),0))) -> 0 | CB67: =IF($E67="Lamp",0,IF(SUM($BU67:CA67)>=$BT67,0,IF(BP67<=0,IF($H67=0,0,$BT67),0))) -> 0 | CC67: =IF($E67="Lamp",0,IF(SUM($BU67:CB67)>=$BT67,0,IF(BQ67<=0,IF($H67=0,0,$BT67),0))) -> 0 | CD67: =IF($E67="Lamp",0,IF(SUM($BU67:CC67)>=$BT67,0,IF(BR67<=0,IF($H67=0,0,$BT67),0))) -> 0 | CL67: =CF67/'Inputs - General'!E$5 -> 0 | CM67: =CG67/'Inputs - General'!F$5 -> 0 | CN67: =CH67/'Inputs - General'!G$5 -> 0 | CO67: =CI67/'Inputs - General'!H$5 -> 0 | CP67: =CJ67/'Inputs - General'!I$5 -> 0
D68: Lamp - SON1x400 | E68: Lamp | F68: SON1x400 | G68: 2 | H68: 0 | I68: No | J68: 0 | K68: 0 | L68: =IF(ISERROR(H68/K68),0,H68/K68) -> 0 | N68: =H68 -> 0 | O68: =N68-U68-CL68 -> 0 | P68: =O68-V68-CM68 -> 0 | Q68: =P68-W68-CN68 -> 0 | R68: =Q68-X68-CO68 -> 0 | S68: =R68-Y68-CP68 -> 0 | U68: =IFERROR(IF(N68-(($H68-SUM($CK68:CK68))/$K68)<0,N68,(($H68-SUM($CK68:CK68))/$K68)),0) -> 0 | V68: =IFERROR(IF(O68-(($H68-SUM($CK68:CL68))/$K68)<0,O68,(($H68-SUM($CK68:CL68))/$K68)),0) -> 0 | W68: =IFERROR(IF(P68-(($H68-SUM($CK68:CM68))/$K68)<0,P68,(($H68-SUM($CK68:CM68))/$K68)),0) -> 0 | X68: =IFERROR(IF(Q68-(($H68-SUM($CK68:CN68))/$K68)<0,Q68,(($H68-SUM($CK68:CN68))/$K68)),0) -> 0 | Y68: =IFERROR(IF(R68-(($H68-SUM($CK68:CO68))/$K68)<0,R68,(($H68-SUM($CK68:CO68))/$K68)),0) -> 0 | AA68: 0 | AB68: 0 | AC68: 0 | AD68: 0 | AE68: 0 | AF68: 0 | AH68: =AA68*'Inputs - General'!D$5 -> 0 | AI68: =AB68*'Inputs - General'!E$5 -> 0 | AJ68: =AC68*'Inputs - General'!F$5 -> 0 | AK68: =AD68*'Inputs - General'!G$5 -> 0 | AL68: =AE68*'Inputs - General'!H$5 -> 0 | AM68: =AF68*'Inputs - General'!I$5 -> 0 | AO68: =N68*'Inputs - General'!D$5 -> 0 | AP68: =O68*'Inputs - General'!E$5 -> 0 | AQ68: =P68*'Inputs - General'!F$5 -> 0 | AR68: =Q68*'Inputs - General'!G$5 -> 0 | AS68: =R68*'Inputs - General'!H$5 -> 0 | AT68: =S68*'Inputs - General'!I$5 -> 0 | AV68: =U68*'Inputs - General'!E$5 -> 0 | AW68: =V68*'Inputs - General'!F$5 -> 0 | AX68: =W68*'Inputs - General'!G$5 -> 0 | AY68: =X68*'Inputs - General'!H$5 -> 0 | AZ68: =Y68*'Inputs - General'!I$5 -> 0 | BB68: =AH68*'Inputs - General'!E$4 -> 0 | BC68: =AI68*'Inputs - General'!F$4 -> 0 | BD68: =AJ68*'Inputs - General'!G$4 -> 0 | BE68: =AK68*'Inputs - General'!H$4 -> 0 | BF68: =AL68*'Inputs - General'!I$4 -> 0 | BH68: 0 | BI68: 0 | BJ68: 0 | BK68: 0 | BL68: 0 | BN68: 0 | BO68: 0 | BP68: 0 | BQ68: 0 | BR68: 0 | BT68: ='Input - Customer Inventory FY15'!F67 -> 0 | BZ68: =IF($E68="Lamp",0,IF(SUM(BU68:$BY68)>=$BT68,0,IF(BN68<=0,IF($H68=0,0,$BT68),0))) -> 0 | CA68: =IF($E68="Lamp",0,IF(SUM($BU68:BZ68)>=$BT68,0,IF(BO68<=0,IF($H68=0,0,$BT68),0))) -> 0 | CB68: =IF($E68="Lamp",0,IF(SUM($BU68:CA68)>=$BT68,0,IF(BP68<=0,IF($H68=0,0,$BT68),0))) -> 0 | CC68: =IF($E68="Lamp",0,IF(SUM($BU68:CB68)>=$BT68,0,IF(BQ68<=0,IF($H68=0,0,$BT68),0))) -> 0 | CD68: =IF($E68="Lamp",0,IF(SUM($BU68:CC68)>=$BT68,0,IF(BR68<=0,IF($H68=0,0,$BT68),0))) -> 0 | CL68: =CF68/'Inputs - General'!E$5 -> 0 | CM68: =CG68/'Inputs - General'!F$5 -> 0 | CN68: =CH68/'Inputs - General'!G$5 -> 0 | CO68: =CI68/'Inputs - General'!H$5 -> 0 | CP68: =CJ68/'Inputs - General'!I$5 -> 0
D69: Lamp - SON1x50 | E69: Lamp | F69: SON1x50 | G69: 1 | H69: 0 | I69: No | J69: 0 | K69: =IF(I69="Yes",MIN(J69,$K$1),J69) -> 0 | L69: 0 | N69: 0 | O69: 0 | P69: 0 | Q69: 0 | R69: 0 | S69: 0 | U69: =IFERROR(IF(N69-(($H69-SUM($CK69:CK69))/$K69)<0,N69,(($H69-SUM($CK69:CK69))/$K69)),0) -> 0 | V69: =IFERROR(IF(O69-(($H69-SUM($CK69:CL69))/$K69)<0,O69,(($H69-SUM($CK69:CL69))/$K69)),0) -> 0 | W69: =IFERROR(IF(P69-(($H69-SUM($CK69:CM69))/$K69)<0,P69,(($H69-SUM($CK69:CM69))/$K69)),0) -> 0 | X69: =IFERROR(IF(Q69-(($H69-SUM($CK69:CN69))/$K69)<0,Q69,(($H69-SUM($CK69:CN69))/$K69)),0) -> 0 | Y69: =IFERROR(IF(R69-(($H69-SUM($CK69:CO69))/$K69)<0,R69,(($H69-SUM($CK69:CO69))/$K69)),0) -> 0 | AA69: =N69 -> 0 | AB69: =O69 -> 0 | AC69: =P69 -> 0 | AD69: =Q69 -> 0 | AE69: =R69 -> 0 | AF69: =S69 -> 0 | AH69: =AA69*'Inputs - General'!D$5 -> 0 | AI69: =AB69*'Inputs - General'!E$5 -> 0 | AJ69: =AC69*'Inputs - General'!F$5 -> 0 | AK69: =AD69*'Inputs - General'!G$5 -> 0 | AL69: =AE69*'Inputs - General'!H$5 -> 0 | AM69: =AF69*'Inputs - General'!I$5 -> 0 | AO69: =N69*'Inputs - General'!D$5 -> 0 | AP69: =O69*'Inputs - General'!E$5 -> 0 | AQ69: =P69*'Inputs - General'!F$5 -> 0 | AR69: =Q69*'Inputs - General'!G$5 -> 0 | AS69: =R69*'Inputs - General'!H$5 -> 0 | AT69: =S69*'Inputs - General'!I$5 -> 0 | AV69: =U69*'Inputs - General'!E$5 -> 0 | AW69: =V69*'Inputs - General'!F$5 -> 0 | AX69: =W69*'Inputs - General'!G$5 -> 0 | AY69: =X69*'Inputs - General'!H$5 -> 0 | AZ69: =Y69*'Inputs - General'!I$5 -> 0 | BB69: =AH69*'Inputs - General'!E$4 -> 0 | BC69: =AI69*'Inputs - General'!F$4 -> 0 | BD69: =AJ69*'Inputs - General'!G$4 -> 0 | BE69: =AK69*'Inputs - General'!H$4 -> 0 | BF69: =AL69*'Inputs - General'!I$4 -> 0 | BH69: =AV69-BB69 -> 0 | BI69: =AW69-BC69 -> 0 | BJ69: =AX69-BD69 -> 0 | BK69: =AY69-BE69 -> 0 | BL69: =AZ69-BF69 -> 0 | BN69: =AH69*WACC -> 0 | BO69: =AI69*WACC -> 0 | BP69: =AJ69*WACC -> 0 | BQ69: =AK69*WACC -> 0 | BR69: =AL69*WACC -> 0 | BT69: ='Input - Customer Inventory FY15'!F68 -> 0 | BZ69: =IF($E69="Lamp",0,IF(SUM(BU69:$BY69)>=$BT69,0,IF(BN69<=0,IF($H69=0,0,$BT69),0))) -> 0 | CA69: =IF($E69="Lamp",0,IF(SUM($BU69:BZ69)>=$BT69,0,IF(BO69<=0,IF($H69=0,0,$BT69),0))) -> 0 | CB69: =IF($E69="Lamp",0,IF(SUM($BU69:CA69)>=$BT69,0,IF(BP69<=0,IF($H69=0,0,$BT69),0))) -> 0 | CC69: =IF($E69="Lamp",0,IF(SUM($BU69:CB69)>=$BT69,0,IF(BQ69<=0,IF($H69=0,0,$BT69),0))) -> 0 | CD69: =IF($E69="Lamp",0,IF(SUM($BU69:CC69)>=$BT69,0,IF(BR69<=0,IF($H69=0,0,$BT69),0))) -> 0 | CL69: =CF69/'Inputs - General'!E$5 -> 0 | CM69: =CG69/'Inputs - General'!F$5 -> 0 | CN69: =CH69/'Inputs - General'!G$5 -> 0 | CO69: =CI69/'Inputs - General'!H$5 -> 0 | CP69: =CJ69/'Inputs - General'!I$5 -> 0
D70: Lamp - SON1x70 | E70: Lamp | F70: SON1x70 | G70: 1 | H70: 0 | I70: No | J70: 0 | K70: 0 | L70: 0 | N70: 0 | O70: 0 | P70: 0 | Q70: 0 | R70: 0 | S70: 0 | U70: =IFERROR(IF(N70-(($H70-SUM($CK70:CK70))/$K70)<0,N70,(($H70-SUM($CK70:CK70))/$K70)),0) -> 0 | V70: =IFERROR(IF(O70-(($H70-SUM($CK70:CL70))/$K70)<0,O70,(($H70-SUM($CK70:CL70))/$K70)),0) -> 0 | W70: =IFERROR(IF(P70-(($H70-SUM($CK70:CM70))/$K70)<0,P70,(($H70-SUM($CK70:CM70))/$K70)),0) -> 0 | X70: =IFERROR(IF(Q70-(($H70-SUM($CK70:CN70))/$K70)<0,Q70,(($H70-SUM($CK70:CN70))/$K70)),0) -> 0 | Y70: =IFERROR(IF(R70-(($H70-SUM($CK70:CO70))/$K70)<0,R70,(($H70-SUM($CK70:CO70))/$K70)),0) -> 0 | AA70: 0 | AB70: 0 | AC70: 0 | AD70: 0 | AE70: 0 | AF70: 0 | AH70: =AA70*'Inputs - General'!D$5 -> 0 | AI70: =AB70*'Inputs - General'!E$5 -> 0 | AJ70: =AC70*'Inputs - General'!F$5 -> 0 | AK70: =AD70*'Inputs - General'!G$5 -> 0 | AL70: =AE70*'Inputs - General'!H$5 -> 0 | AM70: =AF70*'Inputs - General'!I$5 -> 0 | AO70: =N70*'Inputs - General'!D$5 -> 0 | AP70: =O70*'Inputs - General'!E$5 -> 0 | AQ70: =P70*'Inputs - General'!F$5 -> 0 | AR70: =Q70*'Inputs - General'!G$5 -> 0 | AS70: =R70*'Inputs - General'!H$5 -> 0 | AT70: =S70*'Inputs - General'!I$5 -> 0 | AV70: =U70*'Inputs - General'!E$5 -> 0 | AW70: =V70*'Inputs - General'!F$5 -> 0 | AX70: =W70*'Inputs - General'!G$5 -> 0 | AY70: =X70*'Inputs - General'!H$5 -> 0 | AZ70: =Y70*'Inputs - General'!I$5 -> 0 | BB70: =AH70*'Inputs - General'!E$4 -> 0 | BC70: =AI70*'Inputs - General'!F$4 -> 0 | BD70: =AJ70*'Inputs - General'!G$4 -> 0 | BE70: =AK70*'Inputs - General'!H$4 -> 0 | BF70: =AL70*'Inputs - General'!I$4 -> 0 | BH70: 0 | BI70: 0 | BJ70: 0 | BK70: 0 | BL70: 0 | BN70: 0 | BO70: 0 | BP70: 0 | BQ70: 0 | BR70: 0 | BT70: ='Input - Customer Inventory FY15'!F69 -> 0 | BZ70: =IF($E70="Lamp",0,IF(SUM(BU70:$BY70)>=$BT70,0,IF(BN70<=0,IF($H70=0,0,$BT70),0))) -> 0 | CA70: =IF($E70="Lamp",0,IF(SUM($BU70:BZ70)>=$BT70,0,IF(BO70<=0,IF($H70=0,0,$BT70),0))) -> 0 | CB70: =IF($E70="Lamp",0,IF(SUM($BU70:CA70)>=$BT70,0,IF(BP70<=0,IF($H70=0,0,$BT70),0))) -> 0 | CC70: =IF($E70="Lamp",0,IF(SUM($BU70:CB70)>=$BT70,0,IF(BQ70<=0,IF($H70=0,0,$BT70),0))) -> 0 | CD70: =IF($E70="Lamp",0,IF(SUM($BU70:CC70)>=$BT70,0,IF(BR70<=0,IF($H70=0,0,$BT70),0))) -> 0 | CL70: =CF70/'Inputs - General'!E$5 -> 0 | CM70: =CG70/'Inputs - General'!F$5 -> 0 | CN70: =CH70/'Inputs - General'!G$5 -> 0 | CO70: =CI70/'Inputs - General'!H$5 -> 0 | CP70: =CJ70/'Inputs - General'!I$5 -> 0
D71: Lamp - TF1x20 | E71: Lamp | F71: TF1x20 | G71: 3 | H71: 0 | I71: No | J71: 0 | K71: 0 | L71: 0 | N71: 0 | O71: 0 | P71: 0 | Q71: 0 | R71: 0 | S71: 0 | U71: =IFERROR(IF(N71-(($H71-SUM($CK71:CK71))/$K71)<0,N71,(($H71-SUM($CK71:CK71))/$K71)),0) -> 0 | V71: =IFERROR(IF(O71-(($H71-SUM($CK71:CL71))/$K71)<0,O71,(($H71-SUM($CK71:CL71))/$K71)),0) -> 0 | W71: =IFERROR(IF(P71-(($H71-SUM($CK71:CM71))/$K71)<0,P71,(($H71-SUM($CK71:CM71))/$K71)),0) -> 0 | X71: =IFERROR(IF(Q71-(($H71-SUM($CK71:CN71))/$K71)<0,Q71,(($H71-SUM($CK71:CN71))/$K71)),0) -> 0 | Y71: =IFERROR(IF(R71-(($H71-SUM($CK71:CO71))/$K71)<0,R71,(($H71-SUM($CK71:CO71))/$K71)),0) -> 0 | AA71: 0 | AB71: 0 | AC71: 0 | AD71: 0 | AE71: 0 | AF71: 0 | AH71: =AA71*'Inputs - General'!D$5 -> 0 | AI71: =AB71*'Inputs - General'!E$5 -> 0 | AJ71: =AC71*'Inputs - General'!F$5 -> 0 | AK71: =AD71*'Inputs - General'!G$5 -> 0 | AL71: =AE71*'Inputs - General'!H$5 -> 0 | AM71: =AF71*'Inputs - General'!I$5 -> 0 | AO71: =N71*'Inputs - General'!D$5 -> 0 | AP71: =O71*'Inputs - General'!E$5 -> 0 | AQ71: =P71*'Inputs - General'!F$5 -> 0 | AR71: =Q71*'Inputs - General'!G$5 -> 0 | AS71: =R71*'Inputs - General'!H$5 -> 0 | AT71: =S71*'Inputs - General'!I$5 -> 0 | AV71: =U71*'Inputs - General'!E$5 -> 0 | AW71: =V71*'Inputs - General'!F$5 -> 0 | AX71: =W71*'Inputs - General'!G$5 -> 0 | AY71: =X71*'Inputs - General'!H$5 -> 0 | AZ71: =Y71*'Inputs - General'!I$5 -> 0 | BB71: =AH71*'Inputs - General'!E$4 -> 0 | BC71: =AI71*'Inputs - General'!F$4 -> 0 | BD71: =AJ71*'Inputs - General'!G$4 -> 0 | BE71: =AK71*'Inputs - General'!H$4 -> 0 | BF71: =AL71*'Inputs - General'!I$4 -> 0 | BH71: 0 | BI71: 0 | BJ71: 0 | BK71: 0 | BL71: 0 | BN71: 0 | BO71: 0 | BP71: 0 | BQ71: 0 | BR71: 0 | BT71: ='Input - Customer Inventory FY15'!F70 -> 5 | BZ71: =IF($E71="Lamp",0,IF(SUM(BU71:$BY71)>=$BT71,0,IF(BN71<=0,IF($H71=0,0,$BT71),0))) -> 0 | CA71: =IF($E71="Lamp",0,IF(SUM($BU71:BZ71)>=$BT71,0,IF(BO71<=0,IF($H71=0,0,$BT71),0))) -> 0 | CB71: =IF($E71="Lamp",0,IF(SUM($BU71:CA71)>=$BT71,0,IF(BP71<=0,IF($H71=0,0,$BT71),0))) -> 0 | CC71: =IF($E71="Lamp",0,IF(SUM($BU71:CB71)>=$BT71,0,IF(BQ71<=0,IF($H71=0,0,$BT71),0))) -> 0 | CD71: =IF($E71="Lamp",0,IF(SUM($BU71:CC71)>=$BT71,0,IF(BR71<=0,IF($H71=0,0,$BT71),0))) -> 0 | CL71: =CF71/'Inputs - General'!E$5 -> 0 | CM71: =CG71/'Inputs - General'!F$5 -> 0 | CN71: =CH71/'Inputs - General'!G$5 -> 0 | CO71: =CI71/'Inputs - General'!H$5 -> 0 | CP71: =CJ71/'Inputs - General'!I$5 -> 0
D72: Lamp - TF1x40 | E72: Lamp | F72: TF1x40 | G72: 1 | H72: 0 | I72: No | J72: 0 | K72: 0 | L72: 0 | N72: 0 | O72: 0 | P72: 0 | Q72: 0 | R72: 0 | S72: 0 | U72: =IFERROR(IF(N72-(($H72-SUM($CK72:CK72))/$K72)<0,N72,(($H72-SUM($CK72:CK72))/$K72)),0) -> 0 | V72: =IFERROR(IF(O72-(($H72-SUM($CK72:CL72))/$K72)<0,O72,(($H72-SUM($CK72:CL72))/$K72)),0) -> 0 | W72: =IFERROR(IF(P72-(($H72-SUM($CK72:CM72))/$K72)<0,P72,(($H72-SUM($CK72:CM72))/$K72)),0) -> 0 | X72: =IFERROR(IF(Q72-(($H72-SUM($CK72:CN72))/$K72)<0,Q72,(($H72-SUM($CK72:CN72))/$K72)),0) -> 0 | Y72: =IFERROR(IF(R72-(($H72-SUM($CK72:CO72))/$K72)<0,R72,(($H72-SUM($CK72:CO72))/$K72)),0) -> 0 | AA72: 0 | AB72: 0 | AC72: 0 | AD72: 0 | AE72: 0 | AF72: 0 | AH72: =AA72*'Inputs - General'!D$5 -> 0 | AI72: =AB72*'Inputs - General'!E$5 -> 0 | AJ72: =AC72*'Inputs - General'!F$5 -> 0 | AK72: =AD72*'Inputs - General'!G$5 -> 0 | AL72: =AE72*'Inputs - General'!H$5 -> 0 | AM72: =AF72*'Inputs - General'!I$5 -> 0 | AO72: =N72*'Inputs - General'!D$5 -> 0 | AP72: =O72*'Inputs - General'!E$5 -> 0 | AQ72: =P72*'Inputs - General'!F$5 -> 0 | AR72: =Q72*'Inputs - General'!G$5 -> 0 | AS72: =R72*'Inputs - General'!H$5 -> 0 | AT72: =S72*'Inputs - General'!I$5 -> 0 | AV72: =U72*'Inputs - General'!E$5 -> 0 | AW72: =V72*'Inputs - General'!F$5 -> 0 | AX72: =W72*'Inputs - General'!G$5 -> 0 | AY72: =X72*'Inputs - General'!H$5 -> 0 | AZ72: =Y72*'Inputs - General'!I$5 -> 0 | BB72: =AH72*'Inputs - General'!E$4 -> 0 | BC72: =AI72*'Inputs - General'!F$4 -> 0 | BD72: =AJ72*'Inputs - General'!G$4 -> 0 | BE72: =AK72*'Inputs - General'!H$4 -> 0 | BF72: =AL72*'Inputs - General'!I$4 -> 0 | BH72: 0 | BI72: 0 | BJ72: 0 | BK72: 0 | BL72: 0 | BN72: 0 | BO72: 0 | BP72: 0 | BQ72: 0 | BR72: 0 | BT72: ='Input - Customer Inventory FY15'!F71 -> 1 | BZ72: =IF($E72="Lamp",0,IF(SUM(BU72:$BY72)>=$BT72,0,IF(BN72<=0,IF($H72=0,0,$BT72),0))) -> 0 | CA72: =IF($E72="Lamp",0,IF(SUM($BU72:BZ72)>=$BT72,0,IF(BO72<=0,IF($H72=0,0,$BT72),0))) -> 0 | CB72: =IF($E72="Lamp",0,IF(SUM($BU72:CA72)>=$BT72,0,IF(BP72<=0,IF($H72=0,0,$BT72),0))) -> 0 | CC72: =IF($E72="Lamp",0,IF(SUM($BU72:CB72)>=$BT72,0,IF(BQ72<=0,IF($H72=0,0,$BT72),0))) -> 0 | CD72: =IF($E72="Lamp",0,IF(SUM($BU72:CC72)>=$BT72,0,IF(BR72<=0,IF($H72=0,0,$BT72),0))) -> 0 | CL72: =CF72/'Inputs - General'!E$5 -> 0 | CM72: =CG72/'Inputs - General'!F$5 -> 0 | CN72: =CH72/'Inputs - General'!G$5 -> 0 | CO72: =CI72/'Inputs - General'!H$5 -> 0 | CP72: =CJ72/'Inputs - General'!I$5 -> 0
D73: Lamp - TF1x80 | E73: Lamp | F73: TF1x80 | G73: 1 | H73: 0 | I73: No | J73: 0 | K73: 0 | L73: 0 | N73: 0 | O73: 0 | P73: 0 | Q73: 0 | R73: 0 | S73: 0 | U73: =IFERROR(IF(N73-(($H73-SUM($CK73:CK73))/$K73)<0,N73,(($H73-SUM($CK73:CK73))/$K73)),0) -> 0 | V73: =IFERROR(IF(O73-(($H73-SUM($CK73:CL73))/$K73)<0,O73,(($H73-SUM($CK73:CL73))/$K73)),0) -> 0 | W73: =IFERROR(IF(P73-(($H73-SUM($CK73:CM73))/$K73)<0,P73,(($H73-SUM($CK73:CM73))/$K73)),0) -> 0 | X73: =IFERROR(IF(Q73-(($H73-SUM($CK73:CN73))/$K73)<0,Q73,(($H73-SUM($CK73:CN73))/$K73)),0) -> 0 | Y73: =IFERROR(IF(R73-(($H73-SUM($CK73:CO73))/$K73)<0,R73,(($H73-SUM($CK73:CO73))/$K73)),0) -> 0 | AA73: 0 | AB73: 0 | AC73: 0 | AD73: 0 | AE73: 0 | AF73: 0 | AH73: =AA73*'Inputs - General'!D$5 -> 0 | AI73: =AB73*'Inputs - General'!E$5 -> 0 | AJ73: =AC73*'Inputs - General'!F$5 -> 0 | AK73: =AD73*'Inputs - General'!G$5 -> 0 | AL73: =AE73*'Inputs - General'!H$5 -> 0 | AM73: =AF73*'Inputs - General'!I$5 -> 0 | AO73: =N73*'Inputs - General'!D$5 -> 0 | AP73: =O73*'Inputs - General'!E$5 -> 0 | AQ73: =P73*'Inputs - General'!F$5 -> 0 | AR73: =Q73*'Inputs - General'!G$5 -> 0 | AS73: =R73*'Inputs - General'!H$5 -> 0 | AT73: =S73*'Inputs - General'!I$5 -> 0 | AV73: =U73*'Inputs - General'!E$5 -> 0 | AW73: =V73*'Inputs - General'!F$5 -> 0 | AX73: =W73*'Inputs - General'!G$5 -> 0 | AY73: =X73*'Inputs - General'!H$5 -> 0 | AZ73: =Y73*'Inputs - General'!I$5 -> 0 | BB73: =AH73*'Inputs - General'!E$4 -> 0 | BC73: =AI73*'Inputs - General'!F$4 -> 0 | BD73: =AJ73*'Inputs - General'!G$4 -> 0 | BE73: =AK73*'Inputs - General'!H$4 -> 0 | BF73: =AL73*'Inputs - General'!I$4 -> 0 | BH73: 0 | BI73: 0 | BJ73: 0 | BK73: 0 | BL73: 0 | BN73: 0 | BO73: 0 | BP73: 0 | BQ73: 0 | BR73: 0 | BT73: ='Input - Customer Inventory FY15'!F72 -> 0 | BZ73: =IF($E73="Lamp",0,IF(SUM(BU73:$BY73)>=$BT73,0,IF(BN73<=0,IF($H73=0,0,$BT73),0))) -> 0 | CA73: =IF($E73="Lamp",0,IF(SUM($BU73:BZ73)>=$BT73,0,IF(BO73<=0,IF($H73=0,0,$BT73),0))) -> 0 | CB73: =IF($E73="Lamp",0,IF(SUM($BU73:CA73)>=$BT73,0,IF(BP73<=0,IF($H73=0,0,$BT73),0))) -> 0 | CC73: =IF($E73="Lamp",0,IF(SUM($BU73:CB73)>=$BT73,0,IF(BQ73<=0,IF($H73=0,0,$BT73),0))) -> 0 | CD73: =IF($E73="Lamp",0,IF(SUM($BU73:CC73)>=$BT73,0,IF(BR73<=0,IF($H73=0,0,$BT73),0))) -> 0 | CL73: =CF73/'Inputs - General'!E$5 -> 0 | CM73: =CG73/'Inputs - General'!F$5 -> 0 | CN73: =CH73/'Inputs - General'!G$5 -> 0 | CO73: =CI73/'Inputs - General'!H$5 -> 0 | CP73: =CJ73/'Inputs - General'!I$5 -> 0
D74: Lamp - TF2x20 | E74: Lamp | F74: TF2x20 | G74: 1 | H74: 0 | I74: No | J74: 0 | K74: 0 | L74: 0 | N74: 0 | O74: 0 | P74: 0 | Q74: 0 | R74: 0 | S74: 0 | U74: =IFERROR(IF(N74-(($H74-SUM($CK74:CK74))/$K74)<0,N74,(($H74-SUM($CK74:CK74))/$K74)),0) -> 0 | V74: =IFERROR(IF(O74-(($H74-SUM($CK74:CL74))/$K74)<0,O74,(($H74-SUM($CK74:CL74))/$K74)),0) -> 0 | W74: =IFERROR(IF(P74-(($H74-SUM($CK74:CM74))/$K74)<0,P74,(($H74-SUM($CK74:CM74))/$K74)),0) -> 0 | X74: =IFERROR(IF(Q74-(($H74-SUM($CK74:CN74))/$K74)<0,Q74,(($H74-SUM($CK74:CN74))/$K74)),0) -> 0 | Y74: =IFERROR(IF(R74-(($H74-SUM($CK74:CO74))/$K74)<0,R74,(($H74-SUM($CK74:CO74))/$K74)),0) -> 0 | AA74: 0 | AB74: 0 | AC74: 0 | AD74: 0 | AE74: 0 | AF74: 0 | AH74: =AA74*'Inputs - General'!D$5 -> 0 | AI74: =AB74*'Inputs - General'!E$5 -> 0 | AJ74: =AC74*'Inputs - General'!F$5 -> 0 | AK74: =AD74*'Inputs - General'!G$5 -> 0 | AL74: =AE74*'Inputs - General'!H$5 -> 0 | AM74: =AF74*'Inputs - General'!I$5 -> 0 | AO74: =N74*'Inputs - General'!D$5 -> 0 | AP74: =O74*'Inputs - General'!E$5 -> 0 | AQ74: =P74*'Inputs - General'!F$5 -> 0 | AR74: =Q74*'Inputs - General'!G$5 -> 0 | AS74: =R74*'Inputs - General'!H$5 -> 0 | AT74: =S74*'Inputs - General'!I$5 -> 0 | AV74: =U74*'Inputs - General'!E$5 -> 0 | AW74: =V74*'Inputs - General'!F$5 -> 0 | AX74: =W74*'Inputs - General'!G$5 -> 0 | AY74: =X74*'Inputs - General'!H$5 -> 0 | AZ74: =Y74*'Inputs - General'!I$5 -> 0 | BB74: =AH74*'Inputs - General'!E$4 -> 0 | BC74: =AI74*'Inputs - General'!F$4 -> 0 | BD74: =AJ74*'Inputs - General'!G$4 -> 0 | BE74: =AK74*'Inputs - General'!H$4 -> 0 | BF74: =AL74*'Inputs - General'!I$4 -> 0 | BH74: 0 | BI74: 0 | BJ74: 0 | BK74: 0 | BL74: 0 | BN74: 0 | BO74: 0 | BP74: 0 | BQ74: 0 | BR74: 0 | BT74: ='Input - Customer Inventory FY15'!F73 -> 4 | BZ74: =IF($E74="Lamp",0,IF(SUM(BU74:$BY74)>=$BT74,0,IF(BN74<=0,IF($H74=0,0,$BT74),0))) -> 0 | CA74: =IF($E74="Lamp",0,IF(SUM($BU74:BZ74)>=$BT74,0,IF(BO74<=0,IF($H74=0,0,$BT74),0))) -> 0 | CB74: =IF($E74="Lamp",0,IF(SUM($BU74:CA74)>=$BT74,0,IF(BP74<=0,IF($H74=0,0,$BT74),0))) -> 0 | CC74: =IF($E74="Lamp",0,IF(SUM($BU74:CB74)>=$BT74,0,IF(BQ74<=0,IF($H74=0,0,$BT74),0))) -> 0 | CD74: =IF($E74="Lamp",0,IF(SUM($BU74:CC74)>=$BT74,0,IF(BR74<=0,IF($H74=0,0,$BT74),0))) -> 0 | CL74: =CF74/'Inputs - General'!E$5 -> 0 | CM74: =CG74/'Inputs - General'!F$5 -> 0 | CN74: =CH74/'Inputs - General'!G$5 -> 0 | CO74: =CI74/'Inputs - General'!H$5 -> 0 | CP74: =CJ74/'Inputs - General'!I$5 -> 0
D75: Lamp - TF2x20 | E75: Lamp | F75: TF2x20 | G75: 3 | H75: 0 | I75: No | J75: 0 | K75: 0 | L75: 0 | N75: 0 | O75: 0 | P75: 0 | Q75: 0 | R75: 0 | S75: 0 | U75: =IFERROR(IF(N75-(($H75-SUM($CK75:CK75))/$K75)<0,N75,(($H75-SUM($CK75:CK75))/$K75)),0) -> 0 | V75: =IFERROR(IF(O75-(($H75-SUM($CK75:CL75))/$K75)<0,O75,(($H75-SUM($CK75:CL75))/$K75)),0) -> 0 | W75: =IFERROR(IF(P75-(($H75-SUM($CK75:CM75))/$K75)<0,P75,(($H75-SUM($CK75:CM75))/$K75)),0) -> 0 | X75: =IFERROR(IF(Q75-(($H75-SUM($CK75:CN75))/$K75)<0,Q75,(($H75-SUM($CK75:CN75))/$K75)),0) -> 0 | Y75: =IFERROR(IF(R75-(($H75-SUM($CK75:CO75))/$K75)<0,R75,(($H75-SUM($CK75:CO75))/$K75)),0) -> 0 | AA75: 0 | AB75: 0 | AC75: 0 | AD75: 0 | AE75: 0 | AF75: 0 | AH75: =AA75*'Inputs - General'!D$5 -> 0 | AI75: =AB75*'Inputs - General'!E$5 -> 0 | AJ75: =AC75*'Inputs - General'!F$5 -> 0 | AK75: =AD75*'Inputs - General'!G$5 -> 0 | AL75: =AE75*'Inputs - General'!H$5 -> 0 | AM75: =AF75*'Inputs - General'!I$5 -> 0 | AO75: =N75*'Inputs - General'!D$5 -> 0 | AP75: =O75*'Inputs - General'!E$5 -> 0 | AQ75: =P75*'Inputs - General'!F$5 -> 0 | AR75: =Q75*'Inputs - General'!G$5 -> 0 | AS75: =R75*'Inputs - General'!H$5 -> 0 | AT75: =S75*'Inputs - General'!I$5 -> 0 | AV75: =U75*'Inputs - General'!E$5 -> 0 | AW75: =V75*'Inputs - General'!F$5 -> 0 | AX75: =W75*'Inputs - General'!G$5 -> 0 | AY75: =X75*'Inputs - General'!H$5 -> 0 | AZ75: =Y75*'Inputs - General'!I$5 -> 0 | BB75: =AH75*'Inputs - General'!E$4 -> 0 | BC75: =AI75*'Inputs - General'!F$4 -> 0 | BD75: =AJ75*'Inputs - General'!G$4 -> 0 | BE75: =AK75*'Inputs - General'!H$4 -> 0 | BF75: =AL75*'Inputs - General'!I$4 -> 0 | BH75: 0 | BI75: 0 | BJ75: 0 | BK75: 0 | BL75: 0 | BN75: 0 | BO75: 0 | BP75: 0 | BQ75: 0 | BR75: 0 | BT75: ='Input - Customer Inventory FY15'!F74 -> 2 | BZ75: =IF($E75="Lamp",0,IF(SUM(BU75:$BY75)>=$BT75,0,IF(BN75<=0,IF($H75=0,0,$BT75),0))) -> 0 | CA75: =IF($E75="Lamp",0,IF(SUM($BU75:BZ75)>=$BT75,0,IF(BO75<=0,IF($H75=0,0,$BT75),0))) -> 0 | CB75: =IF($E75="Lamp",0,IF(SUM($BU75:CA75)>=$BT75,0,IF(BP75<=0,IF($H75=0,0,$BT75),0))) -> 0 | CC75: =IF($E75="Lamp",0,IF(SUM($BU75:CB75)>=$BT75,0,IF(BQ75<=0,IF($H75=0,0,$BT75),0))) -> 0 | CD75: =IF($E75="Lamp",0,IF(SUM($BU75:CC75)>=$BT75,0,IF(BR75<=0,IF($H75=0,0,$BT75),0))) -> 0 | CL75: =CF75/'Inputs - General'!E$5 -> 0 | CM75: =CG75/'Inputs - General'!F$5 -> 0 | CN75: =CH75/'Inputs - General'!G$5 -> 0 | CO75: =CI75/'Inputs - General'!H$5 -> 0 | CP75: =CJ75/'Inputs - General'!I$5 -> 0
D76: Lamp - TF2x40 | E76: Lamp | F76: TF2x40 | G76: 1 | H76: 0 | I76: No | J76: 0 | K76: 0 | L76: 0 | N76: 0 | O76: 0 | P76: 0 | Q76: 0 | R76: 0 | S76: 0 | U76: =IFERROR(IF(N76-(($H76-SUM($CK76:CK76))/$K76)<0,N76,(($H76-SUM($CK76:CK76))/$K76)),0) -> 0 | V76: =IFERROR(IF(O76-(($H76-SUM($CK76:CL76))/$K76)<0,O76,(($H76-SUM($CK76:CL76))/$K76)),0) -> 0 | W76: =IFERROR(IF(P76-(($H76-SUM($CK76:CM76))/$K76)<0,P76,(($H76-SUM($CK76:CM76))/$K76)),0) -> 0 | X76: =IFERROR(IF(Q76-(($H76-SUM($CK76:CN76))/$K76)<0,Q76,(($H76-SUM($CK76:CN76))/$K76)),0) -> 0 | Y76: =IFERROR(IF(R76-(($H76-SUM($CK76:CO76))/$K76)<0,R76,(($H76-SUM($CK76:CO76))/$K76)),0) -> 0 | AA76: 0 | AB76: 0 | AC76: 0 | AD76: 0 | AE76: 0 | AF76: 0 | AH76: =AA76*'Inputs - General'!D$5 -> 0 | AI76: =AB76*'Inputs - General'!E$5 -> 0 | AJ76: =AC76*'Inputs - General'!F$5 -> 0 | AK76: =AD76*'Inputs - General'!G$5 -> 0 | AL76: =AE76*'Inputs - General'!H$5 -> 0 | AM76: =AF76*'Inputs - General'!I$5 -> 0 | AO76: =N76*'Inputs - General'!D$5 -> 0 | AP76: =O76*'Inputs - General'!E$5 -> 0 | AQ76: =P76*'Inputs - General'!F$5 -> 0 | AR76: =Q76*'Inputs - General'!G$5 -> 0 | AS76: =R76*'Inputs - General'!H$5 -> 0 | AT76: =S76*'Inputs - General'!I$5 -> 0 | AV76: =U76*'Inputs - General'!E$5 -> 0 | AW76: =V76*'Inputs - General'!F$5 -> 0 | AX76: =W76*'Inputs - General'!G$5 -> 0 | AY76: =X76*'Inputs - General'!H$5 -> 0 | AZ76: =Y76*'Inputs - General'!I$5 -> 0 | BB76: =AH76*'Inputs - General'!E$4 -> 0 | BC76: =AI76*'Inputs - General'!F$4 -> 0 | BD76: =AJ76*'Inputs - General'!G$4 -> 0 | BE76: =AK76*'Inputs - General'!H$4 -> 0 | BF76: =AL76*'Inputs - General'!I$4 -> 0 | BH76: 0 | BI76: 0 | BJ76: 0 | BK76: 0 | BL76: 0 | BN76: 0 | BO76: 0 | BP76: 0 | BQ76: 0 | BR76: 0 | BT76: ='Input - Customer Inventory FY15'!F75 -> 0 | BZ76: =IF($E76="Lamp",0,IF(SUM(BU76:$BY76)>=$BT76,0,IF(BN76<=0,IF($H76=0,0,$BT76),0))) -> 0 | CA76: =IF($E76="Lamp",0,IF(SUM($BU76:BZ76)>=$BT76,0,IF(BO76<=0,IF($H76=0,0,$BT76),0))) -> 0 | CB76: =IF($E76="Lamp",0,IF(SUM($BU76:CA76)>=$BT76,0,IF(BP76<=0,IF($H76=0,0,$BT76),0))) -> 0 | CC76: =IF($E76="Lamp",0,IF(SUM($BU76:CB76)>=$BT76,0,IF(BQ76<=0,IF($H76=0,0,$BT76),0))) -> 0 | CD76: =IF($E76="Lamp",0,IF(SUM($BU76:CC76)>=$BT76,0,IF(BR76<=0,IF($H76=0,0,$BT76),0))) -> 0 | CL76: =CF76/'Inputs - General'!E$5 -> 0 | CM76: =CG76/'Inputs - General'!F$5 -> 0 | CN76: =CH76/'Inputs - General'!G$5 -> 0 | CO76: =CI76/'Inputs - General'!H$5 -> 0 | CP76: =CJ76/'Inputs - General'!I$5 -> 0
D77: Lamp - TF2x40 | E77: Lamp | F77: TF2x40 | G77: 2 | H77: 0 | I77: No | J77: 0 | K77: 0 | L77: 0 | N77: 0 | O77: 0 | P77: 0 | Q77: 0 | R77: 0 | S77: 0 | U77: =IFERROR(IF(N77-(($H77-SUM($CK77:CK77))/$K77)<0,N77,(($H77-SUM($CK77:CK77))/$K77)),0) -> 0 | V77: =IFERROR(IF(O77-(($H77-SUM($CK77:CL77))/$K77)<0,O77,(($H77-SUM($CK77:CL77))/$K77)),0) -> 0 | W77: =IFERROR(IF(P77-(($H77-SUM($CK77:CM77))/$K77)<0,P77,(($H77-SUM($CK77:CM77))/$K77)),0) -> 0 | X77: =IFERROR(IF(Q77-(($H77-SUM($CK77:CN77))/$K77)<0,Q77,(($H77-SUM($CK77:CN77))/$K77)),0) -> 0 | Y77: =IFERROR(IF(R77-(($H77-SUM($CK77:CO77))/$K77)<0,R77,(($H77-SUM($CK77:CO77))/$K77)),0) -> 0 | AA77: 0 | AB77: 0 | AC77: 0 | AD77: 0 | AE77: 0 | AF77: 0 | AH77: =AA77*'Inputs - General'!D$5 -> 0 | AI77: =AB77*'Inputs - General'!E$5 -> 0 | AJ77: =AC77*'Inputs - General'!F$5 -> 0 | AK77: =AD77*'Inputs - General'!G$5 -> 0 | AL77: =AE77*'Inputs - General'!H$5 -> 0 | AM77: =AF77*'Inputs - General'!I$5 -> 0 | AO77: =N77*'Inputs - General'!D$5 -> 0 | AP77: =O77*'Inputs - General'!E$5 -> 0 | AQ77: =P77*'Inputs - General'!F$5 -> 0 | AR77: =Q77*'Inputs - General'!G$5 -> 0 | AS77: =R77*'Inputs - General'!H$5 -> 0 | AT77: =S77*'Inputs - General'!I$5 -> 0 | AV77: =U77*'Inputs - General'!E$5 -> 0 | AW77: =V77*'Inputs - General'!F$5 -> 0 | AX77: =W77*'Inputs - General'!G$5 -> 0 | AY77: =X77*'Inputs - General'!H$5 -> 0 | AZ77: =Y77*'Inputs - General'!I$5 -> 0 | BB77: =AH77*'Inputs - General'!E$4 -> 0 | BC77: =AI77*'Inputs - General'!F$4 -> 0 | BD77: =AJ77*'Inputs - General'!G$4 -> 0 | BE77: =AK77*'Inputs - General'!H$4 -> 0 | BF77: =AL77*'Inputs - General'!I$4 -> 0 | BH77: 0 | BI77: 0 | BJ77: 0 | BK77: 0 | BL77: 0 | BN77: 0 | BO77: 0 | BP77: 0 | BQ77: 0 | BR77: 0 | BT77: ='Input - Customer Inventory FY15'!F76 -> 0 | BZ77: =IF($E77="Lamp",0,IF(SUM(BU77:$BY77)>=$BT77,0,IF(BN77<=0,IF($H77=0,0,$BT77),0))) -> 0 | CA77: =IF($E77="Lamp",0,IF(SUM($BU77:BZ77)>=$BT77,0,IF(BO77<=0,IF($H77=0,0,$BT77),0))) -> 0 | CB77: =IF($E77="Lamp",0,IF(SUM($BU77:CA77)>=$BT77,0,IF(BP77<=0,IF($H77=0,0,$BT77),0))) -> 0 | CC77: =IF($E77="Lamp",0,IF(SUM($BU77:CB77)>=$BT77,0,IF(BQ77<=0,IF($H77=0,0,$BT77),0))) -> 0 | CD77: =IF($E77="Lamp",0,IF(SUM($BU77:CC77)>=$BT77,0,IF(BR77<=0,IF($H77=0,0,$BT77),0))) -> 0 | CL77: =CF77/'Inputs - General'!E$5 -> 0 | CM77: =CG77/'Inputs - General'!F$5 -> 0 | CN77: =CH77/'Inputs - General'!G$5 -> 0 | CO77: =CI77/'Inputs - General'!H$5 -> 0 | CP77: =CJ77/'Inputs - General'!I$5 -> 0
D78: Lamp - TF4x20 | E78: Lamp | F78: TF4x20 | G78: 1 | H78: 0 | I78: No | J78: 0 | K78: 0 | L78: 0 | N78: 0 | O78: 0 | P78: 0 | Q78: 0 | R78: 0 | S78: 0 | U78: =IFERROR(IF(N78-(($H78-SUM($CK78:CK78))/$K78)<0,N78,(($H78-SUM($CK78:CK78))/$K78)),0) -> 0 | V78: =IFERROR(IF(O78-(($H78-SUM($CK78:CL78))/$K78)<0,O78,(($H78-SUM($CK78:CL78))/$K78)),0) -> 0 | W78: =IFERROR(IF(P78-(($H78-SUM($CK78:CM78))/$K78)<0,P78,(($H78-SUM($CK78:CM78))/$K78)),0) -> 0 | X78: =IFERROR(IF(Q78-(($H78-SUM($CK78:CN78))/$K78)<0,Q78,(($H78-SUM($CK78:CN78))/$K78)),0) -> 0 | Y78: =IFERROR(IF(R78-(($H78-SUM($CK78:CO78))/$K78)<0,R78,(($H78-SUM($CK78:CO78))/$K78)),0) -> 0 | AA78: 0 | AB78: 0 | AC78: 0 | AD78: 0 | AE78: 0 | AF78: 0 | AH78: =AA78*'Inputs - General'!D$5 -> 0 | AI78: =AB78*'Inputs - General'!E$5 -> 0 | AJ78: =AC78*'Inputs - General'!F$5 -> 0 | AK78: =AD78*'Inputs - General'!G$5 -> 0 | AL78: =AE78*'Inputs - General'!H$5 -> 0 | AM78: =AF78*'Inputs - General'!I$5 -> 0 | AO78: =N78*'Inputs - General'!D$5 -> 0 | AP78: =O78*'Inputs - General'!E$5 -> 0 | AQ78: =P78*'Inputs - General'!F$5 -> 0 | AR78: =Q78*'Inputs - General'!G$5 -> 0 | AS78: =R78*'Inputs - General'!H$5 -> 0 | AT78: =S78*'Inputs - General'!I$5 -> 0 | AV78: =U78*'Inputs - General'!E$5 -> 0 | AW78: =V78*'Inputs - General'!F$5 -> 0 | AX78: =W78*'Inputs - General'!G$5 -> 0 | AY78: =X78*'Inputs - General'!H$5 -> 0 | AZ78: =Y78*'Inputs - General'!I$5 -> 0 | BB78: =AH78*'Inputs - General'!E$4 -> 0 | BC78: =AI78*'Inputs - General'!F$4 -> 0 | BD78: =AJ78*'Inputs - General'!G$4 -> 0 | BE78: =AK78*'Inputs - General'!H$4 -> 0 | BF78: =AL78*'Inputs - General'!I$4 -> 0 | BH78: 0 | BI78: 0 | BJ78: 0 | BK78: 0 | BL78: 0 | BN78: 0 | BO78: 0 | BP78: 0 | BQ78: 0 | BR78: 0 | BT78: ='Input - Customer Inventory FY15'!F77 -> 10 | BZ78: =IF($E78="Lamp",0,IF(SUM(BU78:$BY78)>=$BT78,0,IF(BN78<=0,IF($H78=0,0,$BT78),0))) -> 0 | CA78: =IF($E78="Lamp",0,IF(SUM($BU78:BZ78)>=$BT78,0,IF(BO78<=0,IF($H78=0,0,$BT78),0))) -> 0 | CB78: =IF($E78="Lamp",0,IF(SUM($BU78:CA78)>=$BT78,0,IF(BP78<=0,IF($H78=0,0,$BT78),0))) -> 0 | CC78: =IF($E78="Lamp",0,IF(SUM($BU78:CB78)>=$BT78,0,IF(BQ78<=0,IF($H78=0,0,$BT78),0))) -> 0 | CD78: =IF($E78="Lamp",0,IF(SUM($BU78:CC78)>=$BT78,0,IF(BR78<=0,IF($H78=0,0,$BT78),0))) -> 0 | CL78: =CF78/'Inputs - General'!E$5 -> 0 | CM78: =CG78/'Inputs - General'!F$5 -> 0 | CN78: =CH78/'Inputs - General'!G$5 -> 0 | CO78: =CI78/'Inputs - General'!H$5 -> 0 | CP78: =CJ78/'Inputs - General'!I$5 -> 0
D79: Luminaire - 1000W SON | E79: Luminaire | F79: 1000W SON | G79: 1 | H79: 0 | I79: No | J79: 0 | K79: 0 | L79: 0 | N79: 0 | O79: 0 | P79: 0 | Q79: 0 | R79: 0 | S79: 0 | U79: =IFERROR(IF(N79-(($H79-SUM($CK79:CK79))/$K79)<0,N79,(($H79-SUM($CK79:CK79))/$K79)),0) -> 0 | V79: =IFERROR(IF(O79-(($H79-SUM($CK79:CL79))/$K79)<0,O79,(($H79-SUM($CK79:CL79))/$K79)),0) -> 0 | W79: =IFERROR(IF(P79-(($H79-SUM($CK79:CM79))/$K79)<0,P79,(($H79-SUM($CK79:CM79))/$K79)),0) -> 0 | X79: =IFERROR(IF(Q79-(($H79-SUM($CK79:CN79))/$K79)<0,Q79,(($H79-SUM($CK79:CN79))/$K79)),0) -> 0 | Y79: =IFERROR(IF(R79-(($H79-SUM($CK79:CO79))/$K79)<0,R79,(($H79-SUM($CK79:CO79))/$K79)),0) -> 0 | AA79: 0 | AB79: 0 | AC79: 0 | AD79: 0 | AE79: 0 | AF79: 0 | AH79: =AA79*'Inputs - General'!D$5 -> 0 | AI79: =AB79*'Inputs - General'!E$5 -> 0 | AJ79: =AC79*'Inputs - General'!F$5 -> 0 | AK79: =AD79*'Inputs - General'!G$5 -> 0 | AL79: =AE79*'Inputs - General'!H$5 -> 0 | AM79: =AF79*'Inputs - General'!I$5 -> 0 | AO79: =N79*'Inputs - General'!D$5 -> 0 | AP79: =O79*'Inputs - General'!E$5 -> 0 | AQ79: =P79*'Inputs - General'!F$5 -> 0 | AR79: =Q79*'Inputs - General'!G$5 -> 0 | AS79: =R79*'Inputs - General'!H$5 -> 0 | AT79: =S79*'Inputs - General'!I$5 -> 0 | AV79: =U79*'Inputs - General'!E$5 -> 0 | AW79: =V79*'Inputs - General'!F$5 -> 0 | AX79: =W79*'Inputs - General'!G$5 -> 0 | AY79: =X79*'Inputs - General'!H$5 -> 0 | AZ79: =Y79*'Inputs - General'!I$5 -> 0 | BB79: =AH79*'Inputs - General'!E$4 -> 0 | BC79: =AI79*'Inputs - General'!F$4 -> 0 | BD79: =AJ79*'Inputs - General'!G$4 -> 0 | BE79: =AK79*'Inputs - General'!H$4 -> 0 | BF79: =AL79*'Inputs - General'!I$4 -> 0 | BH79: 0 | BI79: 0 | BJ79: 0 | BK79: 0 | BL79: 0 | BN79: 0 | BO79: 0 | BP79: 0 | BQ79: 0 | BR79: 0 | BT79: ='Input - Customer Inventory FY15'!F78 -> 0 | BZ79: =IF($E79="Lamp",0,IF(SUM(BU79:$BY79)>=$BT79,0,IF(BN79<=0,IF($H79=0,0,$BT79),0))) -> 0 | CA79: =IF($E79="Lamp",0,IF(SUM($BU79:BZ79)>=$BT79,0,IF(BO79<=0,IF($H79=0,0,$BT79),0))) -> 0 | CB79: =IF($E79="Lamp",0,IF(SUM($BU79:CA79)>=$BT79,0,IF(BP79<=0,IF($H79=0,0,$BT79),0))) -> 0 | CC79: =IF($E79="Lamp",0,IF(SUM($BU79:CB79)>=$BT79,0,IF(BQ79<=0,IF($H79=0,0,$BT79),0))) -> 0 | CD79: =IF($E79="Lamp",0,IF(SUM($BU79:CC79)>=$BT79,0,IF(BR79<=0,IF($H79=0,0,$BT79),0))) -> 0 | CL79: =CF79/'Inputs - General'!E$5 -> 0 | CM79: =CG79/'Inputs - General'!F$5 -> 0 | CN79: =CH79/'Inputs - General'!G$5 -> 0 | CO79: =CI79/'Inputs - General'!H$5 -> 0 | CP79: =CJ79/'Inputs - General'!I$5 -> 0
D80: Luminaire - 100W SON -PLAIN | E80: Luminaire | F80: 100W SON -PLAIN | G80: 1 | H80: 0 | I80: No | J80: 0 | K80: 0 | L80: 0 | N80: 0 | O80: 0 | P80: 0 | Q80: 0 | R80: 0 | S80: 0 | U80: =IFERROR(IF(N80-(($H80-SUM($CK80:CK80))/$K80)<0,N80,(($H80-SUM($CK80:CK80))/$K80)),0) -> 0 | V80: =IFERROR(IF(O80-(($H80-SUM($CK80:CL80))/$K80)<0,O80,(($H80-SUM($CK80:CL80))/$K80)),0) -> 0 | W80: =IFERROR(IF(P80-(($H80-SUM($CK80:CM80))/$K80)<0,P80,(($H80-SUM($CK80:CM80))/$K80)),0) -> 0 | X80: =IFERROR(IF(Q80-(($H80-SUM($CK80:CN80))/$K80)<0,Q80,(($H80-SUM($CK80:CN80))/$K80)),0) -> 0 | Y80: =IFERROR(IF(R80-(($H80-SUM($CK80:CO80))/$K80)<0,R80,(($H80-SUM($CK80:CO80))/$K80)),0) -> 0 | AA80: 0 | AB80: 0 | AC80: 0 | AD80: 0 | AE80: 0 | AF80: 0 | AH80: =AA80*'Inputs - General'!D$5 -> 0 | AI80: =AB80*'Inputs - General'!E$5 -> 0 | AJ80: =AC80*'Inputs - General'!F$5 -> 0 | AK80: =AD80*'Inputs - General'!G$5 -> 0 | AL80: =AE80*'Inputs - General'!H$5 -> 0 | AM80: =AF80*'Inputs - General'!I$5 -> 0 | AO80: =N80*'Inputs - General'!D$5 -> 0 | AP80: =O80*'Inputs - General'!E$5 -> 0 | AQ80: =P80*'Inputs - General'!F$5 -> 0 | AR80: =Q80*'Inputs - General'!G$5 -> 0 | AS80: =R80*'Inputs - General'!H$5 -> 0 | AT80: =S80*'Inputs - General'!I$5 -> 0 | AV80: =U80*'Inputs - General'!E$5 -> 0 | AW80: =V80*'Inputs - General'!F$5 -> 0 | AX80: =W80*'Inputs - General'!G$5 -> 0 | AY80: =X80*'Inputs - General'!H$5 -> 0 | AZ80: =Y80*'Inputs - General'!I$5 -> 0 | BB80: =AH80*'Inputs - General'!E$4 -> 0 | BC80: =AI80*'Inputs - General'!F$4 -> 0 | BD80: =AJ80*'Inputs - General'!G$4 -> 0 | BE80: =AK80*'Inputs - General'!H$4 -> 0 | BF80: =AL80*'Inputs - General'!I$4 -> 0 | BH80: 0 | BI80: 0 | BJ80: 0 | BK80: 0 | BL80: 0 | BN80: 0 | BO80: 0 | BP80: 0 | BQ80: 0 | BR80: 0 | BT80: ='Input - Customer Inventory FY15'!F79 -> 1 | BZ80: =IF($E80="Lamp",0,IF(SUM(BU80:$BY80)>=$BT80,0,IF(BN80<=0,IF($H80=0,0,$BT80),0))) -> 0 | CA80: =IF($E80="Lamp",0,IF(SUM($BU80:BZ80)>=$BT80,0,IF(BO80<=0,IF($H80=0,0,$BT80),0))) -> 0 | CB80: =IF($E80="Lamp",0,IF(SUM($BU80:CA80)>=$BT80,0,IF(BP80<=0,IF($H80=0,0,$BT80),0))) -> 0 | CC80: =IF($E80="Lamp",0,IF(SUM($BU80:CB80)>=$BT80,0,IF(BQ80<=0,IF($H80=0,0,$BT80),0))) -> 0 | CD80: =IF($E80="Lamp",0,IF(SUM($BU80:CC80)>=$BT80,0,IF(BR80<=0,IF($H80=0,0,$BT80),0))) -> 0 | CL80: =CF80/'Inputs - General'!E$5 -> 0 | CM80: =CG80/'Inputs - General'!F$5 -> 0 | CN80: =CH80/'Inputs - General'!G$5 -> 0 | CO80: =CI80/'Inputs - General'!H$5 -> 0 | CP80: =CJ80/'Inputs - General'!I$5 -> 0
D81: Luminaire - 100W SON | E81: Luminaire | F81: 100W SON | G81: 1 | H81: 0 | I81: No | J81: 0 | K81: 0 | L81: 0 | N81: 0 | O81: 0 | P81: 0 | Q81: 0 | R81: 0 | S81: 0 | U81: =IFERROR(IF(N81-(($H81-SUM($CK81:CK81))/$K81)<0,N81,(($H81-SUM($CK81:CK81))/$K81)),0) -> 0 | V81: =IFERROR(IF(O81-(($H81-SUM($CK81:CL81))/$K81)<0,O81,(($H81-SUM($CK81:CL81))/$K81)),0) -> 0 | W81: =IFERROR(IF(P81-(($H81-SUM($CK81:CM81))/$K81)<0,P81,(($H81-SUM($CK81:CM81))/$K81)),0) -> 0 | X81: =IFERROR(IF(Q81-(($H81-SUM($CK81:CN81))/$K81)<0,Q81,(($H81-SUM($CK81:CN81))/$K81)),0) -> 0 | Y81: =IFERROR(IF(R81-(($H81-SUM($CK81:CO81))/$K81)<0,R81,(($H81-SUM($CK81:CO81))/$K81)),0) -> 0 | AA81: 0 | AB81: 0 | AC81: 0 | AD81: 0 | AE81: 0 | AF81: 0 | AH81: =AA81*'Inputs - General'!D$5 -> 0 | AI81: =AB81*'Inputs - General'!E$5 -> 0 | AJ81: =AC81*'Inputs - General'!F$5 -> 0 | AK81: =AD81*'Inputs - General'!G$5 -> 0 | AL81: =AE81*'Inputs - General'!H$5 -> 0 | AM81: =AF81*'Inputs - General'!I$5 -> 0 | AO81: =N81*'Inputs - General'!D$5 -> 0 | AP81: =O81*'Inputs - General'!E$5 -> 0 | AQ81: =P81*'Inputs - General'!F$5 -> 0 | AR81: =Q81*'Inputs - General'!G$5 -> 0 | AS81: =R81*'Inputs - General'!H$5 -> 0 | AT81: =S81*'Inputs - General'!I$5 -> 0 | AV81: =U81*'Inputs - General'!E$5 -> 0 | AW81: =V81*'Inputs - General'!F$5 -> 0 | AX81: =W81*'Inputs - General'!G$5 -> 0 | AY81: =X81*'Inputs - General'!H$5 -> 0 | AZ81: =Y81*'Inputs - General'!I$5 -> 0 | BB81: =AH81*'Inputs - General'!E$4 -> 0 | BC81: =AI81*'Inputs - General'!F$4 -> 0 | BD81: =AJ81*'Inputs - General'!G$4 -> 0 | BE81: =AK81*'Inputs - General'!H$4 -> 0 | BF81: =AL81*'Inputs - General'!I$4 -> 0 | BH81: 0 | BI81: 0 | BJ81: 0 | BK81: 0 | BL81: 0 | BN81: 0 | BO81: 0 | BP81: 0 | BQ81: 0 | BR81: 0 | BT81: ='Input - Customer Inventory FY15'!F80 -> 8 | BZ81: =IF($E81="Lamp",0,IF(SUM(BU81:$BY81)>=$BT81,0,IF(BN81<=0,IF($H81=0,0,$BT81),0))) -> 0 | CA81: =IF($E81="Lamp",0,IF(SUM($BU81:BZ81)>=$BT81,0,IF(BO81<=0,IF($H81=0,0,$BT81),0))) -> 0 | CB81: =IF($E81="Lamp",0,IF(SUM($BU81:CA81)>=$BT81,0,IF(BP81<=0,IF($H81=0,0,$BT81),0))) -> 0 | CC81: =IF($E81="Lamp",0,IF(SUM($BU81:CB81)>=$BT81,0,IF(BQ81<=0,IF($H81=0,0,$BT81),0))) -> 0 | CD81: =IF($E81="Lamp",0,IF(SUM($BU81:CC81)>=$BT81,0,IF(BR81<=0,IF($H81=0,0,$BT81),0))) -> 0 | CL81: =CF81/'Inputs - General'!E$5 -> 0 | CM81: =CG81/'Inputs - General'!F$5 -> 0 | CN81: =CH81/'Inputs - General'!G$5 -> 0 | CO81: =CI81/'Inputs - General'!H$5 -> 0 | CP81: =CJ81/'Inputs - General'!I$5 -> 0
D82: Luminaire - 125W MBF -PLAIN | E82: Luminaire | F82: 125W MBF -PLAIN | G82: 1 | H82: 0 | I82: No | J82: 0 | K82: 0 | L82: 0 | N82: 0 | O82: 0 | P82: 0 | Q82: 0 | R82: 0 | S82: 0 | U82: =IFERROR(IF(N82-(($H82-SUM($CK82:CK82))/$K82)<0,N82,(($H82-SUM($CK82:CK82))/$K82)),0) -> 0 | V82: =IFERROR(IF(O82-(($H82-SUM($CK82:CL82))/$K82)<0,O82,(($H82-SUM($CK82:CL82))/$K82)),0) -> 0 | W82: =IFERROR(IF(P82-(($H82-SUM($CK82:CM82))/$K82)<0,P82,(($H82-SUM($CK82:CM82))/$K82)),0) -> 0 | X82: =IFERROR(IF(Q82-(($H82-SUM($CK82:CN82))/$K82)<0,Q82,(($H82-SUM($CK82:CN82))/$K82)),0) -> 0 | Y82: =IFERROR(IF(R82-(($H82-SUM($CK82:CO82))/$K82)<0,R82,(($H82-SUM($CK82:CO82))/$K82)),0) -> 0 | AA82: 0 | AB82: 0 | AC82: 0 | AD82: 0 | AE82: 0 | AF82: 0 | AH82: =AA82*'Inputs - General'!D$5 -> 0 | AI82: =AB82*'Inputs - General'!E$5 -> 0 | AJ82: =AC82*'Inputs - General'!F$5 -> 0 | AK82: =AD82*'Inputs - General'!G$5 -> 0 | AL82: =AE82*'Inputs - General'!H$5 -> 0 | AM82: =AF82*'Inputs - General'!I$5 -> 0 | AO82: =N82*'Inputs - General'!D$5 -> 0 | AP82: =O82*'Inputs - General'!E$5 -> 0 | AQ82: =P82*'Inputs - General'!F$5 -> 0 | AR82: =Q82*'Inputs - General'!G$5 -> 0 | AS82: =R82*'Inputs - General'!H$5 -> 0 | AT82: =S82*'Inputs - General'!I$5 -> 0 | AV82: =U82*'Inputs - General'!E$5 -> 0 | AW82: =V82*'Inputs - General'!F$5 -> 0 | AX82: =W82*'Inputs - General'!G$5 -> 0 | AY82: =X82*'Inputs - General'!H$5 -> 0 | AZ82: =Y82*'Inputs - General'!I$5 -> 0 | BB82: =AH82*'Inputs - General'!E$4 -> 0 | BC82: =AI82*'Inputs - General'!F$4 -> 0 | BD82: =AJ82*'Inputs - General'!G$4 -> 0 | BE82: =AK82*'Inputs - General'!H$4 -> 0 | BF82: =AL82*'Inputs - General'!I$4 -> 0 | BH82: 0 | BI82: 0 | BJ82: 0 | BK82: 0 | BL82: 0 | BN82: 0 | BO82: 0 | BP82: 0 | BQ82: 0 | BR82: 0 | BT82: ='Input - Customer Inventory FY15'!F81 -> 31.5 | BZ82: =IF($E82="Lamp",0,IF(SUM(BU82:$BY82)>=$BT82,0,IF(BN82<=0,IF($H82=0,0,$BT82),0))) -> 0 | CA82: =IF($E82="Lamp",0,IF(SUM($BU82:BZ82)>=$BT82,0,IF(BO82<=0,IF($H82=0,0,$BT82),0))) -> 0 | CB82: =IF($E82="Lamp",0,IF(SUM($BU82:CA82)>=$BT82,0,IF(BP82<=0,IF($H82=0,0,$BT82),0))) -> 0 | CC82: =IF($E82="Lamp",0,IF(SUM($BU82:CB82)>=$BT82,0,IF(BQ82<=0,IF($H82=0,0,$BT82),0))) -> 0 | CD82: =IF($E82="Lamp",0,IF(SUM($BU82:CC82)>=$BT82,0,IF(BR82<=0,IF($H82=0,0,$BT82),0))) -> 0 | CL82: =CF82/'Inputs - General'!E$5 -> 0 | CM82: =CG82/'Inputs - General'!F$5 -> 0 | CN82: =CH82/'Inputs - General'!G$5 -> 0 | CO82: =CI82/'Inputs - General'!H$5 -> 0 | CP82: =CJ82/'Inputs - General'!I$5 -> 0
D83: Luminaire - 125W MBF | E83: Luminaire | F83: 125W MBF | G83: 1 | H83: 0 | I83: No | J83: 0 | K83: 0 | L83: 0 | N83: 0 | O83: 0 | P83: 0 | Q83: 0 | R83: 0 | S83: 0 | U83: =IFERROR(IF(N83-(($H83-SUM($CK83:CK83))/$K83)<0,N83,(($H83-SUM($CK83:CK83))/$K83)),0) -> 0 | V83: =IFERROR(IF(O83-(($H83-SUM($CK83:CL83))/$K83)<0,O83,(($H83-SUM($CK83:CL83))/$K83)),0) -> 0 | W83: =IFERROR(IF(P83-(($H83-SUM($CK83:CM83))/$K83)<0,P83,(($H83-SUM($CK83:CM83))/$K83)),0) -> 0 | X83: =IFERROR(IF(Q83-(($H83-SUM($CK83:CN83))/$K83)<0,Q83,(($H83-SUM($CK83:CN83))/$K83)),0) -> 0 | Y83: =IFERROR(IF(R83-(($H83-SUM($CK83:CO83))/$K83)<0,R83,(($H83-SUM($CK83:CO83))/$K83)),0) -> 0 | AA83: 0 | AB83: 0 | AC83: 0 | AD83: 0 | AE83: 0 | AF83: 0 | AH83: =AA83*'Inputs - General'!D$5 -> 0 | AI83: =AB83*'Inputs - General'!E$5 -> 0 | AJ83: =AC83*'Inputs - General'!F$5 -> 0 | AK83: =AD83*'Inputs - General'!G$5 -> 0 | AL83: =AE83*'Inputs - General'!H$5 -> 0 | AM83: =AF83*'Inputs - General'!I$5 -> 0 | AO83: =N83*'Inputs - General'!D$5 -> 0 | AP83: =O83*'Inputs - General'!E$5 -> 0 | AQ83: =P83*'Inputs - General'!F$5 -> 0 | AR83: =Q83*'Inputs - General'!G$5 -> 0 | AS83: =R83*'Inputs - General'!H$5 -> 0 | AT83: =S83*'Inputs - General'!I$5 -> 0 | AV83: =U83*'Inputs - General'!E$5 -> 0 | AW83: =V83*'Inputs - General'!F$5 -> 0 | AX83: =W83*'Inputs - General'!G$5 -> 0 | AY83: =X83*'Inputs - General'!H$5 -> 0 | AZ83: =Y83*'Inputs - General'!I$5 -> 0 | BB83: =AH83*'Inputs - General'!E$4 -> 0 | BC83: =AI83*'Inputs - General'!F$4 -> 0 | BD83: =AJ83*'Inputs - General'!G$4 -> 0 | BE83: =AK83*'Inputs - General'!H$4 -> 0 | BF83: =AL83*'Inputs - General'!I$4 -> 0 | BH83: 0 | BI83: 0 | BJ83: 0 | BK83: 0 | BL83: 0 | BN83: 0 | BO83: 0 | BP83: 0 | BQ83: 0 | BR83: 0 | BT83: ='Input - Customer Inventory FY15'!F82 -> 152 | BZ83: =IF($E83="Lamp",0,IF(SUM(BU83:$BY83)>=$BT83,0,IF(BN83<=0,IF($H83=0,0,$BT83),0))) -> 0 | CA83: =IF($E83="Lamp",0,IF(SUM($BU83:BZ83)>=$BT83,0,IF(BO83<=0,IF($H83=0,0,$BT83),0))) -> 0 | CB83: =IF($E83="Lamp",0,IF(SUM($BU83:CA83)>=$BT83,0,IF(BP83<=0,IF($H83=0,0,$BT83),0))) -> 0 | CC83: =IF($E83="Lamp",0,IF(SUM($BU83:CB83)>=$BT83,0,IF(BQ83<=0,IF($H83=0,0,$BT83),0))) -> 0 | CD83: =IF($E83="Lamp",0,IF(SUM($BU83:CC83)>=$BT83,0,IF(BR83<=0,IF($H83=0,0,$BT83),0))) -> 0 | CL83: =CF83/'Inputs - General'!E$5 -> 0 | CM83: =CG83/'Inputs - General'!F$5 -> 0 | CN83: =CH83/'Inputs - General'!G$5 -> 0 | CO83: =CI83/'Inputs - General'!H$5 -> 0 | CP83: =CJ83/'Inputs - General'!I$5 -> 0
D84: Luminaire - 125W MBF | E84: Luminaire | F84: 125W MBF | G84: 2 | H84: 0 | I84: No | J84: 0 | K84: 0 | L84: 0 | N84: 0 | O84: 0 | P84: 0 | Q84: 0 | R84: 0 | S84: 0 | U84: =IFERROR(IF(N84-(($H84-SUM($CK84:CK84))/$K84)<0,N84,(($H84-SUM($CK84:CK84))/$K84)),0) -> 0 | V84: =IFERROR(IF(O84-(($H84-SUM($CK84:CL84))/$K84)<0,O84,(($H84-SUM($CK84:CL84))/$K84)),0) -> 0 | W84: =IFERROR(IF(P84-(($H84-SUM($CK84:CM84))/$K84)<0,P84,(($H84-SUM($CK84:CM84))/$K84)),0) -> 0 | X84: =IFERROR(IF(Q84-(($H84-SUM($CK84:CN84))/$K84)<0,Q84,(($H84-SUM($CK84:CN84))/$K84)),0) -> 0 | Y84: =IFERROR(IF(R84-(($H84-SUM($CK84:CO84))/$K84)<0,R84,(($H84-SUM($CK84:CO84))/$K84)),0) -> 0 | AA84: 0 | AB84: 0 | AC84: 0 | AD84: 0 | AE84: 0 | AF84: 0 | AH84: =AA84*'Inputs - General'!D$5 -> 0 | AI84: =AB84*'Inputs - General'!E$5 -> 0 | AJ84: =AC84*'Inputs - General'!F$5 -> 0 | AK84: =AD84*'Inputs - General'!G$5 -> 0 | AL84: =AE84*'Inputs - General'!H$5 -> 0 | AM84: =AF84*'Inputs - General'!I$5 -> 0 | AO84: =N84*'Inputs - General'!D$5 -> 0 | AP84: =O84*'Inputs - General'!E$5 -> 0 | AQ84: =P84*'Inputs - General'!F$5 -> 0 | AR84: =Q84*'Inputs - General'!G$5 -> 0 | AS84: =R84*'Inputs - General'!H$5 -> 0 | AT84: =S84*'Inputs - General'!I$5 -> 0 | AV84: =U84*'Inputs - General'!E$5 -> 0 | AW84: =V84*'Inputs - General'!F$5 -> 0 | AX84: =W84*'Inputs - General'!G$5 -> 0 | AY84: =X84*'Inputs - General'!H$5 -> 0 | AZ84: =Y84*'Inputs - General'!I$5 -> 0 | BB84: =AH84*'Inputs - General'!E$4 -> 0 | BC84: =AI84*'Inputs - General'!F$4 -> 0 | BD84: =AJ84*'Inputs - General'!G$4 -> 0 | BE84: =AK84*'Inputs - General'!H$4 -> 0 | BF84: =AL84*'Inputs - General'!I$4 -> 0 | BH84: 0 | BI84: 0 | BJ84: 0 | BK84: 0 | BL84: 0 | BN84: 0 | BO84: 0 | BP84: 0 | BQ84: 0 | BR84: 0 | BT84: ='Input - Customer Inventory FY15'!F83 -> 0 | BZ84: =IF($E84="Lamp",0,IF(SUM(BU84:$BY84)>=$BT84,0,IF(BN84<=0,IF($H84=0,0,$BT84),0))) -> 0 | CA84: =IF($E84="Lamp",0,IF(SUM($BU84:BZ84)>=$BT84,0,IF(BO84<=0,IF($H84=0,0,$BT84),0))) -> 0 | CB84: =IF($E84="Lamp",0,IF(SUM($BU84:CA84)>=$BT84,0,IF(BP84<=0,IF($H84=0,0,$BT84),0))) -> 0 | CC84: =IF($E84="Lamp",0,IF(SUM($BU84:CB84)>=$BT84,0,IF(BQ84<=0,IF($H84=0,0,$BT84),0))) -> 0 | CD84: =IF($E84="Lamp",0,IF(SUM($BU84:CC84)>=$BT84,0,IF(BR84<=0,IF($H84=0,0,$BT84),0))) -> 0 | CL84: =CF84/'Inputs - General'!E$5 -> 0 | CM84: =CG84/'Inputs - General'!F$5 -> 0 | CN84: =CH84/'Inputs - General'!G$5 -> 0 | CO84: =CI84/'Inputs - General'!H$5 -> 0 | CP84: =CJ84/'Inputs - General'!I$5 -> 0
D85: Luminaire - 125W/250W MBF FLOODLIGHT | E85: Luminaire | F85: 125W/250W MBF FLOODLIGHT | G85: 1 | H85: 0 | I85: No | J85: 0 | K85: 0 | L85: 0 | N85: 0 | O85: 0 | P85: 0 | Q85: 0 | R85: 0 | S85: 0 | U85: =IFERROR(IF(N85-(($H85-SUM($CK85:CK85))/$K85)<0,N85,(($H85-SUM($CK85:CK85))/$K85)),0) -> 0 | V85: =IFERROR(IF(O85-(($H85-SUM($CK85:CL85))/$K85)<0,O85,(($H85-SUM($CK85:CL85))/$K85)),0) -> 0 | W85: =IFERROR(IF(P85-(($H85-SUM($CK85:CM85))/$K85)<0,P85,(($H85-SUM($CK85:CM85))/$K85)),0) -> 0 | X85: =IFERROR(IF(Q85-(($H85-SUM($CK85:CN85))/$K85)<0,Q85,(($H85-SUM($CK85:CN85))/$K85)),0) -> 0 | Y85: =IFERROR(IF(R85-(($H85-SUM($CK85:CO85))/$K85)<0,R85,(($H85-SUM($CK85:CO85))/$K85)),0) -> 0 | AA85: 0 | AB85: 0 | AC85: 0 | AD85: 0 | AE85: 0 | AF85: 0 | AH85: =AA85*'Inputs - General'!D$5 -> 0 | AI85: =AB85*'Inputs - General'!E$5 -> 0 | AJ85: =AC85*'Inputs - General'!F$5 -> 0 | AK85: =AD85*'Inputs - General'!G$5 -> 0 | AL85: =AE85*'Inputs - General'!H$5 -> 0 | AM85: =AF85*'Inputs - General'!I$5 -> 0 | AO85: =N85*'Inputs - General'!D$5 -> 0 | AP85: =O85*'Inputs - General'!E$5 -> 0 | AQ85: =P85*'Inputs - General'!F$5 -> 0 | AR85: =Q85*'Inputs - General'!G$5 -> 0 | AS85: =R85*'Inputs - General'!H$5 -> 0 | AT85: =S85*'Inputs - General'!I$5 -> 0 | AV85: =U85*'Inputs - General'!E$5 -> 0 | AW85: =V85*'Inputs - General'!F$5 -> 0 | AX85: =W85*'Inputs - General'!G$5 -> 0 | AY85: =X85*'Inputs - General'!H$5 -> 0 | AZ85: =Y85*'Inputs - General'!I$5 -> 0 | BB85: =AH85*'Inputs - General'!E$4 -> 0 | BC85: =AI85*'Inputs - General'!F$4 -> 0 | BD85: =AJ85*'Inputs - General'!G$4 -> 0 | BE85: =AK85*'Inputs - General'!H$4 -> 0 | BF85: =AL85*'Inputs - General'!I$4 -> 0 | BH85: 0 | BI85: 0 | BJ85: 0 | BK85: 0 | BL85: 0 | BN85: 0 | BO85: 0 | BP85: 0 | BQ85: 0 | BR85: 0 | BT85: ='Input - Customer Inventory FY15'!F84 -> 1 | BZ85: =IF($E85="Lamp",0,IF(SUM(BU85:$BY85)>=$BT85,0,IF(BN85<=0,IF($H85=0,0,$BT85),0))) -> 0 | CA85: =IF($E85="Lamp",0,IF(SUM($BU85:BZ85)>=$BT85,0,IF(BO85<=0,IF($H85=0,0,$BT85),0))) -> 0 | CB85: =IF($E85="Lamp",0,IF(SUM($BU85:CA85)>=$BT85,0,IF(BP85<=0,IF($H85=0,0,$BT85),0))) -> 0 | CC85: =IF($E85="Lamp",0,IF(SUM($BU85:CB85)>=$BT85,0,IF(BQ85<=0,IF($H85=0,0,$BT85),0))) -> 0 | CD85: =IF($E85="Lamp",0,IF(SUM($BU85:CC85)>=$BT85,0,IF(BR85<=0,IF($H85=0,0,$BT85),0))) -> 0 | CL85: =CF85/'Inputs - General'!E$5 -> 0 | CM85: =CG85/'Inputs - General'!F$5 -> 0 | CN85: =CH85/'Inputs - General'!G$5 -> 0 | CO85: =CI85/'Inputs - General'!H$5 -> 0 | CP85: =CJ85/'Inputs - General'!I$5 -> 0
D86: Luminaire - 150W SON - PARKWAY 1 | E86: Luminaire | F86: 150W SON - PARKWAY 1 | G86: 1 | H86: 0 | I86: No | J86: 0 | K86: 0 | L86: 0 | N86: 0 | O86: 0 | P86: 0 | Q86: 0 | R86: 0 | S86: 0 | U86: =IFERROR(IF(N86-(($H86-SUM($CK86:CK86))/$K86)<0,N86,(($H86-SUM($CK86:CK86))/$K86)),0) -> 0 | V86: =IFERROR(IF(O86-(($H86-SUM($CK86:CL86))/$K86)<0,O86,(($H86-SUM($CK86:CL86))/$K86)),0) -> 0 | W86: =IFERROR(IF(P86-(($H86-SUM($CK86:CM86))/$K86)<0,P86,(($H86-SUM($CK86:CM86))/$K86)),0) -> 0 | X86: =IFERROR(IF(Q86-(($H86-SUM($CK86:CN86))/$K86)<0,Q86,(($H86-SUM($CK86:CN86))/$K86)),0) -> 0 | Y86: =IFERROR(IF(R86-(($H86-SUM($CK86:CO86))/$K86)<0,R86,(($H86-SUM($CK86:CO86))/$K86)),0) -> 0 | AA86: 0 | AB86: 0 | AC86: 0 | AD86: 0 | AE86: 0 | AF86: 0 | AH86: =AA86*'Inputs - General'!D$5 -> 0 | AI86: =AB86*'Inputs - General'!E$5 -> 0 | AJ86: =AC86*'Inputs - General'!F$5 -> 0 | AK86: =AD86*'Inputs - General'!G$5 -> 0 | AL86: =AE86*'Inputs - General'!H$5 -> 0 | AM86: =AF86*'Inputs - General'!I$5 -> 0 | AO86: =N86*'Inputs - General'!D$5 -> 0 | AP86: =O86*'Inputs - General'!E$5 -> 0 | AQ86: =P86*'Inputs - General'!F$5 -> 0 | AR86: =Q86*'Inputs - General'!G$5 -> 0 | AS86: =R86*'Inputs - General'!H$5 -> 0 | AT86: =S86*'Inputs - General'!I$5 -> 0 | AV86: =U86*'Inputs - General'!E$5 -> 0 | AW86: =V86*'Inputs - General'!F$5 -> 0 | AX86: =W86*'Inputs - General'!G$5 -> 0 | AY86: =X86*'Inputs - General'!H$5 -> 0 | AZ86: =Y86*'Inputs - General'!I$5 -> 0 | BB86: =AH86*'Inputs - General'!E$4 -> 0 | BC86: =AI86*'Inputs - General'!F$4 -> 0 | BD86: =AJ86*'Inputs - General'!G$4 -> 0 | BE86: =AK86*'Inputs - General'!H$4 -> 0 | BF86: =AL86*'Inputs - General'!I$4 -> 0 | BH86: 0 | BI86: 0 | BJ86: 0 | BK86: 0 | BL86: 0 | BN86: 0 | BO86: 0 | BP86: 0 | BQ86: 0 | BR86: 0 | BT86: ='Input - Customer Inventory FY15'!F85 -> 38 | BZ86: =IF($E86="Lamp",0,IF(SUM(BU86:$BY86)>=$BT86,0,IF(BN86<=0,IF($H86=0,0,$BT86),0))) -> 0 | CA86: =IF($E86="Lamp",0,IF(SUM($BU86:BZ86)>=$BT86,0,IF(BO86<=0,IF($H86=0,0,$BT86),0))) -> 0 | CB86: =IF($E86="Lamp",0,IF(SUM($BU86:CA86)>=$BT86,0,IF(BP86<=0,IF($H86=0,0,$BT86),0))) -> 0 | CC86: =IF($E86="Lamp",0,IF(SUM($BU86:CB86)>=$BT86,0,IF(BQ86<=0,IF($H86=0,0,$BT86),0))) -> 0 | CD86: =IF($E86="Lamp",0,IF(SUM($BU86:CC86)>=$BT86,0,IF(BR86<=0,IF($H86=0,0,$BT86),0))) -> 0 | CL86: =CF86/'Inputs - General'!E$5 -> 0 | CM86: =CG86/'Inputs - General'!F$5 -> 0 | CN86: =CH86/'Inputs - General'!G$5 -> 0 | CO86: =CI86/'Inputs - General'!H$5 -> 0 | CP86: =CJ86/'Inputs - General'!I$5 -> 0
D87: Luminaire - 150W SON FLOODLIGHT | E87: Luminaire | F87: 150W SON FLOODLIGHT | G87: 1 | H87: 0 | I87: No | J87: 0 | K87: 0 | L87: 0 | N87: 0 | O87: 0 | P87: 0 | Q87: 0 | R87: 0 | S87: 0 | U87: =IFERROR(IF(N87-(($H87-SUM($CK87:CK87))/$K87)<0,N87,(($H87-SUM($CK87:CK87))/$K87)),0) -> 0 | V87: =IFERROR(IF(O87-(($H87-SUM($CK87:CL87))/$K87)<0,O87,(($H87-SUM($CK87:CL87))/$K87)),0) -> 0 | W87: =IFERROR(IF(P87-(($H87-SUM($CK87:CM87))/$K87)<0,P87,(($H87-SUM($CK87:CM87))/$K87)),0) -> 0 | X87: =IFERROR(IF(Q87-(($H87-SUM($CK87:CN87))/$K87)<0,Q87,(($H87-SUM($CK87:CN87))/$K87)),0) -> 0 | Y87: =IFERROR(IF(R87-(($H87-SUM($CK87:CO87))/$K87)<0,R87,(($H87-SUM($CK87:CO87))/$K87)),0) -> 0 | AA87: 0 | AB87: 0 | AC87: 0 | AD87: 0 | AE87: 0 | AF87: 0 | AH87: =AA87*'Inputs - General'!D$5 -> 0 | AI87: =AB87*'Inputs - General'!E$5 -> 0 | AJ87: =AC87*'Inputs - General'!F$5 -> 0 | AK87: =AD87*'Inputs - General'!G$5 -> 0 | AL87: =AE87*'Inputs - General'!H$5 -> 0 | AM87: =AF87*'Inputs - General'!I$5 -> 0 | AO87: =N87*'Inputs - General'!D$5 -> 0 | AP87: =O87*'Inputs - General'!E$5 -> 0 | AQ87: =P87*'Inputs - General'!F$5 -> 0 | AR87: =Q87*'Inputs - General'!G$5 -> 0 | AS87: =R87*'Inputs - General'!H$5 -> 0 | AT87: =S87*'Inputs - General'!I$5 -> 0 | AV87: =U87*'Inputs - General'!E$5 -> 0 | AW87: =V87*'Inputs - General'!F$5 -> 0 | AX87: =W87*'Inputs - General'!G$5 -> 0 | AY87: =X87*'Inputs - General'!H$5 -> 0 | AZ87: =Y87*'Inputs - General'!I$5 -> 0 | BB87: =AH87*'Inputs - General'!E$4 -> 0 | BC87: =AI87*'Inputs - General'!F$4 -> 0 | BD87: =AJ87*'Inputs - General'!G$4 -> 0 | BE87: =AK87*'Inputs - General'!H$4 -> 0 | BF87: =AL87*'Inputs - General'!I$4 -> 0 | BH87: 0 | BI87: 0 | BJ87: 0 | BK87: 0 | BL87: 0 | BN87: 0 | BO87: 0 | BP87: 0 | BQ87: 0 | BR87: 0 | BT87: ='Input - Customer Inventory FY15'!F86 -> 3 | BZ87: =IF($E87="Lamp",0,IF(SUM(BU87:$BY87)>=$BT87,0,IF(BN87<=0,IF($H87=0,0,$BT87),0))) -> 0 | CA87: =IF($E87="Lamp",0,IF(SUM($BU87:BZ87)>=$BT87,0,IF(BO87<=0,IF($H87=0,0,$BT87),0))) -> 0 | CB87: =IF($E87="Lamp",0,IF(SUM($BU87:CA87)>=$BT87,0,IF(BP87<=0,IF($H87=0,0,$BT87),0))) -> 0 | CC87: =IF($E87="Lamp",0,IF(SUM($BU87:CB87)>=$BT87,0,IF(BQ87<=0,IF($H87=0,0,$BT87),0))) -> 0 | CD87: =IF($E87="Lamp",0,IF(SUM($BU87:CC87)>=$BT87,0,IF(BR87<=0,IF($H87=0,0,$BT87),0))) -> 0 | CL87: =CF87/'Inputs - General'!E$5 -> 0 | CM87: =CG87/'Inputs - General'!F$5 -> 0 | CN87: =CH87/'Inputs - General'!G$5 -> 0 | CO87: =CI87/'Inputs - General'!H$5 -> 0 | CP87: =CJ87/'Inputs - General'!I$5 -> 0
D88: Luminaire - 150W SON | E88: Luminaire | F88: 150W SON | G88: 1 | H88: 0 | I88: No | J88: 0 | K88: 0 | L88: 0 | N88: 0 | O88: 0 | P88: 0 | Q88: 0 | R88: 0 | S88: 0 | U88: =IFERROR(IF(N88-(($H88-SUM($CK88:CK88))/$K88)<0,N88,(($H88-SUM($CK88:CK88))/$K88)),0) -> 0 | V88: =IFERROR(IF(O88-(($H88-SUM($CK88:CL88))/$K88)<0,O88,(($H88-SUM($CK88:CL88))/$K88)),0) -> 0 | W88: =IFERROR(IF(P88-(($H88-SUM($CK88:CM88))/$K88)<0,P88,(($H88-SUM($CK88:CM88))/$K88)),0) -> 0 | X88: =IFERROR(IF(Q88-(($H88-SUM($CK88:CN88))/$K88)<0,Q88,(($H88-SUM($CK88:CN88))/$K88)),0) -> 0 | Y88: =IFERROR(IF(R88-(($H88-SUM($CK88:CO88))/$K88)<0,R88,(($H88-SUM($CK88:CO88))/$K88)),0) -> 0 | AA88: 0 | AB88: 0 | AC88: 0 | AD88: 0 | AE88: 0 | AF88: 0 | AH88: =AA88*'Inputs - General'!D$5 -> 0 | AI88: =AB88*'Inputs - General'!E$5 -> 0 | AJ88: =AC88*'Inputs - General'!F$5 -> 0 | AK88: =AD88*'Inputs - General'!G$5 -> 0 | AL88: =AE88*'Inputs - General'!H$5 -> 0 | AM88: =AF88*'Inputs - General'!I$5 -> 0 | AO88: =N88*'Inputs - General'!D$5 -> 0 | AP88: =O88*'Inputs - General'!E$5 -> 0 | AQ88: =P88*'Inputs - General'!F$5 -> 0 | AR88: =Q88*'Inputs - General'!G$5 -> 0 | AS88: =R88*'Inputs - General'!H$5 -> 0 | AT88: =S88*'Inputs - General'!I$5 -> 0 | AV88: =U88*'Inputs - General'!E$5 -> 0 | AW88: =V88*'Inputs - General'!F$5 -> 0 | AX88: =W88*'Inputs - General'!G$5 -> 0 | AY88: =X88*'Inputs - General'!H$5 -> 0 | AZ88: =Y88*'Inputs - General'!I$5 -> 0 | BB88: =AH88*'Inputs - General'!E$4 -> 0 | BC88: =AI88*'Inputs - General'!F$4 -> 0 | BD88: =AJ88*'Inputs - General'!G$4 -> 0 | BE88: =AK88*'Inputs - General'!H$4 -> 0 | BF88: =AL88*'Inputs - General'!I$4 -> 0 | BH88: 0 | BI88: 0 | BJ88: 0 | BK88: 0 | BL88: 0 | BN88: 0 | BO88: 0 | BP88: 0 | BQ88: 0 | BR88: 0 | BT88: ='Input - Customer Inventory FY15'!F87 -> 132.5 | BZ88: =IF($E88="Lamp",0,IF(SUM(BU88:$BY88)>=$BT88,0,IF(BN88<=0,IF($H88=0,0,$BT88),0))) -> 0 | CA88: =IF($E88="Lamp",0,IF(SUM($BU88:BZ88)>=$BT88,0,IF(BO88<=0,IF($H88=0,0,$BT88),0))) -> 0 | CB88: =IF($E88="Lamp",0,IF(SUM($BU88:CA88)>=$BT88,0,IF(BP88<=0,IF($H88=0,0,$BT88),0))) -> 0 | CC88: =IF($E88="Lamp",0,IF(SUM($BU88:CB88)>=$BT88,0,IF(BQ88<=0,IF($H88=0,0,$BT88),0))) -> 0 | CD88: =IF($E88="Lamp",0,IF(SUM($BU88:CC88)>=$BT88,0,IF(BR88<=0,IF($H88=0,0,$BT88),0))) -> 0 | CL88: =CF88/'Inputs - General'!E$5 -> 0 | CM88: =CG88/'Inputs - General'!F$5 -> 0 | CN88: =CH88/'Inputs - General'!G$5 -> 0 | CO88: =CI88/'Inputs - General'!H$5 -> 0 | CP88: =CJ88/'Inputs - General'!I$5 -> 0
D89: Luminaire - 1x40W TF | E89: Luminaire | F89: 1x40W TF | G89: 1 | H89: 0 | I89: No | J89: 0 | K89: 0 | L89: 0 | N89: 0 | O89: 0 | P89: 0 | Q89: 0 | R89: 0 | S89: 0 | U89: =IFERROR(IF(N89-(($H89-SUM($CK89:CK89))/$K89)<0,N89,(($H89-SUM($CK89:CK89))/$K89)),0) -> 0 | V89: =IFERROR(IF(O89-(($H89-SUM($CK89:CL89))/$K89)<0,O89,(($H89-SUM($CK89:CL89))/$K89)),0) -> 0 | W89: =IFERROR(IF(P89-(($H89-SUM($CK89:CM89))/$K89)<0,P89,(($H89-SUM($CK89:CM89))/$K89)),0) -> 0 | X89: =IFERROR(IF(Q89-(($H89-SUM($CK89:CN89))/$K89)<0,Q89,(($H89-SUM($CK89:CN89))/$K89)),0) -> 0 | Y89: =IFERROR(IF(R89-(($H89-SUM($CK89:CO89))/$K89)<0,R89,(($H89-SUM($CK89:CO89))/$K89)),0) -> 0 | AA89: 0 | AB89: 0 | AC89: 0 | AD89: 0 | AE89: 0 | AF89: 0 | AH89: =AA89*'Inputs - General'!D$5 -> 0 | AI89: =AB89*'Inputs - General'!E$5 -> 0 | AJ89: =AC89*'Inputs - General'!F$5 -> 0 | AK89: =AD89*'Inputs - General'!G$5 -> 0 | AL89: =AE89*'Inputs - General'!H$5 -> 0 | AM89: =AF89*'Inputs - General'!I$5 -> 0 | AO89: =N89*'Inputs - General'!D$5 -> 0 | AP89: =O89*'Inputs - General'!E$5 -> 0 | AQ89: =P89*'Inputs - General'!F$5 -> 0 | AR89: =Q89*'Inputs - General'!G$5 -> 0 | AS89: =R89*'Inputs - General'!H$5 -> 0 | AT89: =S89*'Inputs - General'!I$5 -> 0 | AV89: =U89*'Inputs - General'!E$5 -> 0 | AW89: =V89*'Inputs - General'!F$5 -> 0 | AX89: =W89*'Inputs - General'!G$5 -> 0 | AY89: =X89*'Inputs - General'!H$5 -> 0 | AZ89: =Y89*'Inputs - General'!I$5 -> 0 | BB89: =AH89*'Inputs - General'!E$4 -> 0 | BC89: =AI89*'Inputs - General'!F$4 -> 0 | BD89: =AJ89*'Inputs - General'!G$4 -> 0 | BE89: =AK89*'Inputs - General'!H$4 -> 0 | BF89: =AL89*'Inputs - General'!I$4 -> 0 | BH89: 0 | BI89: 0 | BJ89: 0 | BK89: 0 | BL89: 0 | BN89: 0 | BO89: 0 | BP89: 0 | BQ89: 0 | BR89: 0 | BT89: ='Input - Customer Inventory FY15'!F88 -> 75 | BZ89: =IF($E89="Lamp",0,IF(SUM(BU89:$BY89)>=$BT89,0,IF(BN89<=0,IF($H89=0,0,$BT89),0))) -> 0 | CA89: =IF($E89="Lamp",0,IF(SUM($BU89:BZ89)>=$BT89,0,IF(BO89<=0,IF($H89=0,0,$BT89),0))) -> 0 | CB89: =IF($E89="Lamp",0,IF(SUM($BU89:CA89)>=$BT89,0,IF(BP89<=0,IF($H89=0,0,$BT89),0))) -> 0 | CC89: =IF($E89="Lamp",0,IF(SUM($BU89:CB89)>=$BT89,0,IF(BQ89<=0,IF($H89=0,0,$BT89),0))) -> 0 | CD89: =IF($E89="Lamp",0,IF(SUM($BU89:CC89)>=$BT89,0,IF(BR89<=0,IF($H89=0,0,$BT89),0))) -> 0 | CL89: =CF89/'Inputs - General'!E$5 -> 0 | CM89: =CG89/'Inputs - General'!F$5 -> 0 | CN89: =CH89/'Inputs - General'!G$5 -> 0 | CO89: =CI89/'Inputs - General'!H$5 -> 0 | CP89: =CJ89/'Inputs - General'!I$5 -> 0
D90: Luminaire - 1x80W TF | E90: Luminaire | F90: 1x80W TF | G90: 1 | H90: 0 | I90: No | J90: 0 | K90: 0 | L90: 0 | N90: 0 | O90: 0 | P90: 0 | Q90: 0 | R90: 0 | S90: 0 | U90: =IFERROR(IF(N90-(($H90-SUM($CK90:CK90))/$K90)<0,N90,(($H90-SUM($CK90:CK90))/$K90)),0) -> 0 | V90: =IFERROR(IF(O90-(($H90-SUM($CK90:CL90))/$K90)<0,O90,(($H90-SUM($CK90:CL90))/$K90)),0) -> 0 | W90: =IFERROR(IF(P90-(($H90-SUM($CK90:CM90))/$K90)<0,P90,(($H90-SUM($CK90:CM90))/$K90)),0) -> 0 | X90: =IFERROR(IF(Q90-(($H90-SUM($CK90:CN90))/$K90)<0,Q90,(($H90-SUM($CK90:CN90))/$K90)),0) -> 0 | Y90: =IFERROR(IF(R90-(($H90-SUM($CK90:CO90))/$K90)<0,R90,(($H90-SUM($CK90:CO90))/$K90)),0) -> 0 | AA90: 0 | AB90: 0 | AC90: 0 | AD90: 0 | AE90: 0 | AF90: 0 | AH90: =AA90*'Inputs - General'!D$5 -> 0 | AI90: =AB90*'Inputs - General'!E$5 -> 0 | AJ90: =AC90*'Inputs - General'!F$5 -> 0 | AK90: =AD90*'Inputs - General'!G$5 -> 0 | AL90: =AE90*'Inputs - General'!H$5 -> 0 | AM90: =AF90*'Inputs - General'!I$5 -> 0 | AO90: =N90*'Inputs - General'!D$5 -> 0 | AP90: =O90*'Inputs - General'!E$5 -> 0 | AQ90: =P90*'Inputs - General'!F$5 -> 0 | AR90: =Q90*'Inputs - General'!G$5 -> 0 | AS90: =R90*'Inputs - General'!H$5 -> 0 | AT90: =S90*'Inputs - General'!I$5 -> 0 | AV90: =U90*'Inputs - General'!E$5 -> 0 | AW90: =V90*'Inputs - General'!F$5 -> 0 | AX90: =W90*'Inputs - General'!G$5 -> 0 | AY90: =X90*'Inputs - General'!H$5 -> 0 | AZ90: =Y90*'Inputs - General'!I$5 -> 0 | BB90: =AH90*'Inputs - General'!E$4 -> 0 | BC90: =AI90*'Inputs - General'!F$4 -> 0 | BD90: =AJ90*'Inputs - General'!G$4 -> 0 | BE90: =AK90*'Inputs - General'!H$4 -> 0 | BF90: =AL90*'Inputs - General'!I$4 -> 0 | BH90: 0 | BI90: 0 | BJ90: 0 | BK90: 0 | BL90: 0 | BN90: 0 | BO90: 0 | BP90: 0 | BQ90: 0 | BR90: 0 | BT90: ='Input - Customer Inventory FY15'!F89 -> 2 | BZ90: =IF($E90="Lamp",0,IF(SUM(BU90:$BY90)>=$BT90,0,IF(BN90<=0,IF($H90=0,0,$BT90),0))) -> 0 | CA90: =IF($E90="Lamp",0,IF(SUM($BU90:BZ90)>=$BT90,0,IF(BO90<=0,IF($H90=0,0,$BT90),0))) -> 0 | CB90: =IF($E90="Lamp",0,IF(SUM($BU90:CA90)>=$BT90,0,IF(BP90<=0,IF($H90=0,0,$BT90),0))) -> 0 | CC90: =IF($E90="Lamp",0,IF(SUM($BU90:CB90)>=$BT90,0,IF(BQ90<=0,IF($H90=0,0,$BT90),0))) -> 0 | CD90: =IF($E90="Lamp",0,IF(SUM($BU90:CC90)>=$BT90,0,IF(BR90<=0,IF($H90=0,0,$BT90),0))) -> 0 | CL90: =CF90/'Inputs - General'!E$5 -> 0 | CM90: =CG90/'Inputs - General'!F$5 -> 0 | CN90: =CH90/'Inputs - General'!G$5 -> 0 | CO90: =CI90/'Inputs - General'!H$5 -> 0 | CP90: =CJ90/'Inputs - General'!I$5 -> 0
D91: Luminaire - 250W MBF - PARKVILLE | E91: Luminaire | F91: 250W MBF - PARKVILLE | G91: 1 | H91: 0 | I91: No | J91: 0 | K91: 0 | L91: 0 | N91: 0 | O91: 0 | P91: 0 | Q91: 0 | R91: 0 | S91: 0 | U91: =IFERROR(IF(N91-(($H91-SUM($CK91:CK91))/$K91)<0,N91,(($H91-SUM($CK91:CK91))/$K91)),0) -> 0 | V91: =IFERROR(IF(O91-(($H91-SUM($CK91:CL91))/$K91)<0,O91,(($H91-SUM($CK91:CL91))/$K91)),0) -> 0 | W91: =IFERROR(IF(P91-(($H91-SUM($CK91:CM91))/$K91)<0,P91,(($H91-SUM($CK91:CM91))/$K91)),0) -> 0 | X91: =IFERROR(IF(Q91-(($H91-SUM($CK91:CN91))/$K91)<0,Q91,(($H91-SUM($CK91:CN91))/$K91)),0) -> 0 | Y91: =IFERROR(IF(R91-(($H91-SUM($CK91:CO91))/$K91)<0,R91,(($H91-SUM($CK91:CO91))/$K91)),0) -> 0 | AA91: 0 | AB91: 0 | AC91: 0 | AD91: 0 | AE91: 0 | AF91: 0 | AH91: =AA91*'Inputs - General'!D$5 -> 0 | AI91: =AB91*'Inputs - General'!E$5 -> 0 | AJ91: =AC91*'Inputs - General'!F$5 -> 0 | AK91: =AD91*'Inputs - General'!G$5 -> 0 | AL91: =AE91*'Inputs - General'!H$5 -> 0 | AM91: =AF91*'Inputs - General'!I$5 -> 0 | AO91: =N91*'Inputs - General'!D$5 -> 0 | AP91: =O91*'Inputs - General'!E$5 -> 0 | AQ91: =P91*'Inputs - General'!F$5 -> 0 | AR91: =Q91*'Inputs - General'!G$5 -> 0 | AS91: =R91*'Inputs - General'!H$5 -> 0 | AT91: =S91*'Inputs - General'!I$5 -> 0 | AV91: =U91*'Inputs - General'!E$5 -> 0 | AW91: =V91*'Inputs - General'!F$5 -> 0 | AX91: =W91*'Inputs - General'!G$5 -> 0 | AY91: =X91*'Inputs - General'!H$5 -> 0 | AZ91: =Y91*'Inputs - General'!I$5 -> 0 | BB91: =AH91*'Inputs - General'!E$4 -> 0 | BC91: =AI91*'Inputs - General'!F$4 -> 0 | BD91: =AJ91*'Inputs - General'!G$4 -> 0 | BE91: =AK91*'Inputs - General'!H$4 -> 0 | BF91: =AL91*'Inputs - General'!I$4 -> 0 | BH91: 0 | BI91: 0 | BJ91: 0 | BK91: 0 | BL91: 0 | BN91: 0 | BO91: 0 | BP91: 0 | BQ91: 0 | BR91: 0 | BT91: ='Input - Customer Inventory FY15'!F90 -> 0 | BZ91: =IF($E91="Lamp",0,IF(SUM(BU91:$BY91)>=$BT91,0,IF(BN91<=0,IF($H91=0,0,$BT91),0))) -> 0 | CA91: =IF($E91="Lamp",0,IF(SUM($BU91:BZ91)>=$BT91,0,IF(BO91<=0,IF($H91=0,0,$BT91),0))) -> 0 | CB91: =IF($E91="Lamp",0,IF(SUM($BU91:CA91)>=$BT91,0,IF(BP91<=0,IF($H91=0,0,$BT91),0))) -> 0 | CC91: =IF($E91="Lamp",0,IF(SUM($BU91:CB91)>=$BT91,0,IF(BQ91<=0,IF($H91=0,0,$BT91),0))) -> 0 | CD91: =IF($E91="Lamp",0,IF(SUM($BU91:CC91)>=$BT91,0,IF(BR91<=0,IF($H91=0,0,$BT91),0))) -> 0 | CL91: =CF91/'Inputs - General'!E$5 -> 0 | CM91: =CG91/'Inputs - General'!F$5 -> 0 | CN91: =CH91/'Inputs - General'!G$5 -> 0 | CO91: =CI91/'Inputs - General'!H$5 -> 0 | CP91: =CJ91/'Inputs - General'!I$5 -> 0
D92: Luminaire - 250W MBF - PARKWAY 1 | E92: Luminaire | F92: 250W MBF - PARKWAY 1 | G92: 1 | H92: 0 | I92: No | J92: 0 | K92: 0 | L92: 0 | N92: 0 | O92: 0 | P92: 0 | Q92: 0 | R92: 0 | S92: 0 | U92: =IFERROR(IF(N92-(($H92-SUM($CK92:CK92))/$K92)<0,N92,(($H92-SUM($CK92:CK92))/$K92)),0) -> 0 | V92: =IFERROR(IF(O92-(($H92-SUM($CK92:CL92))/$K92)<0,O92,(($H92-SUM($CK92:CL92))/$K92)),0) -> 0 | W92: =IFERROR(IF(P92-(($H92-SUM($CK92:CM92))/$K92)<0,P92,(($H92-SUM($CK92:CM92))/$K92)),0) -> 0 | X92: =IFERROR(IF(Q92-(($H92-SUM($CK92:CN92))/$K92)<0,Q92,(($H92-SUM($CK92:CN92))/$K92)),0) -> 0 | Y92: =IFERROR(IF(R92-(($H92-SUM($CK92:CO92))/$K92)<0,R92,(($H92-SUM($CK92:CO92))/$K92)),0) -> 0 | AA92: 0 | AB92: 0 | AC92: 0 | AD92: 0 | AE92: 0 | AF92: 0 | AH92: =AA92*'Inputs - General'!D$5 -> 0 | AI92: =AB92*'Inputs - General'!E$5 -> 0 | AJ92: =AC92*'Inputs - General'!F$5 -> 0 | AK92: =AD92*'Inputs - General'!G$5 -> 0 | AL92: =AE92*'Inputs - General'!H$5 -> 0 | AM92: =AF92*'Inputs - General'!I$5 -> 0 | AO92: =N92*'Inputs - General'!D$5 -> 0 | AP92: =O92*'Inputs - General'!E$5 -> 0 | AQ92: =P92*'Inputs - General'!F$5 -> 0 | AR92: =Q92*'Inputs - General'!G$5 -> 0 | AS92: =R92*'Inputs - General'!H$5 -> 0 | AT92: =S92*'Inputs - General'!I$5 -> 0 | AV92: =U92*'Inputs - General'!E$5 -> 0 | AW92: =V92*'Inputs - General'!F$5 -> 0 | AX92: =W92*'Inputs - General'!G$5 -> 0 | AY92: =X92*'Inputs - General'!H$5 -> 0 | AZ92: =Y92*'Inputs - General'!I$5 -> 0 | BB92: =AH92*'Inputs - General'!E$4 -> 0 | BC92: =AI92*'Inputs - General'!F$4 -> 0 | BD92: =AJ92*'Inputs - General'!G$4 -> 0 | BE92: =AK92*'Inputs - General'!H$4 -> 0 | BF92: =AL92*'Inputs - General'!I$4 -> 0 | BH92: 0 | BI92: 0 | BJ92: 0 | BK92: 0 | BL92: 0 | BN92: 0 | BO92: 0 | BP92: 0 | BQ92: 0 | BR92: 0 | BT92: ='Input - Customer Inventory FY15'!F91 -> 144.5 | BZ92: =IF($E92="Lamp",0,IF(SUM(BU92:$BY92)>=$BT92,0,IF(BN92<=0,IF($H92=0,0,$BT92),0))) -> 0 | CA92: =IF($E92="Lamp",0,IF(SUM($BU92:BZ92)>=$BT92,0,IF(BO92<=0,IF($H92=0,0,$BT92),0))) -> 0 | CB92: =IF($E92="Lamp",0,IF(SUM($BU92:CA92)>=$BT92,0,IF(BP92<=0,IF($H92=0,0,$BT92),0))) -> 0 | CC92: =IF($E92="Lamp",0,IF(SUM($BU92:CB92)>=$BT92,0,IF(BQ92<=0,IF($H92=0,0,$BT92),0))) -> 0 | CD92: =IF($E92="Lamp",0,IF(SUM($BU92:CC92)>=$BT92,0,IF(BR92<=0,IF($H92=0,0,$BT92),0))) -> 0 | CL92: =CF92/'Inputs - General'!E$5 -> 0 | CM92: =CG92/'Inputs - General'!F$5 -> 0 | CN92: =CH92/'Inputs - General'!G$5 -> 0 | CO92: =CI92/'Inputs - General'!H$5 -> 0 | CP92: =CJ92/'Inputs - General'!I$5 -> 0
D93: Luminaire - 250W MBF | E93: Luminaire | F93: 250W MBF | G93: 1 | H93: 0 | I93: No | J93: 0 | K93: 0 | L93: 0 | N93: 0 | O93: 0 | P93: 0 | Q93: 0 | R93: 0 | S93: 0 | U93: =IFERROR(IF(N93-(($H93-SUM($CK93:CK93))/$K93)<0,N93,(($H93-SUM($CK93:CK93))/$K93)),0) -> 0 | V93: =IFERROR(IF(O93-(($H93-SUM($CK93:CL93))/$K93)<0,O93,(($H93-SUM($CK93:CL93))/$K93)),0) -> 0 | W93: =IFERROR(IF(P93-(($H93-SUM($CK93:CM93))/$K93)<0,P93,(($H93-SUM($CK93:CM93))/$K93)),0) -> 0 | X93: =IFERROR(IF(Q93-(($H93-SUM($CK93:CN93))/$K93)<0,Q93,(($H93-SUM($CK93:CN93))/$K93)),0) -> 0 | Y93: =IFERROR(IF(R93-(($H93-SUM($CK93:CO93))/$K93)<0,R93,(($H93-SUM($CK93:CO93))/$K93)),0) -> 0 | AA93: 0 | AB93: 0 | AC93: 0 | AD93: 0 | AE93: 0 | AF93: 0 | AH93: =AA93*'Inputs - General'!D$5 -> 0 | AI93: =AB93*'Inputs - General'!E$5 -> 0 | AJ93: =AC93*'Inputs - General'!F$5 -> 0 | AK93: =AD93*'Inputs - General'!G$5 -> 0 | AL93: =AE93*'Inputs - General'!H$5 -> 0 | AM93: =AF93*'Inputs - General'!I$5 -> 0 | AO93: =N93*'Inputs - General'!D$5 -> 0 | AP93: =O93*'Inputs - General'!E$5 -> 0 | AQ93: =P93*'Inputs - General'!F$5 -> 0 | AR93: =Q93*'Inputs - General'!G$5 -> 0 | AS93: =R93*'Inputs - General'!H$5 -> 0 | AT93: =S93*'Inputs - General'!I$5 -> 0 | AV93: =U93*'Inputs - General'!E$5 -> 0 | AW93: =V93*'Inputs - General'!F$5 -> 0 | AX93: =W93*'Inputs - General'!G$5 -> 0 | AY93: =X93*'Inputs - General'!H$5 -> 0 | AZ93: =Y93*'Inputs - General'!I$5 -> 0 | BB93: =AH93*'Inputs - General'!E$4 -> 0 | BC93: =AI93*'Inputs - General'!F$4 -> 0 | BD93: =AJ93*'Inputs - General'!G$4 -> 0 | BE93: =AK93*'Inputs - General'!H$4 -> 0 | BF93: =AL93*'Inputs - General'!I$4 -> 0 | BH93: 0 | BI93: 0 | BJ93: 0 | BK93: 0 | BL93: 0 | BN93: 0 | BO93: 0 | BP93: 0 | BQ93: 0 | BR93: 0 | BT93: ='Input - Customer Inventory FY15'!F92 -> 542.5 | BZ93: =IF($E93="Lamp",0,IF(SUM(BU93:$BY93)>=$BT93,0,IF(BN93<=0,IF($H93=0,0,$BT93),0))) -> 0 | CA93: =IF($E93="Lamp",0,IF(SUM($BU93:BZ93)>=$BT93,0,IF(BO93<=0,IF($H93=0,0,$BT93),0))) -> 0 | CB93: =IF($E93="Lamp",0,IF(SUM($BU93:CA93)>=$BT93,0,IF(BP93<=0,IF($H93=0,0,$BT93),0))) -> 0 | CC93: =IF($E93="Lamp",0,IF(SUM($BU93:CB93)>=$BT93,0,IF(BQ93<=0,IF($H93=0,0,$BT93),0))) -> 0 | CD93: =IF($E93="Lamp",0,IF(SUM($BU93:CC93)>=$BT93,0,IF(BR93<=0,IF($H93=0,0,$BT93),0))) -> 0 | CL93: =CF93/'Inputs - General'!E$5 -> 0 | CM93: =CG93/'Inputs - General'!F$5 -> 0 | CN93: =CH93/'Inputs - General'!G$5 -> 0 | CO93: =CI93/'Inputs - General'!H$5 -> 0 | CP93: =CJ93/'Inputs - General'!I$5 -> 0
D94: Luminaire - 250W SON FLOODLIGHT | E94: Luminaire | F94: 250W SON FLOODLIGHT | G94: 1 | H94: 0 | I94: No | J94: 0 | K94: 0 | L94: 0 | N94: 0 | O94: 0 | P94: 0 | Q94: 0 | R94: 0 | S94: 0 | U94: =IFERROR(IF(N94-(($H94-SUM($CK94:CK94))/$K94)<0,N94,(($H94-SUM($CK94:CK94))/$K94)),0) -> 0 | V94: =IFERROR(IF(O94-(($H94-SUM($CK94:CL94))/$K94)<0,O94,(($H94-SUM($CK94:CL94))/$K94)),0) -> 0 | W94: =IFERROR(IF(P94-(($H94-SUM($CK94:CM94))/$K94)<0,P94,(($H94-SUM($CK94:CM94))/$K94)),0) -> 0 | X94: =IFERROR(IF(Q94-(($H94-SUM($CK94:CN94))/$K94)<0,Q94,(($H94-SUM($CK94:CN94))/$K94)),0) -> 0 | Y94: =IFERROR(IF(R94-(($H94-SUM($CK94:CO94))/$K94)<0,R94,(($H94-SUM($CK94:CO94))/$K94)),0) -> 0 | AA94: 0 | AB94: 0 | AC94: 0 | AD94: 0 | AE94: 0 | AF94: 0 | AH94: =AA94*'Inputs - General'!D$5 -> 0 | AI94: =AB94*'Inputs - General'!E$5 -> 0 | AJ94: =AC94*'Inputs - General'!F$5 -> 0 | AK94: =AD94*'Inputs - General'!G$5 -> 0 | AL94: =AE94*'Inputs - General'!H$5 -> 0 | AM94: =AF94*'Inputs - General'!I$5 -> 0 | AO94: =N94*'Inputs - General'!D$5 -> 0 | AP94: =O94*'Inputs - General'!E$5 -> 0 | AQ94: =P94*'Inputs - General'!F$5 -> 0 | AR94: =Q94*'Inputs - General'!G$5 -> 0 | AS94: =R94*'Inputs - General'!H$5 -> 0 | AT94: =S94*'Inputs - General'!I$5 -> 0 | AV94: =U94*'Inputs - General'!E$5 -> 0 | AW94: =V94*'Inputs - General'!F$5 -> 0 | AX94: =W94*'Inputs - General'!G$5 -> 0 | AY94: =X94*'Inputs - General'!H$5 -> 0 | AZ94: =Y94*'Inputs - General'!I$5 -> 0 | BB94: =AH94*'Inputs - General'!E$4 -> 0 | BC94: =AI94*'Inputs - General'!F$4 -> 0 | BD94: =AJ94*'Inputs - General'!G$4 -> 0 | BE94: =AK94*'Inputs - General'!H$4 -> 0 | BF94: =AL94*'Inputs - General'!I$4 -> 0 | BH94: 0 | BI94: 0 | BJ94: 0 | BK94: 0 | BL94: 0 | BN94: 0 | BO94: 0 | BP94: 0 | BQ94: 0 | BR94: 0 | BT94: ='Input - Customer Inventory FY15'!F93 -> 24.5 | BZ94: =IF($E94="Lamp",0,IF(SUM(BU94:$BY94)>=$BT94,0,IF(BN94<=0,IF($H94=0,0,$BT94),0))) -> 0 | CA94: =IF($E94="Lamp",0,IF(SUM($BU94:BZ94)>=$BT94,0,IF(BO94<=0,IF($H94=0,0,$BT94),0))) -> 0 | CB94: =IF($E94="Lamp",0,IF(SUM($BU94:CA94)>=$BT94,0,IF(BP94<=0,IF($H94=0,0,$BT94),0))) -> 0 | CC94: =IF($E94="Lamp",0,IF(SUM($BU94:CB94)>=$BT94,0,IF(BQ94<=0,IF($H94=0,0,$BT94),0))) -> 0 | CD94: =IF($E94="Lamp",0,IF(SUM($BU94:CC94)>=$BT94,0,IF(BR94<=0,IF($H94=0,0,$BT94),0))) -> 0 | CL94: =CF94/'Inputs - General'!E$5 -> 0 | CM94: =CG94/'Inputs - General'!F$5 -> 0 | CN94: =CH94/'Inputs - General'!G$5 -> 0 | CO94: =CI94/'Inputs - General'!H$5 -> 0 | CP94: =CJ94/'Inputs - General'!I$5 -> 0
D95: Luminaire - 250W SON FLOODLIGHT | E95: Luminaire | F95: 250W SON FLOODLIGHT | G95: 2 | H95: 0 | I95: No | J95: 0 | K95: 0 | L95: 0 | N95: 0 | O95: 0 | P95: 0 | Q95: 0 | R95: 0 | S95: 0 | U95: =IFERROR(IF(N95-(($H95-SUM($CK95:CK95))/$K95)<0,N95,(($H95-SUM($CK95:CK95))/$K95)),0) -> 0 | V95: =IFERROR(IF(O95-(($H95-SUM($CK95:CL95))/$K95)<0,O95,(($H95-SUM($CK95:CL95))/$K95)),0) -> 0 | W95: =IFERROR(IF(P95-(($H95-SUM($CK95:CM95))/$K95)<0,P95,(($H95-SUM($CK95:CM95))/$K95)),0) -> 0 | X95: =IFERROR(IF(Q95-(($H95-SUM($CK95:CN95))/$K95)<0,Q95,(($H95-SUM($CK95:CN95))/$K95)),0) -> 0 | Y95: =IFERROR(IF(R95-(($H95-SUM($CK95:CO95))/$K95)<0,R95,(($H95-SUM($CK95:CO95))/$K95)),0) -> 0 | AA95: 0 | AB95: 0 | AC95: 0 | AD95: 0 | AE95: 0 | AF95: 0 | AH95: =AA95*'Inputs - General'!D$5 -> 0 | AI95: =AB95*'Inputs - General'!E$5 -> 0 | AJ95: =AC95*'Inputs - General'!F$5 -> 0 | AK95: =AD95*'Inputs - General'!G$5 -> 0 | AL95: =AE95*'Inputs - General'!H$5 -> 0 | AM95: =AF95*'Inputs - General'!I$5 -> 0 | AO95: =N95*'Inputs - General'!D$5 -> 0 | AP95: =O95*'Inputs - General'!E$5 -> 0 | AQ95: =P95*'Inputs - General'!F$5 -> 0 | AR95: =Q95*'Inputs - General'!G$5 -> 0 | AS95: =R95*'Inputs - General'!H$5 -> 0 | AT95: =S95*'Inputs - General'!I$5 -> 0 | AV95: =U95*'Inputs - General'!E$5 -> 0 | AW95: =V95*'Inputs - General'!F$5 -> 0 | AX95: =W95*'Inputs - General'!G$5 -> 0 | AY95: =X95*'Inputs - General'!H$5 -> 0 | AZ95: =Y95*'Inputs - General'!I$5 -> 0 | BB95: =AH95*'Inputs - General'!E$4 -> 0 | BC95: =AI95*'Inputs - General'!F$4 -> 0 | BD95: =AJ95*'Inputs - General'!G$4 -> 0 | BE95: =AK95*'Inputs - General'!H$4 -> 0 | BF95: =AL95*'Inputs - General'!I$4 -> 0 | BH95: 0 | BI95: 0 | BJ95: 0 | BK95: 0 | BL95: 0 | BN95: 0 | BO95: 0 | BP95: 0 | BQ95: 0 | BR95: 0 | BT95: ='Input - Customer Inventory FY15'!F94 -> 0 | BZ95: =IF($E95="Lamp",0,IF(SUM(BU95:$BY95)>=$BT95,0,IF(BN95<=0,IF($H95=0,0,$BT95),0))) -> 0 | CA95: =IF($E95="Lamp",0,IF(SUM($BU95:BZ95)>=$BT95,0,IF(BO95<=0,IF($H95=0,0,$BT95),0))) -> 0 | CB95: =IF($E95="Lamp",0,IF(SUM($BU95:CA95)>=$BT95,0,IF(BP95<=0,IF($H95=0,0,$BT95),0))) -> 0 | CC95: =IF($E95="Lamp",0,IF(SUM($BU95:CB95)>=$BT95,0,IF(BQ95<=0,IF($H95=0,0,$BT95),0))) -> 0 | CD95: =IF($E95="Lamp",0,IF(SUM($BU95:CC95)>=$BT95,0,IF(BR95<=0,IF($H95=0,0,$BT95),0))) -> 0 | CL95: =CF95/'Inputs - General'!E$5 -> 0 | CM95: =CG95/'Inputs - General'!F$5 -> 0 | CN95: =CH95/'Inputs - General'!G$5 -> 0 | CO95: =CI95/'Inputs - General'!H$5 -> 0 | CP95: =CJ95/'Inputs - General'!I$5 -> 0
D96: Luminaire - 250W SON | E96: Luminaire | F96: 250W SON | G96: 1 | H96: 0 | I96: No | J96: 0 | K96: 0 | L96: 0 | N96: 0 | O96: 0 | P96: 0 | Q96: 0 | R96: 0 | S96: 0 | U96: =IFERROR(IF(N96-(($H96-SUM($CK96:CK96))/$K96)<0,N96,(($H96-SUM($CK96:CK96))/$K96)),0) -> 0 | V96: =IFERROR(IF(O96-(($H96-SUM($CK96:CL96))/$K96)<0,O96,(($H96-SUM($CK96:CL96))/$K96)),0) -> 0 | W96: =IFERROR(IF(P96-(($H96-SUM($CK96:CM96))/$K96)<0,P96,(($H96-SUM($CK96:CM96))/$K96)),0) -> 0 | X96: =IFERROR(IF(Q96-(($H96-SUM($CK96:CN96))/$K96)<0,Q96,(($H96-SUM($CK96:CN96))/$K96)),0) -> 0 | Y96: =IFERROR(IF(R96-(($H96-SUM($CK96:CO96))/$K96)<0,R96,(($H96-SUM($CK96:CO96))/$K96)),0) -> 0 | AA96: 0 | AB96: 0 | AC96: 0 | AD96: 0 | AE96: 0 | AF96: 0 | AH96: =AA96*'Inputs - General'!D$5 -> 0 | AI96: =AB96*'Inputs - General'!E$5 -> 0 | AJ96: =AC96*'Inputs - General'!F$5 -> 0 | AK96: =AD96*'Inputs - General'!G$5 -> 0 | AL96: =AE96*'Inputs - General'!H$5 -> 0 | AM96: =AF96*'Inputs - General'!I$5 -> 0 | AO96: =N96*'Inputs - General'!D$5 -> 0 | AP96: =O96*'Inputs - General'!E$5 -> 0 | AQ96: =P96*'Inputs - General'!F$5 -> 0 | AR96: =Q96*'Inputs - General'!G$5 -> 0 | AS96: =R96*'Inputs - General'!H$5 -> 0 | AT96: =S96*'Inputs - General'!I$5 -> 0 | AV96: =U96*'Inputs - General'!E$5 -> 0 | AW96: =V96*'Inputs - General'!F$5 -> 0 | AX96: =W96*'Inputs - General'!G$5 -> 0 | AY96: =X96*'Inputs - General'!H$5 -> 0 | AZ96: =Y96*'Inputs - General'!I$5 -> 0 | BB96: =AH96*'Inputs - General'!E$4 -> 0 | BC96: =AI96*'Inputs - General'!F$4 -> 0 | BD96: =AJ96*'Inputs - General'!G$4 -> 0 | BE96: =AK96*'Inputs - General'!H$4 -> 0 | BF96: =AL96*'Inputs - General'!I$4 -> 0 | BH96: 0 | BI96: 0 | BJ96: 0 | BK96: 0 | BL96: 0 | BN96: 0 | BO96: 0 | BP96: 0 | BQ96: 0 | BR96: 0 | BT96: ='Input - Customer Inventory FY15'!F95 -> 104 | BZ96: =IF($E96="Lamp",0,IF(SUM(BU96:$BY96)>=$BT96,0,IF(BN96<=0,IF($H96=0,0,$BT96),0))) -> 0 | CA96: =IF($E96="Lamp",0,IF(SUM($BU96:BZ96)>=$BT96,0,IF(BO96<=0,IF($H96=0,0,$BT96),0))) -> 0 | CB96: =IF($E96="Lamp",0,IF(SUM($BU96:CA96)>=$BT96,0,IF(BP96<=0,IF($H96=0,0,$BT96),0))) -> 0 | CC96: =IF($E96="Lamp",0,IF(SUM($BU96:CB96)>=$BT96,0,IF(BQ96<=0,IF($H96=0,0,$BT96),0))) -> 0 | CD96: =IF($E96="Lamp",0,IF(SUM($BU96:CC96)>=$BT96,0,IF(BR96<=0,IF($H96=0,0,$BT96),0))) -> 0 | CL96: =CF96/'Inputs - General'!E$5 -> 0 | CM96: =CG96/'Inputs - General'!F$5 -> 0 | CN96: =CH96/'Inputs - General'!G$5 -> 0 | CO96: =CI96/'Inputs - General'!H$5 -> 0 | CP96: =CJ96/'Inputs - General'!I$5 -> 0
D97: Luminaire - 250W SON | E97: Luminaire | F97: 250W SON | G97: 2 | H97: 0 | I97: No | J97: 0 | K97: 0 | L97: 0 | N97: 0 | O97: 0 | P97: 0 | Q97: 0 | R97: 0 | S97: 0 | U97: =IFERROR(IF(N97-(($H97-SUM($CK97:CK97))/$K97)<0,N97,(($H97-SUM($CK97:CK97))/$K97)),0) -> 0 | V97: =IFERROR(IF(O97-(($H97-SUM($CK97:CL97))/$K97)<0,O97,(($H97-SUM($CK97:CL97))/$K97)),0) -> 0 | W97: =IFERROR(IF(P97-(($H97-SUM($CK97:CM97))/$K97)<0,P97,(($H97-SUM($CK97:CM97))/$K97)),0) -> 0 | X97: =IFERROR(IF(Q97-(($H97-SUM($CK97:CN97))/$K97)<0,Q97,(($H97-SUM($CK97:CN97))/$K97)),0) -> 0 | Y97: =IFERROR(IF(R97-(($H97-SUM($CK97:CO97))/$K97)<0,R97,(($H97-SUM($CK97:CO97))/$K97)),0) -> 0 | AA97: 0 | AB97: 0 | AC97: 0 | AD97: 0 | AE97: 0 | AF97: 0 | AH97: =AA97*'Inputs - General'!D$5 -> 0 | AI97: =AB97*'Inputs - General'!E$5 -> 0 | AJ97: =AC97*'Inputs - General'!F$5 -> 0 | AK97: =AD97*'Inputs - General'!G$5 -> 0 | AL97: =AE97*'Inputs - General'!H$5 -> 0 | AM97: =AF97*'Inputs - General'!I$5 -> 0 | AO97: =N97*'Inputs - General'!D$5 -> 0 | AP97: =O97*'Inputs - General'!E$5 -> 0 | AQ97: =P97*'Inputs - General'!F$5 -> 0 | AR97: =Q97*'Inputs - General'!G$5 -> 0 | AS97: =R97*'Inputs - General'!H$5 -> 0 | AT97: =S97*'Inputs - General'!I$5 -> 0 | AV97: =U97*'Inputs - General'!E$5 -> 0 | AW97: =V97*'Inputs - General'!F$5 -> 0 | AX97: =W97*'Inputs - General'!G$5 -> 0 | AY97: =X97*'Inputs - General'!H$5 -> 0 | AZ97: =Y97*'Inputs - General'!I$5 -> 0 | BB97: =AH97*'Inputs - General'!E$4 -> 0 | BC97: =AI97*'Inputs - General'!F$4 -> 0 | BD97: =AJ97*'Inputs - General'!G$4 -> 0 | BE97: =AK97*'Inputs - General'!H$4 -> 0 | BF97: =AL97*'Inputs - General'!I$4 -> 0 | BH97: 0 | BI97: 0 | BJ97: 0 | BK97: 0 | BL97: 0 | BN97: 0 | BO97: 0 | BP97: 0 | BQ97: 0 | BR97: 0 | BT97: ='Input - Customer Inventory FY15'!F96 -> 2 | BZ97: =IF($E97="Lamp",0,IF(SUM(BU97:$BY97)>=$BT97,0,IF(BN97<=0,IF($H97=0,0,$BT97),0))) -> 0 | CA97: =IF($E97="Lamp",0,IF(SUM($BU97:BZ97)>=$BT97,0,IF(BO97<=0,IF($H97=0,0,$BT97),0))) -> 0 | CB97: =IF($E97="Lamp",0,IF(SUM($BU97:CA97)>=$BT97,0,IF(BP97<=0,IF($H97=0,0,$BT97),0))) -> 0 | CC97: =IF($E97="Lamp",0,IF(SUM($BU97:CB97)>=$BT97,0,IF(BQ97<=0,IF($H97=0,0,$BT97),0))) -> 0 | CD97: =IF($E97="Lamp",0,IF(SUM($BU97:CC97)>=$BT97,0,IF(BR97<=0,IF($H97=0,0,$BT97),0))) -> 0 | CL97: =CF97/'Inputs - General'!E$5 -> 0 | CM97: =CG97/'Inputs - General'!F$5 -> 0 | CN97: =CH97/'Inputs - General'!G$5 -> 0 | CO97: =CI97/'Inputs - General'!H$5 -> 0 | CP97: =CJ97/'Inputs - General'!I$5 -> 0
D98: Luminaire - 2x20W TF | E98: Luminaire | F98: 2x20W TF | G98: 1 | H98: 0 | I98: No | J98: 0 | K98: 0 | L98: 0 | N98: 0 | O98: 0 | P98: 0 | Q98: 0 | R98: 0 | S98: 0 | U98: =IFERROR(IF(N98-(($H98-SUM($CK98:CK98))/$K98)<0,N98,(($H98-SUM($CK98:CK98))/$K98)),0) -> 0 | V98: =IFERROR(IF(O98-(($H98-SUM($CK98:CL98))/$K98)<0,O98,(($H98-SUM($CK98:CL98))/$K98)),0) -> 0 | W98: =IFERROR(IF(P98-(($H98-SUM($CK98:CM98))/$K98)<0,P98,(($H98-SUM($CK98:CM98))/$K98)),0) -> 0 | X98: =IFERROR(IF(Q98-(($H98-SUM($CK98:CN98))/$K98)<0,Q98,(($H98-SUM($CK98:CN98))/$K98)),0) -> 0 | Y98: =IFERROR(IF(R98-(($H98-SUM($CK98:CO98))/$K98)<0,R98,(($H98-SUM($CK98:CO98))/$K98)),0) -> 0 | AA98: 0 | AB98: 0 | AC98: 0 | AD98: 0 | AE98: 0 | AF98: 0 | AH98: =AA98*'Inputs - General'!D$5 -> 0 | AI98: =AB98*'Inputs - General'!E$5 -> 0 | AJ98: =AC98*'Inputs - General'!F$5 -> 0 | AK98: =AD98*'Inputs - General'!G$5 -> 0 | AL98: =AE98*'Inputs - General'!H$5 -> 0 | AM98: =AF98*'Inputs - General'!I$5 -> 0 | AO98: =N98*'Inputs - General'!D$5 -> 0 | AP98: =O98*'Inputs - General'!E$5 -> 0 | AQ98: =P98*'Inputs - General'!F$5 -> 0 | AR98: =Q98*'Inputs - General'!G$5 -> 0 | AS98: =R98*'Inputs - General'!H$5 -> 0 | AT98: =S98*'Inputs - General'!I$5 -> 0 | AV98: =U98*'Inputs - General'!E$5 -> 0 | AW98: =V98*'Inputs - General'!F$5 -> 0 | AX98: =W98*'Inputs - General'!G$5 -> 0 | AY98: =X98*'Inputs - General'!H$5 -> 0 | AZ98: =Y98*'Inputs - General'!I$5 -> 0 | BB98: =AH98*'Inputs - General'!E$4 -> 0 | BC98: =AI98*'Inputs - General'!F$4 -> 0 | BD98: =AJ98*'Inputs - General'!G$4 -> 0 | BE98: =AK98*'Inputs - General'!H$4 -> 0 | BF98: =AL98*'Inputs - General'!I$4 -> 0 | BH98: 0 | BI98: 0 | BJ98: 0 | BK98: 0 | BL98: 0 | BN98: 0 | BO98: 0 | BP98: 0 | BQ98: 0 | BR98: 0 | BT98: ='Input - Customer Inventory FY15'!F97 -> 311.5 | BZ98: =IF($E98="Lamp",0,IF(SUM(BU98:$BY98)>=$BT98,0,IF(BN98<=0,IF($H98=0,0,$BT98),0))) -> 0 | CA98: =IF($E98="Lamp",0,IF(SUM($BU98:BZ98)>=$BT98,0,IF(BO98<=0,IF($H98=0,0,$BT98),0))) -> 0 | CB98: =IF($E98="Lamp",0,IF(SUM($BU98:CA98)>=$BT98,0,IF(BP98<=0,IF($H98=0,0,$BT98),0))) -> 0 | CC98: =IF($E98="Lamp",0,IF(SUM($BU98:CB98)>=$BT98,0,IF(BQ98<=0,IF($H98=0,0,$BT98),0))) -> 0 | CD98: =IF($E98="Lamp",0,IF(SUM($BU98:CC98)>=$BT98,0,IF(BR98<=0,IF($H98=0,0,$BT98),0))) -> 0 | CL98: =CF98/'Inputs - General'!E$5 -> 0 | CM98: =CG98/'Inputs - General'!F$5 -> 0 | CN98: =CH98/'Inputs - General'!G$5 -> 0 | CO98: =CI98/'Inputs - General'!H$5 -> 0 | CP98: =CJ98/'Inputs - General'!I$5 -> 0
D99: Luminaire - 2x40W TF | E99: Luminaire | F99: 2x40W TF | G99: 1 | H99: 0 | I99: No | J99: 0 | K99: 0 | L99: 0 | N99: 0 | O99: 0 | P99: 0 | Q99: 0 | R99: 0 | S99: 0 | U99: =IFERROR(IF(N99-(($H99-SUM($CK99:CK99))/$K99)<0,N99,(($H99-SUM($CK99:CK99))/$K99)),0) -> 0 | V99: =IFERROR(IF(O99-(($H99-SUM($CK99:CL99))/$K99)<0,O99,(($H99-SUM($CK99:CL99))/$K99)),0) -> 0 | W99: =IFERROR(IF(P99-(($H99-SUM($CK99:CM99))/$K99)<0,P99,(($H99-SUM($CK99:CM99))/$K99)),0) -> 0 | X99: =IFERROR(IF(Q99-(($H99-SUM($CK99:CN99))/$K99)<0,Q99,(($H99-SUM($CK99:CN99))/$K99)),0) -> 0 | Y99: =IFERROR(IF(R99-(($H99-SUM($CK99:CO99))/$K99)<0,R99,(($H99-SUM($CK99:CO99))/$K99)),0) -> 0 | AA99: 0 | AB99: 0 | AC99: 0 | AD99: 0 | AE99: 0 | AF99: 0 | AH99: =AA99*'Inputs - General'!D$5 -> 0 | AI99: =AB99*'Inputs - General'!E$5 -> 0 | AJ99: =AC99*'Inputs - General'!F$5 -> 0 | AK99: =AD99*'Inputs - General'!G$5 -> 0 | AL99: =AE99*'Inputs - General'!H$5 -> 0 | AM99: =AF99*'Inputs - General'!I$5 -> 0 | AO99: =N99*'Inputs - General'!D$5 -> 0 | AP99: =O99*'Inputs - General'!E$5 -> 0 | AQ99: =P99*'Inputs - General'!F$5 -> 0 | AR99: =Q99*'Inputs - General'!G$5 -> 0 | AS99: =R99*'Inputs - General'!H$5 -> 0 | AT99: =S99*'Inputs - General'!I$5 -> 0 | AV99: =U99*'Inputs - General'!E$5 -> 0 | AW99: =V99*'Inputs - General'!F$5 -> 0 | AX99: =W99*'Inputs - General'!G$5 -> 0 | AY99: =X99*'Inputs - General'!H$5 -> 0 | AZ99: =Y99*'Inputs - General'!I$5 -> 0 | BB99: =AH99*'Inputs - General'!E$4 -> 0 | BC99: =AI99*'Inputs - General'!F$4 -> 0 | BD99: =AJ99*'Inputs - General'!G$4 -> 0 | BE99: =AK99*'Inputs - General'!H$4 -> 0 | BF99: =AL99*'Inputs - General'!I$4 -> 0 | BH99: 0 | BI99: 0 | BJ99: 0 | BK99: 0 | BL99: 0 | BN99: 0 | BO99: 0 | BP99: 0 | BQ99: 0 | BR99: 0 | BT99: ='Input - Customer Inventory FY15'!F98 -> 6 | BZ99: =IF($E99="Lamp",0,IF(SUM(BU99:$BY99)>=$BT99,0,IF(BN99<=0,IF($H99=0,0,$BT99),0))) -> 0 | CA99: =IF($E99="Lamp",0,IF(SUM($BU99:BZ99)>=$BT99,0,IF(BO99<=0,IF($H99=0,0,$BT99),0))) -> 0 | CB99: =IF($E99="Lamp",0,IF(SUM($BU99:CA99)>=$BT99,0,IF(BP99<=0,IF($H99=0,0,$BT99),0))) -> 0 | CC99: =IF($E99="Lamp",0,IF(SUM($BU99:CB99)>=$BT99,0,IF(BQ99<=0,IF($H99=0,0,$BT99),0))) -> 0 | CD99: =IF($E99="Lamp",0,IF(SUM($BU99:CC99)>=$BT99,0,IF(BR99<=0,IF($H99=0,0,$BT99),0))) -> 0 | CL99: =CF99/'Inputs - General'!E$5 -> 0 | CM99: =CG99/'Inputs - General'!F$5 -> 0 | CN99: =CH99/'Inputs - General'!G$5 -> 0 | CO99: =CI99/'Inputs - General'!H$5 -> 0 | CP99: =CJ99/'Inputs - General'!I$5 -> 0
D100: Luminaire - 2x40W TF | E100: Luminaire | F100: 2x40W TF | G100: 2 | H100: 0 | I100: No | J100: 0 | K100: 0 | L100: 0 | N100: 0 | O100: 0 | P100: 0 | Q100: 0 | R100: 0 | S100: 0 | U100: =IFERROR(IF(N100-(($H100-SUM($CK100:CK100))/$K100)<0,N100,(($H100-SUM($CK100:CK100))/$K100)),0) -> 0 | V100: =IFERROR(IF(O100-(($H100-SUM($CK100:CL100))/$K100)<0,O100,(($H100-SUM($CK100:CL100))/$K100)),0) -> 0 | W100: =IFERROR(IF(P100-(($H100-SUM($CK100:CM100))/$K100)<0,P100,(($H100-SUM($CK100:CM100))/$K100)),0) -> 0 | X100: =IFERROR(IF(Q100-(($H100-SUM($CK100:CN100))/$K100)<0,Q100,(($H100-SUM($CK100:CN100))/$K100)),0) -> 0 | Y100: =IFERROR(IF(R100-(($H100-SUM($CK100:CO100))/$K100)<0,R100,(($H100-SUM($CK100:CO100))/$K100)),0) -> 0 | AA100: 0 | AB100: 0 | AC100: 0 | AD100: 0 | AE100: 0 | AF100: 0 | AH100: =AA100*'Inputs - General'!D$5 -> 0 | AI100: =AB100*'Inputs - General'!E$5 -> 0 | AJ100: =AC100*'Inputs - General'!F$5 -> 0 | AK100: =AD100*'Inputs - General'!G$5 -> 0 | AL100: =AE100*'Inputs - General'!H$5 -> 0 | AM100: =AF100*'Inputs - General'!I$5 -> 0 | AO100: =N100*'Inputs - General'!D$5 -> 0 | AP100: =O100*'Inputs - General'!E$5 -> 0 | AQ100: =P100*'Inputs - General'!F$5 -> 0 | AR100: =Q100*'Inputs - General'!G$5 -> 0 | AS100: =R100*'Inputs - General'!H$5 -> 0 | AT100: =S100*'Inputs - General'!I$5 -> 0 | AV100: =U100*'Inputs - General'!E$5 -> 0 | AW100: =V100*'Inputs - General'!F$5 -> 0 | AX100: =W100*'Inputs - General'!G$5 -> 0 | AY100: =X100*'Inputs - General'!H$5 -> 0 | AZ100: =Y100*'Inputs - General'!I$5 -> 0 | BB100: =AH100*'Inputs - General'!E$4 -> 0 | BC100: =AI100*'Inputs - General'!F$4 -> 0 | BD100: =AJ100*'Inputs - General'!G$4 -> 0 | BE100: =AK100*'Inputs - General'!H$4 -> 0 | BF100: =AL100*'Inputs - General'!I$4 -> 0 | BH100: 0 | BI100: 0 | BJ100: 0 | BK100: 0 | BL100: 0 | BN100: 0 | BO100: 0 | BP100: 0 | BQ100: 0 | BR100: 0 | BT100: ='Input - Customer Inventory FY15'!F99 -> 6 | BZ100: =IF($E100="Lamp",0,IF(SUM(BU100:$BY100)>=$BT100,0,IF(BN100<=0,IF($H100=0,0,$BT100),0))) -> 0 | CA100: =IF($E100="Lamp",0,IF(SUM($BU100:BZ100)>=$BT100,0,IF(BO100<=0,IF($H100=0,0,$BT100),0))) -> 0 | CB100: =IF($E100="Lamp",0,IF(SUM($BU100:CA100)>=$BT100,0,IF(BP100<=0,IF($H100=0,0,$BT100),0))) -> 0 | CC100: =IF($E100="Lamp",0,IF(SUM($BU100:CB100)>=$BT100,0,IF(BQ100<=0,IF($H100=0,0,$BT100),0))) -> 0 | CD100: =IF($E100="Lamp",0,IF(SUM($BU100:CC100)>=$BT100,0,IF(BR100<=0,IF($H100=0,0,$BT100),0))) -> 0 | CL100: =CF100/'Inputs - General'!E$5 -> 0 | CM100: =CG100/'Inputs - General'!F$5 -> 0 | CN100: =CH100/'Inputs - General'!G$5 -> 0 | CO100: =CI100/'Inputs - General'!H$5 -> 0 | CP100: =CJ100/'Inputs - General'!I$5 -> 0
D101: Luminaire - 400W MBF - PARKWAY 1 | E101: Luminaire | F101: 400W MBF - PARKWAY 1 | G101: 1 | H101: 0 | I101: No | J101: 0 | K101: 0 | L101: 0 | N101: 0 | O101: 0 | P101: 0 | Q101: 0 | R101: 0 | S101: 0 | U101: =IFERROR(IF(N101-(($H101-SUM($CK101:CK101))/$K101)<0,N101,(($H101-SUM($CK101:CK101))/$K101)),0) -> 0 | V101: =IFERROR(IF(O101-(($H101-SUM($CK101:CL101))/$K101)<0,O101,(($H101-SUM($CK101:CL101))/$K101)),0) -> 0 | W101: =IFERROR(IF(P101-(($H101-SUM($CK101:CM101))/$K101)<0,P101,(($H101-SUM($CK101:CM101))/$K101)),0) -> 0 | X101: =IFERROR(IF(Q101-(($H101-SUM($CK101:CN101))/$K101)<0,Q101,(($H101-SUM($CK101:CN101))/$K101)),0) -> 0 | Y101: =IFERROR(IF(R101-(($H101-SUM($CK101:CO101))/$K101)<0,R101,(($H101-SUM($CK101:CO101))/$K101)),0) -> 0 | AA101: 0 | AB101: 0 | AC101: 0 | AD101: 0 | AE101: 0 | AF101: 0 | AH101: =AA101*'Inputs - General'!D$5 -> 0 | AI101: =AB101*'Inputs - General'!E$5 -> 0 | AJ101: =AC101*'Inputs - General'!F$5 -> 0 | AK101: =AD101*'Inputs - General'!G$5 -> 0 | AL101: =AE101*'Inputs - General'!H$5 -> 0 | AM101: =AF101*'Inputs - General'!I$5 -> 0 | AO101: =N101*'Inputs - General'!D$5 -> 0 | AP101: =O101*'Inputs - General'!E$5 -> 0 | AQ101: =P101*'Inputs - General'!F$5 -> 0 | AR101: =Q101*'Inputs - General'!G$5 -> 0 | AS101: =R101*'Inputs - General'!H$5 -> 0 | AT101: =S101*'Inputs - General'!I$5 -> 0 | AV101: =U101*'Inputs - General'!E$5 -> 0 | AW101: =V101*'Inputs - General'!F$5 -> 0 | AX101: =W101*'Inputs - General'!G$5 -> 0 | AY101: =X101*'Inputs - General'!H$5 -> 0 | AZ101: =Y101*'Inputs - General'!I$5 -> 0 | BB101: =AH101*'Inputs - General'!E$4 -> 0 | BC101: =AI101*'Inputs - General'!F$4 -> 0 | BD101: =AJ101*'Inputs - General'!G$4 -> 0 | BE101: =AK101*'Inputs - General'!H$4 -> 0 | BF101: =AL101*'Inputs - General'!I$4 -> 0 | BH101: 0 | BI101: 0 | BJ101: 0 | BK101: 0 | BL101: 0 | BN101: 0 | BO101: 0 | BP101: 0 | BQ101: 0 | BR101: 0 | BT101: ='Input - Customer Inventory FY15'!F100 -> 24.5 | BZ101: =IF($E101="Lamp",0,IF(SUM(BU101:$BY101)>=$BT101,0,IF(BN101<=0,IF($H101=0,0,$BT101),0))) -> 0 | CA101: =IF($E101="Lamp",0,IF(SUM($BU101:BZ101)>=$BT101,0,IF(BO101<=0,IF($H101=0,0,$BT101),0))) -> 0 | CB101: =IF($E101="Lamp",0,IF(SUM($BU101:CA101)>=$BT101,0,IF(BP101<=0,IF($H101=0,0,$BT101),0))) -> 0 | CC101: =IF($E101="Lamp",0,IF(SUM($BU101:CB101)>=$BT101,0,IF(BQ101<=0,IF($H101=0,0,$BT101),0))) -> 0 | CD101: =IF($E101="Lamp",0,IF(SUM($BU101:CC101)>=$BT101,0,IF(BR101<=0,IF($H101=0,0,$BT101),0))) -> 0 | CL101: =CF101/'Inputs - General'!E$5 -> 0 | CM101: =CG101/'Inputs - General'!F$5 -> 0 | CN101: =CH101/'Inputs - General'!G$5 -> 0 | CO101: =CI101/'Inputs - General'!H$5 -> 0 | CP101: =CJ101/'Inputs - General'!I$5 -> 0
D102: Luminaire - 400W MBF | E102: Luminaire | F102: 400W MBF | G102: 1 | H102: 0 | I102: No | J102: 0 | K102: 0 | L102: 0 | N102: 0 | O102: 0 | P102: 0 | Q102: 0 | R102: 0 | S102: 0 | U102: =IFERROR(IF(N102-(($H102-SUM($CK102:CK102))/$K102)<0,N102,(($H102-SUM($CK102:CK102))/$K102)),0) -> 0 | V102: =IFERROR(IF(O102-(($H102-SUM($CK102:CL102))/$K102)<0,O102,(($H102-SUM($CK102:CL102))/$K102)),0) -> 0 | W102: =IFERROR(IF(P102-(($H102-SUM($CK102:CM102))/$K102)<0,P102,(($H102-SUM($CK102:CM102))/$K102)),0) -> 0 | X102: =IFERROR(IF(Q102-(($H102-SUM($CK102:CN102))/$K102)<0,Q102,(($H102-SUM($CK102:CN102))/$K102)),0) -> 0 | Y102: =IFERROR(IF(R102-(($H102-SUM($CK102:CO102))/$K102)<0,R102,(($H102-SUM($CK102:CO102))/$K102)),0) -> 0 | AA102: 0 | AB102: 0 | AC102: 0 | AD102: 0 | AE102: 0 | AF102: 0 | AH102: =AA102*'Inputs - General'!D$5 -> 0 | AI102: =AB102*'Inputs - General'!E$5 -> 0 | AJ102: =AC102*'Inputs - General'!F$5 -> 0 | AK102: =AD102*'Inputs - General'!G$5 -> 0 | AL102: =AE102*'Inputs - General'!H$5 -> 0 | AM102: =AF102*'Inputs - General'!I$5 -> 0 | AO102: =N102*'Inputs - General'!D$5 -> 0 | AP102: =O102*'Inputs - General'!E$5 -> 0 | AQ102: =P102*'Inputs - General'!F$5 -> 0 | AR102: =Q102*'Inputs - General'!G$5 -> 0 | AS102: =R102*'Inputs - General'!H$5 -> 0 | AT102: =S102*'Inputs - General'!I$5 -> 0 | AV102: =U102*'Inputs - General'!E$5 -> 0 | AW102: =V102*'Inputs - General'!F$5 -> 0 | AX102: =W102*'Inputs - General'!G$5 -> 0 | AY102: =X102*'Inputs - General'!H$5 -> 0 | AZ102: =Y102*'Inputs - General'!I$5 -> 0 | BB102: =AH102*'Inputs - General'!E$4 -> 0 | BC102: =AI102*'Inputs - General'!F$4 -> 0 | BD102: =AJ102*'Inputs - General'!G$4 -> 0 | BE102: =AK102*'Inputs - General'!H$4 -> 0 | BF102: =AL102*'Inputs - General'!I$4 -> 0 | BH102: 0 | BI102: 0 | BJ102: 0 | BK102: 0 | BL102: 0 | BN102: 0 | BO102: 0 | BP102: 0 | BQ102: 0 | BR102: 0 | BT102: ='Input - Customer Inventory FY15'!F101 -> 151 | BZ102: =IF($E102="Lamp",0,IF(SUM(BU102:$BY102)>=$BT102,0,IF(BN102<=0,IF($H102=0,0,$BT102),0))) -> 0 | CA102: =IF($E102="Lamp",0,IF(SUM($BU102:BZ102)>=$BT102,0,IF(BO102<=0,IF($H102=0,0,$BT102),0))) -> 0 | CB102: =IF($E102="Lamp",0,IF(SUM($BU102:CA102)>=$BT102,0,IF(BP102<=0,IF($H102=0,0,$BT102),0))) -> 0 | CC102: =IF($E102="Lamp",0,IF(SUM($BU102:CB102)>=$BT102,0,IF(BQ102<=0,IF($H102=0,0,$BT102),0))) -> 0 | CD102: =IF($E102="Lamp",0,IF(SUM($BU102:CC102)>=$BT102,0,IF(BR102<=0,IF($H102=0,0,$BT102),0))) -> 0 | CL102: =CF102/'Inputs - General'!E$5 -> 0 | CM102: =CG102/'Inputs - General'!F$5 -> 0 | CN102: =CH102/'Inputs - General'!G$5 -> 0 | CO102: =CI102/'Inputs - General'!H$5 -> 0 | CP102: =CJ102/'Inputs - General'!I$5 -> 0
D103: Luminaire - 400W MBF | E103: Luminaire | F103: 400W MBF | G103: 2 | H103: 0 | I103: No | J103: 0 | K103: 0 | L103: 0 | N103: 0 | O103: 0 | P103: 0 | Q103: 0 | R103: 0 | S103: 0 | U103: =IFERROR(IF(N103-(($H103-SUM($CK103:CK103))/$K103)<0,N103,(($H103-SUM($CK103:CK103))/$K103)),0) -> 0 | V103: =IFERROR(IF(O103-(($H103-SUM($CK103:CL103))/$K103)<0,O103,(($H103-SUM($CK103:CL103))/$K103)),0) -> 0 | W103: =IFERROR(IF(P103-(($H103-SUM($CK103:CM103))/$K103)<0,P103,(($H103-SUM($CK103:CM103))/$K103)),0) -> 0 | X103: =IFERROR(IF(Q103-(($H103-SUM($CK103:CN103))/$K103)<0,Q103,(($H103-SUM($CK103:CN103))/$K103)),0) -> 0 | Y103: =IFERROR(IF(R103-(($H103-SUM($CK103:CO103))/$K103)<0,R103,(($H103-SUM($CK103:CO103))/$K103)),0) -> 0 | AA103: 0 | AB103: 0 | AC103: 0 | AD103: 0 | AE103: 0 | AF103: 0 | AH103: =AA103*'Inputs - General'!D$5 -> 0 | AI103: =AB103*'Inputs - General'!E$5 -> 0 | AJ103: =AC103*'Inputs - General'!F$5 -> 0 | AK103: =AD103*'Inputs - General'!G$5 -> 0 | AL103: =AE103*'Inputs - General'!H$5 -> 0 | AM103: =AF103*'Inputs - General'!I$5 -> 0 | AO103: =N103*'Inputs - General'!D$5 -> 0 | AP103: =O103*'Inputs - General'!E$5 -> 0 | AQ103: =P103*'Inputs - General'!F$5 -> 0 | AR103: =Q103*'Inputs - General'!G$5 -> 0 | AS103: =R103*'Inputs - General'!H$5 -> 0 | AT103: =S103*'Inputs - General'!I$5 -> 0 | AV103: =U103*'Inputs - General'!E$5 -> 0 | AW103: =V103*'Inputs - General'!F$5 -> 0 | AX103: =W103*'Inputs - General'!G$5 -> 0 | AY103: =X103*'Inputs - General'!H$5 -> 0 | AZ103: =Y103*'Inputs - General'!I$5 -> 0 | BB103: =AH103*'Inputs - General'!E$4 -> 0 | BC103: =AI103*'Inputs - General'!F$4 -> 0 | BD103: =AJ103*'Inputs - General'!G$4 -> 0 | BE103: =AK103*'Inputs - General'!H$4 -> 0 | BF103: =AL103*'Inputs - General'!I$4 -> 0 | BH103: 0 | BI103: 0 | BJ103: 0 | BK103: 0 | BL103: 0 | BN103: 0 | BO103: 0 | BP103: 0 | BQ103: 0 | BR103: 0 | BT103: ='Input - Customer Inventory FY15'!F102 -> 0 | BZ103: =IF($E103="Lamp",0,IF(SUM(BU103:$BY103)>=$BT103,0,IF(BN103<=0,IF($H103=0,0,$BT103),0))) -> 0 | CA103: =IF($E103="Lamp",0,IF(SUM($BU103:BZ103)>=$BT103,0,IF(BO103<=0,IF($H103=0,0,$BT103),0))) -> 0 | CB103: =IF($E103="Lamp",0,IF(SUM($BU103:CA103)>=$BT103,0,IF(BP103<=0,IF($H103=0,0,$BT103),0))) -> 0 | CC103: =IF($E103="Lamp",0,IF(SUM($BU103:CB103)>=$BT103,0,IF(BQ103<=0,IF($H103=0,0,$BT103),0))) -> 0 | CD103: =IF($E103="Lamp",0,IF(SUM($BU103:CC103)>=$BT103,0,IF(BR103<=0,IF($H103=0,0,$BT103),0))) -> 0 | CL103: =CF103/'Inputs - General'!E$5 -> 0 | CM103: =CG103/'Inputs - General'!F$5 -> 0 | CN103: =CH103/'Inputs - General'!G$5 -> 0 | CO103: =CI103/'Inputs - General'!H$5 -> 0 | CP103: =CJ103/'Inputs - General'!I$5 -> 0
D104: Luminaire - 400W SON FLOODLIGHT | E104: Luminaire | F104: 400W SON FLOODLIGHT | G104: 1 | H104: 0.8840782833 | I104: No | J104: 4.868493151 | K104: 4.868493151 | L104: 0.1815917689 | N104: 0.8840782833 | O104: 0.7024865143 | P104: 0.5208947454 | Q104: 0.3393029765 | R104: 0.1577112075 | S104: 0 | U104: =IFERROR(IF(N104-(($H104-SUM($CK104:CK104))/$K104)<0,N104,(($H104-SUM($CK104:CK104))/$K104)),0) -> 0.1815917689 | V104: =IFERROR(IF(O104-(($H104-SUM($CK104:CL104))/$K104)<0,O104,(($H104-SUM($CK104:CL104))/$K104)),0) -> 0.1815917689 | W104: =IFERROR(IF(P104-(($H104-SUM($CK104:CM104))/$K104)<0,P104,(($H104-SUM($CK104:CM104))/$K104)),0) -> 0.1815917689 | X104: =IFERROR(IF(Q104-(($H104-SUM($CK104:CN104))/$K104)<0,Q104,(($H104-SUM($CK104:CN104))/$K104)),0) -> 0.1815917689 | Y104: =IFERROR(IF(R104-(($H104-SUM($CK104:CO104))/$K104)<0,R104,(($H104-SUM($CK104:CO104))/$K104)),0) -> 0.1577112075 | AA104: 0.8840782833 | AB104: 0.7024865143 | AC104: 0.5208947454 | AD104: 0.3393029765 | AE104: 0.1577112075 | AF104: 0 | AH104: =AA104*'Inputs - General'!D$5 -> 0.8840782833 | AI104: =AB104*'Inputs - General'!E$5 -> 0.7312884614 | AJ104: =AC104*'Inputs - General'!F$5 -> 0.5644837386 | AK104: =AD104*'Inputs - General'!G$5 -> 0.3827717326 | AL104: =AE104*'Inputs - General'!H$5 -> 0.1852104449 | AM104: =AF104*'Inputs - General'!I$5 -> 0 | AO104: =N104*'Inputs - General'!D$5 -> 0.8840782833 | AP104: =O104*'Inputs - General'!E$5 -> 0.7312884614 | AQ104: =P104*'Inputs - General'!F$5 -> 0.5644837386 | AR104: =Q104*'Inputs - General'!G$5 -> 0.3827717326 | AS104: =R104*'Inputs - General'!H$5 -> 0.1852104449 | AT104: =S104*'Inputs - General'!I$5 -> 0 | AV104: =U104*'Inputs - General'!E$5 -> 0.1890370315 | AW104: =V104*'Inputs - General'!F$5 -> 0.1967875497 | AX104: =W104*'Inputs - General'!G$5 -> 0.2048558393 | AY104: =X104*'Inputs - General'!H$5 -> 0.2132549287 | AZ104: =Y104*'Inputs - General'!I$5 -> 0.1928040732 | BB104: =AH104*'Inputs - General'!E$4 -> 0.03624720961 | BC104: =AI104*'Inputs - General'!F$4 -> 0.02998282692 | BD104: =AJ104*'Inputs - General'!G$4 -> 0.02314383328 | BE104: =AK104*'Inputs - General'!H$4 -> 0.01569364104 | BF104: =AL104*'Inputs - General'!I$4 -> 0.007593628242 | BH104: 0.1527898218 | BI104: 0.1668047228 | BJ104: 0.181712006 | BK104: 0.1975612877 | BL104: 0.1852104449 | BN104: 0.0545585701 | BO104: 0.04512954739 | BP104: 0.03483563187 | BQ104: 0.02362175251 | BR104: 0.01142977634 | BT104: ='Input - Customer Inventory FY15'!F103 -> 2 | BZ104: =IF($E104="Lamp",0,IF(SUM(BU104:$BY104)>=$BT104,0,IF(BN104<=0,IF($H104=0,0,$BT104),0))) -> 0 | CA104: =IF($E104="Lamp",0,IF(SUM($BU104:BZ104)>=$BT104,0,IF(BO104<=0,IF($H104=0,0,$BT104),0))) -> 0 | CB104: =IF($E104="Lamp",0,IF(SUM($BU104:CA104)>=$BT104,0,IF(BP104<=0,IF($H104=0,0,$BT104),0))) -> 0 | CC104: =IF($E104="Lamp",0,IF(SUM($BU104:CB104)>=$BT104,0,IF(BQ104<=0,IF($H104=0,0,$BT104),0))) -> 0 | CD104: =IF($E104="Lamp",0,IF(SUM($BU104:CC104)>=$BT104,0,IF(BR104<=0,IF($H104=0,0,$BT104),0))) -> 0 | CL104: =CF104/'Inputs - General'!E$5 -> 0 | CM104: =CG104/'Inputs - General'!F$5 -> 0 | CN104: =CH104/'Inputs - General'!G$5 -> 0 | CO104: =CI104/'Inputs - General'!H$5 -> 0 | CP104: =CJ104/'Inputs - General'!I$5 -> 0
D105: Luminaire - 400W SON | E105: Luminaire | F105: 400W SON | G105: 1 | H105: 0 | I105: No | J105: 0 | K105: 0 | L105: 0 | N105: 0 | O105: 0 | P105: 0 | Q105: 0 | R105: 0 | S105: 0 | U105: =IFERROR(IF(N105-(($H105-SUM($CK105:CK105))/$K105)<0,N105,(($H105-SUM($CK105:CK105))/$K105)),0) -> 0 | V105: =IFERROR(IF(O105-(($H105-SUM($CK105:CL105))/$K105)<0,O105,(($H105-SUM($CK105:CL105))/$K105)),0) -> 0 | W105: =IFERROR(IF(P105-(($H105-SUM($CK105:CM105))/$K105)<0,P105,(($H105-SUM($CK105:CM105))/$K105)),0) -> 0 | X105: =IFERROR(IF(Q105-(($H105-SUM($CK105:CN105))/$K105)<0,Q105,(($H105-SUM($CK105:CN105))/$K105)),0) -> 0 | Y105: =IFERROR(IF(R105-(($H105-SUM($CK105:CO105))/$K105)<0,R105,(($H105-SUM($CK105:CO105))/$K105)),0) -> 0 | AA105: 0 | AB105: 0 | AC105: 0 | AD105: 0 | AE105: 0 | AF105: 0 | AH105: =AA105*'Inputs - General'!D$5 -> 0 | AI105: =AB105*'Inputs - General'!E$5 -> 0 | AJ105: =AC105*'Inputs - General'!F$5 -> 0 | AK105: =AD105*'Inputs - General'!G$5 -> 0 | AL105: =AE105*'Inputs - General'!H$5 -> 0 | AM105: =AF105*'Inputs - General'!I$5 -> 0 | AO105: =N105*'Inputs - General'!D$5 -> 0 | AP105: =O105*'Inputs - General'!E$5 -> 0 | AQ105: =P105*'Inputs - General'!F$5 -> 0 | AR105: =Q105*'Inputs - General'!G$5 -> 0 | AS105: =R105*'Inputs - General'!H$5 -> 0 | AT105: =S105*'Inputs - General'!I$5 -> 0 | AV105: =U105*'Inputs - General'!E$5 -> 0 | AW105: =V105*'Inputs - General'!F$5 -> 0 | AX105: =W105*'Inputs - General'!G$5 -> 0 | AY105: =X105*'Inputs - General'!H$5 -> 0 | AZ105: =Y105*'Inputs - General'!I$5 -> 0 | BB105: =AH105*'Inputs - General'!E$4 -> 0 | BC105: =AI105*'Inputs - General'!F$4 -> 0 | BD105: =AJ105*'Inputs - General'!G$4 -> 0 | BE105: =AK105*'Inputs - General'!H$4 -> 0 | BF105: =AL105*'Inputs - General'!I$4 -> 0 | BH105: 0 | BI105: 0 | BJ105: 0 | BK105: 0 | BL105: 0 | BN105: 0 | BO105: 0 | BP105: 0 | BQ105: 0 | BR105: 0 | BT105: ='Input - Customer Inventory FY15'!F104 -> 9.5 | BZ105: =IF($E105="Lamp",0,IF(SUM(BU105:$BY105)>=$BT105,0,IF(BN105<=0,IF($H105=0,0,$BT105),0))) -> 0 | CA105: =IF($E105="Lamp",0,IF(SUM($BU105:BZ105)>=$BT105,0,IF(BO105<=0,IF($H105=0,0,$BT105),0))) -> 0 | CB105: =IF($E105="Lamp",0,IF(SUM($BU105:CA105)>=$BT105,0,IF(BP105<=0,IF($H105=0,0,$BT105),0))) -> 0 | CC105: =IF($E105="Lamp",0,IF(SUM($BU105:CB105)>=$BT105,0,IF(BQ105<=0,IF($H105=0,0,$BT105),0))) -> 0 | CD105: =IF($E105="Lamp",0,IF(SUM($BU105:CC105)>=$BT105,0,IF(BR105<=0,IF($H105=0,0,$BT105),0))) -> 0 | CL105: =CF105/'Inputs - General'!E$5 -> 0 | CM105: =CG105/'Inputs - General'!F$5 -> 0 | CN105: =CH105/'Inputs - General'!G$5 -> 0 | CO105: =CI105/'Inputs - General'!H$5 -> 0 | CP105: =CJ105/'Inputs - General'!I$5 -> 0
D106: Luminaire - 400W SON | E106: Luminaire | F106: 400W SON | G106: 2 | H106: 0 | I106: No | J106: 0 | K106: 0 | L106: 0 | N106: 0 | O106: 0 | P106: 0 | Q106: 0 | R106: 0 | S106: 0 | U106: =IFERROR(IF(N106-(($H106-SUM($CK106:CK106))/$K106)<0,N106,(($H106-SUM($CK106:CK106))/$K106)),0) -> 0 | V106: =IFERROR(IF(O106-(($H106-SUM($CK106:CL106))/$K106)<0,O106,(($H106-SUM($CK106:CL106))/$K106)),0) -> 0 | W106: =IFERROR(IF(P106-(($H106-SUM($CK106:CM106))/$K106)<0,P106,(($H106-SUM($CK106:CM106))/$K106)),0) -> 0 | X106: =IFERROR(IF(Q106-(($H106-SUM($CK106:CN106))/$K106)<0,Q106,(($H106-SUM($CK106:CN106))/$K106)),0) -> 0 | Y106: =IFERROR(IF(R106-(($H106-SUM($CK106:CO106))/$K106)<0,R106,(($H106-SUM($CK106:CO106))/$K106)),0) -> 0 | AA106: 0 | AB106: 0 | AC106: 0 | AD106: 0 | AE106: 0 | AF106: 0 | AH106: =AA106*'Inputs - General'!D$5 -> 0 | AI106: =AB106*'Inputs - General'!E$5 -> 0 | AJ106: =AC106*'Inputs - General'!F$5 -> 0 | AK106: =AD106*'Inputs - General'!G$5 -> 0 | AL106: =AE106*'Inputs - General'!H$5 -> 0 | AM106: =AF106*'Inputs - General'!I$5 -> 0 | AO106: =N106*'Inputs - General'!D$5 -> 0 | AP106: =O106*'Inputs - General'!E$5 -> 0 | AQ106: =P106*'Inputs - General'!F$5 -> 0 | AR106: =Q106*'Inputs - General'!G$5 -> 0 | AS106: =R106*'Inputs - General'!H$5 -> 0 | AT106: =S106*'Inputs - General'!I$5 -> 0 | AV106: =U106*'Inputs - General'!E$5 -> 0 | AW106: =V106*'Inputs - General'!F$5 -> 0 | AX106: =W106*'Inputs - General'!G$5 -> 0 | AY106: =X106*'Inputs - General'!H$5 -> 0 | AZ106: =Y106*'Inputs - General'!I$5 -> 0 | BB106: =AH106*'Inputs - General'!E$4 -> 0 | BC106: =AI106*'Inputs - General'!F$4 -> 0 | BD106: =AJ106*'Inputs - General'!G$4 -> 0 | BE106: =AK106*'Inputs - General'!H$4 -> 0 | BF106: =AL106*'Inputs - General'!I$4 -> 0 | BH106: 0 | BI106: 0 | BJ106: 0 | BK106: 0 | BL106: 0 | BN106: 0 | BO106: 0 | BP106: 0 | BQ106: 0 | BR106: 0 | BT106: ='Input - Customer Inventory FY15'!F105 -> 0 | BZ106: =IF($E106="Lamp",0,IF(SUM(BU106:$BY106)>=$BT106,0,IF(BN106<=0,IF($H106=0,0,$BT106),0))) -> 0 | CA106: =IF($E106="Lamp",0,IF(SUM($BU106:BZ106)>=$BT106,0,IF(BO106<=0,IF($H106=0,0,$BT106),0))) -> 0 | CB106: =IF($E106="Lamp",0,IF(SUM($BU106:CA106)>=$BT106,0,IF(BP106<=0,IF($H106=0,0,$BT106),0))) -> 0 | CC106: =IF($E106="Lamp",0,IF(SUM($BU106:CB106)>=$BT106,0,IF(BQ106<=0,IF($H106=0,0,$BT106),0))) -> 0 | CD106: =IF($E106="Lamp",0,IF(SUM($BU106:CC106)>=$BT106,0,IF(BR106<=0,IF($H106=0,0,$BT106),0))) -> 0 | CL106: =CF106/'Inputs - General'!E$5 -> 0 | CM106: =CG106/'Inputs - General'!F$5 -> 0 | CN106: =CH106/'Inputs - General'!G$5 -> 0 | CO106: =CI106/'Inputs - General'!H$5 -> 0 | CP106: =CJ106/'Inputs - General'!I$5 -> 0
D107: Luminaire - 42W MBF SYLVANIA SUB ECO | E107: Luminaire | F107: 42W MBF SYLVANIA SUB ECO | G107: 1 | H107: 0 | I107: No | J107: 0 | K107: 0 | L107: 0 | N107: 0 | O107: 0 | P107: 0 | Q107: 0 | R107: 0 | S107: 0 | U107: =IFERROR(IF(N107-(($H107-SUM($CK107:CK107))/$K107)<0,N107,(($H107-SUM($CK107:CK107))/$K107)),0) -> 0 | V107: =IFERROR(IF(O107-(($H107-SUM($CK107:CL107))/$K107)<0,O107,(($H107-SUM($CK107:CL107))/$K107)),0) -> 0 | W107: =IFERROR(IF(P107-(($H107-SUM($CK107:CM107))/$K107)<0,P107,(($H107-SUM($CK107:CM107))/$K107)),0) -> 0 | X107: =IFERROR(IF(Q107-(($H107-SUM($CK107:CN107))/$K107)<0,Q107,(($H107-SUM($CK107:CN107))/$K107)),0) -> 0 | Y107: =IFERROR(IF(R107-(($H107-SUM($CK107:CO107))/$K107)<0,R107,(($H107-SUM($CK107:CO107))/$K107)),0) -> 0 | AA107: 0 | AB107: 0 | AC107: 0 | AD107: 0 | AE107: 0 | AF107: 0 | AH107: =AA107*'Inputs - General'!D$5 -> 0 | AI107: =AB107*'Inputs - General'!E$5 -> 0 | AJ107: =AC107*'Inputs - General'!F$5 -> 0 | AK107: =AD107*'Inputs - General'!G$5 -> 0 | AL107: =AE107*'Inputs - General'!H$5 -> 0 | AM107: =AF107*'Inputs - General'!I$5 -> 0 | AO107: =N107*'Inputs - General'!D$5 -> 0 | AP107: =O107*'Inputs - General'!E$5 -> 0 | AQ107: =P107*'Inputs - General'!F$5 -> 0 | AR107: =Q107*'Inputs - General'!G$5 -> 0 | AS107: =R107*'Inputs - General'!H$5 -> 0 | AT107: =S107*'Inputs - General'!I$5 -> 0 | AV107: =U107*'Inputs - General'!E$5 -> 0 | AW107: =V107*'Inputs - General'!F$5 -> 0 | AX107: =W107*'Inputs - General'!G$5 -> 0 | AY107: =X107*'Inputs - General'!H$5 -> 0 | AZ107: =Y107*'Inputs - General'!I$5 -> 0 | BB107: =AH107*'Inputs - General'!E$4 -> 0 | BC107: =AI107*'Inputs - General'!F$4 -> 0 | BD107: =AJ107*'Inputs - General'!G$4 -> 0 | BE107: =AK107*'Inputs - General'!H$4 -> 0 | BF107: =AL107*'Inputs - General'!I$4 -> 0 | BH107: 0 | BI107: 0 | BJ107: 0 | BK107: 0 | BL107: 0 | BN107: 0 | BO107: 0 | BP107: 0 | BQ107: 0 | BR107: 0 | BT107: ='Input - Customer Inventory FY15'!F106 -> 76.5 | BZ107: =IF($E107="Lamp",0,IF(SUM(BU107:$BY107)>=$BT107,0,IF(BN107<=0,IF($H107=0,0,$BT107),0))) -> 0 | CA107: =IF($E107="Lamp",0,IF(SUM($BU107:BZ107)>=$BT107,0,IF(BO107<=0,IF($H107=0,0,$BT107),0))) -> 0 | CB107: =IF($E107="Lamp",0,IF(SUM($BU107:CA107)>=$BT107,0,IF(BP107<=0,IF($H107=0,0,$BT107),0))) -> 0 | CC107: =IF($E107="Lamp",0,IF(SUM($BU107:CB107)>=$BT107,0,IF(BQ107<=0,IF($H107=0,0,$BT107),0))) -> 0 | CD107: =IF($E107="Lamp",0,IF(SUM($BU107:CC107)>=$BT107,0,IF(BR107<=0,IF($H107=0,0,$BT107),0))) -> 0 | CL107: =CF107/'Inputs - General'!E$5 -> 0 | CM107: =CG107/'Inputs - General'!F$5 -> 0 | CN107: =CH107/'Inputs - General'!G$5 -> 0 | CO107: =CI107/'Inputs - General'!H$5 -> 0 | CP107: =CJ107/'Inputs - General'!I$5 -> 0
D108: Luminaire - 42W MBF SYLVANIA SUB ECO | E108: Luminaire | F108: 42W MBF SYLVANIA SUB ECO | G108: 2 | H108: 0 | I108: No | J108: 0 | K108: 0 | L108: 0 | N108: 0 | O108: 0 | P108: 0 | Q108: 0 | R108: 0 | S108: 0 | U108: =IFERROR(IF(N108-(($H108-SUM($CK108:CK108))/$K108)<0,N108,(($H108-SUM($CK108:CK108))/$K108)),0) -> 0 | V108: =IFERROR(IF(O108-(($H108-SUM($CK108:CL108))/$K108)<0,O108,(($H108-SUM($CK108:CL108))/$K108)),0) -> 0 | W108: =IFERROR(IF(P108-(($H108-SUM($CK108:CM108))/$K108)<0,P108,(($H108-SUM($CK108:CM108))/$K108)),0) -> 0 | X108: =IFERROR(IF(Q108-(($H108-SUM($CK108:CN108))/$K108)<0,Q108,(($H108-SUM($CK108:CN108))/$K108)),0) -> 0 | Y108: =IFERROR(IF(R108-(($H108-SUM($CK108:CO108))/$K108)<0,R108,(($H108-SUM($CK108:CO108))/$K108)),0) -> 0 | AA108: 0 | AB108: 0 | AC108: 0 | AD108: 0 | AE108: 0 | AF108: 0 | AH108: =AA108*'Inputs - General'!D$5 -> 0 | AI108: =AB108*'Inputs - General'!E$5 -> 0 | AJ108: =AC108*'Inputs - General'!F$5 -> 0 | AK108: =AD108*'Inputs - General'!G$5 -> 0 | AL108: =AE108*'Inputs - General'!H$5 -> 0 | AM108: =AF108*'Inputs - General'!I$5 -> 0 | AO108: =N108*'Inputs - General'!D$5 -> 0 | AP108: =O108*'Inputs - General'!E$5 -> 0 | AQ108: =P108*'Inputs - General'!F$5 -> 0 | AR108: =Q108*'Inputs - General'!G$5 -> 0 | AS108: =R108*'Inputs - General'!H$5 -> 0 | AT108: =S108*'Inputs - General'!I$5 -> 0 | AV108: =U108*'Inputs - General'!E$5 -> 0 | AW108: =V108*'Inputs - General'!F$5 -> 0 | AX108: =W108*'Inputs - General'!G$5 -> 0 | AY108: =X108*'Inputs - General'!H$5 -> 0 | AZ108: =Y108*'Inputs - General'!I$5 -> 0 | BB108: =AH108*'Inputs - General'!E$4 -> 0 | BC108: =AI108*'Inputs - General'!F$4 -> 0 | BD108: =AJ108*'Inputs - General'!G$4 -> 0 | BE108: =AK108*'Inputs - General'!H$4 -> 0 | BF108: =AL108*'Inputs - General'!I$4 -> 0 | BH108: 0 | BI108: 0 | BJ108: 0 | BK108: 0 | BL108: 0 | BN108: 0 | BO108: 0 | BP108: 0 | BQ108: 0 | BR108: 0 | BT108: ='Input - Customer Inventory FY15'!F107 -> 1 | BZ108: =IF($E108="Lamp",0,IF(SUM(BU108:$BY108)>=$BT108,0,IF(BN108<=0,IF($H108=0,0,$BT108),0))) -> 0 | CA108: =IF($E108="Lamp",0,IF(SUM($BU108:BZ108)>=$BT108,0,IF(BO108<=0,IF($H108=0,0,$BT108),0))) -> 0 | CB108: =IF($E108="Lamp",0,IF(SUM($BU108:CA108)>=$BT108,0,IF(BP108<=0,IF($H108=0,0,$BT108),0))) -> 0 | CC108: =IF($E108="Lamp",0,IF(SUM($BU108:CB108)>=$BT108,0,IF(BQ108<=0,IF($H108=0,0,$BT108),0))) -> 0 | CD108: =IF($E108="Lamp",0,IF(SUM($BU108:CC108)>=$BT108,0,IF(BR108<=0,IF($H108=0,0,$BT108),0))) -> 0 | CL108: =CF108/'Inputs - General'!E$5 -> 0 | CM108: =CG108/'Inputs - General'!F$5 -> 0 | CN108: =CH108/'Inputs - General'!G$5 -> 0 | CO108: =CI108/'Inputs - General'!H$5 -> 0 | CP108: =CJ108/'Inputs - General'!I$5 -> 0
D109: Luminaire - 4x20W TF - WAVERLEY | E109: Luminaire | F109: 4x20W TF - WAVERLEY | G109: 1 | H109: 0 | I109: No | J109: 0 | K109: 0 | L109: 0 | N109: 0 | O109: 0 | P109: 0 | Q109: 0 | R109: 0 | S109: 0 | U109: =IFERROR(IF(N109-(($H109-SUM($CK109:CK109))/$K109)<0,N109,(($H109-SUM($CK109:CK109))/$K109)),0) -> 0 | V109: =IFERROR(IF(O109-(($H109-SUM($CK109:CL109))/$K109)<0,O109,(($H109-SUM($CK109:CL109))/$K109)),0) -> 0 | W109: =IFERROR(IF(P109-(($H109-SUM($CK109:CM109))/$K109)<0,P109,(($H109-SUM($CK109:CM109))/$K109)),0) -> 0 | X109: =IFERROR(IF(Q109-(($H109-SUM($CK109:CN109))/$K109)<0,Q109,(($H109-SUM($CK109:CN109))/$K109)),0) -> 0 | Y109: =IFERROR(IF(R109-(($H109-SUM($CK109:CO109))/$K109)<0,R109,(($H109-SUM($CK109:CO109))/$K109)),0) -> 0 | AA109: 0 | AB109: 0 | AC109: 0 | AD109: 0 | AE109: 0 | AF109: 0 | AH109: =AA109*'Inputs - General'!D$5 -> 0 | AI109: =AB109*'Inputs - General'!E$5 -> 0 | AJ109: =AC109*'Inputs - General'!F$5 -> 0 | AK109: =AD109*'Inputs - General'!G$5 -> 0 | AL109: =AE109*'Inputs - General'!H$5 -> 0 | AM109: =AF109*'Inputs - General'!I$5 -> 0 | AO109: =N109*'Inputs - General'!D$5 -> 0 | AP109: =O109*'Inputs - General'!E$5 -> 0 | AQ109: =P109*'Inputs - General'!F$5 -> 0 | AR109: =Q109*'Inputs - General'!G$5 -> 0 | AS109: =R109*'Inputs - General'!H$5 -> 0 | AT109: =S109*'Inputs - General'!I$5 -> 0 | AV109: =U109*'Inputs - General'!E$5 -> 0 | AW109: =V109*'Inputs - General'!F$5 -> 0 | AX109: =W109*'Inputs - General'!G$5 -> 0 | AY109: =X109*'Inputs - General'!H$5 -> 0 | AZ109: =Y109*'Inputs - General'!I$5 -> 0 | BB109: =AH109*'Inputs - General'!E$4 -> 0 | BC109: =AI109*'Inputs - General'!F$4 -> 0 | BD109: =AJ109*'Inputs - General'!G$4 -> 0 | BE109: =AK109*'Inputs - General'!H$4 -> 0 | BF109: =AL109*'Inputs - General'!I$4 -> 0 | BH109: 0 | BI109: 0 | BJ109: 0 | BK109: 0 | BL109: 0 | BN109: 0 | BO109: 0 | BP109: 0 | BQ109: 0 | BR109: 0 | BT109: ='Input - Customer Inventory FY15'!F108 -> 10 | BZ109: =IF($E109="Lamp",0,IF(SUM(BU109:$BY109)>=$BT109,0,IF(BN109<=0,IF($H109=0,0,$BT109),0))) -> 0 | CA109: =IF($E109="Lamp",0,IF(SUM($BU109:BZ109)>=$BT109,0,IF(BO109<=0,IF($H109=0,0,$BT109),0))) -> 0 | CB109: =IF($E109="Lamp",0,IF(SUM($BU109:CA109)>=$BT109,0,IF(BP109<=0,IF($H109=0,0,$BT109),0))) -> 0 | CC109: =IF($E109="Lamp",0,IF(SUM($BU109:CB109)>=$BT109,0,IF(BQ109<=0,IF($H109=0,0,$BT109),0))) -> 0 | CD109: =IF($E109="Lamp",0,IF(SUM($BU109:CC109)>=$BT109,0,IF(BR109<=0,IF($H109=0,0,$BT109),0))) -> 0 | CL109: =CF109/'Inputs - General'!E$5 -> 0 | CM109: =CG109/'Inputs - General'!F$5 -> 0 | CN109: =CH109/'Inputs - General'!G$5 -> 0 | CO109: =CI109/'Inputs - General'!H$5 -> 0 | CP109: =CJ109/'Inputs - General'!I$5 -> 0
D110: Luminaire - 50W MBF | E110: Luminaire | F110: 50W MBF | G110: 1 | H110: 0 | I110: No | J110: 0 | K110: 0 | L110: 0 | N110: 0 | O110: 0 | P110: 0 | Q110: 0 | R110: 0 | S110: 0 | U110: =IFERROR(IF(N110-(($H110-SUM($CK110:CK110))/$K110)<0,N110,(($H110-SUM($CK110:CK110))/$K110)),0) -> 0 | V110: =IFERROR(IF(O110-(($H110-SUM($CK110:CL110))/$K110)<0,O110,(($H110-SUM($CK110:CL110))/$K110)),0) -> 0 | W110: =IFERROR(IF(P110-(($H110-SUM($CK110:CM110))/$K110)<0,P110,(($H110-SUM($CK110:CM110))/$K110)),0) -> 0 | X110: =IFERROR(IF(Q110-(($H110-SUM($CK110:CN110))/$K110)<0,Q110,(($H110-SUM($CK110:CN110))/$K110)),0) -> 0 | Y110: =IFERROR(IF(R110-(($H110-SUM($CK110:CO110))/$K110)<0,R110,(($H110-SUM($CK110:CO110))/$K110)),0) -> 0 | AA110: 0 | AB110: 0 | AC110: 0 | AD110: 0 | AE110: 0 | AF110: 0 | AH110: =AA110*'Inputs - General'!D$5 -> 0 | AI110: =AB110*'Inputs - General'!E$5 -> 0 | AJ110: =AC110*'Inputs - General'!F$5 -> 0 | AK110: =AD110*'Inputs - General'!G$5 -> 0 | AL110: =AE110*'Inputs - General'!H$5 -> 0 | AM110: =AF110*'Inputs - General'!I$5 -> 0 | AO110: =N110*'Inputs - General'!D$5 -> 0 | AP110: =O110*'Inputs - General'!E$5 -> 0 | AQ110: =P110*'Inputs - General'!F$5 -> 0 | AR110: =Q110*'Inputs - General'!G$5 -> 0 | AS110: =R110*'Inputs - General'!H$5 -> 0 | AT110: =S110*'Inputs - General'!I$5 -> 0 | AV110: =U110*'Inputs - General'!E$5 -> 0 | AW110: =V110*'Inputs - General'!F$5 -> 0 | AX110: =W110*'Inputs - General'!G$5 -> 0 | AY110: =X110*'Inputs - General'!H$5 -> 0 | AZ110: =Y110*'Inputs - General'!I$5 -> 0 | BB110: =AH110*'Inputs - General'!E$4 -> 0 | BC110: =AI110*'Inputs - General'!F$4 -> 0 | BD110: =AJ110*'Inputs - General'!G$4 -> 0 | BE110: =AK110*'Inputs - General'!H$4 -> 0 | BF110: =AL110*'Inputs - General'!I$4 -> 0 | BH110: 0 | BI110: 0 | BJ110: 0 | BK110: 0 | BL110: 0 | BN110: 0 | BO110: 0 | BP110: 0 | BQ110: 0 | BR110: 0 | BT110: ='Input - Customer Inventory FY15'!F109 -> 9 | BZ110: =IF($E110="Lamp",0,IF(SUM(BU110:$BY110)>=$BT110,0,IF(BN110<=0,IF($H110=0,0,$BT110),0))) -> 0 | CA110: =IF($E110="Lamp",0,IF(SUM($BU110:BZ110)>=$BT110,0,IF(BO110<=0,IF($H110=0,0,$BT110),0))) -> 0 | CB110: =IF($E110="Lamp",0,IF(SUM($BU110:CA110)>=$BT110,0,IF(BP110<=0,IF($H110=0,0,$BT110),0))) -> 0 | CC110: =IF($E110="Lamp",0,IF(SUM($BU110:CB110)>=$BT110,0,IF(BQ110<=0,IF($H110=0,0,$BT110),0))) -> 0 | CD110: =IF($E110="Lamp",0,IF(SUM($BU110:CC110)>=$BT110,0,IF(BR110<=0,IF($H110=0,0,$BT110),0))) -> 0 | CL110: =CF110/'Inputs - General'!E$5 -> 0 | CM110: =CG110/'Inputs - General'!F$5 -> 0 | CN110: =CH110/'Inputs - General'!G$5 -> 0 | CO110: =CI110/'Inputs - General'!H$5 -> 0 | CP110: =CJ110/'Inputs - General'!I$5 -> 0
D111: Luminaire - 50W SON | E111: Luminaire | F111: 50W SON | G111: 1 | H111: 0 | I111: No | J111: 0 | K111: 0 | L111: 0 | N111: 0 | O111: 0 | P111: 0 | Q111: 0 | R111: 0 | S111: 0 | U111: =IFERROR(IF(N111-(($H111-SUM($CK111:CK111))/$K111)<0,N111,(($H111-SUM($CK111:CK111))/$K111)),0) -> 0 | V111: =IFERROR(IF(O111-(($H111-SUM($CK111:CL111))/$K111)<0,O111,(($H111-SUM($CK111:CL111))/$K111)),0) -> 0 | W111: =IFERROR(IF(P111-(($H111-SUM($CK111:CM111))/$K111)<0,P111,(($H111-SUM($CK111:CM111))/$K111)),0) -> 0 | X111: =IFERROR(IF(Q111-(($H111-SUM($CK111:CN111))/$K111)<0,Q111,(($H111-SUM($CK111:CN111))/$K111)),0) -> 0 | Y111: =IFERROR(IF(R111-(($H111-SUM($CK111:CO111))/$K111)<0,R111,(($H111-SUM($CK111:CO111))/$K111)),0) -> 0 | AA111: 0 | AB111: 0 | AC111: 0 | AD111: 0 | AE111: 0 | AF111: 0 | AH111: =AA111*'Inputs - General'!D$5 -> 0 | AI111: =AB111*'Inputs - General'!E$5 -> 0 | AJ111: =AC111*'Inputs - General'!F$5 -> 0 | AK111: =AD111*'Inputs - General'!G$5 -> 0 | AL111: =AE111*'Inputs - General'!H$5 -> 0 | AM111: =AF111*'Inputs - General'!I$5 -> 0 | AO111: =N111*'Inputs - General'!D$5 -> 0 | AP111: =O111*'Inputs - General'!E$5 -> 0 | AQ111: =P111*'Inputs - General'!F$5 -> 0 | AR111: =Q111*'Inputs - General'!G$5 -> 0 | AS111: =R111*'Inputs - General'!H$5 -> 0 | AT111: =S111*'Inputs - General'!I$5 -> 0 | AV111: =U111*'Inputs - General'!E$5 -> 0 | AW111: =V111*'Inputs - General'!F$5 -> 0 | AX111: =W111*'Inputs - General'!G$5 -> 0 | AY111: =X111*'Inputs - General'!H$5 -> 0 | AZ111: =Y111*'Inputs - General'!I$5 -> 0 | BB111: =AH111*'Inputs - General'!E$4 -> 0 | BC111: =AI111*'Inputs - General'!F$4 -> 0 | BD111: =AJ111*'Inputs - General'!G$4 -> 0 | BE111: =AK111*'Inputs - General'!H$4 -> 0 | BF111: =AL111*'Inputs - General'!I$4 -> 0 | BH111: 0 | BI111: 0 | BJ111: 0 | BK111: 0 | BL111: 0 | BN111: 0 | BO111: 0 | BP111: 0 | BQ111: 0 | BR111: 0 | BT111: ='Input - Customer Inventory FY15'!F110 -> 10 | BZ111: =IF($E111="Lamp",0,IF(SUM(BU111:$BY111)>=$BT111,0,IF(BN111<=0,IF($H111=0,0,$BT111),0))) -> 0 | CA111: =IF($E111="Lamp",0,IF(SUM($BU111:BZ111)>=$BT111,0,IF(BO111<=0,IF($H111=0,0,$BT111),0))) -> 0 | CB111: =IF($E111="Lamp",0,IF(SUM($BU111:CA111)>=$BT111,0,IF(BP111<=0,IF($H111=0,0,$BT111),0))) -> 0 | CC111: =IF($E111="Lamp",0,IF(SUM($BU111:CB111)>=$BT111,0,IF(BQ111<=0,IF($H111=0,0,$BT111),0))) -> 0 | CD111: =IF($E111="Lamp",0,IF(SUM($BU111:CC111)>=$BT111,0,IF(BR111<=0,IF($H111=0,0,$BT111),0))) -> 0 | CL111: =CF111/'Inputs - General'!E$5 -> 0 | CM111: =CG111/'Inputs - General'!F$5 -> 0 | CN111: =CH111/'Inputs - General'!G$5 -> 0 | CO111: =CI111/'Inputs - General'!H$5 -> 0 | CP111: =CJ111/'Inputs - General'!I$5 -> 0
D112: Luminaire - 700W MBF | E112: Luminaire | F112: 700W MBF | G112: 1 | H112: 0 | I112: No | J112: 0 | K112: 0 | L112: 0 | N112: 0 | O112: 0 | P112: 0 | Q112: 0 | R112: 0 | S112: 0 | U112: =IFERROR(IF(N112-(($H112-SUM($CK112:CK112))/$K112)<0,N112,(($H112-SUM($CK112:CK112))/$K112)),0) -> 0 | V112: =IFERROR(IF(O112-(($H112-SUM($CK112:CL112))/$K112)<0,O112,(($H112-SUM($CK112:CL112))/$K112)),0) -> 0 | W112: =IFERROR(IF(P112-(($H112-SUM($CK112:CM112))/$K112)<0,P112,(($H112-SUM($CK112:CM112))/$K112)),0) -> 0 | X112: =IFERROR(IF(Q112-(($H112-SUM($CK112:CN112))/$K112)<0,Q112,(($H112-SUM($CK112:CN112))/$K112)),0) -> 0 | Y112: =IFERROR(IF(R112-(($H112-SUM($CK112:CO112))/$K112)<0,R112,(($H112-SUM($CK112:CO112))/$K112)),0) -> 0 | AA112: 0 | AB112: 0 | AC112: 0 | AD112: 0 | AE112: 0 | AF112: 0 | AH112: =AA112*'Inputs - General'!D$5 -> 0 | AI112: =AB112*'Inputs - General'!E$5 -> 0 | AJ112: =AC112*'Inputs - General'!F$5 -> 0 | AK112: =AD112*'Inputs - General'!G$5 -> 0 | AL112: =AE112*'Inputs - General'!H$5 -> 0 | AM112: =AF112*'Inputs - General'!I$5 -> 0 | AO112: =N112*'Inputs - General'!D$5 -> 0 | AP112: =O112*'Inputs - General'!E$5 -> 0 | AQ112: =P112*'Inputs - General'!F$5 -> 0 | AR112: =Q112*'Inputs - General'!G$5 -> 0 | AS112: =R112*'Inputs - General'!H$5 -> 0 | AT112: =S112*'Inputs - General'!I$5 -> 0 | AV112: =U112*'Inputs - General'!E$5 -> 0 | AW112: =V112*'Inputs - General'!F$5 -> 0 | AX112: =W112*'Inputs - General'!G$5 -> 0 | AY112: =X112*'Inputs - General'!H$5 -> 0 | AZ112: =Y112*'Inputs - General'!I$5 -> 0 | BB112: =AH112*'Inputs - General'!E$4 -> 0 | BC112: =AI112*'Inputs - General'!F$4 -> 0 | BD112: =AJ112*'Inputs - General'!G$4 -> 0 | BE112: =AK112*'Inputs - General'!H$4 -> 0 | BF112: =AL112*'Inputs - General'!I$4 -> 0 | BH112: 0 | BI112: 0 | BJ112: 0 | BK112: 0 | BL112: 0 | BN112: 0 | BO112: 0 | BP112: 0 | BQ112: 0 | BR112: 0 | BT112: ='Input - Customer Inventory FY15'!F111 -> 0 | BZ112: =IF($E112="Lamp",0,IF(SUM(BU112:$BY112)>=$BT112,0,IF(BN112<=0,IF($H112=0,0,$BT112),0))) -> 0 | CA112: =IF($E112="Lamp",0,IF(SUM($BU112:BZ112)>=$BT112,0,IF(BO112<=0,IF($H112=0,0,$BT112),0))) -> 0 | CB112: =IF($E112="Lamp",0,IF(SUM($BU112:CA112)>=$BT112,0,IF(BP112<=0,IF($H112=0,0,$BT112),0))) -> 0 | CC112: =IF($E112="Lamp",0,IF(SUM($BU112:CB112)>=$BT112,0,IF(BQ112<=0,IF($H112=0,0,$BT112),0))) -> 0 | CD112: =IF($E112="Lamp",0,IF(SUM($BU112:CC112)>=$BT112,0,IF(BR112<=0,IF($H112=0,0,$BT112),0))) -> 0 | CL112: =CF112/'Inputs - General'!E$5 -> 0 | CM112: =CG112/'Inputs - General'!F$5 -> 0 | CN112: =CH112/'Inputs - General'!G$5 -> 0 | CO112: =CI112/'Inputs - General'!H$5 -> 0 | CP112: =CJ112/'Inputs - General'!I$5 -> 0
D113: Luminaire - 70W SON | E113: Luminaire | F113: 70W SON | G113: 1 | H113: 0 | I113: No | J113: 0 | K113: 0 | L113: 0 | N113: 0 | O113: 0 | P113: 0 | Q113: 0 | R113: 0 | S113: 0 | U113: =IFERROR(IF(N113-(($H113-SUM($CK113:CK113))/$K113)<0,N113,(($H113-SUM($CK113:CK113))/$K113)),0) -> 0 | V113: =IFERROR(IF(O113-(($H113-SUM($CK113:CL113))/$K113)<0,O113,(($H113-SUM($CK113:CL113))/$K113)),0) -> 0 | W113: =IFERROR(IF(P113-(($H113-SUM($CK113:CM113))/$K113)<0,P113,(($H113-SUM($CK113:CM113))/$K113)),0) -> 0 | X113: =IFERROR(IF(Q113-(($H113-SUM($CK113:CN113))/$K113)<0,Q113,(($H113-SUM($CK113:CN113))/$K113)),0) -> 0 | Y113: =IFERROR(IF(R113-(($H113-SUM($CK113:CO113))/$K113)<0,R113,(($H113-SUM($CK113:CO113))/$K113)),0) -> 0 | AA113: 0 | AB113: 0 | AC113: 0 | AD113: 0 | AE113: 0 | AF113: 0 | AH113: =AA113*'Inputs - General'!D$5 -> 0 | AI113: =AB113*'Inputs - General'!E$5 -> 0 | AJ113: =AC113*'Inputs - General'!F$5 -> 0 | AK113: =AD113*'Inputs - General'!G$5 -> 0 | AL113: =AE113*'Inputs - General'!H$5 -> 0 | AM113: =AF113*'Inputs - General'!I$5 -> 0 | AO113: =N113*'Inputs - General'!D$5 -> 0 | AP113: =O113*'Inputs - General'!E$5 -> 0 | AQ113: =P113*'Inputs - General'!F$5 -> 0 | AR113: =Q113*'Inputs - General'!G$5 -> 0 | AS113: =R113*'Inputs - General'!H$5 -> 0 | AT113: =S113*'Inputs - General'!I$5 -> 0 | AV113: =U113*'Inputs - General'!E$5 -> 0 | AW113: =V113*'Inputs - General'!F$5 -> 0 | AX113: =W113*'Inputs - General'!G$5 -> 0 | AY113: =X113*'Inputs - General'!H$5 -> 0 | AZ113: =Y113*'Inputs - General'!I$5 -> 0 | BB113: =AH113*'Inputs - General'!E$4 -> 0 | BC113: =AI113*'Inputs - General'!F$4 -> 0 | BD113: =AJ113*'Inputs - General'!G$4 -> 0 | BE113: =AK113*'Inputs - General'!H$4 -> 0 | BF113: =AL113*'Inputs - General'!I$4 -> 0 | BH113: 0 | BI113: 0 | BJ113: 0 | BK113: 0 | BL113: 0 | BN113: 0 | BO113: 0 | BP113: 0 | BQ113: 0 | BR113: 0 | BT113: ='Input - Customer Inventory FY15'!F112 -> 7 | BZ113: =IF($E113="Lamp",0,IF(SUM(BU113:$BY113)>=$BT113,0,IF(BN113<=0,IF($H113=0,0,$BT113),0))) -> 0 | CA113: =IF($E113="Lamp",0,IF(SUM($BU113:BZ113)>=$BT113,0,IF(BO113<=0,IF($H113=0,0,$BT113),0))) -> 0 | CB113: =IF($E113="Lamp",0,IF(SUM($BU113:CA113)>=$BT113,0,IF(BP113<=0,IF($H113=0,0,$BT113),0))) -> 0 | CC113: =IF($E113="Lamp",0,IF(SUM($BU113:CB113)>=$BT113,0,IF(BQ113<=0,IF($H113=0,0,$BT113),0))) -> 0 | CD113: =IF($E113="Lamp",0,IF(SUM($BU113:CC113)>=$BT113,0,IF(BR113<=0,IF($H113=0,0,$BT113),0))) -> 0 | CL113: =CF113/'Inputs - General'!E$5 -> 0 | CM113: =CG113/'Inputs - General'!F$5 -> 0 | CN113: =CH113/'Inputs - General'!G$5 -> 0 | CO113: =CI113/'Inputs - General'!H$5 -> 0 | CP113: =CJ113/'Inputs - General'!I$5 -> 0
D114: Luminaire - 80W MBF - PLAIN | E114: Luminaire | F114: 80W MBF - PLAIN | G114: 1 | H114: 0 | I114: No | J114: 0 | K114: 0 | L114: 0 | N114: 0 | O114: 0 | P114: 0 | Q114: 0 | R114: 0 | S114: 0 | U114: =IFERROR(IF(N114-(($H114-SUM($CK114:CK114))/$K114)<0,N114,(($H114-SUM($CK114:CK114))/$K114)),0) -> 0 | V114: =IFERROR(IF(O114-(($H114-SUM($CK114:CL114))/$K114)<0,O114,(($H114-SUM($CK114:CL114))/$K114)),0) -> 0 | W114: =IFERROR(IF(P114-(($H114-SUM($CK114:CM114))/$K114)<0,P114,(($H114-SUM($CK114:CM114))/$K114)),0) -> 0 | X114: =IFERROR(IF(Q114-(($H114-SUM($CK114:CN114))/$K114)<0,Q114,(($H114-SUM($CK114:CN114))/$K114)),0) -> 0 | Y114: =IFERROR(IF(R114-(($H114-SUM($CK114:CO114))/$K114)<0,R114,(($H114-SUM($CK114:CO114))/$K114)),0) -> 0 | AA114: 0 | AB114: 0 | AC114: 0 | AD114: 0 | AE114: 0 | AF114: 0 | AH114: =AA114*'Inputs - General'!D$5 -> 0 | AI114: =AB114*'Inputs - General'!E$5 -> 0 | AJ114: =AC114*'Inputs - General'!F$5 -> 0 | AK114: =AD114*'Inputs - General'!G$5 -> 0 | AL114: =AE114*'Inputs - General'!H$5 -> 0 | AM114: =AF114*'Inputs - General'!I$5 -> 0 | AO114: =N114*'Inputs - General'!D$5 -> 0 | AP114: =O114*'Inputs - General'!E$5 -> 0 | AQ114: =P114*'Inputs - General'!F$5 -> 0 | AR114: =Q114*'Inputs - General'!G$5 -> 0 | AS114: =R114*'Inputs - General'!H$5 -> 0 | AT114: =S114*'Inputs - General'!I$5 -> 0 | AV114: =U114*'Inputs - General'!E$5 -> 0 | AW114: =V114*'Inputs - General'!F$5 -> 0 | AX114: =W114*'Inputs - General'!G$5 -> 0 | AY114: =X114*'Inputs - General'!H$5 -> 0 | AZ114: =Y114*'Inputs - General'!I$5 -> 0 | BB114: =AH114*'Inputs - General'!E$4 -> 0 | BC114: =AI114*'Inputs - General'!F$4 -> 0 | BD114: =AJ114*'Inputs - General'!G$4 -> 0 | BE114: =AK114*'Inputs - General'!H$4 -> 0 | BF114: =AL114*'Inputs - General'!I$4 -> 0 | BH114: 0 | BI114: 0 | BJ114: 0 | BK114: 0 | BL114: 0 | BN114: 0 | BO114: 0 | BP114: 0 | BQ114: 0 | BR114: 0 | BT114: ='Input - Customer Inventory FY15'!F113 -> 0 | BZ114: =IF($E114="Lamp",0,IF(SUM(BU114:$BY114)>=$BT114,0,IF(BN114<=0,IF($H114=0,0,$BT114),0))) -> 0 | CA114: =IF($E114="Lamp",0,IF(SUM($BU114:BZ114)>=$BT114,0,IF(BO114<=0,IF($H114=0,0,$BT114),0))) -> 0 | CB114: =IF($E114="Lamp",0,IF(SUM($BU114:CA114)>=$BT114,0,IF(BP114<=0,IF($H114=0,0,$BT114),0))) -> 0 | CC114: =IF($E114="Lamp",0,IF(SUM($BU114:CB114)>=$BT114,0,IF(BQ114<=0,IF($H114=0,0,$BT114),0))) -> 0 | CD114: =IF($E114="Lamp",0,IF(SUM($BU114:CC114)>=$BT114,0,IF(BR114<=0,IF($H114=0,0,$BT114),0))) -> 0 | CL114: =CF114/'Inputs - General'!E$5 -> 0 | CM114: =CG114/'Inputs - General'!F$5 -> 0 | CN114: =CH114/'Inputs - General'!G$5 -> 0 | CO114: =CI114/'Inputs - General'!H$5 -> 0 | CP114: =CJ114/'Inputs - General'!I$5 -> 0
D115: Luminaire - 80W MBF - SYLVANIA SUBUR | E115: Luminaire | F115: 80W MBF - SYLVANIA SUBUR | G115: 1 | H115: 0 | I115: No | J115: 0 | K115: 0 | L115: 0 | N115: 0 | O115: 0 | P115: 0 | Q115: 0 | R115: 0 | S115: 0 | U115: =IFERROR(IF(N115-(($H115-SUM($CK115:CK115))/$K115)<0,N115,(($H115-SUM($CK115:CK115))/$K115)),0) -> 0 | V115: =IFERROR(IF(O115-(($H115-SUM($CK115:CL115))/$K115)<0,O115,(($H115-SUM($CK115:CL115))/$K115)),0) -> 0 | W115: =IFERROR(IF(P115-(($H115-SUM($CK115:CM115))/$K115)<0,P115,(($H115-SUM($CK115:CM115))/$K115)),0) -> 0 | X115: =IFERROR(IF(Q115-(($H115-SUM($CK115:CN115))/$K115)<0,Q115,(($H115-SUM($CK115:CN115))/$K115)),0) -> 0 | Y115: =IFERROR(IF(R115-(($H115-SUM($CK115:CO115))/$K115)<0,R115,(($H115-SUM($CK115:CO115))/$K115)),0) -> 0 | AA115: 0 | AB115: 0 | AC115: 0 | AD115: 0 | AE115: 0 | AF115: 0 | AH115: =AA115*'Inputs - General'!D$5 -> 0 | AI115: =AB115*'Inputs - General'!E$5 -> 0 | AJ115: =AC115*'Inputs - General'!F$5 -> 0 | AK115: =AD115*'Inputs - General'!G$5 -> 0 | AL115: =AE115*'Inputs - General'!H$5 -> 0 | AM115: =AF115*'Inputs - General'!I$5 -> 0 | AO115: =N115*'Inputs - General'!D$5 -> 0 | AP115: =O115*'Inputs - General'!E$5 -> 0 | AQ115: =P115*'Inputs - General'!F$5 -> 0 | AR115: =Q115*'Inputs - General'!G$5 -> 0 | AS115: =R115*'Inputs - General'!H$5 -> 0 | AT115: =S115*'Inputs - General'!I$5 -> 0 | AV115: =U115*'Inputs - General'!E$5 -> 0 | AW115: =V115*'Inputs - General'!F$5 -> 0 | AX115: =W115*'Inputs - General'!G$5 -> 0 | AY115: =X115*'Inputs - General'!H$5 -> 0 | AZ115: =Y115*'Inputs - General'!I$5 -> 0 | BB115: =AH115*'Inputs - General'!E$4 -> 0 | BC115: =AI115*'Inputs - General'!F$4 -> 0 | BD115: =AJ115*'Inputs - General'!G$4 -> 0 | BE115: =AK115*'Inputs - General'!H$4 -> 0 | BF115: =AL115*'Inputs - General'!I$4 -> 0 | BH115: 0 | BI115: 0 | BJ115: 0 | BK115: 0 | BL115: 0 | BN115: 0 | BO115: 0 | BP115: 0 | BQ115: 0 | BR115: 0 | BT115: ='Input - Customer Inventory FY15'!F114 -> 370.5 | BZ115: =IF($E115="Lamp",0,IF(SUM(BU115:$BY115)>=$BT115,0,IF(BN115<=0,IF($H115=0,0,$BT115),0))) -> 0 | CA115: =IF($E115="Lamp",0,IF(SUM($BU115:BZ115)>=$BT115,0,IF(BO115<=0,IF($H115=0,0,$BT115),0))) -> 0 | CB115: =IF($E115="Lamp",0,IF(SUM($BU115:CA115)>=$BT115,0,IF(BP115<=0,IF($H115=0,0,$BT115),0))) -> 0 | CC115: =IF($E115="Lamp",0,IF(SUM($BU115:CB115)>=$BT115,0,IF(BQ115<=0,IF($H115=0,0,$BT115),0))) -> 0 | CD115: =IF($E115="Lamp",0,IF(SUM($BU115:CC115)>=$BT115,0,IF(BR115<=0,IF($H115=0,0,$BT115),0))) -> 0 | CL115: =CF115/'Inputs - General'!E$5 -> 0 | CM115: =CG115/'Inputs - General'!F$5 -> 0 | CN115: =CH115/'Inputs - General'!G$5 -> 0 | CO115: =CI115/'Inputs - General'!H$5 -> 0 | CP115: =CJ115/'Inputs - General'!I$5 -> 0
D116: Luminaire - 80W MBF - SYLVANIA SUBUR | E116: Luminaire | F116: 80W MBF - SYLVANIA SUBUR | G116: 2 | H116: 0 | I116: No | J116: 0 | K116: 0 | L116: 0 | N116: 0 | O116: 0 | P116: 0 | Q116: 0 | R116: 0 | S116: 0 | U116: =IFERROR(IF(N116-(($H116-SUM($CK116:CK116))/$K116)<0,N116,(($H116-SUM($CK116:CK116))/$K116)),0) -> 0 | V116: =IFERROR(IF(O116-(($H116-SUM($CK116:CL116))/$K116)<0,O116,(($H116-SUM($CK116:CL116))/$K116)),0) -> 0 | W116: =IFERROR(IF(P116-(($H116-SUM($CK116:CM116))/$K116)<0,P116,(($H116-SUM($CK116:CM116))/$K116)),0) -> 0 | X116: =IFERROR(IF(Q116-(($H116-SUM($CK116:CN116))/$K116)<0,Q116,(($H116-SUM($CK116:CN116))/$K116)),0) -> 0 | Y116: =IFERROR(IF(R116-(($H116-SUM($CK116:CO116))/$K116)<0,R116,(($H116-SUM($CK116:CO116))/$K116)),0) -> 0 | AA116: 0 | AB116: 0 | AC116: 0 | AD116: 0 | AE116: 0 | AF116: 0 | AH116: =AA116*'Inputs - General'!D$5 -> 0 | AI116: =AB116*'Inputs - General'!E$5 -> 0 | AJ116: =AC116*'Inputs - General'!F$5 -> 0 | AK116: =AD116*'Inputs - General'!G$5 -> 0 | AL116: =AE116*'Inputs - General'!H$5 -> 0 | AM116: =AF116*'Inputs - General'!I$5 -> 0 | AO116: =N116*'Inputs - General'!D$5 -> 0 | AP116: =O116*'Inputs - General'!E$5 -> 0 | AQ116: =P116*'Inputs - General'!F$5 -> 0 | AR116: =Q116*'Inputs - General'!G$5 -> 0 | AS116: =R116*'Inputs - General'!H$5 -> 0 | AT116: =S116*'Inputs - General'!I$5 -> 0 | AV116: =U116*'Inputs - General'!E$5 -> 0 | AW116: =V116*'Inputs - General'!F$5 -> 0 | AX116: =W116*'Inputs - General'!G$5 -> 0 | AY116: =X116*'Inputs - General'!H$5 -> 0 | AZ116: =Y116*'Inputs - General'!I$5 -> 0 | BB116: =AH116*'Inputs - General'!E$4 -> 0 | BC116: =AI116*'Inputs - General'!F$4 -> 0 | BD116: =AJ116*'Inputs - General'!G$4 -> 0 | BE116: =AK116*'Inputs - General'!H$4 -> 0 | BF116: =AL116*'Inputs - General'!I$4 -> 0 | BH116: 0 | BI116: 0 | BJ116: 0 | BK116: 0 | BL116: 0 | BN116: 0 | BO116: 0 | BP116: 0 | BQ116: 0 | BR116: 0 | BT116: ='Input - Customer Inventory FY15'!F115 -> 10 | BZ116: =IF($E116="Lamp",0,IF(SUM(BU116:$BY116)>=$BT116,0,IF(BN116<=0,IF($H116=0,0,$BT116),0))) -> 0 | CA116: =IF($E116="Lamp",0,IF(SUM($BU116:BZ116)>=$BT116,0,IF(BO116<=0,IF($H116=0,0,$BT116),0))) -> 0 | CB116: =IF($E116="Lamp",0,IF(SUM($BU116:CA116)>=$BT116,0,IF(BP116<=0,IF($H116=0,0,$BT116),0))) -> 0 | CC116: =IF($E116="Lamp",0,IF(SUM($BU116:CB116)>=$BT116,0,IF(BQ116<=0,IF($H116=0,0,$BT116),0))) -> 0 | CD116: =IF($E116="Lamp",0,IF(SUM($BU116:CC116)>=$BT116,0,IF(BR116<=0,IF($H116=0,0,$BT116),0))) -> 0 | CL116: =CF116/'Inputs - General'!E$5 -> 0 | CM116: =CG116/'Inputs - General'!F$5 -> 0 | CN116: =CH116/'Inputs - General'!G$5 -> 0 | CO116: =CI116/'Inputs - General'!H$5 -> 0 | CP116: =CJ116/'Inputs - General'!I$5 -> 0
D117: Luminaire - 80W MBF | E117: Luminaire | F117: 80W MBF | G117: 1 | H117: 0 | I117: No | J117: 0 | K117: 0 | L117: 0 | N117: 0 | O117: 0 | P117: 0 | Q117: 0 | R117: 0 | S117: 0 | U117: =IFERROR(IF(N117-(($H117-SUM($CK117:CK117))/$K117)<0,N117,(($H117-SUM($CK117:CK117))/$K117)),0) -> 0 | V117: =IFERROR(IF(O117-(($H117-SUM($CK117:CL117))/$K117)<0,O117,(($H117-SUM($CK117:CL117))/$K117)),0) -> 0 | W117: =IFERROR(IF(P117-(($H117-SUM($CK117:CM117))/$K117)<0,P117,(($H117-SUM($CK117:CM117))/$K117)),0) -> 0 | X117: =IFERROR(IF(Q117-(($H117-SUM($CK117:CN117))/$K117)<0,Q117,(($H117-SUM($CK117:CN117))/$K117)),0) -> 0 | Y117: =IFERROR(IF(R117-(($H117-SUM($CK117:CO117))/$K117)<0,R117,(($H117-SUM($CK117:CO117))/$K117)),0) -> 0 | AA117: 0 | AB117: 0 | AC117: 0 | AD117: 0 | AE117: 0 | AF117: 0 | AH117: =AA117*'Inputs - General'!D$5 -> 0 | AI117: =AB117*'Inputs - General'!E$5 -> 0 | AJ117: =AC117*'Inputs - General'!F$5 -> 0 | AK117: =AD117*'Inputs - General'!G$5 -> 0 | AL117: =AE117*'Inputs - General'!H$5 -> 0 | AM117: =AF117*'Inputs - General'!I$5 -> 0 | AO117: =N117*'Inputs - General'!D$5 -> 0 | AP117: =O117*'Inputs - General'!E$5 -> 0 | AQ117: =P117*'Inputs - General'!F$5 -> 0 | AR117: =Q117*'Inputs - General'!G$5 -> 0 | AS117: =R117*'Inputs - General'!H$5 -> 0 | AT117: =S117*'Inputs - General'!I$5 -> 0 | AV117: =U117*'Inputs - General'!E$5 -> 0 | AW117: =V117*'Inputs - General'!F$5 -> 0 | AX117: =W117*'Inputs - General'!G$5 -> 0 | AY117: =X117*'Inputs - General'!H$5 -> 0 | AZ117: =Y117*'Inputs - General'!I$5 -> 0 | BB117: =AH117*'Inputs - General'!E$4 -> 0 | BC117: =AI117*'Inputs - General'!F$4 -> 0 | BD117: =AJ117*'Inputs - General'!G$4 -> 0 | BE117: =AK117*'Inputs - General'!H$4 -> 0 | BF117: =AL117*'Inputs - General'!I$4 -> 0 | BH117: 0 | BI117: 0 | BJ117: 0 | BK117: 0 | BL117: 0 | BN117: 0 | BO117: 0 | BP117: 0 | BQ117: 0 | BR117: 0 | BT117: ='Input - Customer Inventory FY15'!F116 -> 150 | BZ117: =IF($E117="Lamp",0,IF(SUM(BU117:$BY117)>=$BT117,0,IF(BN117<=0,IF($H117=0,0,$BT117),0))) -> 0 | CA117: =IF($E117="Lamp",0,IF(SUM($BU117:BZ117)>=$BT117,0,IF(BO117<=0,IF($H117=0,0,$BT117),0))) -> 0 | CB117: =IF($E117="Lamp",0,IF(SUM($BU117:CA117)>=$BT117,0,IF(BP117<=0,IF($H117=0,0,$BT117),0))) -> 0 | CC117: =IF($E117="Lamp",0,IF(SUM($BU117:CB117)>=$BT117,0,IF(BQ117<=0,IF($H117=0,0,$BT117),0))) -> 0 | CD117: =IF($E117="Lamp",0,IF(SUM($BU117:CC117)>=$BT117,0,IF(BR117<=0,IF($H117=0,0,$BT117),0))) -> 0 | CL117: =CF117/'Inputs - General'!E$5 -> 0 | CM117: =CG117/'Inputs - General'!F$5 -> 0 | CN117: =CH117/'Inputs - General'!G$5 -> 0 | CO117: =CI117/'Inputs - General'!H$5 -> 0 | CP117: =CJ117/'Inputs - General'!I$5 -> 0
D118: Luminaire - 80W MBF | E118: Luminaire | F118: 80W MBF | G118: 2 | H118: 0 | I118: No | J118: 0 | K118: 0 | L118: 0 | N118: 0 | O118: 0 | P118: 0 | Q118: 0 | R118: 0 | S118: 0 | U118: =IFERROR(IF(N118-(($H118-SUM($CK118:CK118))/$K118)<0,N118,(($H118-SUM($CK118:CK118))/$K118)),0) -> 0 | V118: =IFERROR(IF(O118-(($H118-SUM($CK118:CL118))/$K118)<0,O118,(($H118-SUM($CK118:CL118))/$K118)),0) -> 0 | W118: =IFERROR(IF(P118-(($H118-SUM($CK118:CM118))/$K118)<0,P118,(($H118-SUM($CK118:CM118))/$K118)),0) -> 0 | X118: =IFERROR(IF(Q118-(($H118-SUM($CK118:CN118))/$K118)<0,Q118,(($H118-SUM($CK118:CN118))/$K118)),0) -> 0 | Y118: =IFERROR(IF(R118-(($H118-SUM($CK118:CO118))/$K118)<0,R118,(($H118-SUM($CK118:CO118))/$K118)),0) -> 0 | AA118: 0 | AB118: 0 | AC118: 0 | AD118: 0 | AE118: 0 | AF118: 0 | AH118: =AA118*'Inputs - General'!D$5 -> 0 | AI118: =AB118*'Inputs - General'!E$5 -> 0 | AJ118: =AC118*'Inputs - General'!F$5 -> 0 | AK118: =AD118*'Inputs - General'!G$5 -> 0 | AL118: =AE118*'Inputs - General'!H$5 -> 0 | AM118: =AF118*'Inputs - General'!I$5 -> 0 | AO118: =N118*'Inputs - General'!D$5 -> 0 | AP118: =O118*'Inputs - General'!E$5 -> 0 | AQ118: =P118*'Inputs - General'!F$5 -> 0 | AR118: =Q118*'Inputs - General'!G$5 -> 0 | AS118: =R118*'Inputs - General'!H$5 -> 0 | AT118: =S118*'Inputs - General'!I$5 -> 0 | AV118: =U118*'Inputs - General'!E$5 -> 0 | AW118: =V118*'Inputs - General'!F$5 -> 0 | AX118: =W118*'Inputs - General'!G$5 -> 0 | AY118: =X118*'Inputs - General'!H$5 -> 0 | AZ118: =Y118*'Inputs - General'!I$5 -> 0 | BB118: =AH118*'Inputs - General'!E$4 -> 0 | BC118: =AI118*'Inputs - General'!F$4 -> 0 | BD118: =AJ118*'Inputs - General'!G$4 -> 0 | BE118: =AK118*'Inputs - General'!H$4 -> 0 | BF118: =AL118*'Inputs - General'!I$4 -> 0 | BH118: 0 | BI118: 0 | BJ118: 0 | BK118: 0 | BL118: 0 | BN118: 0 | BO118: 0 | BP118: 0 | BQ118: 0 | BR118: 0 | BT118: ='Input - Customer Inventory FY15'!F117 -> 5 | BZ118: =IF($E118="Lamp",0,IF(SUM(BU118:$BY118)>=$BT118,0,IF(BN118<=0,IF($H118=0,0,$BT118),0))) -> 0 | CA118: =IF($E118="Lamp",0,IF(SUM($BU118:BZ118)>=$BT118,0,IF(BO118<=0,IF($H118=0,0,$BT118),0))) -> 0 | CB118: =IF($E118="Lamp",0,IF(SUM($BU118:CA118)>=$BT118,0,IF(BP118<=0,IF($H118=0,0,$BT118),0))) -> 0 | CC118: =IF($E118="Lamp",0,IF(SUM($BU118:CB118)>=$BT118,0,IF(BQ118<=0,IF($H118=0,0,$BT118),0))) -> 0 | CD118: =IF($E118="Lamp",0,IF(SUM($BU118:CC118)>=$BT118,0,IF(BR118<=0,IF($H118=0,0,$BT118),0))) -> 0 | CL118: =CF118/'Inputs - General'!E$5 -> 0 | CM118: =CG118/'Inputs - General'!F$5 -> 0 | CN118: =CH118/'Inputs - General'!G$5 -> 0 | CO118: =CI118/'Inputs - General'!H$5 -> 0 | CP118: =CJ118/'Inputs - General'!I$5 -> 0
D119: Luminaire - PRIVATE | E119: Luminaire | F119: PRIVATE | G119: 3 | H119: 0 | I119: No | J119: 0 | K119: 0 | L119: 0 | N119: 0 | O119: 0 | P119: 0 | Q119: 0 | R119: 0 | S119: 0 | U119: =IFERROR(IF(N119-(($H119-SUM($CK119:CK119))/$K119)<0,N119,(($H119-SUM($CK119:CK119))/$K119)),0) -> 0 | V119: =IFERROR(IF(O119-(($H119-SUM($CK119:CL119))/$K119)<0,O119,(($H119-SUM($CK119:CL119))/$K119)),0) -> 0 | W119: =IFERROR(IF(P119-(($H119-SUM($CK119:CM119))/$K119)<0,P119,(($H119-SUM($CK119:CM119))/$K119)),0) -> 0 | X119: =IFERROR(IF(Q119-(($H119-SUM($CK119:CN119))/$K119)<0,Q119,(($H119-SUM($CK119:CN119))/$K119)),0) -> 0 | Y119: =IFERROR(IF(R119-(($H119-SUM($CK119:CO119))/$K119)<0,R119,(($H119-SUM($CK119:CO119))/$K119)),0) -> 0 | AA119: 0 | AB119: 0 | AC119: 0 | AD119: 0 | AE119: 0 | AF119: 0 | AH119: =AA119*'Inputs - General'!D$5 -> 0 | AI119: =AB119*'Inputs - General'!E$5 -> 0 | AJ119: =AC119*'Inputs - General'!F$5 -> 0 | AK119: =AD119*'Inputs - General'!G$5 -> 0 | AL119: =AE119*'Inputs - General'!H$5 -> 0 | AM119: =AF119*'Inputs - General'!I$5 -> 0 | AO119: =N119*'Inputs - General'!D$5 -> 0 | AP119: =O119*'Inputs - General'!E$5 -> 0 | AQ119: =P119*'Inputs - General'!F$5 -> 0 | AR119: =Q119*'Inputs - General'!G$5 -> 0 | AS119: =R119*'Inputs - General'!H$5 -> 0 | AT119: =S119*'Inputs - General'!I$5 -> 0 | AV119: =U119*'Inputs - General'!E$5 -> 0 | AW119: =V119*'Inputs - General'!F$5 -> 0 | AX119: =W119*'Inputs - General'!G$5 -> 0 | AY119: =X119*'Inputs - General'!H$5 -> 0 | AZ119: =Y119*'Inputs - General'!I$5 -> 0 | BB119: =AH119*'Inputs - General'!E$4 -> 0 | BC119: =AI119*'Inputs - General'!F$4 -> 0 | BD119: =AJ119*'Inputs - General'!G$4 -> 0 | BE119: =AK119*'Inputs - General'!H$4 -> 0 | BF119: =AL119*'Inputs - General'!I$4 -> 0 | BH119: 0 | BI119: 0 | BJ119: 0 | BK119: 0 | BL119: 0 | BN119: 0 | BO119: 0 | BP119: 0 | BQ119: 0 | BR119: 0 | BT119: ='Input - Customer Inventory FY15'!F118 -> 12 | BZ119: =IF($E119="Lamp",0,IF(SUM(BU119:$BY119)>=$BT119,0,IF(BN119<=0,IF($H119=0,0,$BT119),0))) -> 0 | CA119: =IF($E119="Lamp",0,IF(SUM($BU119:BZ119)>=$BT119,0,IF(BO119<=0,IF($H119=0,0,$BT119),0))) -> 0 | CB119: =IF($E119="Lamp",0,IF(SUM($BU119:CA119)>=$BT119,0,IF(BP119<=0,IF($H119=0,0,$BT119),0))) -> 0 | CC119: =IF($E119="Lamp",0,IF(SUM($BU119:CB119)>=$BT119,0,IF(BQ119<=0,IF($H119=0,0,$BT119),0))) -> 0 | CD119: =IF($E119="Lamp",0,IF(SUM($BU119:CC119)>=$BT119,0,IF(BR119<=0,IF($H119=0,0,$BT119),0))) -> 0 | CL119: =CF119/'Inputs - General'!E$5 -> 0 | CM119: =CG119/'Inputs - General'!F$5 -> 0 | CN119: =CH119/'Inputs - General'!G$5 -> 0 | CO119: =CI119/'Inputs - General'!H$5 -> 0 | CP119: =CJ119/'Inputs - General'!I$5 -> 0
D120: Support - COLUMN 10.5M-13.5M | E120: Support | F120: COLUMN 10.5M-13.5M | G120: 1 | H120: 50.77198538 | I120: No | J120: 3.336860337 | K120: 3.336860337 | L120: 15.21549608 | N120: 50.77198538 | O120: 35.5564893 | P120: 20.34099322 | Q120: 5.125497137 | R120: 0 | S120: 0 | U120: =IFERROR(IF(N120-(($H120-SUM($CK120:CK120))/$K120)<0,N120,(($H120-SUM($CK120:CK120))/$K120)),0) -> 15.21549608 | V120: =IFERROR(IF(O120-(($H120-SUM($CK120:CL120))/$K120)<0,O120,(($H120-SUM($CK120:CL120))/$K120)),0) -> 15.21549608 | W120: =IFERROR(IF(P120-(($H120-SUM($CK120:CM120))/$K120)<0,P120,(($H120-SUM($CK120:CM120))/$K120)),0) -> 15.21549608 | X120: =IFERROR(IF(Q120-(($H120-SUM($CK120:CN120))/$K120)<0,Q120,(($H120-SUM($CK120:CN120))/$K120)),0) -> 5.125497137 | Y120: =IFERROR(IF(R120-(($H120-SUM($CK120:CO120))/$K120)<0,R120,(($H120-SUM($CK120:CO120))/$K120)),0) -> 0 | AA120: 50.77198538 | AB120: 35.5564893 | AC120: 20.34099322 | AD120: 5.125497137 | AE120: 0 | AF120: 0 | AH120: =AA120*'Inputs - General'!D$5 -> 50.77198538 | AI120: =AB120*'Inputs - General'!E$5 -> 37.01430536 | AJ120: =AC120*'Inputs - General'!F$5 -> 22.04314787 | AK120: =AD120*'Inputs - General'!G$5 -> 5.782134421 | AL120: =AE120*'Inputs - General'!H$5 -> 0 | AM120: =AF120*'Inputs - General'!I$5 -> 0 | AO120: =N120*'Inputs - General'!D$5 -> 50.77198538 | AP120: =O120*'Inputs - General'!E$5 -> 37.01430536 | AQ120: =P120*'Inputs - General'!F$5 -> 22.04314787 | AR120: =Q120*'Inputs - General'!G$5 -> 5.782134421 | AS120: =R120*'Inputs - General'!H$5 -> 0 | AT120: =S120*'Inputs - General'!I$5 -> 0 | AV120: =U120*'Inputs - General'!E$5 -> 15.83933142 | AW120: =V120*'Inputs - General'!F$5 -> 16.48874401 | AX120: =W120*'Inputs - General'!G$5 -> 17.16478251 | AY120: =X120*'Inputs - General'!H$5 -> 6.019201933 | AZ120: =Y120*'Inputs - General'!I$5 -> 0 | BB120: =AH120*'Inputs - General'!E$4 -> 2.081651401 | BC120: =AI120*'Inputs - General'!F$4 -> 1.51758652 | BD120: =AJ120*'Inputs - General'!G$4 -> 0.9037690628 | BE120: =AK120*'Inputs - General'!H$4 -> 0.2370675113 | BF120: =AL120*'Inputs - General'!I$4 -> 0 | BH120: 13.75768002 | BI120: 14.97115749 | BJ120: 16.26101345 | BK120: 5.782134421 | BL120: 0 | BN120: 3.133259776 | BO120: 2.284240674 | BP120: 1.360334997 | BQ120: 0.3568292448 | BR120: 0 | BT120: ='Input - Customer Inventory FY15'!F119 -> 71.5 | BZ120: =IF($E120="Lamp",0,IF(SUM(BU120:$BY120)>=$BT120,0,IF(BN120<=0,IF($H120=0,0,$BT120),0))) -> 0 | CA120: =IF($E120="Lamp",0,IF(SUM($BU120:BZ120)>=$BT120,0,IF(BO120<=0,IF($H120=0,0,$BT120),0))) -> 0 | CB120: =IF($E120="Lamp",0,IF(SUM($BU120:CA120)>=$BT120,0,IF(BP120<=0,IF($H120=0,0,$BT120),0))) -> 0 | CC120: =IF($E120="Lamp",0,IF(SUM($BU120:CB120)>=$BT120,0,IF(BQ120<=0,IF($H120=0,0,$BT120),0))) -> 0 | CD120: =IF($E120="Lamp",0,IF(SUM($BU120:CC120)>=$BT120,0,IF(BR120<=0,IF($H120=0,0,$BT120),0))) -> 71.5 | CL120: =CF120/'Inputs - General'!E$5 -> 0 | CM120: =CG120/'Inputs - General'!F$5 -> 0 | CN120: =CH120/'Inputs - General'!G$5 -> 0 | CO120: =CI120/'Inputs - General'!H$5 -> 0 | CP120: =CJ120/'Inputs - General'!I$5 -> 0
